Workbook

Sheet Checklist
A1: Appraisal Tool Completion Checklist
A5: 1. | B5: All compulsory fields on Project Information tab completed | C5: Yes | Q5: Yes
Q6: No
A7: 2. | B7: Check development period interest rate (cell H25 on Project Information tab) | C7: Yes
A9: 3. | B9: Check long term loan interest rate (cell H26 on Project Information tab) | C9: Yes
A11: 4. | B11: Development Cash flow completed | C11: Yes | Q11: N/A
A13: 5. | B13: Developemnt cost breakdown tab completed | C13: Yes
A15: 6. | B15: Professional Fee tab completed if being used | C15: Yes
A17: 7. | B17: Social Rent tab completed | C17: N/A
A19: 8. | B19: Affordable Rent tab completed | C19: Yes
A21: 8. | B21: Shared Ownership tab completed | C21: Yes
A23: 9. | B23: Market Rent tab completed | C23: N/A
A25: 10. | B25: Shared Equity tab completed | C25: N/A
A27: 11. | B27: Outright Sale tab completed | C27: N/A
A29: 12. | B29: Commercial tab completed | C29: N/A
A31: 13. | B31: Ensure number of units in Project Information agrees to individual tenure tabs | C31: Yes
A33: 14. | B33: Warnings in table have been investigated | C33: Yes
A36: Spreadsheet Checks
A37: Warnings will appear in the following table if applicable
B38: Description if warning | D38: Tab to check if warning appears
A39: 1. | B39: =IF('Project Information'!C27<'Project Information'!C26,"Start on site date is before purchase completion"," ") -> Start on site date is before purchase completion | C39: =IF(B39<>" ","Please Check"," ") -> Please Check | D39: Project Information
A40: 2. | B40: =IF('Project Information'!C28<'Project Information'!C27,"Practical competion date is before start on site"," ") ->  | D40: Project Information
A41: 3. | B41: =IF('Project Information'!D23<>(+'Social Rent'!C21+'Affordable Rent'!C21+'Shared Ownership'!C21+'Market Rent'!C21+'Limited Equity'!C21+OutrightSale!C21+Commercial!C21),"Units in Project Information do not agree to individual tenure tabs"," ") ->  | D41: Project Information
A42: 4. | B42: =IF(AND(Summary!E16>0,SUM('Dev Cash Flow'!F18:F22)/Summary!D16<1000),"Build cost is less than £1000 per Sq Mtr"," ") ->  | D42: Dev Cash Flow
A43: 5. | B43: =IF(AND('Social Rent'!C21>0,'Social Rent'!P21>50%),"1999 values are greater than 50% of OMV"," ") ->  | D43: Social Rent
A44: 6. | B44: =IF(AND('Shared Ownership'!C21>0,'Shared Ownership'!K11<'Project Information'!C28),"Date of Shared Ownership sales is before pracitical completion"," ") ->  | D44: HomeBuy
A45: 7. | B45: =IF(AND('Limited Equity'!C21>0,'Limited Equity'!K11<'Project Information'!C28),"Date of Equity Share sales is before practical completion"," ") ->  | D45: Shared Equity
A46: 8. | B46: =IF(AND(OutrightSale!C21>0,OutrightSale!I11<'Project Information'!C28),"Date of Outright sales is before practical completion"," ") ->  | D46: Outright Sale
A400: 2017-09-21
A402: 2017-08-28
A406: 2017-08-16
A409: 2017-08-03
A411: 2017-07-26
A413: 2013-06-15

Sheet Project Information
B1: Appraisal Tool - Project Information | Y1: HCA Regions | AA1: Item | AB1: Project Type | AC1: Rent/Programme Year | AD1: Project Build/Acquisition
B3: KEY | Y3: East of England
B4: Manual Input (If applicable) | Y4: East Midlands
B5: Formula with Manual Input Capability if needed | Y5: London
B6: Protected cells
B7: ** denotes compulsory field | Y7: North East | AA7: Aberdeen City
Y8: North West | AA8: Aberdeenshire
B9: Project Details | G9: Other Information | U9: 1 | W9: Yes | Y9: South East | AA9: Adur | AB9: Social Rent | AC9: 2017/18 | AD9: Design & Build | AF9: =+C25 -> 2022-04-01 | AG9: =+AF9+31 -> 2022-05-02 | AH9: =+AG9+31 -> 2022-06-02 | AI9: 2022-07-03 | AJ9: 2022-08-03 | AK9: 2022-09-03 | AL9: 2022-10-04 | AM9: 2022-11-04 | AN9: 2022-12-05 | AO9: 2023-01-05 | AP9: 2023-02-05 | AQ9: 2023-03-08 | AR9: 2023-04-08 | AS9: 2023-05-09 | AT9: 2023-06-09 | AU9: 2023-07-10 | AV9: 2023-08-10 | AW9: 2023-09-10 | AX9: 2023-10-11 | AY9: 2023-11-11 | AZ9: 2023-12-12 | BA9: 2024-01-12 | BB9: 2024-02-12 | BC9: 2024-03-14 | BD9: 2024-04-14 | BE9: 2024-05-15 | BF9: 2024-06-15 | BG9: 2024-07-16 | BH9: 2024-08-16 | BI9: 2024-09-16 | BJ9: 2024-10-17 | BK9: 2024-11-17 | BL9: 2024-12-18 | BM9: 2025-01-18 | BN9: 2025-02-18 | BO9: 2025-03-21 | BP9: 2025-04-21 | BR9: YES
B10: Project Name | C10: Langley CLT 14 units LHA rent | D10: ** | G10: Local Authority | H10: Manchester | I10: ** | U10: 2 | W10: No | Y10: South West | AA10: Allerdale | AB10: Affordable Rent | AC10: 2018/19 | AD10: Off the Shelf | BR10: NO
B11: Project Manager | C11: Langley CLT | U11: 3 | Y11: West Midlands | AA11: Alnwick | AB11: Shared Ownership | AC11: 2019/20 | AD11: Traditional
G12: HCA Region | H12: North West | U12: 4 | Y12: Yorkshire & Humber | AA12: Amber Valley | AB12: Intermediate Market Rent | AC12: 2020/21
B13: Procurement Type | C13: Traditional | D13: ** | U13: 5 | AA13: Angus | AB13: Market Rent | AC13: 2021/22
U14: 6 | AA14: Argyll and Bute | AB14: Limited Equity | AC14: 2022/23
B15: Project Mix | D15: No of Units | H15: =IF(H14="NO","A Bid Gateway will have to be completed for the project to progress through Approval.","") ->  | U15: 7 | AA15: Arun | AB15: Outright Sale | AC15: 2023/24
B16: Tenure Type - 1 | C16: Affordable Rent | D16: 14 | E16: ** | G16: Rent Year | H16: 2023/24 | I16: ** | U16: 8 | AA16: Ashfield | AB16: Commercial | AC16: 2024/25
B17: Tenure Type - 2 | E17: ** | U17: 9 | AA17: Ashford | AC17: 2025/26
B18: Tenure Type - 3 | E18: ** | G18: HCA Allocation Year (If applicable) | H18: 2022/23 | U18: 10 | AA18: Aylesbury Vale | AC18: 2026/27
B19: Tenure Type - 4 | E19: ** | U19: 11 | AA19: Babergh | AC19: 2027/28
B20: Tenure Type - 5 | E20: ** | G20: Date Last Updated | H20: 03.06.2021 | U20: 12 | AA20: Barking and Dagenham | AC20: 2028/29
B21: Tenure Type - 6 | E21: ** | U21: 13 | AA21: Barnet | AC21: 2029/30
B22: Tenure Type - 7 | E22: ** | G22: Using Professional Fee Tab ? | H22: NO | U22: 14 | AA22: Barnsley | AC22: 2030/31
D23: =SUM(D16:D22) -> 14 | G23: Professional Fee % of Build Costs (If not using tab) | H23: 12.5% | U23: 15 | AA23: Barrow-in-Furness | AC23: 2031/32
B24: Cash Flow Dates | U24: 16 | AA24: Basildon | AC24: 2032/33
B25: Appraisal Start (Protected cell cannot be overwritten) | C25: =IF(OR(MONTH(C26)=1,MONTH(C26)=2,MONTH(C26)=3),DATEVALUE("01/04"&"/"&YEAR(C26)-1),DATEVALUE("01/04"&"/"&YEAR(C26))) -> 2022-04-01 | F25: Assumptions | U25: 17 | AA25: Basingstoke and Deane | AC25: 2033/34
B26: Purchase Completion (Land Acqusition) | C26: 2022-07-14 | D26: ** | F26: Interest Rate Dev Loan | H26: 7.5% | I26: ** | U26: 18 | AA26: Bassetlaw | AC26: 2034/35
B27: Start on Site | C27: 2022-04-14 | D27: ** | F27: Interest Rate Long Term Loan | H27: 4.5% | I27: ** | U27: 19 | AA27: Bath and North East Somerset | AC27: 2035/36
B28: Practical Completion | C28: 2023-04-14 | D28: ** | E28: =MONTH(C27) -> 4 | F28: Length of Long Term Loan Years | H28: 50 | I28: ** | U28: 20 | AA28: Bedford | AC28: 2036/37
E29: =MONTH(C28) -> 4 | F29: Discount rate | H29: 6.0% | I29: ** | U29: 21 | AA29: Berwick upon Tweed | AC29: 2037/38
B30: Last Sales Completion | E30: =YEAR(C27) -> 2022 | U30: 22 | AA30: Bexley | AC30: 2038/39
E31: =YEAR(C28) -> 2,023 | F31: General Needs | U31: 23 | AA31: Birmingham | AC31: 2039/40
F32: Management Costs Per Unit | H32: £424 | I32: ** | U32: 24 | AA32: Blaby | AC32: 2040/41
B33: Contract Term - weeks | C33: =(C28-C27)/7 -> 52 | F33: Maintenance Costs Per Unit | H33: £768 | I33: ** | U33: 25 | AA33: Blackburn | AC33: 2041/42
F34: Major Repairs Provision %age | H34: 0.4% | I34: ** | U34: 26 | AA34: Blackpool
B35: GRANT | F35: Voids | H35: 3.0% | I35: ** | U35: 27 | AA35: Blyth Valley
B36: Source | C36: Amount | D36: Mth/Yr Rec'd | U36: 28 | AA36: Bolsover
B37: HCA-Social/Affordable Rent | C37: 840,000 | D37: N/A | E37: ** | F37: Shared Ownership | U37: 29 | AA37: Bolton
B38: HCA -Shared Ownership /Shared Equity | C38: 0 | E38: ** | F38: Equity Sold | H38: 50.00% | I38: ** | U38: 30 | AA38: Boston
B39: Local Authority | C39: 0 | E39: ** | F39: Rent Cap | H39: 2.75% | I39: ** | U39: 31 | AA39: Bournemouth
B40: Other | C40: 0 | E40: ** | U40: 32 | AA40: Bracknell Forest
E41: ** | F41: Inflation | U41: 33 | AA41: Bradford
B42: TOTAL | C42: =SUM(C37:C41) -> 840,000 | F42: Social Rents inflation to 2019/20 | H42: 3.0% | U42: 34 | AA42: Braintree
F43: Rents (CPI plus 1%) | H43: 3.0% | I43: ** | U43: 35 | AA43: Breckland
F44: Management Costs | H44: 3.0% | I44: ** | U44: 36 | AA44: Brent
F45: Maintenance Costs | H45: 3.0% | I45: ** | U45: 37 | AA45: Brentwood
U46: 38 | AA46: Bridgnorth
B47: Commercial Property Assumptions | F47: Community Bond Assumptions | U47: 39 | AA47: Brighton and Hove
B48: Management Costs per unit | D48: £260 | F48: Amount | H48: 0 | U48: 40 | AA48: Bristol
B49: Maintenance Costs per unit | D49: £260 | F49: Month/Year Rec'd | H49: 2019-12-01 | U49: 41 | AA49: Broadland
B50: Voids Rate | D50: 5.0% | F50: Interest Rate | H50: 5.0% | I50: ** | U50: 42 | AA50: Bromley
B51: Rental Inflation | D51: 3.0% | F51: Bullet Repayment Term/Capital repayment holiday (Yrs) | H51: 5 | I51: ** | U51: 43 | AA51: Bromsgrove
B52: Management Costs Inflation | D52: 3.0% | F52: Roll up Interest | H52: Yes | I52: ** | U52: 44 | AA52: Broxbourne
B53: Maintenance Costs Inflation | D53: 3.0% | F53: Bullet Repayment | H53: Yes | I53: ** | U53: 45 | AA53: Broxtowe
F54: Repayment Term (Yrs) | H54: 5 | I54: ** | U54: 46 | AA54: Burnley
U55: 47 | AA55: Calderdale
U56: 48 | AA56: Cambridge
U57: 49 | AA57: Camden
U58: 50 | AA58: Cannock Chase
AA59: Canterbury
AA60: Caradon
AA61: Carlisle
AA62: Carrick
AA63: Castle Morpeth
AA64: Castle Point
AA65: Charnwood
AA66: Chelmsford
AA67: Cheltenham
AA68: Cherwell
AA69: Chester
AA70: Chesterfield
AA71: Chester-le-Street
AA72: Chichester
AA73: Chiltern
AA74: Chorley
AA75: Christchurch
AA76: City of Edinburgh
AA77: City of Glasgow
AA78: City of London
AA79: Clackmannanshire
AA80: Colchester
AA81: Congleton
AA82: Copeland
AA83: Corby
AA84: Cotswold
AA85: Coventry
AA86: Craven
AA87: Crawley
AA88: Crewe and Nantwich
AA89: Croydon
AA90: Dacorum
AA91: Darlington
AA92: Dartford
AA93: Daventry
AA94: Derby
AA95: Derbyshire Dales
AA96: Derwentside
AA97: Doncaster
AA98: Dover
AA99: Dudley
AA100: Dumfries and Galloway
AA101: Dundee City
AA102: Durham
AA103: Ealing
AA104: Easington
AA105: East Ayrshire
AA106: East Cambridgeshire
AA107: East Devon
AA108: East Dorset
AA109: East Dunbartonshire
AA110: East Hampshire
AA111: East Hertfordshire
AA112: East Lindsey
AA113: East Lothian
AA114: East Northamptonshire
AA115: East Renfrewshire
AA116: East Riding
AA117: East Staffordshire
AA118: Eastbourne
AA119: Eastleigh
AA120: Eden
AA121: Ellesmere Port and Neston
AA122: Elmbridge
AA123: Enfield
AA124: Epping Forest
AA125: Epsom and Ewell
AA126: Erewash
AA127: Exeter
AA128: Falkirk
AA129: Fareham
AA130: Fenland
AA131: Fife
AA132: Forest Heath
AA133: Forest of Dean
AA134: Fylde
AA135: Gateshead
AA136: Gedling
AA137: Glasgow City
AA138: Gloucester
AA139: Gosport
AA140: Gravesham
AA141: Great Yarmouth
AA142: Greenwich
AA143: Guildford
AA144: Hackney
AA145: Halton
AA146: Hambleton
AA147: Hammersmith
AA148: Harborough
AA149: Haringey
AA150: Harlow
AA151: Harrogate
AA152: Harrow
AA153: Hart
AA154: Hartlepool
AA155: Hastings
AA156: Havant
AA157: Havering
AA158: Herefordshire
AA159: Hertsmere
AA160: High Peak
AA161: Highland
AA162: Hillingdon
AA163: Hinckley and Bosworth
AA164: Horsham
AA165: Hounslow
AA166: Huntingdon
AA167: Hyndburn
AA168: Inverclyde
AA169: Ipswich
AA170: Isle of Wight
AA171: Isles of Scilly
AA172: Islington
AA173: Kennet
AA174: Kensington and Chelsea
AA175: Kerrier
AA176: Kettering
AA177: Kings Lynn and West Norfolk
AA178: Kingston Upon Hull
AA179: Kingston Upon Thames
AA180: Kirklees
AA181: Knowsley
AA182: Lambeth
AA183: Lancaster
AA184: Leeds
AA185: Leicester
AA186: Lewes
AA187: Lewisham
AA188: Lichfield
AA189: Lincoln
AA190: Liverpool
AA191: Luton
AA192: Macclesfield
AA193: Maidstone
AA194: Maldon
AA195: Malvern Hills District
AA196: Manchester
AA197: Mansfield
AA198: Melton
AA199: Mendip
AA200: Merton
AA201: Mid Bedfordshire
... 199 more rows

Sheet Dev Cash Flow
C1: Development Cash Flow
C3: KEY | G3: Appraisal Tool Developed by
C4: Manual Input (If applicable) | G4: JonWatsonconsulting
C5: Formula with Input Capability
C6: ** denotes compulsory field - enter 0 where N/A
D8: Project Name | F8: ='Project Information'!C10 -> Langley CLT 14 units LHA rent
D11: KEY DATES
D12: Acquisition | F12: =IF('Project Information'!C26="","PLEASE INPUT DATE",MONTH('Project Information'!C26)) -> 7 | H12: =IF('Project Information'!C26="","PLEASE INPUT DATE",YEAR('Project Information'!C26)) -> 2022
D13: Start On Site | F13: =IF('Project Information'!C27="","PLEASE INPUT DATE",MONTH('Project Information'!C27)) -> 4 | H13: =IF('Project Information'!C27="","PLEASE INPUT DATE",YEAR('Project Information'!C27)) -> 2022
C14: ='Project Information'!C13 -> Traditional | D14: Practical Completion | F14: =IF('Project Information'!C28="","PLEASE INPUT DATE",MONTH('Project Information'!C28)) -> 4 | H14: =IF('Project Information'!C28="","PLEASE INPUT DATE",YEAR('Project Information'!C28)) -> 2023 | J14: =IF(AND(MONTH(I17)=$F$13,YEAR(I17)=$H$13,MONTH(I17)=$F$14,YEAR(I17)=$H$14),"Equal","") ->  | K14: =IF(AND(MONTH(J17)=$F$13,YEAR(J17)=$H$13,MONTH(J17)=$F$14,YEAR(J17)=$H$14),"Equal","") ->  | L14: =IF(AND(MONTH(K17)=$F$13,YEAR(K17)=$H$13,MONTH(K17)=$F$14,YEAR(K17)=$H$14),"Equal","") ->  | M14: =IF(AND(MONTH(L17)=$F$13,YEAR(L17)=$H$13,MONTH(L17)=$F$14,YEAR(L17)=$H$14),"Equal","") -> 
J15: =IF(AND(MONTH(I17)=$F$13,YEAR(I17)=$H$13),"Start on Site","") -> Start on Site | W15: =IF(AND(MONTH(V17)=$F$13,YEAR(V17)=$H$13),"Start on Site","") ->  | AJ15: =IF(AND(MONTH(AI17)=$F$13,YEAR(AI17)=$H$13),"Start on Site","") -> 
I16: =IF(AND(MONTH(I17)=$F$12,YEAR(I17)=$H$12),"Purchase Completion",IF(AND(MONTH(I17)=$F$13,YEAR(I17)=$H$13),"Start on Site",IF(AND(MONTH(I17)=$F$14,YEAR(I17)=$H$14),"Practical Completion",""))) -> Start on Site | J16: =IF(AND(MONTH(J17)=$F$12,YEAR(J17)=$H$12),"Purchase Completion",IF(AND(MONTH(J17)=$F$13,YEAR(J17)=$H$13),"Start on Site",IF(AND(MONTH(J17)=$F$14,YEAR(J17)=$H$14),"Practical Completion",""))) ->  | L16: Purchase Completion | V16: =IF(AND(MONTH(V17)=$F$12,YEAR(V17)=$H$12),"Purchase Completion",IF(AND(MONTH(V17)=$F$13,YEAR(V17)=$H$13),"Start on Site",IF(AND(MONTH(V17)=$F$14,YEAR(V17)=$H$14),"Practical Completion",""))) -> Practical Completion | AI16: =IF(AND(MONTH(AI17)=$F$12,YEAR(AI17)=$H$12),"Purchase Completion",IF(AND(MONTH(AI17)=$F$13,YEAR(AI17)=$H$13),"Start on Site",IF(AND(MONTH(AI17)=$F$14,YEAR(AI17)=$H$14),"Practical Completion",""))) -> 
A17: Group | B17: Exp Inc | D17: Cost Type | F17: Estimated Total Project Cost | G17: Actual Spend to Date | H17: Project Cost from Apr Yr1 - Mar Yr 3 | I17: =+'Project Information'!AF9 -> 2022-04-01 | J17: =+'Project Information'!AG9 -> 2022-05-02 | K17: =+'Project Information'!AH9 -> 2022-06-02 | L17: =+'Project Information'!AI9 -> 2022-07-03 | M17: =+'Project Information'!AJ9 -> 2022-08-03 | N17: =+'Project Information'!AK9 -> 2022-09-03 | O17: =+'Project Information'!AL9 -> 2022-10-04 | P17: =+'Project Information'!AM9 -> 2022-11-04 | Q17: =+'Project Information'!AN9 -> 2022-12-05 | R17: =+'Project Information'!AO9 -> 2023-01-05 | S17: =+'Project Information'!AP9 -> 2023-02-05 | T17: =+'Project Information'!AQ9 -> 2023-03-08 | U17: =YEAR(T17) -> 2023 | V17: =+'Project Information'!AR9 -> 2023-04-08 | W17: =+'Project Information'!AS9 -> 2023-05-09 | X17: =+'Project Information'!AT9 -> 2023-06-09 | Y17: =+'Project Information'!AU9 -> 2023-07-10 | Z17: =+'Project Information'!AV9 -> 2023-08-10 | AA17: =+'Project Information'!AW9 -> 2023-09-10 | AB17: =+'Project Information'!AX9 -> 2023-10-11 | AC17: =+'Project Information'!AY9 -> 2023-11-11 | AD17: =+'Project Information'!AZ9 -> 2023-12-12 | AE17: =+'Project Information'!BA9 -> 2024-01-12 | AF17: =+'Project Information'!BB9 -> 2024-02-12 | AG17: =+'Project Information'!BC9 -> 2024-03-14 | AH17: =YEAR(AG17) -> 2024 | AI17: =+'Project Information'!BD9 -> 2024-04-14 | AJ17: =+'Project Information'!BE9 -> 2024-05-15 | AK17: =+'Project Information'!BF9 -> 2024-06-15 | AL17: =+'Project Information'!BG9 -> 2024-07-16 | AM17: =+'Project Information'!BH9 -> 2024-08-16 | AN17: =+'Project Information'!BI9 -> 2024-09-16 | AO17: =+'Project Information'!BJ9 -> 2024-10-17 | AP17: =+'Project Information'!BK9 -> 2024-11-17 | AQ17: =+'Project Information'!BL9 -> 2024-12-18 | AR17: =+'Project Information'!BM9 -> 2025-01-18 | AS17: =+'Project Information'!BN9 -> 2025-02-18 | AT17: =+'Project Information'!BO9 -> 2025-03-21 | AU17: =YEAR(AT17) -> 2025
A18: Acq | B18: Exp | D18: Acquistion Properties - Off The Shelf | E18: ** | F18: 0 | G18: =IF($F$10<#REF!,#REF!,IF($F$10<$V$17,SUM(OFFSET(#REF!,0,0,1,#REF!+2)),IF($F$10<$AJ$13,(SUM(OFFSET(#REF!,0,0,1,#REF!+3))-U18)," "))) ->  | H18: =SUM(U18+AH18+AU18) -> 0 | I18: =IF($C$14="Off the Shelf",HLOOKUP(SUM($F$13+IF($H$13=2018,12,IF($H$13=2019,24,IF($H$13=2020,36,0)))),'Master Cost Page'!$P$89:$BZ$192,5),IF(AND(MONTH(I17)=$F$12,YEAR(I17)=$H$12),+'Master Cost Page'!$C$4,"")) ->  | J18: =IF($C$14="Off the Shelf",HLOOKUP(SUM($F$13+IF($H$13=2018,12,IF($H$13=2019,24,IF($H$13=2020,36,0)))),'Master Cost Page'!$P$89:$BZ$192,6),IF(AND(MONTH(J17)=$F$12,YEAR(J17)=$H$12),+'Master Cost Page'!$C$4,"")) ->  | K18: =IF($C$14="Off the Shelf",HLOOKUP(SUM($F$13+IF($H$13=2018,12,IF($H$13=2019,24,IF($H$13=2020,36,0)))),'Master Cost Page'!$P$89:$BZ$192,7),IF(AND(MONTH(K17)=$F$12,YEAR(K17)=$H$12),+'Master Cost Page'!$C$4,"")) ->  | L18: =IF($C$14="Off the Shelf",HLOOKUP(SUM($F$13+IF($H$13=2018,12,IF($H$13=2019,24,IF($H$13=2020,36,0)))),'Master Cost Page'!$P$89:$BZ$192,8),IF(AND(MONTH(L17)=$F$12,YEAR(L17)=$H$12),+'Master Cost Page'!$C$4,"")) -> 0 | M18: =IF($C$14="Off the Shelf",HLOOKUP(SUM($F$13+IF($H$13=2018,12,IF($H$13=2019,24,IF($H$13=2020,36,0)))),'Master Cost Page'!$P$89:$BZ$192,9),IF(AND(MONTH(M17)=$F$12,YEAR(M17)=$H$12),+'Master Cost Page'!$C$4,"")) ->  | N18: =IF($C$14="Off the Shelf",HLOOKUP(SUM($F$13+IF($H$13=2018,12,IF($H$13=2019,24,IF($H$13=2020,36,0)))),'Master Cost Page'!$P$89:$BZ$192,10),IF(AND(MONTH(N17)=$F$12,YEAR(N17)=$H$12),+'Master Cost Page'!$C$4,"")) ->  | O18: =IF($C$14="Off the Shelf",HLOOKUP(SUM($F$13+IF($H$13=2018,12,IF($H$13=2019,24,IF($H$13=2020,36,0)))),'Master Cost Page'!$P$89:$BZ$192,11),IF(AND(MONTH(O17)=$F$12,YEAR(O17)=$H$12),+'Master Cost Page'!$C$4,"")) ->  | P18: =IF($C$14="Off the Shelf",HLOOKUP(SUM($F$13+IF($H$13=2018,12,IF($H$13=2019,24,IF($H$13=2020,36,0)))),'Master Cost Page'!$P$89:$BZ$192,12),IF(AND(MONTH(P17)=$F$12,YEAR(P17)=$H$12),+'Master Cost Page'!$C$4,"")) ->  | Q18: =IF($C$14="Off the Shelf",HLOOKUP(SUM($F$13+IF($H$13=2018,12,IF($H$13=2019,24,IF($H$13=2020,36,0)))),'Master Cost Page'!$P$89:$BZ$192,13),IF(AND(MONTH(Q17)=$F$12,YEAR(Q17)=$H$12),+'Master Cost Page'!$C$4,"")) ->  | R18: =IF($C$14="Off the Shelf",HLOOKUP(SUM($F$13+IF($H$13=2018,12,IF($H$13=2019,24,IF($H$13=2020,36,0)))),'Master Cost Page'!$P$89:$BZ$192,14),IF(AND(MONTH(R17)=$F$12,YEAR(R17)=$H$12),+'Master Cost Page'!$C$4,"")) ->  | S18: =IF($C$14="Off the Shelf",HLOOKUP(SUM($F$13+IF($H$13=2018,12,IF($H$13=2019,24,IF($H$13=2020,36,0)))),'Master Cost Page'!$P$89:$BZ$192,15),IF(AND(MONTH(S17)=$F$12,YEAR(S17)=$H$12),+'Master Cost Page'!$C$4,"")) ->  | T18: =IF($C$14="Off the Shelf",HLOOKUP(SUM($F$13+IF($H$13=2018,12,IF($H$13=2019,24,IF($H$13=2020,36,0)))),'Master Cost Page'!$P$89:$BZ$192,16),IF(AND(MONTH(T17)=$F$12,YEAR(T17)=$H$12),+'Master Cost Page'!$C$4,"")) ->  | U18: =SUM(I18:T18) -> 0 | V18: =IF($C$14="Off the Shelf",HLOOKUP(SUM($F$13+IF($H$13=2018,12,IF($H$13=2019,24,IF($H$13=2020,36,0)))),'Master Cost Page'!$P$89:$BZ$192,17),IF(AND(MONTH(V17)=$F$12,YEAR(V17)=$H$12),+'Master Cost Page'!$C$4,"")) ->  | W18: =IF($C$14="Off the Shelf",HLOOKUP(SUM($F$13+IF($H$13=2018,12,IF($H$13=2019,24,IF($H$13=2020,36,0)))),'Master Cost Page'!$P$89:$BZ$192,18),IF(AND(MONTH(W17)=$F$12,YEAR(W17)=$H$12),+'Master Cost Page'!$C$4,"")) ->  | X18: =IF($C$14="Off the Shelf",HLOOKUP(SUM($F$13+IF($H$13=2018,12,IF($H$13=2019,24,IF($H$13=2020,36,0)))),'Master Cost Page'!$P$89:$BZ$192,19),IF(AND(MONTH(X17)=$F$12,YEAR(X17)=$H$12),+'Master Cost Page'!$C$4,"")) ->  | Y18: =IF($C$14="Off the Shelf",HLOOKUP(SUM($F$13+IF($H$13=2018,12,IF($H$13=2019,24,IF($H$13=2020,36,0)))),'Master Cost Page'!$P$89:$BZ$192,20),IF(AND(MONTH(Y17)=$F$12,YEAR(Y17)=$H$12),+'Master Cost Page'!$C$4,"")) ->  | Z18: =IF($C$14="Off the Shelf",HLOOKUP(SUM($F$13+IF($H$13=2018,12,IF($H$13=2019,24,IF($H$13=2020,36,0)))),'Master Cost Page'!$P$89:$BZ$192,21),IF(AND(MONTH(Z17)=$F$12,YEAR(Z17)=$H$12),+'Master Cost Page'!$C$4,"")) ->  | AA18: =IF($C$14="Off the Shelf",HLOOKUP(SUM($F$13+IF($H$13=2018,12,IF($H$13=2019,24,IF($H$13=2020,36,0)))),'Master Cost Page'!$P$89:$BZ$192,22),IF(AND(MONTH(AA17)=$F$12,YEAR(AA17)=$H$12),+'Master Cost Page'!$C$4,"")) ->  | AB18: =IF($C$14="Off the Shelf",HLOOKUP(SUM($F$13+IF($H$13=2018,12,IF($H$13=2019,24,IF($H$13=2020,36,0)))),'Master Cost Page'!$P$89:$BZ$192,23),IF(AND(MONTH(AB17)=$F$12,YEAR(AB17)=$H$12),+'Master Cost Page'!$C$4,"")) ->  | AC18: =IF($C$14="Off the Shelf",HLOOKUP(SUM($F$13+IF($H$13=2018,12,IF($H$13=2019,24,IF($H$13=2020,36,0)))),'Master Cost Page'!$P$89:$BZ$192,24),IF(AND(MONTH(AC17)=$F$12,YEAR(AC17)=$H$12),+'Master Cost Page'!$C$4,"")) ->  | AD18: =IF($C$14="Off the Shelf",HLOOKUP(SUM($F$13+IF($H$13=2018,12,IF($H$13=2019,24,IF($H$13=2020,36,0)))),'Master Cost Page'!$P$89:$BZ$192,25),IF(AND(MONTH(AD17)=$F$12,YEAR(AD17)=$H$12),+'Master Cost Page'!$C$4,"")) ->  | AE18: =IF($C$14="Off the Shelf",HLOOKUP(SUM($F$13+IF($H$13=2018,12,IF($H$13=2019,24,IF($H$13=2020,36,0)))),'Master Cost Page'!$P$89:$BZ$192,26),IF(AND(MONTH(AE17)=$F$12,YEAR(AE17)=$H$12),+'Master Cost Page'!$C$4,"")) ->  | AF18: =IF($C$14="Off the Shelf",HLOOKUP(SUM($F$13+IF($H$13=2018,12,IF($H$13=2019,24,IF($H$13=2020,36,0)))),'Master Cost Page'!$P$89:$BZ$192,27),IF(AND(MONTH(AF17)=$F$12,YEAR(AF17)=$H$12),+'Master Cost Page'!$C$4,"")) ->  | AG18: =IF($C$14="Off the Shelf",HLOOKUP(SUM($F$13+IF($H$13=2018,12,IF($H$13=2019,24,IF($H$13=2020,36,0)))),'Master Cost Page'!$P$89:$BZ$192,28),IF(AND(MONTH(AG17)=$F$12,YEAR(AG17)=$H$12),+'Master Cost Page'!$C$4,"")) ->  | AH18: =SUM(V18:AG18) -> 0 | AI18: =IF($C$14="Off the Shelf",HLOOKUP(SUM($F$13+IF($H$13=2018,12,IF($H$13=2019,24,IF($H$13=2020,36,0)))),'Master Cost Page'!$P$89:$BZ$192,29),IF(AND(MONTH(AI17)=$F$12,YEAR(AI17)=$H$12),+'Master Cost Page'!$C$4,"")) ->  | AJ18: =IF($C$14="Off the Shelf",HLOOKUP(SUM($F$13+IF($H$13=2018,12,IF($H$13=2019,24,IF($H$13=2020,36,0)))),'Master Cost Page'!$P$89:$BZ$192,30),IF(AND(MONTH(AJ17)=$F$12,YEAR(AJ17)=$H$12),+'Master Cost Page'!$C$4,"")) ->  | AK18: =IF($C$14="Off the Shelf",HLOOKUP(SUM($F$13+IF($H$13=2018,12,IF($H$13=2019,24,IF($H$13=2020,36,0)))),'Master Cost Page'!$P$89:$BZ$192,31),IF(AND(MONTH(AK17)=$F$12,YEAR(AK17)=$H$12),+'Master Cost Page'!$C$4,"")) ->  | AL18: =IF($C$14="Off the Shelf",HLOOKUP(SUM($F$13+IF($H$13=2018,12,IF($H$13=2019,24,IF($H$13=2020,36,0)))),'Master Cost Page'!$P$89:$BZ$192,32),IF(AND(MONTH(AL17)=$F$12,YEAR(AL17)=$H$12),+'Master Cost Page'!$C$4,"")) ->  | AM18: =IF($C$14="Off the Shelf",HLOOKUP(SUM($F$13+IF($H$13=2018,12,IF($H$13=2019,24,IF($H$13=2020,36,0)))),'Master Cost Page'!$P$89:$BZ$192,33),IF(AND(MONTH(AM17)=$F$12,YEAR(AM17)=$H$12),+'Master Cost Page'!$C$4,"")) ->  | AN18: =IF($C$14="Off the Shelf",HLOOKUP(SUM($F$13+IF($H$13=2018,12,IF($H$13=2019,24,IF($H$13=2020,36,0)))),'Master Cost Page'!$P$89:$BZ$192,34),IF(AND(MONTH(AN17)=$F$12,YEAR(AN17)=$H$12),+'Master Cost Page'!$C$4,"")) ->  | AO18: =IF($C$14="Off the Shelf",HLOOKUP(SUM($F$13+IF($H$13=2018,12,IF($H$13=2019,24,IF($H$13=2020,36,0)))),'Master Cost Page'!$P$89:$BZ$192,35),IF(AND(MONTH(AO17)=$F$12,YEAR(AO17)=$H$12),+'Master Cost Page'!$C$4,"")) ->  | AP18: =IF($C$14="Off the Shelf",HLOOKUP(SUM($F$13+IF($H$13=2018,12,IF($H$13=2019,24,IF($H$13=2020,36,0)))),'Master Cost Page'!$P$89:$BZ$192,36),IF(AND(MONTH(AP17)=$F$12,YEAR(AP17)=$H$12),+'Master Cost Page'!$C$4,"")) ->  | AQ18: =IF($C$14="Off the Shelf",HLOOKUP(SUM($F$13+IF($H$13=2018,12,IF($H$13=2019,24,IF($H$13=2020,36,0)))),'Master Cost Page'!$P$89:$BZ$192,37),IF(AND(MONTH(AQ17)=$F$12,YEAR(AQ17)=$H$12),+'Master Cost Page'!$C$4,"")) ->  | AR18: =IF($C$14="Off the Shelf",HLOOKUP(SUM($F$13+IF($H$13=2018,12,IF($H$13=2019,24,IF($H$13=2020,36,0)))),'Master Cost Page'!$P$89:$BZ$192,38),IF(AND(MONTH(AR17)=$F$12,YEAR(AR17)=$H$12),+'Master Cost Page'!$C$4,"")) ->  | AS18: =IF($C$14="Off the Shelf",HLOOKUP(SUM($F$13+IF($H$13=2018,12,IF($H$13=2019,24,IF($H$13=2020,36,0)))),'Master Cost Page'!$P$89:$BZ$192,39),IF(AND(MONTH(AS17)=$F$12,YEAR(AS17)=$H$12),+'Master Cost Page'!$C$4,"")) ->  | AT18: =IF($C$14="Off the Shelf",HLOOKUP(SUM($F$13+IF($H$13=2018,12,IF($H$13=2019,24,IF($H$13=2020,36,0)))),'Master Cost Page'!$P$89:$BZ$192,40),IF(AND(MONTH(AT17)=$F$12,YEAR(AT17)=$H$12),+'Master Cost Page'!$C$4,"")) ->  | AU18: =SUM(AI18:AT18) -> 0
D19: Acqusition Land (n/a for Off The Shelf) | E19: ** | F19: 0 | H19: =SUM(U19+AH19+AU19) -> 0 | I19: =IF(AND(MONTH(I17)=$F$12,YEAR(I17)=$H$12),'Master Cost Page'!$C$5,"") ->  | J19: =IF(AND(MONTH(J17)=$F$12,YEAR(J17)=$H$12),'Master Cost Page'!$C$5,"") ->  | K19: =IF(AND(MONTH(K17)=$F$12,YEAR(K17)=$H$12),'Master Cost Page'!$C$5,"") ->  | L19: =IF(AND(MONTH(L17)=$F$12,YEAR(L17)=$H$12),'Master Cost Page'!$C$5,"") -> 0 | M19: =IF(AND(MONTH(M17)=$F$12,YEAR(M17)=$H$12),'Master Cost Page'!$C$5,"") ->  | N19: =IF(AND(MONTH(N17)=$F$12,YEAR(N17)=$H$12),'Master Cost Page'!$C$5,"") ->  | O19: =IF(AND(MONTH(O17)=$F$12,YEAR(O17)=$H$12),'Master Cost Page'!$C$5,"") ->  | P19: =IF(AND(MONTH(P17)=$F$12,YEAR(P17)=$H$12),'Master Cost Page'!$C$5,"") ->  | Q19: =IF(AND(MONTH(Q17)=$F$12,YEAR(Q17)=$H$12),'Master Cost Page'!$C$5,"") ->  | R19: =IF(AND(MONTH(R17)=$F$12,YEAR(R17)=$H$12),'Master Cost Page'!$C$5,"") ->  | S19: =IF(AND(MONTH(S17)=$F$12,YEAR(S17)=$H$12),'Master Cost Page'!$C$5,"") ->  | T19: =IF(AND(MONTH(T17)=$F$12,YEAR(T17)=$H$12),'Master Cost Page'!$C$5,"") ->  | U19: =SUM(I19:T19) -> 0 | V19: =IF(AND(MONTH(V17)=$F$12,YEAR(V17)=$H$12),'Master Cost Page'!$C$5,"") ->  | W19: =IF(AND(MONTH(W17)=$F$12,YEAR(W17)=$H$12),'Master Cost Page'!$C$5,"") ->  | X19: =IF(AND(MONTH(X17)=$F$12,YEAR(X17)=$H$12),'Master Cost Page'!$C$5,"") ->  | Y19: =IF(AND(MONTH(Y17)=$F$12,YEAR(Y17)=$H$12),'Master Cost Page'!$C$5,"") ->  | Z19: =IF(AND(MONTH(Z17)=$F$12,YEAR(Z17)=$H$12),'Master Cost Page'!$C$5,"") ->  | AA19: =IF(AND(MONTH(AA17)=$F$12,YEAR(AA17)=$H$12),'Master Cost Page'!$C$5,"") ->  | AB19: =IF(AND(MONTH(AB17)=$F$12,YEAR(AB17)=$H$12),'Master Cost Page'!$C$5,"") ->  | AC19: =IF(AND(MONTH(AC17)=$F$12,YEAR(AC17)=$H$12),'Master Cost Page'!$C$5,"") ->  | AD19: =IF(AND(MONTH(AD17)=$F$12,YEAR(AD17)=$H$12),'Master Cost Page'!$C$5,"") ->  | AE19: =IF(AND(MONTH(AE17)=$F$12,YEAR(AE17)=$H$12),'Master Cost Page'!$C$5,"") ->  | AF19: =IF(AND(MONTH(AF17)=$F$12,YEAR(AF17)=$H$12),'Master Cost Page'!$C$5,"") ->  | AG19: =IF(AND(MONTH(AG17)=$F$12,YEAR(AG17)=$H$12),'Master Cost Page'!$C$5,"") ->  | AH19: =SUM(V19:AG19) -> 0 | AI19: =IF(AND(MONTH(AI17)=$F$12,YEAR(AI17)=$H$12),'Master Cost Page'!$C$5,"") ->  | AJ19: =IF(AND(MONTH(AJ17)=$F$12,YEAR(AJ17)=$H$12),'Master Cost Page'!$C$5,"") ->  | AK19: =IF(AND(MONTH(AK17)=$F$12,YEAR(AK17)=$H$12),'Master Cost Page'!$C$5,"") ->  | AL19: =IF(AND(MONTH(AL17)=$F$12,YEAR(AL17)=$H$12),'Master Cost Page'!$C$5,"") ->  | AM19: =IF(AND(MONTH(AM17)=$F$12,YEAR(AM17)=$H$12),'Master Cost Page'!$C$5,"") ->  | AN19: =IF(AND(MONTH(AN17)=$F$12,YEAR(AN17)=$H$12),'Master Cost Page'!$C$5,"") ->  | AO19: =IF(AND(MONTH(AO17)=$F$12,YEAR(AO17)=$H$12),'Master Cost Page'!$C$5,"") ->  | AP19: =IF(AND(MONTH(AP17)=$F$12,YEAR(AP17)=$H$12),'Master Cost Page'!$C$5,"") ->  | AQ19: =IF(AND(MONTH(AQ17)=$F$12,YEAR(AQ17)=$H$12),'Master Cost Page'!$C$5,"") ->  | AR19: =IF(AND(MONTH(AR17)=$F$12,YEAR(AR17)=$H$12),'Master Cost Page'!$C$5,"") ->  | AS19: =IF(AND(MONTH(AS17)=$F$12,YEAR(AS17)=$H$12),'Master Cost Page'!$C$5,"") ->  | AT19: =IF(AND(MONTH(AT17)=$F$12,YEAR(AT17)=$H$12),'Master Cost Page'!$C$5,"") ->  | AU19: =SUM(AI19:AT19) -> 0
D20: Stamp Duty Land Tax | E20: ** | F20: 0 | H20: =SUM(U20+AH20+AU20) -> 0 | I20: =IF(AND(MONTH(I17)=$F$12,YEAR(I17)=$H$12),+$F$20,"") ->  | J20: =IF(AND(MONTH(J17)=$F$12,YEAR(J17)=$H$12),+$F$20,"") ->  | L20: 0 | U20: =SUM(I20:T20) -> 0 | V20: =IF(AND(MONTH(V17)=$F$12,YEAR(V17)=$H$12),+$F$20,"") ->  | AH20: =SUM(V20:AG20) -> 0 | AI20: =IF(AND(MONTH(AI17)=$F$12,YEAR(AI17)=$H$12),+$F$20,"") ->  | AU20: =SUM(AI20:AT20) -> 0
D21: Legal/Valuation Fees - consider these factored into the Professional Fees tab | E21: ** | F21: 0 | H21: =SUM(U21+AH21+AU21) -> 0 | I21: =IF(I$16="Purchase Completion",$F$21,"") ->  | J21: =IF(J$16="Purchase Completion",$F$21,"") ->  | K21: =IF(K$16="Purchase Completion",$F$21,"") ->  | L21: 0 | U21: =SUM(I21:T21) -> 0 | AH21: =SUM(V21:AG21) -> 0 | AU21: =SUM(AI21:AT21) -> 0
A22: Contract | B22: Exp | D22: Contract Sum (n/a for Off The Shelf) inc contingency 10% | E22: ** | F22: ='Dev Cost Breakdown'!C82 -> 2,597,456 | G22: =IF($F$10<#REF!,#REF!,IF($F$10<$V$17,SUM(OFFSET(#REF!,0,0,1,#REF!+2)),IF($F$10<$AJ$13,(SUM(OFFSET(#REF!,0,0,1,$B$7+3))-U22)," "))) ->  | H22: =SUM(U22+AH22+AU22) -> 2,597,458 | I22: =IF($C$14="Off the Shelf","",HLOOKUP(SUM($F$13),'Master Cost Page'!$P$89:$BZ$192,5)) -> 103,898 | J22: =IF($C$14="Off the Shelf","",HLOOKUP(SUM($F$13),'Master Cost Page'!$P$89:$BZ$192,6)) -> 155,847 | K22: =IF($C$14="Off the Shelf","",HLOOKUP(SUM($F$13),'Master Cost Page'!$P$89:$BZ$192,7)) -> 207,797 | L22: =IF($C$14="Off the Shelf","",HLOOKUP(SUM($F$13),'Master Cost Page'!$P$89:$BZ$192,8)) -> 233,771 | M22: =IF($C$14="Off the Shelf","",HLOOKUP(SUM($F$13),'Master Cost Page'!$P$89:$BZ$192,9)) -> 259,746 | N22: =IF($C$14="Off the Shelf","",HLOOKUP(SUM($F$13),'Master Cost Page'!$P$89:$BZ$192,10)) -> 259,746 | O22: =IF($C$14="Off the Shelf","",HLOOKUP(SUM($F$13),'Master Cost Page'!$P$89:$BZ$192,11)) -> 259,746 | P22: =IF($C$14="Off the Shelf","",HLOOKUP(SUM($F$13),'Master Cost Page'!$P$89:$BZ$192,12)) -> 259,746 | Q22: =IF($C$14="Off the Shelf","",HLOOKUP(SUM($F$13),'Master Cost Page'!$P$89:$BZ$192,13)) -> 233,771 | R22: =IF($C$14="Off the Shelf","",HLOOKUP(SUM($F$13),'Master Cost Page'!$P$89:$BZ$192,14)) -> 207,797 | S22: =IF($C$14="Off the Shelf","",HLOOKUP(SUM($F$13),'Master Cost Page'!$P$89:$BZ$192,15)) -> 181,822 | T22: =IF($C$14="Off the Shelf","",HLOOKUP(SUM($F$13),'Master Cost Page'!$P$89:$BZ$192,16)) -> 233,771 | U22: =SUM(I22:T22) -> 2,597,458 | V22: =IF($C$14="Off the Shelf","",HLOOKUP(SUM($F$13),'Master Cost Page'!$P$89:$BZ$192,17)) -> 0 | W22: =IF($C$14="Off the Shelf","",HLOOKUP(SUM($F$13),'Master Cost Page'!$P$89:$BZ$192,18)) -> 0 | X22: =IF($C$14="Off the Shelf","",HLOOKUP(SUM($F$13),'Master Cost Page'!$P$89:$BZ$192,19)) -> 0 | Y22: =IF($C$14="Off the Shelf","",HLOOKUP(SUM($F$13),'Master Cost Page'!$P$89:$BZ$192,20)) -> 0 | Z22: =IF($C$14="Off the Shelf","",HLOOKUP(SUM($F$13),'Master Cost Page'!$P$89:$BZ$192,21)) -> 0 | AA22: =IF($C$14="Off the Shelf","",HLOOKUP(SUM($F$13),'Master Cost Page'!$P$89:$BZ$192,22)) -> 0 | AB22: =IF($C$14="Off the Shelf","",HLOOKUP(SUM($F$13),'Master Cost Page'!$P$89:$BZ$192,23)) -> 0 | AC22: =IF($C$14="Off the Shelf","",HLOOKUP(SUM($F$13),'Master Cost Page'!$P$89:$BZ$192,24)) -> 0 | AD22: =IF($C$14="Off the Shelf","",HLOOKUP(SUM($F$13),'Master Cost Page'!$P$89:$BZ$192,25)) -> 0 | AE22: =IF($C$14="Off the Shelf","",HLOOKUP(SUM($F$13),'Master Cost Page'!$P$89:$BZ$192,26)) -> 0 | AF22: =IF($C$14="Off the Shelf","",HLOOKUP(SUM($F$13),'Master Cost Page'!$P$89:$BZ$192,27)) -> 0 | AG22: =IF($C$14="Off the Shelf","",HLOOKUP(SUM($F$13),'Master Cost Page'!$P$89:$BZ$192,28)) -> 0 | AH22: 0 | AI22: =IF($C$14="Off the Shelf","",HLOOKUP(SUM($F$13),'Master Cost Page'!$P$89:$BZ$192,29)) -> 0 | AJ22: =IF($C$14="Off the Shelf","",HLOOKUP(SUM($F$13),'Master Cost Page'!$P$89:$BZ$192,30)) -> 0 | AK22: =IF($C$14="Off the Shelf","",HLOOKUP(SUM($F$13),'Master Cost Page'!$P$89:$BZ$192,31)) -> 0 | AL22: =IF($C$14="Off the Shelf","",HLOOKUP(SUM($F$13),'Master Cost Page'!$P$89:$BZ$192,32)) -> 0 | AM22: =IF($C$14="Off the Shelf","",HLOOKUP(SUM($F$13),'Master Cost Page'!$P$89:$BZ$192,33)) -> 0 | AN22: =IF($C$14="Off the Shelf","",HLOOKUP(SUM($F$13),'Master Cost Page'!$P$89:$BZ$192,34)) -> 0 | AO22: =IF($C$14="Off the Shelf","",HLOOKUP(SUM($F$13),'Master Cost Page'!$P$89:$BZ$192,35)) -> 0 | AP22: =IF($C$14="Off the Shelf","",HLOOKUP(SUM($F$13),'Master Cost Page'!$P$89:$BZ$192,36)) -> 0 | AQ22: =IF($C$14="Off the Shelf","",HLOOKUP(SUM($F$13),'Master Cost Page'!$P$89:$BZ$192,37)) -> 0 | AR22: =IF($C$14="Off the Shelf","",HLOOKUP(SUM($F$13),'Master Cost Page'!$P$89:$BZ$192,38)) -> 0 | AS22: =IF($C$14="Off the Shelf","",HLOOKUP(SUM($F$13),'Master Cost Page'!$P$89:$BZ$192,39)) -> 0 | AT22: =IF($C$14="Off the Shelf","",HLOOKUP(SUM($F$13),'Master Cost Page'!$P$89:$BZ$192,40)) -> 0 | AU22: =SUM(AI22:AT22) -> 0
D23: Retention | E23: ** | F23: =+'Dev Cost Breakdown'!C86 -> 0 | H23: 0 | I23: =IF(I$16="Practical Completion",$F$23,"") ->  | V23: =IF(V$16="Practical Completion",$F$23,"") -> 0 | AH23: 0 | AI23: =IF(AI$16="Practical Completion",$F$23,"") ->  | AU23: 0
D24: Professional & Project Management Fees (IF USING PROF FEE TAB) | E24: ** | F24: =IF('Project Information'!H22="YES",+'Professional Fees'!D51,0) -> 0 | H24: 0 | I24: =IF('Project Information'!$H$22="YES",+'Professional Fees'!I51,0) -> 0 | J24: =IF('Project Information'!$H$22="YES",+'Professional Fees'!J51,0) -> 0 | K24: =IF('Project Information'!$H$22="YES",+'Professional Fees'!K51,0) -> 0 | L24: =IF('Project Information'!$H$22="YES",+'Professional Fees'!L51,0) -> 0 | M24: =IF('Project Information'!$H$22="YES",+'Professional Fees'!M51,0) -> 0 | N24: =IF('Project Information'!$H$22="YES",+'Professional Fees'!N51,0) -> 0 | O24: =IF('Project Information'!$H$22="YES",+'Professional Fees'!O51,0) -> 0 | P24: =IF('Project Information'!$H$22="YES",+'Professional Fees'!P51,0) -> 0 | Q24: =IF('Project Information'!$H$22="YES",+'Professional Fees'!Q51,0) -> 0 | R24: =IF('Project Information'!$H$22="YES",+'Professional Fees'!R51,0) -> 0 | S24: =IF('Project Information'!$H$22="YES",+'Professional Fees'!S51,0) -> 0 | T24: =IF('Project Information'!$H$22="YES",+'Professional Fees'!T51,0) -> 0 | U24: 0 | V24: =IF('Project Information'!$H$22="YES",+'Professional Fees'!U51,0) -> 0 | W24: =IF('Project Information'!$H$22="YES",+'Professional Fees'!V51,0) -> 0 | X24: =IF('Project Information'!$H$22="YES",+'Professional Fees'!W51,0) -> 0 | Y24: =IF('Project Information'!$H$22="YES",+'Professional Fees'!X51,0) -> 0 | Z24: =IF('Project Information'!$H$22="YES",+'Professional Fees'!Y51,0) -> 0 | AA24: =IF('Project Information'!$H$22="YES",+'Professional Fees'!Z51,0) -> 0 | AB24: =IF('Project Information'!$H$22="YES",+'Professional Fees'!AA51,0) -> 0 | AC24: =IF('Project Information'!$H$22="YES",+'Professional Fees'!AB51,0) -> 0 | AD24: =IF('Project Information'!$H$22="YES",+'Professional Fees'!AC51,0) -> 0 | AE24: =IF('Project Information'!$H$22="YES",+'Professional Fees'!AD51,0) -> 0 | AF24: =IF('Project Information'!$H$22="YES",+'Professional Fees'!AE51,0) -> 0 | AG24: =IF('Project Information'!$H$22="YES",+'Professional Fees'!AF51,0) -> 0 | AH24: 0 | AI24: =IF('Project Information'!$H$22="YES",+'Professional Fees'!AG51,0) -> 0 | AJ24: =IF('Project Information'!$H$22="YES",+'Professional Fees'!AH51,0) -> 0 | AK24: =IF('Project Information'!$H$22="YES",+'Professional Fees'!AI51,0) -> 0 | AL24: =IF('Project Information'!$H$22="YES",+'Professional Fees'!AJ51,0) -> 0 | AM24: =IF('Project Information'!$H$22="YES",+'Professional Fees'!AK51,0) -> 0 | AN24: =IF('Project Information'!$H$22="YES",+'Professional Fees'!AL51,0) -> 0 | AO24: =IF('Project Information'!$H$22="YES",+'Professional Fees'!AM51,0) -> 0 | AP24: =IF('Project Information'!$H$22="YES",+'Professional Fees'!AN51,0) -> 0 | AQ24: =IF('Project Information'!$H$22="YES",+'Professional Fees'!AO51,0) -> 0 | AR24: =IF('Project Information'!$H$22="YES",+'Professional Fees'!AP51,0) -> 0 | AS24: =IF('Project Information'!$H$22="YES",+'Professional Fees'!AQ51,0) -> 0 | AT24: =IF('Project Information'!$H$22="YES",+'Professional Fees'!AR51,0) -> 0 | AU24: 0
A25: Other | B25: Exp | D25: Professional & Project Managrement Fees (IF NOT USING PROF FEE TAB) | E25: ** | F25: =IF('Project Information'!H22="NO",+F22*'Project Information'!H23,0) -> 324,682 | G25: =IF($F$10<#REF!,#REF!,IF($F$10<$V$17,SUM(OFFSET(#REF!,0,0,1,#REF!+2)),IF($F$10<$AJ$13,(SUM(OFFSET(#REF!,0,0,1,$B$7+3))-U25)," "))) ->  | H25: 324,682 | I25: =IF(J$14="Equal",$F$25,IF(J$15="Start on Site",$F$25*0.75,IF(I$16="Practical Completion",$F$25*0.25,""))) -> 243,512 | U25: =SUM(I25:T25) -> 243,512 | V25: =IF(W$14="Equal",$F$25,IF(W$15="Start on Site",$F$25*0.75,IF(V$16="Practical Completion",$F$25*0.25,""))) -> 81,171 | AH25: =SUM(V25:AG25) -> 81,171 | AI25: =IF(AJ$14="Equal",$F$25,IF(AJ$15="Start on Site",$F$25*0.75,IF(AI$16="Practical Completion",$F$25*0.25,""))) ->  | AU25: =SUM(AI25:AT25) -> 0
A26: Other | B26: Exp | D26: Building Regs/Planning Fees - Consider factored into Pro Fees tab | E26: ** | F26: 0 | G26: =IF($F$10<#REF!,#REF!,IF($F$10<$V$17,SUM(OFFSET(#REF!,0,0,1,#REF!+2)),IF($F$10<$AJ$13,(SUM(OFFSET(#REF!,0,0,1,$B$7+3))-U26)," "))) ->  | H26: 0 | I26: =IF(J$15="Start on Site",$F$26,"") -> 0 | U26: 0 | V26: =IF(W$15="Start on Site",$F$26,"") ->  | AH26: 0 | AI26: =IF(AJ$15="Start on Site",$F$26,"") ->  | AU26: 0
A27: Other | B27: Exp | D27: Marketing & Sales Fee (external) | E27: ** | F27: 0 | G27: =IF($F$10<#REF!,#REF!,IF($F$10<$V$17,SUM(OFFSET(#REF!,0,0,1,#REF!+2)),IF($F$10<$AJ$13,(SUM(OFFSET(#REF!,0,0,1,$B$7+3))-U27)," "))) ->  | H27: 0 | I27: =IF(I$16="Practical Completion",$F$27,"") ->  | J27: =IF(J$16="Practical Completion",$F$27,"") ->  | U27: 0 | V27: 0 | AH27: 0 | AU27: 0
A28: Other | B28: Exp | D28: Other Costs | E28: ** | F28: 0 | G28: =IF($F$10<#REF!,#REF!,IF($F$10<$V$17,SUM(OFFSET(#REF!,0,0,1,#REF!+2)),IF($F$10<$AJ$13,(SUM(OFFSET(#REF!,0,0,1,$B$7+3))-U28)," "))) ->  | H28: 0 | I28: =IF(J$14="Equal",$F$28,IF(J$15="Start on Site",$F$28*0.75,IF(I$16="Practical Completion",$F$28*0.25,""))) -> 0 | U28: 0 | V28: =IF(W$14="Equal",$F$28,IF(W$15="Start on Site",$F$28*0.75,IF(V$16="Practical Completion",$F$28*0.25,""))) -> 0 | AH28: 0 | AI28: =IF(AJ$14="Equal",$F$28,IF(AJ$15="Start on Site",$F$28*0.75,IF(AI$16="Practical Completion",$F$28*0.25,""))) ->  | AU28: 0
D29: Other Costs | E29: ** | F29: 0 | G29: =IF($F$10<#REF!,#REF!,IF($F$10<$V$17,SUM(OFFSET(#REF!,0,0,1,#REF!+2)),IF($F$10<$AJ$13,(SUM(OFFSET(#REF!,0,0,1,$B$7+3))-U29)," "))) ->  | H29: 0 | I29: =IF(J$14="Equal",$F$29,IF(J$15="Start on Site",$F$29*0.75,IF(I$16="Practical Completion",$F$29*0.25,""))) -> 0 | U29: 0 | W29: =IF(X$14="Equal",$F$29,IF(X$15="Start on Site",$F$29*0.75,IF(W$16="Practical Completion",$F$29*0.25,""))) ->  | AH29: 0 | AI29: =IF(AJ$14="Equal",$F$29,IF(AJ$15="Start on Site",$F$29*0.75,IF(AI$16="Practical Completion",$F$29*0.25,""))) ->  | AU29: 0
D31: ='Master Cost Page'!$B$13 -> TOTAL | F31: =SUM(F18:F30) -> 2,922,138 | H31: 2,922,140 | I31: 347,410 | J31: 155,847 | K31: 207,797 | L31: 233,771 | M31: 259,746 | N31: 259,746 | O31: 259,746 | P31: 259,746 | Q31: 233,771 | R31: 207,797 | S31: 181,822 | T31: 233,771 | U31: 2,840,970 | V31: 81,171 | W31: 0 | X31: 0 | Y31: 0 | Z31: 0 | AA31: 0 | AB31: 0 | AC31: 0 | AD31: 0 | AE31: 0 | AF31: 0 | AG31: 0 | AH31: 81,171 | AI31: 0 | AJ31: 0 | AK31: 0 | AL31: 0 | AM31: 0 | AN31: 0 | AO31: 0 | AP31: 0 | AQ31: 0 | AR31: 0 | AS31: 0 | AT31: 0 | AU31: 0
D33: Total HCA Grant | F33: =+H33 -> 840,000 | H33: =SUM(U33+AH33+AU33) -> 840,000 | I33: =IF(AND(J47='Project Information'!$E$28,J48='Project Information'!$E$30),('Project Information'!$C$37+'Project Information'!$C$38)*0.5,0)+IF(AND(J47='Project Information'!$E$29,J48='Project Information'!$E$31),('Project Information'!$C$37+'Project Information'!$C$38)*0.5,0) -> 420,000 | J33: =IF(AND(K47='Project Information'!$E$28,K48='Project Information'!$E$30),('Project Information'!$C$37+'Project Information'!$C$38)*0.5,0)+IF(AND(K47='Project Information'!$E$29,K48='Project Information'!$E$31),('Project Information'!$C$37+'Project Information'!$C$38)*0.5,0) -> 0 | K33: =IF(AND(L47='Project Information'!$E$28,L48='Project Information'!$E$30),('Project Information'!$C$37+'Project Information'!$C$38)*0.5,0)+IF(AND(L47='Project Information'!$E$29,L48='Project Information'!$E$31),('Project Information'!$C$37+'Project Information'!$C$38)*0.5,0) -> 0 | L33: =IF(AND(M47='Project Information'!$E$28,M48='Project Information'!$E$30),('Project Information'!$C$37+'Project Information'!$C$38)*0.5,0)+IF(AND(M47='Project Information'!$E$29,M48='Project Information'!$E$31),('Project Information'!$C$37+'Project Information'!$C$38)*0.5,0) -> 0 | M33: =IF(AND(N47='Project Information'!$E$28,N48='Project Information'!$E$30),('Project Information'!$C$37+'Project Information'!$C$38)*0.5,0)+IF(AND(N47='Project Information'!$E$29,N48='Project Information'!$E$31),('Project Information'!$C$37+'Project Information'!$C$38)*0.5,0) -> 0 | N33: =IF(AND(O47='Project Information'!$E$28,O48='Project Information'!$E$30),('Project Information'!$C$37+'Project Information'!$C$38)*0.5,0)+IF(AND(O47='Project Information'!$E$29,O48='Project Information'!$E$31),('Project Information'!$C$37+'Project Information'!$C$38)*0.5,0) -> 0 | O33: =IF(AND(P47='Project Information'!$E$28,P48='Project Information'!$E$30),('Project Information'!$C$37+'Project Information'!$C$38)*0.5,0)+IF(AND(P47='Project Information'!$E$29,P48='Project Information'!$E$31),('Project Information'!$C$37+'Project Information'!$C$38)*0.5,0) -> 0 | P33: =IF(AND(Q47='Project Information'!$E$28,Q48='Project Information'!$E$30),('Project Information'!$C$37+'Project Information'!$C$38)*0.5,0)+IF(AND(Q47='Project Information'!$E$29,Q48='Project Information'!$E$31),('Project Information'!$C$37+'Project Information'!$C$38)*0.5,0) -> 0 | Q33: =IF(AND(R47='Project Information'!$E$28,R48='Project Information'!$E$30),('Project Information'!$C$37+'Project Information'!$C$38)*0.5,0)+IF(AND(R47='Project Information'!$E$29,R48='Project Information'!$E$31),('Project Information'!$C$37+'Project Information'!$C$38)*0.5,0) -> 0 | R33: =IF(AND(S47='Project Information'!$E$28,S48='Project Information'!$E$30),('Project Information'!$C$37+'Project Information'!$C$38)*0.5,0)+IF(AND(S47='Project Information'!$E$29,S48='Project Information'!$E$31),('Project Information'!$C$37+'Project Information'!$C$38)*0.5,0) -> 0 | S33: =IF(AND(T47='Project Information'!$E$28,T48='Project Information'!$E$30),('Project Information'!$C$37+'Project Information'!$C$38)*0.5,0)+IF(AND(T47='Project Information'!$E$29,T48='Project Information'!$E$31),('Project Information'!$C$37+'Project Information'!$C$38)*0.5,0) -> 0 | T33: =IF(AND(U47='Project Information'!$E$28,U48='Project Information'!$E$30),('Project Information'!$C$37+'Project Information'!$C$38)*0.5,0)+IF(AND(U47='Project Information'!$E$29,U48='Project Information'!$E$31),('Project Information'!$C$37+'Project Information'!$C$38)*0.5,0) -> 0 | U33: =SUM(I33:T33) -> 420,000 | V33: =IF(AND(W47='Project Information'!$E$28,W48='Project Information'!$E$30),('Project Information'!$C$37+'Project Information'!$C$38)*0.5,0)+IF(AND(W47='Project Information'!$E$29,W48='Project Information'!$E$31),('Project Information'!$C$37+'Project Information'!$C$38)*0.5,0) -> 420,000 | W33: =IF(AND(X47='Project Information'!$E$28,X48='Project Information'!$E$30),('Project Information'!$C$37+'Project Information'!$C$38)*0.5,0)+IF(AND(X47='Project Information'!$E$29,X48='Project Information'!$E$31),('Project Information'!$C$37+'Project Information'!$C$38)*0.5,0) -> 0 | X33: =IF(AND(Y47='Project Information'!$E$28,Y48='Project Information'!$E$30),('Project Information'!$C$37+'Project Information'!$C$38)*0.5,0)+IF(AND(Y47='Project Information'!$E$29,Y48='Project Information'!$E$31),('Project Information'!$C$37+'Project Information'!$C$38)*0.5,0) -> 0 | Y33: =IF(AND(Z47='Project Information'!$E$28,Z48='Project Information'!$E$30),('Project Information'!$C$37+'Project Information'!$C$38)*0.5,0)+IF(AND(Z47='Project Information'!$E$29,Z48='Project Information'!$E$31),('Project Information'!$C$37+'Project Information'!$C$38)*0.5,0) -> 0 | Z33: =IF(AND(AA47='Project Information'!$E$28,AA48='Project Information'!$E$30),('Project Information'!$C$37+'Project Information'!$C$38)*0.5,0)+IF(AND(AA47='Project Information'!$E$29,AA48='Project Information'!$E$31),('Project Information'!$C$37+'Project Information'!$C$38)*0.5,0) -> 0 | AA33: =IF(AND(AB47='Project Information'!$E$28,AB48='Project Information'!$E$30),('Project Information'!$C$37+'Project Information'!$C$38)*0.5,0)+IF(AND(AB47='Project Information'!$E$29,AB48='Project Information'!$E$31),('Project Information'!$C$37+'Project Information'!$C$38)*0.5,0) -> 0 | AB33: =IF(AND(AC47='Project Information'!$E$28,AC48='Project Information'!$E$30),('Project Information'!$C$37+'Project Information'!$C$38)*0.5,0)+IF(AND(AC47='Project Information'!$E$29,AC48='Project Information'!$E$31),('Project Information'!$C$37+'Project Information'!$C$38)*0.5,0) -> 0 | AC33: =IF(AND(AD47='Project Information'!$E$28,AD48='Project Information'!$E$30),('Project Information'!$C$37+'Project Information'!$C$38)*0.5,0)+IF(AND(AD47='Project Information'!$E$29,AD48='Project Information'!$E$31),('Project Information'!$C$37+'Project Information'!$C$38)*0.5,0) -> 0 | AD33: =IF(AND(AE47='Project Information'!$E$28,AE48='Project Information'!$E$30),('Project Information'!$C$37+'Project Information'!$C$38)*0.5,0)+IF(AND(AE47='Project Information'!$E$29,AE48='Project Information'!$E$31),('Project Information'!$C$37+'Project Information'!$C$38)*0.5,0) -> 0 | AE33: =IF(AND(AF47='Project Information'!$E$28,AF48='Project Information'!$E$30),('Project Information'!$C$37+'Project Information'!$C$38)*0.5,0)+IF(AND(AF47='Project Information'!$E$29,AF48='Project Information'!$E$31),('Project Information'!$C$37+'Project Information'!$C$38)*0.5,0) -> 0 | AF33: =IF(AND(AG47='Project Information'!$E$28,AG48='Project Information'!$E$30),('Project Information'!$C$37+'Project Information'!$C$38)*0.5,0)+IF(AND(AG47='Project Information'!$E$29,AG48='Project Information'!$E$31),('Project Information'!$C$37+'Project Information'!$C$38)*0.5,0) -> 0 | AG33: =IF(AND(AH47='Project Information'!$E$28,AH48='Project Information'!$E$30),('Project Information'!$C$37+'Project Information'!$C$38)*0.5,0)+IF(AND(AH47='Project Information'!$E$29,AH48='Project Information'!$E$31),('Project Information'!$C$37+'Project Information'!$C$38)*0.5,0) -> 0 | AH33: =SUM(V33:AG33) -> 420,000 | AI33: =IF(AND(AJ47='Project Information'!$E$28,AJ48='Project Information'!$E$30),('Project Information'!$C$37+'Project Information'!$C$38)*0.5,0)+IF(AND(AJ47='Project Information'!$E$29,AJ48='Project Information'!$E$31),('Project Information'!$C$37+'Project Information'!$C$38)*0.5,0) -> 0 | AJ33: =IF(AND(AK47='Project Information'!$E$28,AK48='Project Information'!$E$30),('Project Information'!$C$37+'Project Information'!$C$38)*0.5,0)+IF(AND(AK47='Project Information'!$E$29,AK48='Project Information'!$E$31),('Project Information'!$C$37+'Project Information'!$C$38)*0.5,0) -> 0 | AK33: =IF(AND(AL47='Project Information'!$E$28,AL48='Project Information'!$E$30),('Project Information'!$C$37+'Project Information'!$C$38)*0.5,0)+IF(AND(AL47='Project Information'!$E$29,AL48='Project Information'!$E$31),('Project Information'!$C$37+'Project Information'!$C$38)*0.5,0) -> 0 | AL33: =IF(AND(AM47='Project Information'!$E$28,AM48='Project Information'!$E$30),('Project Information'!$C$37+'Project Information'!$C$38)*0.5,0)+IF(AND(AM47='Project Information'!$E$29,AM48='Project Information'!$E$31),('Project Information'!$C$37+'Project Information'!$C$38)*0.5,0) -> 0 | AM33: =IF(AND(AN47='Project Information'!$E$28,AN48='Project Information'!$E$30),('Project Information'!$C$37+'Project Information'!$C$38)*0.5,0)+IF(AND(AN47='Project Information'!$E$29,AN48='Project Information'!$E$31),('Project Information'!$C$37+'Project Information'!$C$38)*0.5,0) -> 0 | AN33: =IF(AND(AO47='Project Information'!$E$28,AO48='Project Information'!$E$30),('Project Information'!$C$37+'Project Information'!$C$38)*0.5,0)+IF(AND(AO47='Project Information'!$E$29,AO48='Project Information'!$E$31),('Project Information'!$C$37+'Project Information'!$C$38)*0.5,0) -> 0 | AO33: =IF(AND(AP47='Project Information'!$E$28,AP48='Project Information'!$E$30),('Project Information'!$C$37+'Project Information'!$C$38)*0.5,0)+IF(AND(AP47='Project Information'!$E$29,AP48='Project Information'!$E$31),('Project Information'!$C$37+'Project Information'!$C$38)*0.5,0) -> 0 | AP33: =IF(AND(AQ47='Project Information'!$E$28,AQ48='Project Information'!$E$30),('Project Information'!$C$37+'Project Information'!$C$38)*0.5,0)+IF(AND(AQ47='Project Information'!$E$29,AQ48='Project Information'!$E$31),('Project Information'!$C$37+'Project Information'!$C$38)*0.5,0) -> 0 | AQ33: =IF(AND(AR47='Project Information'!$E$28,AR48='Project Information'!$E$30),('Project Information'!$C$37+'Project Information'!$C$38)*0.5,0)+IF(AND(AR47='Project Information'!$E$29,AR48='Project Information'!$E$31),('Project Information'!$C$37+'Project Information'!$C$38)*0.5,0) -> 0 | AR33: =IF(AND(AS47='Project Information'!$E$28,AS48='Project Information'!$E$30),('Project Information'!$C$37+'Project Information'!$C$38)*0.5,0)+IF(AND(AS47='Project Information'!$E$29,AS48='Project Information'!$E$31),('Project Information'!$C$37+'Project Information'!$C$38)*0.5,0) -> 0 | AS33: =IF(AND(AT47='Project Information'!$E$28,AT48='Project Information'!$E$30),('Project Information'!$C$37+'Project Information'!$C$38)*0.5,0)+IF(AND(AT47='Project Information'!$E$29,AT48='Project Information'!$E$31),('Project Information'!$C$37+'Project Information'!$C$38)*0.5,0) -> 0 | AT33: =IF(AND(AU47='Project Information'!$E$28,AU48='Project Information'!$E$30),('Project Information'!$C$37+'Project Information'!$C$38)*0.5,0)+IF(AND(AU47='Project Information'!$E$29,AU48='Project Information'!$E$31),('Project Information'!$C$37+'Project Information'!$C$38)*0.5,0) -> 0 | AU33: =SUM(AI33:AT33) -> 0
D34: Local Authority Grant | F34: 0 | H34: 0 | I34: =IF(AND(MONTH('Project Information'!$D$39)=MONTH(I17),YEAR('Project Information'!$D$39)=YEAR(I17)),'Project Information'!$C$39,0) -> 0 | J34: =IF(AND(MONTH('Project Information'!$D$39)=MONTH(J17),YEAR('Project Information'!$D$39)=YEAR(J17)),'Project Information'!$C$39,0) -> 0 | K34: =IF(AND(MONTH('Project Information'!$D$39)=MONTH(K17),YEAR('Project Information'!$D$39)=YEAR(K17)),'Project Information'!$C$39,0) -> 0 | L34: =IF(AND(MONTH('Project Information'!$D$39)=MONTH(L17),YEAR('Project Information'!$D$39)=YEAR(L17)),'Project Information'!$C$39,0) -> 0 | M34: =IF(AND(MONTH('Project Information'!$D$39)=MONTH(M17),YEAR('Project Information'!$D$39)=YEAR(M17)),'Project Information'!$C$39,0) -> 0 | N34: =IF(AND(MONTH('Project Information'!$D$39)=MONTH(N17),YEAR('Project Information'!$D$39)=YEAR(N17)),'Project Information'!$C$39,0) -> 0 | O34: =IF(AND(MONTH('Project Information'!$D$39)=MONTH(O17),YEAR('Project Information'!$D$39)=YEAR(O17)),'Project Information'!$C$39,0) -> 0 | P34: =IF(AND(MONTH('Project Information'!$D$39)=MONTH(P17),YEAR('Project Information'!$D$39)=YEAR(P17)),'Project Information'!$C$39,0) -> 0 | Q34: =IF(AND(MONTH('Project Information'!$D$39)=MONTH(Q17),YEAR('Project Information'!$D$39)=YEAR(Q17)),'Project Information'!$C$39,0) -> 0 | R34: =IF(AND(MONTH('Project Information'!$D$39)=MONTH(R17),YEAR('Project Information'!$D$39)=YEAR(R17)),'Project Information'!$C$39,0) -> 0 | S34: =IF(AND(MONTH('Project Information'!$D$39)=MONTH(S17),YEAR('Project Information'!$D$39)=YEAR(S17)),'Project Information'!$C$39,0) -> 0 | T34: =IF(AND(MONTH('Project Information'!$D$39)=MONTH(T17),YEAR('Project Information'!$D$39)=YEAR(T17)),'Project Information'!$C$39,0) -> 0 | U34: 0 | V34: =IF(AND(MONTH('Project Information'!$D$39)=MONTH(V17),YEAR('Project Information'!$D$39)=YEAR(V17)),'Project Information'!$C$39,0) -> 0 | W34: =IF(AND(MONTH('Project Information'!$D$39)=MONTH(W17),YEAR('Project Information'!$D$39)=YEAR(W17)),'Project Information'!$C$39,0) -> 0 | X34: =IF(AND(MONTH('Project Information'!$D$39)=MONTH(X17),YEAR('Project Information'!$D$39)=YEAR(X17)),'Project Information'!$C$39,0) -> 0 | Y34: =IF(AND(MONTH('Project Information'!$D$39)=MONTH(Y17),YEAR('Project Information'!$D$39)=YEAR(Y17)),'Project Information'!$C$39,0) -> 0 | Z34: =IF(AND(MONTH('Project Information'!$D$39)=MONTH(Z17),YEAR('Project Information'!$D$39)=YEAR(Z17)),'Project Information'!$C$39,0) -> 0 | AA34: =IF(AND(MONTH('Project Information'!$D$39)=MONTH(AA17),YEAR('Project Information'!$D$39)=YEAR(AA17)),'Project Information'!$C$39,0) -> 0 | AB34: =IF(AND(MONTH('Project Information'!$D$39)=MONTH(AB17),YEAR('Project Information'!$D$39)=YEAR(AB17)),'Project Information'!$C$39,0) -> 0 | AC34: =IF(AND(MONTH('Project Information'!$D$39)=MONTH(AC17),YEAR('Project Information'!$D$39)=YEAR(AC17)),'Project Information'!$C$39,0) -> 0 | AD34: =IF(AND(MONTH('Project Information'!$D$39)=MONTH(AD17),YEAR('Project Information'!$D$39)=YEAR(AD17)),'Project Information'!$C$39,0) -> 0 | AE34: =IF(AND(MONTH('Project Information'!$D$39)=MONTH(AE17),YEAR('Project Information'!$D$39)=YEAR(AE17)),'Project Information'!$C$39,0) -> 0 | AF34: =IF(AND(MONTH('Project Information'!$D$39)=MONTH(AF17),YEAR('Project Information'!$D$39)=YEAR(AF17)),'Project Information'!$C$39,0) -> 0 | AG34: =IF(AND(MONTH('Project Information'!$D$39)=MONTH(AG17),YEAR('Project Information'!$D$39)=YEAR(AG17)),'Project Information'!$C$39,0) -> 0 | AH34: 0 | AI34: =IF(AND(MONTH('Project Information'!$D$39)=MONTH(AI17),YEAR('Project Information'!$D$39)=YEAR(AI17)),'Project Information'!$C$39,0) -> 0 | AJ34: =IF(AND(MONTH('Project Information'!$D$39)=MONTH(AJ17),YEAR('Project Information'!$D$39)=YEAR(AJ17)),'Project Information'!$C$39,0) -> 0 | AK34: =IF(AND(MONTH('Project Information'!$D$39)=MONTH(AK17),YEAR('Project Information'!$D$39)=YEAR(AK17)),'Project Information'!$C$39,0) -> 0 | AL34: =IF(AND(MONTH('Project Information'!$D$39)=MONTH(AL17),YEAR('Project Information'!$D$39)=YEAR(AL17)),'Project Information'!$C$39,0) -> 0 | AM34: =IF(AND(MONTH('Project Information'!$D$39)=MONTH(AM17),YEAR('Project Information'!$D$39)=YEAR(AM17)),'Project Information'!$C$39,0) -> 0 | AN34: =IF(AND(MONTH('Project Information'!$D$39)=MONTH(AN17),YEAR('Project Information'!$D$39)=YEAR(AN17)),'Project Information'!$C$39,0) -> 0 | AO34: =IF(AND(MONTH('Project Information'!$D$39)=MONTH(AO17),YEAR('Project Information'!$D$39)=YEAR(AO17)),'Project Information'!$C$39,0) -> 0 | AP34: =IF(AND(MONTH('Project Information'!$D$39)=MONTH(AP17),YEAR('Project Information'!$D$39)=YEAR(AP17)),'Project Information'!$C$39,0) -> 0 | AQ34: =IF(AND(MONTH('Project Information'!$D$39)=MONTH(AQ17),YEAR('Project Information'!$D$39)=YEAR(AQ17)),'Project Information'!$C$39,0) -> 0 | AR34: =IF(AND(MONTH('Project Information'!$D$39)=MONTH(AR17),YEAR('Project Information'!$D$39)=YEAR(AR17)),'Project Information'!$C$39,0) -> 0 | AS34: =IF(AND(MONTH('Project Information'!$D$39)=MONTH(AS17),YEAR('Project Information'!$D$39)=YEAR(AS17)),'Project Information'!$C$39,0) -> 0 | AT34: =IF(AND(MONTH('Project Information'!$D$39)=MONTH(AT17),YEAR('Project Information'!$D$39)=YEAR(AT17)),'Project Information'!$C$39,0) -> 0 | AU34: 0
D35: Other | F35: 0 | H35: 0 | I35: =IF(AND(MONTH('Project Information'!$D$40)=MONTH(I17),YEAR('Project Information'!$D$40)=YEAR(I17)),'Project Information'!$C$40,0) -> 0 | J35: =IF(AND(MONTH('Project Information'!$D$40)=MONTH(J17),YEAR('Project Information'!$D$40)=YEAR(J17)),'Project Information'!$C$40,0) -> 0 | K35: =IF(AND(MONTH('Project Information'!$D$40)=MONTH(K17),YEAR('Project Information'!$D$40)=YEAR(K17)),'Project Information'!$C$40,0) -> 0 | L35: =IF(AND(MONTH('Project Information'!$D$40)=MONTH(L17),YEAR('Project Information'!$D$40)=YEAR(L17)),'Project Information'!$C$40,0) -> 0 | M35: =IF(AND(MONTH('Project Information'!$D$40)=MONTH(M17),YEAR('Project Information'!$D$40)=YEAR(M17)),'Project Information'!$C$40,0) -> 0 | N35: =IF(AND(MONTH('Project Information'!$D$40)=MONTH(N17),YEAR('Project Information'!$D$40)=YEAR(N17)),'Project Information'!$C$40,0) -> 0 | O35: =IF(AND(MONTH('Project Information'!$D$40)=MONTH(O17),YEAR('Project Information'!$D$40)=YEAR(O17)),'Project Information'!$C$40,0) -> 0 | P35: =IF(AND(MONTH('Project Information'!$D$40)=MONTH(P17),YEAR('Project Information'!$D$40)=YEAR(P17)),'Project Information'!$C$40,0) -> 0 | Q35: =IF(AND(MONTH('Project Information'!$D$40)=MONTH(Q17),YEAR('Project Information'!$D$40)=YEAR(Q17)),'Project Information'!$C$40,0) -> 0 | R35: =IF(AND(MONTH('Project Information'!$D$40)=MONTH(R17),YEAR('Project Information'!$D$40)=YEAR(R17)),'Project Information'!$C$40,0) -> 0 | S35: =IF(AND(MONTH('Project Information'!$D$40)=MONTH(S17),YEAR('Project Information'!$D$40)=YEAR(S17)),'Project Information'!$C$40,0) -> 0 | T35: =IF(AND(MONTH('Project Information'!$D$40)=MONTH(T17),YEAR('Project Information'!$D$40)=YEAR(T17)),'Project Information'!$C$40,0) -> 0 | U35: 0 | V35: =IF(AND(MONTH('Project Information'!$D$40)=MONTH(V17),YEAR('Project Information'!$D$40)=YEAR(V17)),'Project Information'!$C$40,0) -> 0 | W35: =IF(AND(MONTH('Project Information'!$D$40)=MONTH(W17),YEAR('Project Information'!$D$40)=YEAR(W17)),'Project Information'!$C$40,0) -> 0 | X35: =IF(AND(MONTH('Project Information'!$D$40)=MONTH(X17),YEAR('Project Information'!$D$40)=YEAR(X17)),'Project Information'!$C$40,0) -> 0 | Y35: =IF(AND(MONTH('Project Information'!$D$40)=MONTH(Y17),YEAR('Project Information'!$D$40)=YEAR(Y17)),'Project Information'!$C$40,0) -> 0 | Z35: =IF(AND(MONTH('Project Information'!$D$40)=MONTH(Z17),YEAR('Project Information'!$D$40)=YEAR(Z17)),'Project Information'!$C$40,0) -> 0 | AA35: =IF(AND(MONTH('Project Information'!$D$40)=MONTH(AA17),YEAR('Project Information'!$D$40)=YEAR(AA17)),'Project Information'!$C$40,0) -> 0 | AB35: =IF(AND(MONTH('Project Information'!$D$40)=MONTH(AB17),YEAR('Project Information'!$D$40)=YEAR(AB17)),'Project Information'!$C$40,0) -> 0 | AC35: =IF(AND(MONTH('Project Information'!$D$40)=MONTH(AC17),YEAR('Project Information'!$D$40)=YEAR(AC17)),'Project Information'!$C$40,0) -> 0 | AD35: =IF(AND(MONTH('Project Information'!$D$40)=MONTH(AD17),YEAR('Project Information'!$D$40)=YEAR(AD17)),'Project Information'!$C$40,0) -> 0 | AE35: =IF(AND(MONTH('Project Information'!$D$40)=MONTH(AE17),YEAR('Project Information'!$D$40)=YEAR(AE17)),'Project Information'!$C$40,0) -> 0 | AF35: =IF(AND(MONTH('Project Information'!$D$40)=MONTH(AF17),YEAR('Project Information'!$D$40)=YEAR(AF17)),'Project Information'!$C$40,0) -> 0 | AG35: =IF(AND(MONTH('Project Information'!$D$40)=MONTH(AG17),YEAR('Project Information'!$D$40)=YEAR(AG17)),'Project Information'!$C$40,0) -> 0 | AH35: 0 | AI35: =IF(AND(MONTH('Project Information'!$D$40)=MONTH(AI17),YEAR('Project Information'!$D$40)=YEAR(AI17)),'Project Information'!$C$40,0) -> 0 | AJ35: =IF(AND(MONTH('Project Information'!$D$40)=MONTH(AJ17),YEAR('Project Information'!$D$40)=YEAR(AJ17)),'Project Information'!$C$40,0) -> 0 | AK35: =IF(AND(MONTH('Project Information'!$D$40)=MONTH(AK17),YEAR('Project Information'!$D$40)=YEAR(AK17)),'Project Information'!$C$40,0) -> 0 | AL35: =IF(AND(MONTH('Project Information'!$D$40)=MONTH(AL17),YEAR('Project Information'!$D$40)=YEAR(AL17)),'Project Information'!$C$40,0) -> 0 | AM35: =IF(AND(MONTH('Project Information'!$D$40)=MONTH(AM17),YEAR('Project Information'!$D$40)=YEAR(AM17)),'Project Information'!$C$40,0) -> 0 | AN35: =IF(AND(MONTH('Project Information'!$D$40)=MONTH(AN17),YEAR('Project Information'!$D$40)=YEAR(AN17)),'Project Information'!$C$40,0) -> 0 | AO35: =IF(AND(MONTH('Project Information'!$D$40)=MONTH(AO17),YEAR('Project Information'!$D$40)=YEAR(AO17)),'Project Information'!$C$40,0) -> 0 | AP35: =IF(AND(MONTH('Project Information'!$D$40)=MONTH(AP17),YEAR('Project Information'!$D$40)=YEAR(AP17)),'Project Information'!$C$40,0) -> 0 | AQ35: =IF(AND(MONTH('Project Information'!$D$40)=MONTH(AQ17),YEAR('Project Information'!$D$40)=YEAR(AQ17)),'Project Information'!$C$40,0) -> 0 | AR35: =IF(AND(MONTH('Project Information'!$D$40)=MONTH(AR17),YEAR('Project Information'!$D$40)=YEAR(AR17)),'Project Information'!$C$40,0) -> 0 | AS35: =IF(AND(MONTH('Project Information'!$D$40)=MONTH(AS17),YEAR('Project Information'!$D$40)=YEAR(AS17)),'Project Information'!$C$40,0) -> 0 | AT35: =IF(AND(MONTH('Project Information'!$D$40)=MONTH(AT17),YEAR('Project Information'!$D$40)=YEAR(AT17)),'Project Information'!$C$40,0) -> 0 | AU35: 0
D36: Community Bond | F36: 0 | H36: 0 | I36: =IF(AND(MONTH('Project Information'!$H$49)=MONTH(I17),YEAR('Project Information'!$H$49)=YEAR(I17)),'Project Information'!$H$48,0) -> 0 | J36: =IF(AND(MONTH('Project Information'!$H$49)=MONTH(J17),YEAR('Project Information'!$H$49)=YEAR(J17)),'Project Information'!$H$48,0) -> 0 | K36: =IF(AND(MONTH('Project Information'!$H$49)=MONTH(K17),YEAR('Project Information'!$H$49)=YEAR(K17)),'Project Information'!$H$48,0) -> 0 | L36: =IF(AND(MONTH('Project Information'!$H$49)=MONTH(L17),YEAR('Project Information'!$H$49)=YEAR(L17)),'Project Information'!$H$48,0) -> 0 | M36: =IF(AND(MONTH('Project Information'!$H$49)=MONTH(M17),YEAR('Project Information'!$H$49)=YEAR(M17)),'Project Information'!$H$48,0) -> 0 | N36: =IF(AND(MONTH('Project Information'!$H$49)=MONTH(N17),YEAR('Project Information'!$H$49)=YEAR(N17)),'Project Information'!$H$48,0) -> 0 | O36: =IF(AND(MONTH('Project Information'!$H$49)=MONTH(O17),YEAR('Project Information'!$H$49)=YEAR(O17)),'Project Information'!$H$48,0) -> 0 | P36: =IF(AND(MONTH('Project Information'!$H$49)=MONTH(P17),YEAR('Project Information'!$H$49)=YEAR(P17)),'Project Information'!$H$48,0) -> 0 | Q36: =IF(AND(MONTH('Project Information'!$H$49)=MONTH(Q17),YEAR('Project Information'!$H$49)=YEAR(Q17)),'Project Information'!$H$48,0) -> 0 | R36: =IF(AND(MONTH('Project Information'!$H$49)=MONTH(R17),YEAR('Project Information'!$H$49)=YEAR(R17)),'Project Information'!$H$48,0) -> 0 | S36: =IF(AND(MONTH('Project Information'!$H$49)=MONTH(S17),YEAR('Project Information'!$H$49)=YEAR(S17)),'Project Information'!$H$48,0) -> 0 | T36: =IF(AND(MONTH('Project Information'!$H$49)=MONTH(T17),YEAR('Project Information'!$H$49)=YEAR(T17)),'Project Information'!$H$48,0) -> 0 | U36: 0 | V36: =IF(AND(MONTH('Project Information'!$H$49)=MONTH(V17),YEAR('Project Information'!$H$49)=YEAR(V17)),'Project Information'!$H$48,0) -> 0 | W36: =IF(AND(MONTH('Project Information'!$H$49)=MONTH(W17),YEAR('Project Information'!$H$49)=YEAR(W17)),'Project Information'!$H$48,0) -> 0 | X36: =IF(AND(MONTH('Project Information'!$H$49)=MONTH(X17),YEAR('Project Information'!$H$49)=YEAR(X17)),'Project Information'!$H$48,0) -> 0 | Y36: =IF(AND(MONTH('Project Information'!$H$49)=MONTH(Y17),YEAR('Project Information'!$H$49)=YEAR(Y17)),'Project Information'!$H$48,0) -> 0 | Z36: =IF(AND(MONTH('Project Information'!$H$49)=MONTH(Z17),YEAR('Project Information'!$H$49)=YEAR(Z17)),'Project Information'!$H$48,0) -> 0 | AA36: =IF(AND(MONTH('Project Information'!$H$49)=MONTH(AA17),YEAR('Project Information'!$H$49)=YEAR(AA17)),'Project Information'!$H$48,0) -> 0 | AB36: =IF(AND(MONTH('Project Information'!$H$49)=MONTH(AB17),YEAR('Project Information'!$H$49)=YEAR(AB17)),'Project Information'!$H$48,0) -> 0 | AC36: =IF(AND(MONTH('Project Information'!$H$49)=MONTH(AC17),YEAR('Project Information'!$H$49)=YEAR(AC17)),'Project Information'!$H$48,0) -> 0 | AD36: =IF(AND(MONTH('Project Information'!$H$49)=MONTH(AD17),YEAR('Project Information'!$H$49)=YEAR(AD17)),'Project Information'!$H$48,0) -> 0 | AE36: =IF(AND(MONTH('Project Information'!$H$49)=MONTH(AE17),YEAR('Project Information'!$H$49)=YEAR(AE17)),'Project Information'!$H$48,0) -> 0 | AF36: =IF(AND(MONTH('Project Information'!$H$49)=MONTH(AF17),YEAR('Project Information'!$H$49)=YEAR(AF17)),'Project Information'!$H$48,0) -> 0 | AG36: =IF(AND(MONTH('Project Information'!$H$49)=MONTH(AG17),YEAR('Project Information'!$H$49)=YEAR(AG17)),'Project Information'!$H$48,0) -> 0 | AH36: 0 | AI36: =IF(AND(MONTH('Project Information'!$H$49)=MONTH(AI17),YEAR('Project Information'!$H$49)=YEAR(AI17)),'Project Information'!$H$48,0) -> 0 | AJ36: =IF(AND(MONTH('Project Information'!$H$49)=MONTH(AJ17),YEAR('Project Information'!$H$49)=YEAR(AJ17)),'Project Information'!$H$48,0) -> 0 | AK36: =IF(AND(MONTH('Project Information'!$H$49)=MONTH(AK17),YEAR('Project Information'!$H$49)=YEAR(AK17)),'Project Information'!$H$48,0) -> 0 | AL36: =IF(AND(MONTH('Project Information'!$H$49)=MONTH(AL17),YEAR('Project Information'!$H$49)=YEAR(AL17)),'Project Information'!$H$48,0) -> 0 | AM36: =IF(AND(MONTH('Project Information'!$H$49)=MONTH(AM17),YEAR('Project Information'!$H$49)=YEAR(AM17)),'Project Information'!$H$48,0) -> 0 | AN36: =IF(AND(MONTH('Project Information'!$H$49)=MONTH(AN17),YEAR('Project Information'!$H$49)=YEAR(AN17)),'Project Information'!$H$48,0) -> 0 | AO36: =IF(AND(MONTH('Project Information'!$H$49)=MONTH(AO17),YEAR('Project Information'!$H$49)=YEAR(AO17)),'Project Information'!$H$48,0) -> 0 | AP36: =IF(AND(MONTH('Project Information'!$H$49)=MONTH(AP17),YEAR('Project Information'!$H$49)=YEAR(AP17)),'Project Information'!$H$48,0) -> 0 | AQ36: =IF(AND(MONTH('Project Information'!$H$49)=MONTH(AQ17),YEAR('Project Information'!$H$49)=YEAR(AQ17)),'Project Information'!$H$48,0) -> 0 | AR36: =IF(AND(MONTH('Project Information'!$H$49)=MONTH(AR17),YEAR('Project Information'!$H$49)=YEAR(AR17)),'Project Information'!$H$48,0) -> 0 | AS36: =IF(AND(MONTH('Project Information'!$H$49)=MONTH(AS17),YEAR('Project Information'!$H$49)=YEAR(AS17)),'Project Information'!$H$48,0) -> 0 | AT36: =IF(AND(MONTH('Project Information'!$H$49)=MONTH(AT17),YEAR('Project Information'!$H$49)=YEAR(AT17)),'Project Information'!$H$48,0) -> 0 | AU36: 0
D37: Shared Ownership Receipts | F37: 0 | H37: 0 | I37: ='Shared Ownership'!AQ22 -> 0 | J37: ='Shared Ownership'!AR22 -> 0 | K37: ='Shared Ownership'!AS22 -> 0 | L37: ='Shared Ownership'!AT22 -> 0 | M37: ='Shared Ownership'!AU22 -> 0 | N37: ='Shared Ownership'!AV22 -> 0 | O37: ='Shared Ownership'!AW22 -> 0 | P37: ='Shared Ownership'!AX22 -> 0 | Q37: ='Shared Ownership'!AY22 -> 0 | R37: ='Shared Ownership'!AZ22 -> 0 | S37: ='Shared Ownership'!BA22 -> 0 | T37: ='Shared Ownership'!BB22 -> 0 | U37: 0 | V37: ='Shared Ownership'!BC22 -> 0 | W37: ='Shared Ownership'!BD22 -> 0 | X37: ='Shared Ownership'!BE22 -> 0 | Y37: ='Shared Ownership'!BF22 -> 0 | Z37: ='Shared Ownership'!BG22 -> 0 | AA37: ='Shared Ownership'!BH22 -> 0 | AB37: ='Shared Ownership'!BI22 -> 0 | AC37: ='Shared Ownership'!BJ22 -> 0 | AD37: ='Shared Ownership'!BK22 -> 0 | AE37: ='Shared Ownership'!BL22 -> 0 | AF37: ='Shared Ownership'!BM22 -> 0 | AG37: ='Shared Ownership'!BN22 -> 0 | AH37: 0 | AI37: ='Shared Ownership'!BO22 -> 0 | AJ37: ='Shared Ownership'!BP22 -> 0 | AK37: ='Shared Ownership'!BQ22 -> 0 | AL37: ='Shared Ownership'!BR22 -> 0 | AM37: ='Shared Ownership'!BS22 -> 0 | AN37: ='Shared Ownership'!BT22 -> 0 | AO37: ='Shared Ownership'!BU22 -> 0 | AP37: ='Shared Ownership'!BV22 -> 0 | AQ37: ='Shared Ownership'!BW22 -> 0 | AR37: ='Shared Ownership'!BX22 -> 0 | AS37: ='Shared Ownership'!BY22 -> 0 | AT37: ='Shared Ownership'!BZ22 -> 0 | AU37: 0
D38: Shared Equity Receipts | F38: 0 | H38: 0 | I38: =+'Limited Equity'!AG22 -> 0 | J38: =+'Limited Equity'!AH22 -> 0 | K38: =+'Limited Equity'!AI22 -> 0 | L38: =+'Limited Equity'!AJ22 -> 0 | M38: =+'Limited Equity'!AK22 -> 0 | N38: =+'Limited Equity'!AL22 -> 0 | O38: =+'Limited Equity'!AM22 -> 0 | P38: =+'Limited Equity'!AN22 -> 0 | Q38: =+'Limited Equity'!AO22 -> 0 | R38: =+'Limited Equity'!AP22 -> 0 | S38: =+'Limited Equity'!AQ22 -> 0 | T38: =+'Limited Equity'!AR22 -> 0 | U38: 0 | V38: =+'Limited Equity'!AS22 -> 0 | W38: =+'Limited Equity'!AT22 -> 0 | X38: =+'Limited Equity'!AU22 -> 0 | Y38: =+'Limited Equity'!AV22 -> 0 | Z38: =+'Limited Equity'!AW22 -> 0 | AA38: =+'Limited Equity'!AX22 -> 0 | AB38: =+'Limited Equity'!AY22 -> 0 | AC38: =+'Limited Equity'!AZ22 -> 0 | AD38: =+'Limited Equity'!BA22 -> 0 | AE38: =+'Limited Equity'!BB22 -> 0 | AF38: =+'Limited Equity'!BC22 -> 0 | AG38: =+'Limited Equity'!BD22 -> 0 | AH38: 0 | AI38: =+'Limited Equity'!BE22 -> 0 | AJ38: =+'Limited Equity'!BF22 -> 0 | AK38: =+'Limited Equity'!BG22 -> 0 | AL38: =+'Limited Equity'!BH22 -> 0 | AM38: =+'Limited Equity'!BI22 -> 0 | AN38: =+'Limited Equity'!BJ22 -> 0 | AO38: =+'Limited Equity'!BK22 -> 0 | AP38: =+'Limited Equity'!BL22 -> 0 | AQ38: =+'Limited Equity'!BM22 -> 0 | AR38: =+'Limited Equity'!BN22 -> 0 | AS38: =+'Limited Equity'!BO22 -> 0 | AT38: =+'Limited Equity'!BP22 -> 0 | AU38: 0
D39: Outright Sale Receipts | F39: 0 | H39: 0 | I39: =OutrightSale!AQ31 -> 0 | J39: =OutrightSale!AR31 -> 0 | K39: =OutrightSale!AS31 -> 0 | L39: =OutrightSale!AT31 -> 0 | M39: =OutrightSale!AU31 -> 0 | N39: =OutrightSale!AV31 -> 0 | O39: =OutrightSale!AW31 -> 0 | P39: =OutrightSale!AX31 -> 0 | Q39: =OutrightSale!AY31 -> 0 | R39: =OutrightSale!AZ31 -> 0 | S39: =OutrightSale!BA31 -> 0 | T39: =OutrightSale!BB31 -> 0 | U39: 0 | V39: =OutrightSale!BC31 -> 0 | W39: =OutrightSale!BD31 -> 0 | X39: =OutrightSale!BE31 -> 0 | Y39: =OutrightSale!BF31 -> 0 | Z39: =OutrightSale!BG31 -> 0 | AA39: =OutrightSale!BH31 -> 0 | AB39: =OutrightSale!BI31 -> 0 | AC39: =OutrightSale!BJ31 -> 0 | AD39: =OutrightSale!BK31 -> 0 | AE39: =OutrightSale!BL31 -> 0 | AF39: =OutrightSale!BM31 -> 0 | AG39: =OutrightSale!BN31 -> 0 | AH39: 0 | AI39: =OutrightSale!BO31 -> 0 | AJ39: =OutrightSale!BP31 -> 0 | AK39: =OutrightSale!BQ31 -> 0 | AL39: =OutrightSale!BR31 -> 0 | AM39: =OutrightSale!BS31 -> 0 | AN39: =OutrightSale!BT31 -> 0 | AO39: =OutrightSale!BU31 -> 0 | AP39: =OutrightSale!BV31 -> 0 | AQ39: =OutrightSale!BW31 -> 0 | AR39: =OutrightSale!BX31 -> 0 | AS39: =OutrightSale!BY31 -> 0 | AT39: =OutrightSale!BZ31 -> 0 | AU39: 0
D40: TOTAL INCOME | F40: =SUM(F32:F39) -> £840,000 | H40: =SUM(H32:H39) -> 840,000 | I40: =SUM(I32:I39) -> 420,000 | J40: 0 | K40: 0 | L40: 0 | M40: 0 | N40: 0 | O40: 0 | P40: 0 | Q40: 0 | R40: 0 | S40: 0 | T40: 0 | U40: 420,000 | V40: 420,000 | W40: 0 | X40: 0 | Y40: 0 | Z40: 0 | AA40: 0 | AB40: 0 | AC40: 0 | AD40: 0 | AE40: 0 | AF40: 0 | AG40: 0 | AH40: 420,000 | AI40: 0 | AJ40: 0 | AK40: 0 | AL40: 0 | AM40: 0 | AN40: 0 | AO40: 0 | AP40: 0 | AQ40: 0 | AR40: 0 | AS40: 0 | AT40: 0 | AU40: 0
D42: NET INCOME/(EXPENDITURE) | F42: =SUM(F40-F31) -> (£2,082,138) | H42: =SUM(H40-H31) -> (2,082,140) | I42: 72,590 | J42: (155,847) | K42: (207,797) | L42: (233,771) | M42: (259,746) | N42: (259,746) | O42: (259,746) | P42: (259,746) | Q42: (233,771) | R42: (207,797) | S42: (181,822) | T42: (233,771) | U42: (2,420,970) | V42: 338,829 | W42: 0 | X42: 0 | Y42: 0 | Z42: 0 | AA42: 0 | AB42: 0 | AC42: 0 | AD42: 0 | AE42: 0 | AF42: 0 | AG42: 0 | AH42: 338,829 | AI42: 0 | AJ42: 0 | AK42: 0 | AL42: 0 | AM42: 0 | AN42: 0 | AO42: 0 | AP42: 0 | AQ42: 0 | AR42: 0 | AS42: 0 | AT42: 0 | AU42: 0
I43: =I42+H43 -> 72,590 | J43: =J42+I43 -> (83,257) | K43: =K42+J43 -> (291,054) | L43: =L42+K43 -> (524,825) | M43: (784,571) | N43: (1,044,317) | O43: (1,304,063) | P43: (1,563,809) | Q43: (1,797,580) | R43: (2,005,377) | S43: (2,187,199) | T43: (2,420,970) | V43: =V42+T43 -> (2,082,140) | W43: =W42+V43 -> (2,082,140) | X43: (2,082,140) | Y43: (2,082,140) | Z43: (2,082,140) | AA43: (2,082,140) | AB43: (2,082,140) | AC43: (2,082,140) | AD43: (2,082,140) | AE43: (2,082,140) | AF43: (2,082,140) | AG43: (2,082,140) | AI43: =AI42+AG43 -> (2,082,140) | AJ43: =AJ42+AI43 -> (2,082,140) | AK43: (2,082,140) | AL43: (2,082,140) | AM43: (2,082,140) | AN43: (2,082,140) | AO43: (2,082,140) | AP43: (2,082,140) | AQ43: (2,082,140) | AR43: (2,082,140) | AS43: (2,082,140) | AT43: (2,082,140)
D44: DEVELOPMENT INTEREST | H44: =SUM(U44+AH44+AU44) -> -100,557 | I44: =IF(I17>'Project Information'!$C$28,0,IF(I43>=0,0,I43*('Project Information'!$H$26/12))) -> 0 | J44: =IF(J17>'Project Information'!$C$28,0,IF(J43>=0,0,J43*('Project Information'!$H$26/12))) -> (520) | K44: =IF(K17>'Project Information'!$C$28,0,IF(K43>=0,0,K43*('Project Information'!$H$26/12))) -> (1,819) | L44: =IF(L17>'Project Information'!$C$28,0,IF(L43>=0,0,L43*('Project Information'!$H$26/12))) -> (3,280) | M44: =IF(M17>'Project Information'!$C$28,0,IF(M43>=0,0,M43*('Project Information'!$H$26/12))) -> (4,904) | N44: =IF(N17>'Project Information'!$C$28,0,IF(N43>=0,0,N43*('Project Information'!$H$26/12))) -> (6,527) | O44: =IF(O17>'Project Information'!$C$28,0,IF(O43>=0,0,O43*('Project Information'!$H$26/12))) -> (8,150) | P44: =IF(P17>'Project Information'!$C$28,0,IF(P43>=0,0,P43*('Project Information'!$H$26/12))) -> (9,774) | Q44: =IF(Q17>'Project Information'!$C$28,0,IF(Q43>=0,0,Q43*('Project Information'!$H$26/12))) -> (11,235) | R44: =IF(R17>'Project Information'!$C$28,0,IF(R43>=0,0,R43*('Project Information'!$H$26/12))) -> (12,534) | S44: =IF(S17>'Project Information'!$C$28,0,IF(S43>=0,0,S43*('Project Information'!$H$26/12))) -> (13,670) | T44: =IF(T17>'Project Information'!$C$28,0,IF(T43>=0,0,T43*('Project Information'!$H$26/12))) -> (15,131) | U44: =SUM(I44:T44) -> (87,544) | V44: =IF(V17>'Project Information'!$C$28,0,IF(V43>=0,0,V43*(+'Project Information'!$H$26/12))) -> (13,013) | W44: =IF(W17>'Project Information'!$C$28,0,IF(W43>=0,0,W43*(+'Project Information'!$H$26/12))) -> 0 | X44: =IF(X17>'Project Information'!$C$28,0,IF(X43>=0,0,X43*(+'Project Information'!$H$26/12))) -> 0 | Y44: =IF(Y17>'Project Information'!$C$28,0,IF(Y43>=0,0,Y43*(+'Project Information'!$H$26/12))) -> 0 | Z44: =IF(Z17>'Project Information'!$C$28,0,IF(Z43>=0,0,Z43*(+'Project Information'!$H$26/12))) -> 0 | AA44: =IF(AA17>'Project Information'!$C$28,0,IF(AA43>=0,0,AA43*(+'Project Information'!$H$26/12))) -> 0 | AB44: =IF(AB17>'Project Information'!$C$28,0,IF(AB43>=0,0,AB43*(+'Project Information'!$H$26/12))) -> 0 | AC44: =IF(AC17>'Project Information'!$C$28,0,IF(AC43>=0,0,AC43*(+'Project Information'!$H$26/12))) -> 0 | AD44: =IF(AD17>'Project Information'!$C$28,0,IF(AD43>=0,0,AD43*(+'Project Information'!$H$26/12))) -> 0 | AE44: =IF(AE17>'Project Information'!$C$28,0,IF(AE43>=0,0,AE43*(+'Project Information'!$H$26/12))) -> 0 | AF44: =IF(AF17>'Project Information'!$C$28,0,IF(AF43>=0,0,AF43*(+'Project Information'!$H$26/12))) -> 0 | AG44: =IF(AG17>'Project Information'!$C$28,0,IF(AG43>=0,0,AG43*(+'Project Information'!$H$26/12))) -> 0 | AH44: =SUM(V44:AG44) -> (13,013) | AI44: =IF(AI17>'Project Information'!$C$28,0,IF(AI43>=0,0,AI43*(+'Project Information'!$H$26/12))) -> 0 | AJ44: =IF(AJ17>'Project Information'!$C$28,0,IF(AJ43>=0,0,AJ43*(+'Project Information'!$H$26/12))) -> 0 | AK44: =IF(AK17>'Project Information'!$C$28,0,IF(AK43>=0,0,AK43*(+'Project Information'!$H$26/12))) -> 0 | AL44: =IF(AL17>'Project Information'!$C$28,0,IF(AL43>=0,0,AL43*(+'Project Information'!$H$26/12))) -> 0 | AM44: =IF(AM17>'Project Information'!$C$28,0,IF(AM43>=0,0,AM43*(+'Project Information'!$H$26/12))) -> 0 | AN44: =IF(AN17>'Project Information'!$C$28,0,IF(AN43>=0,0,AN43*(+'Project Information'!$H$26/12))) -> 0 | AO44: =IF(AO17>'Project Information'!$C$28,0,IF(AO43>=0,0,AO43*(+'Project Information'!$H$26/12))) -> 0 | AP44: =IF(AP17>'Project Information'!$C$28,0,IF(AP43>=0,0,AP43*(+'Project Information'!$H$26/12))) -> 0 | AQ44: =IF(AQ17>'Project Information'!$C$28,0,IF(AQ43>=0,0,AQ43*(+'Project Information'!$H$26/12))) -> 0 | AR44: =IF(AR17>'Project Information'!$C$28,0,IF(AR43>=0,0,AR43*(+'Project Information'!$H$26/12))) -> 0 | AS44: =IF(AS17>'Project Information'!$C$28,0,IF(AS43>=0,0,AS43*(+'Project Information'!$H$26/12))) -> 0 | AT44: =IF(AT17>'Project Information'!$C$28,0,IF(AT43>=0,0,AT43*(+'Project Information'!$H$26/12))) -> 0 | AU44: =SUM(AI44:AT44) -> 0
I46: =#REF! ->  | J46: =I17 -> 2022-04-01 | K46: 2022-05-02 | L46: 2022-06-02 | M46: 2022-07-03 | N46: 2022-08-03 | O46: 2022-09-03 | P46: 2022-10-04 | Q46: 2022-11-04 | R46: 2022-12-05 | S46: 2023-01-05 | T46: 2023-02-05 | U46: 2023-03-08 | V46: 1905-07-15 | W46: 2023-04-08 | X46: 2023-05-09 | Y46: 2023-06-09 | Z46: 2023-07-10 | AA46: 2023-08-10 | AB46: 2023-09-10 | AC46: 2023-10-11 | AD46: 2023-11-11 | AE46: 2023-12-12 | AF46: 2024-01-12 | AG46: 2024-02-12 | AH46: 2024-03-14 | AI46: 1905-07-16 | AJ46: 2024-04-14 | AK46: 2024-05-15 | AL46: 2024-06-15 | AM46: 2024-07-16 | AN46: 2024-08-16 | AO46: 2024-09-16 | AP46: 2024-10-17 | AQ46: 2024-11-17 | AR46: 2024-12-18 | AS46: 2025-01-18 | AT46: 2025-02-18 | AU46: 2025-03-21
J47: =MONTH(J46) -> 4 | K47: =MONTH(K46) -> 5 | L47: 6 | M47: 7 | N47: 8 | O47: 9 | P47: 10 | Q47: 11 | R47: 12 | S47: 1 | T47: 2 | U47: 3 | W47: 4 | X47: 5 | Y47: 6 | Z47: 7 | AA47: 8 | AB47: 9 | AC47: 10 | AD47: 11 | AE47: 12 | AF47: 1 | AG47: 2 | AH47: 3 | AJ47: 4 | AK47: 5 | AL47: 6 | AM47: 7 | AN47: 8 | AO47: 9 | AP47: 10 | AQ47: 11 | AR47: 12 | AS47: 1 | AT47: 2 | AU47: 3
J48: =YEAR(J46) -> 2022 | K48: =YEAR(K46) -> 2022 | L48: 2022 | M48: 2022 | N48: 2022 | O48: 2022 | P48: 2022 | Q48: 2022 | R48: 2022 | S48: 2023 | T48: 2023 | U48: 2023 | V48: 1905 | W48: 2023 | X48: 2023 | Y48: 2023 | Z48: 2023 | AA48: 2023 | AB48: 2023 | AC48: 2023 | AD48: 2023 | AE48: 2023 | AF48: 2024 | AG48: 2024 | AH48: 2024 | AI48: 1905 | AJ48: 2024 | AK48: 2024 | AL48: 2024 | AM48: 2024 | AN48: 2024 | AO48: 2024 | AP48: 2024 | AQ48: 2024 | AR48: 2024 | AS48: 2025 | AT48: 2025 | AU48: 2025
A400: 2021-06-29
A401: 2017-08-28
A402: 2017-08-02
A403: 2017-06-06
A404: 2013-03-10
A406: 2010-05-25

Sheet Dev Cost Breakdown
A1: Detailed (Elemental) Cost Analysis
A3: Complete sections Highlighted in
A4: Use for design and build or traditional procurement type
A5: Do not use for off the shelf - enter details directy into Developemnt cash flow
C7: Element
B8: ELEMENT | C8: Total Cost | D8: Cost per metre Sq | E8: Unit Quantity | G8: Unit Rate
C9: £
A11: 1 | B11: SUBSTRUCTURE | C11: =+E11*D11 -> 0 | F11: Metre Sq
A12: 2 | B12: SUPERSTRUCTURE
A13: 2.1 | B13: Frame | C13: =+E13*D13 -> 0 | F13: Metre Sq
A14: 2.2 | B14: Upper Floors | C14: 0 | F14: Metre Sq
A15: 2.3 | B15: Roof | C15: 0 | F15: Metre Sq
A16: 2.4 | B16: Stairs and Ramps | C16: =+G16*E16 -> 0 | F16: Number
A17: 2.5 | B17: External Walls | C17: 0 | F17: Metre Sq
A18: 2.6 | B18: Windows and External Doors | C18: 0 | F18: Metre Sq
A19: 2.7 | B19: Internal Walls and Partitions | C19: 0 | F19: Metre Sq
A20: 2.8 | B20: Internal Doors | C20: =+G20*E20 -> 0 | F20: Number
B21: Total Superstructure | C21: =SUM(C13:C20) -> 0
A23: 3 | B23: INTERNAL FINISHES
A24: 3.1 | B24: Wall Finishes | C24: =+E24*D24 -> 0 | F24: Metre Sq
A25: 3.2 | B25: Floor Finishes | C25: =+E25*D25 -> 0 | F25: Metre Sq
A26: 3.3 | B26: Ceiling Finishes | C26: =+E26*D26 -> 0 | F26: Metre Sq
B27: Total Internal Finishes | C27: =SUM(C24:C26) -> 0
A29: 4 | B29: FITTINGS, FURNISHINGS AND EQUIPMENT | C29: =+E29*D29 -> 0 | F29: Metre Sq
A30: 5 | B30: SERVICES
A31: 5.1 | B31: Sanitary Installations | C31: =+G31*E31 -> 0 | F31: Number
A32: 5.2 | B32: Services Equipment | C32: =+G32*E32 -> 0 | F32: Number
A33: 5.3 | B33: Disposal Installations | C33: =+G33*E33 -> 0 | F33: Number
A34: 4.4 | B34: Water Installations | C34: =+E34*D34 -> 0 | F34: Metre Sq
A35: 5.5 | B35: Heat Source | C35: =+G35*E35 -> 0 | F35: KW
A36: 5.6 | B36: Space Heating & Air Conditioning | C36: =+E36*D36 -> 0 | F36: Metre Sq
A37: 5.7 | B37: Ventilation Systems | C37: =+E37*D37 -> 0 | F37: Metre Sq
A38: 5.8 | B38: Electrical Installations | C38: =+E38*D38 -> 0 | F38: Metre Sq
A39: 5.9 | B39: Fuel Installations | C39: =+E39*D39 -> 0 | F39: Metre Sq
A40: 5.10 | B40: Lift and Conveyor Installations | C40: =+G40*E40 -> 0 | F40: Number
A41: 5.11 | B41: Fire and Lighting Protection | C41: =+E41*D41 -> 0 | F41: Metre Sq
A42: 5.12 | B42: Communication, Security and Control Installations | C42: =+E42*D42 -> 0 | F42: Metre Sq
A43: 5.13 | B43: Specalist Installations | C43: =+E43*D43 -> 0 | F43: Metre Sq
A44: 5.14 | B44: Builder's Work in Connection with services | C44: =+E44*D44 -> 0 | F44: Metre Sq
B45: Total Services | C45: =SUM(C31:C44) -> 0
A47: 6 | B47: PREFABRICATED BUILDING AND BUILDING UNITS | C47: =+E47*D47 -> 0 | F47: Metre Sq
A48: 7 | B48: WORK TO EXISTING BUILDING
A49: 7.1 | B49: Minor Demolition and Alteration works | C49: =+E49*D49 -> 0 | F49: Metre Sq
B50: Total Work to Existing Building | C50: =SUM(C49) -> 0
A52: 8 | B52: EXTERNAL WORKS
A53: 8.1 | B53: Site Preparation Works | C53: =+E53*D53 -> 0 | F53: Metre Sq
A54: 8.2 | B54: Roads, Paths, Pavings and Surfacing | C54: 0 | F54: Metre Sq
A55: 8.3 | B55: Soft Landscaping, Planting and Irrigation Systems | C55: 0 | F55: Metre Sq
A56: 8.4 | B56: Fencing, Railings and Walls | C56: 0 | F56: Metre Sq
A57: 8.5 | B57: External Fixtures | C57: 0 | F57: Metre Sq
A58: 8.6 | B58: External Drainage | C58: 0 | F58: Metre Sq
A59: 8.7 | B59: External Services | C59: 0 | F59: Metre Sq
A60: 8.8 | B60: Minor Building Works and Ancillary Buildings | C60: 0 | F60: Metre Sq
B61: Total External Works | C61: =SUM(C53:C60) -> 0
A63: 0 | B63: FACILITATING WORKS
A64: 0.1 | B64: Toxic/Hazardous/Contaminated Material Treatment | C64: =+E64*D64 -> 0 | F64: Metre Sq
A65: 0.2 | B65: Major Demolition Works | C65: 0 | F65: Metre Sq
A66: 0.3 | B66: Temporary Support to Adjacent Structures | C66: 0 | F66: Metre Sq
A67: 0.4 | B67: Specalist Ground Works | C67: 0 | F67: Metre Sq
A68: 0.5 | B68: Temporary Diversion Works | C68: 0 | F68: Metre Sq
A69: 0.6 | B69: Extraordinary Site Investigation | C69: 0 | F69: Metre Sq
B70: Total Facilitating Work | C70: =SUM(C64:C69) -> 0
A72: 9 | B72: MAIN CONTRACTOR'S PRELIMINARIES
A73: 10 | B73: MAIN CONTRACTOR'S OVERHEAD AND PROFIT
B75: CONTRACT TOTAL (Excluding contingencies & Fees) | C75: =+C11+C21+C27+C29+C45+C47+C48+C50+C61+C70+C72+C73 -> 0
A77: 11 | B77: PROJECT/DESIGN TEAM FEE
A78: 12 | B78: OTHER DEVELOPMENT/PROJECT COSTS
A79: 13 | B79: RISK (CLIENT'S CONTINGENCIES)
B81: TOTAL CONTRACT/PROJECT COST - value engineer contin'? | C81: 2361324
C82: =C81/100*110 -> 2597456.4 | D82: inc 10% contingency
A85: =100%-A86 -> 99% | B85: Contract Sum
A86: 1% | B86: Retention
A400: 2021-06-25
A401: 2015-04-09
A402: 2015-09-28
A403: 2015-04-09
A404: 2015-04-09
A405: 2015-04-09
A406: 2015-04-09

Sheet Professional Fees
A1: Professional Fee Analysis | B1: Procurement Type | D1: =+'Project Information'!C13 -> Traditional
A3: Complete sections Highlighted in blue
A4: Formula with Manual Input Capability if needed
B6: Net | C6: VAT | D6: Amount | E6: Notes | F6: Date Paid | I6: =+'Dev Cash Flow'!I17 -> 2022-04-01 | J6: =+'Dev Cash Flow'!J17 -> 2022-05-02 | K6: =+'Dev Cash Flow'!K17 -> 2022-06-02 | L6: =+'Dev Cash Flow'!L17 -> 2022-07-03 | M6: =+'Dev Cash Flow'!M17 -> 2022-08-03 | N6: =+'Dev Cash Flow'!N17 -> 2022-09-03 | O6: =+'Dev Cash Flow'!O17 -> 2022-10-04 | P6: =+'Dev Cash Flow'!P17 -> 2022-11-04 | Q6: =+'Dev Cash Flow'!Q17 -> 2022-12-05 | R6: =+'Dev Cash Flow'!R17 -> 2023-01-05 | S6: =+'Dev Cash Flow'!S17 -> 2023-02-05 | T6: =+'Dev Cash Flow'!T17 -> 2023-03-08 | U6: =+'Dev Cash Flow'!V17 -> 2023-04-08 | V6: =+'Dev Cash Flow'!W17 -> 2023-05-09 | W6: =+'Dev Cash Flow'!X17 -> 2023-06-09 | X6: =+'Dev Cash Flow'!Y17 -> 2023-07-10 | Y6: =+'Dev Cash Flow'!Z17 -> 2023-08-10 | Z6: =+'Dev Cash Flow'!AA17 -> 2023-09-10 | AA6: =+'Dev Cash Flow'!AB17 -> 2023-10-11 | AB6: =+'Dev Cash Flow'!AC17 -> 2023-11-11 | AC6: =+'Dev Cash Flow'!AD17 -> 2023-12-12 | AD6: =+'Dev Cash Flow'!AE17 -> 2024-01-12 | AE6: =+'Dev Cash Flow'!AF17 -> 2024-02-12 | AF6: =+'Dev Cash Flow'!AG17 -> 2024-03-14 | AG6: =+'Dev Cash Flow'!AI17 -> 2024-04-14 | AH6: =+'Dev Cash Flow'!AJ17 -> 2024-05-15 | AI6: =+'Dev Cash Flow'!AK17 -> 2024-06-15 | AJ6: =+'Dev Cash Flow'!AL17 -> 2024-07-16 | AK6: =+'Dev Cash Flow'!AM17 -> 2024-08-16 | AL6: =+'Dev Cash Flow'!AN17 -> 2024-09-16 | AM6: =+'Dev Cash Flow'!AO17 -> 2024-10-17 | AN6: =+'Dev Cash Flow'!AP17 -> 2024-11-17 | AO6: =+'Dev Cash Flow'!AQ17 -> 2024-12-18 | AP6: =+'Dev Cash Flow'!AR17 -> 2025-01-18 | AQ6: =+'Dev Cash Flow'!AS17 -> 2025-02-18 | AR6: =+'Dev Cash Flow'!AT17 -> 2025-03-21
A8: DESIGN & BUILD
A9: Architects - Pre Contract (DESIGN & BUILD) | B9: =IF(D1="Design & Build",+'Dev Cost Breakdown'!C81*2%,0) -> 0 | D9: =SUM(B9:C9) -> 0 | E9: Default 2% of contract sum | G9: =MONTH(F9) -> 1 | H9: =YEAR(F9) -> 1900 | I9: =IF(AND(MONTH(I6)=$G$9,YEAR(I6)=$H$9),+$D$9,"") ->  | AT9: =+D9-SUM(I9:AR9) -> 0
A10: Quantity Surveyor (DESIGN & BUILD) | B10: =IF(D1="Design & Build",+'Dev Cost Breakdown'!C81*1.5%,0) -> 0 | D10: =SUM(B10:C10) -> 0 | E10: Default 1.5% of contract sum | G10: =MONTH(F10) -> 1 | H10: =YEAR(F10) -> 1900 | I10: =IF(AND(MONTH(I6)=$G$10,YEAR(I6)=$H$10),+$D$10,"") ->  | AT10: =+D10-SUM(I10:AR10) -> 0
A11: Employers Agent Fees (DESIGN & BUILD) | B11: =IF(D1="Design & Build",+'Dev Cost Breakdown'!C81*2%,0) -> 0 | D11: =SUM(B11:C11) -> 0 | E11: Default 2.0% of contract sum | G11: =MONTH(F11) -> 1 | H11: =YEAR(F11) -> 1900 | I11: =IF(AND(MONTH(I6)=$G$11,YEAR(I6)=$H$11),+$D$11,"") ->  | AT11: =+D11-SUM(I11:AR11) -> 0
A13: OFF THE SHELF
A14: Quantity Surveyor (OFF THE SHELF) | B14: =IF(D1="Off the Shelf",'Dev Cash Flow'!F18*2%,0) -> 0 | D14: =SUM(B14:C14) -> 0 | E14: Default 2.0% of contract sum | G14: =MONTH(F14) -> 1 | H14: =YEAR(F14) -> 1900 | I14: =IF(AND(MONTH(I6)=$G$14,YEAR(I6)=$H$14),+$D$14,"") ->  | J14: =IF(AND(MONTH(J6)=$G$14,YEAR(J6)=$H$14),+$D$14,"") ->  | AT14: =+D14-SUM(I14:AR14) -> 0
A16: TRADITIONAL
A17: Architects - (TRADITIONAL) | B17: =IF(D1="Traditional",'Dev Cost Breakdown'!C81*2.5%,0) -> 59,033 | D17: 59,033 | E17: Default 2.5% of contract sum | G17: =MONTH(F17) -> 1 | H17: =YEAR(F17) -> 1900 | I17: =IF(AND(MONTH(I6)=$G$17,YEAR(I6)=$H$17),+$D$17,"") ->  | AT17: 59,033
A18: Quantity Surveyor (TRADITIONAL) | B18: =IF(D1="Traditional",'Dev Cost Breakdown'!C81*2.5%,0) -> 59,033 | D18: 59,033 | E18: Default 2.5% of contract sum | G18: 1 | H18: 1900 | I18: =IF(AND(MONTH(I6)=$G$18,YEAR(I6)=$H$18),+$D$18,"") ->  | AT18: 59,033
A19: Clerk of Works (TRADITIONAL) | B19: =IF(D1="Traditional",'Dev Cost Breakdown'!C81*1%,0) -> 23,613 | D19: 23,613 | E19: Default 1.0% of contract sum | G19: 1 | H19: 1900 | I19: =IF(AND(MONTH(I6)=$G$19,YEAR(I6)=$H$19),+$D$19,"") ->  | AT19: 23,613
A20: Engineer fee (TRADITIONAL) | B20: =IF(D1="Traditional",'Dev Cost Breakdown'!C81*1%,0) -> 23,613 | D20: =SUM(B20:C20) -> 23,613 | E20: Default 1.0% of contract sum | G20: =MONTH(F20) -> 1 | H20: =YEAR(F20) -> 1900 | I20: =IF(AND(MONTH(I6)=$G$20,YEAR(I6)=$H$20),+$D$20,"") ->  | AT20: 23,613
A22: OTHER FEES WHERE APPLICABLE
A23: Project Management | B23: =(+'Dev Cash Flow'!F22+'Dev Cash Flow'!F23)*2% -> 51,949 | D23: =SUM(B23:C23) -> 51,949 | E23: Default 2.0% of contract sum | G23: =MONTH(F23) -> 1 | H23: =YEAR(F23) -> 1900 | I23: =IF(AND(MONTH(I6)=$G$23,YEAR(I6)=$H$23),+$D$23,"") ->  | AT23: =+D23-SUM(I23:AR23) -> 51,949
A24: CDM Co-Ordinator | B24: =(+'Dev Cash Flow'!F22+'Dev Cash Flow'!F23)*1.5% -> 38,962 | D24: 38,962 | E24: Default 1.5% of contract sum | G24: 1 | H24: 1900 | I24: =IF(AND(MONTH(I6)=$G$24,YEAR(I6)=$H$24),+$D$24,"") ->  | AT24: 38,962
A25: Soils Investigation | B25: 0 | D25: =SUM(B25:C25) -> 0 | G25: 1 | H25: 1900 | I25: =IF(AND(MONTH(I6)=$G$25,YEAR(I6)=$H$25),+$D$25,"") ->  | AT25: 0
A26: Topographical survey | B26: 0 | D26: 0 | G26: 1 | H26: 1900 | I26: =IF(AND(MONTH(I6)=$G$26,YEAR(I6)=$H$26),+$D$26,"") ->  | AT26: 0
A27: Ecological survey | B27: 0 | D27: 0 | G27: 1 | H27: 1900 | I27: =IF(AND(MONTH(I6)=$G$27,YEAR(I6)=$H$27),+$D$27,"") ->  | AT27: 0
A28: Arbocultural Survey/Landscape assessment | B28: 0 | D28: 0 | G28: 1 | H28: 1900 | I28: =IF(AND(MONTH(I6)=$G$28,YEAR(I6)=$H$28),+$D$28,"") ->  | AT28: 0
A29: Noise assessment | B29: 0 | D29: 0 | G29: 1 | H29: 1900 | I29: =IF(AND(MONTH(I6)=$G$29,YEAR(I6)=$H$29),+$D$29,"") ->  | AT29: 0
A30: Flood risk assessment | B30: 0 | D30: 0 | G30: 1 | H30: 1900 | I30: =IF(AND(MONTH(I6)=$G$30,YEAR(I6)=$H$30),+$D$30,"") ->  | AT30: 0
A31: Mining risk Assessment | B31: 0 | D31: 0 | G31: 1 | H31: 1900 | I31: =IF(AND(MONTH(I6)=$G$31,YEAR(I6)=$H$31),+$D$31,"") ->  | AT31: 0
A32: Air quality assessment | B32: 0 | D32: 0 | G32: 1 | H32: 1900 | I32: =IF(AND(MONTH(I6)=$G$32,YEAR(I6)=$H$32),+$D$32,"") ->  | AT32: 0
A33: Heritage assessment | B33: 0 | D33: 0 | G33: 1 | H33: 1900 | I33: =IF(AND(MONTH(I6)=$G$33,YEAR(I6)=$H$33),+$D$33,"") ->  | AT33: 0
A34: Other | B34: 0 | D34: 0 | G34: 1 | H34: 1900 | I34: =IF(AND(MONTH(I6)=$G$34,YEAR(I6)=$H$34),+$D$34,"") ->  | AT34: 0
A35: Other | B35: 0 | D35: 0 | G35: 1 | H35: 1900 | I35: =IF(AND(MONTH(I6)=$G$35,YEAR(I6)=$H$35),+$D$35,"") ->  | AT35: 0
A36: Other | B36: 0 | D36: 0 | G36: 1 | H36: 1900 | I36: =IF(AND(MONTH(I6)=$G$36,YEAR(I6)=$H$36),+$D$36,"") ->  | AT36: 0
A37: Other | B37: 0 | D37: 0 | G37: 1 | H37: 1900 | I37: =IF(AND(MONTH(I6)=$G$37,YEAR(I6)=$H$37),+$D$37,"") ->  | AT37: 0
A38: Other | B38: 0 | D38: 0 | G38: 1 | H38: 1900 | I38: =IF(AND(MONTH(I6)=$G$38,YEAR(I6)=$H$38),+$D$38,"") ->  | AT38: 0
A39: Other | B39: 0 | D39: 0 | G39: 1 | H39: 1900 | I39: =IF(AND(MONTH(I6)=$G$39,YEAR(I6)=$H$39),+$D$39,"") ->  | AT39: 0
A40: Other | B40: 0 | D40: 0 | G40: 1 | H40: 1900 | I40: =IF(AND(MONTH(I6)=$G$40,YEAR(I6)=$H$40),+$D$40,"") ->  | AT40: 0
A41: Other | B41: 0 | D41: 0 | G41: 1 | H41: 1900 | I41: =IF(AND(MONTH(I6)=$G$41,YEAR(I6)=$H$41),+$D$41,"") ->  | AT41: 0
A42: Other | B42: 0 | D42: 0 | G42: 1 | H42: 1900 | I42: =IF(AND(MONTH(I6)=$G$42,YEAR(I6)=$H$42),+$D$42,"") ->  | AT42: 0
A43: Other | B43: 0 | D43: 0 | G43: 1 | H43: 1900 | I43: =IF(AND(MONTH(I6)=$G$43,YEAR(I6)=$H$43),+$D$43,"") ->  | AT43: 0
A44: Other | B44: 0 | D44: 0 | G44: 1 | H44: 1900 | I44: =IF(AND(MONTH(I6)=$G$44,YEAR(I6)=$H$44),+$D$44,"") ->  | AT44: 0
A45: Other | B45: 0 | D45: 0 | G45: 1 | H45: 1900 | I45: =IF(AND(MONTH(I6)=$G$45,YEAR(I6)=$H$45),+$D$45,"") ->  | AT45: 0
A46: Other | B46: 0 | D46: 0 | G46: 1 | H46: =YEAR(F46) -> 1900 | I46: =IF(AND(MONTH(I6)=$G$46,YEAR(I6)=$H$46),+$D$46,"") ->  | AT46: 0
A47: Other | B47: 0 | D47: 0 | G47: 1 | H47: =YEAR(F47) -> 1900 | I47: =IF(AND(MONTH(I6)=$G$47,YEAR(I6)=$H$47),+$D$47,"") ->  | AT47: 0
A48: Other | B48: 0 | D48: 0 | G48: 1 | H48: =YEAR(F48) -> 1900 | I48: =IF(AND(MONTH(I6)=$G$48,YEAR(I6)=$H$48),+$D$48,"") ->  | K48: =IF(AND(MONTH(K6)=$G$48,YEAR(K6)=$H$48),+$D$48,"") ->  | AT48: 0
A49: Other | B49: 0 | D49: 0 | G49: 1 | H49: =YEAR(F49) -> 1900 | I49: =IF(AND(MONTH(I6)=$G$49,YEAR(I6)=$H$49),+$D$49,"") ->  | AT49: 0
AT50: 0
B51: =SUM(B9:B49) -> 256,204 | C51: =SUM(C9:C44) -> 0 | D51: =SUM(D9:D49) -> 256,204 | E51: 11.00% | I51: =SUM(I9:I50) -> 0 | J51: 0 | K51: 0 | L51: 0 | M51: 0 | N51: 0 | O51: 0 | P51: 0 | Q51: 0 | R51: 0 | S51: 0 | T51: 0 | U51: 0 | V51: 0 | W51: 0 | X51: 0 | Y51: 0 | Z51: 0 | AA51: 0 | AB51: 0 | AC51: 0 | AD51: 0 | AE51: 0 | AF51: 0 | AG51: 0 | AH51: 0 | AI51: 0 | AJ51: 0 | AK51: 0 | AL51: 0 | AM51: 0 | AN51: 0 | AO51: 0 | AP51: 0 | AQ51: 0 | AR51: 0
A53: Professional Fees as percentage of build costs | D53: =+D51/SUM('Dev Cash Flow'!F22:F22) -> 9.9%
A56: Check s/b = 0 | D56: =+D51-SUM(I51:AR51) -> 256,204
A400: 2017-08-19
A402: 2017-08-02
A420: 2015-04-26
A422: 2015-04-19
A426: 2015-04-16
A433: 2015-04-13
A435: 2015-04-11

Sheet Social Rent
B1: Social Rent | Z1: =CONCATENATE("Average Earnings in ",'Project Information'!H10," =") -> Average Earnings in Manchester = | AA1: =AC366 -> £307.30 | AC1: 1999
B3: KEY
B4: Manual Input (If applicable) | CY4: Original Target
B5: Formula with Input Capability | AC5: Manual
B6: ** denotes compulsory field
CY7: 1 | CZ7: =+CY7+1 -> 2 | DA7: =+CZ7+1 -> 3 | DB7: 4 | DC7: 5 | DD7: 6 | DE7: 7 | DF7: 8 | DG7: 9 | DH7: 10 | DI7: 11 | DJ7: 12 | DK7: 13 | DL7: 14 | DM7: 15 | DN7: 16 | DO7: 17 | DP7: 18 | DQ7: 19 | DR7: 20 | DS7: 21 | DT7: 22 | DU7: 23 | DV7: 24 | DW7: 25
B8: Unit Type | C8: No. of Units | D8: No. of Beds per Unit | E8: No. of Persons per Unit | F8: Property | G8: Individual Floor Area | H8: January 1999 Valuation | I8: OMV on completion | J8: Target Rent for | K8: Weekly Unit Rent for | L8: Total p.a. | W8: 2017/18 Target Rent | X8: Bedroom Weighting | Y8: Property Code | Z8: LAs | AA8: Pre-1996 Counties | AC8: Earnings | AD8: Regions ; | CY8: 2017/18 | CZ8: 2018/19 | DA8: 2019/20 | DB8: 2020/21 | DC8: 2021/22 | DD8: 2022/23 | DE8: 2023/24 | DF8: 2024/25 | DG8: 2025/26 | DH8: 2026/27 | DI8: 2027/28 | DJ8: 2028/29 | DK8: 2029/30 | DL8: 2030/31 | DM8: 2031/32 | DN8: 2032/33 | DO8: 2033/34 | DP8: 2034/35 | DQ8: 2035/36 | DR8: 2036/37 | DS8: 2037/38 | DT8: 2038/39 | DU8: 2039/40 | DV8: 2040/41 | DW8: 2041/42
G9: (sq. m.) | H9: (individual unit) | I9: (individual unit) | J9: ='Project Information'!H16 -> 2023/24 | K9: ='Project Information'!H16 -> 2023/24 | AA9: with inner London ILEA | AC9: £ pw | AF9: LA name | AI9: Property Type | AL9: Assumptions and Calculations | CZ9: -1.00% | DA9: -1.00% | DB9: =+'Project Information'!H43 -> 3.00% | DC9: =+DB9 -> 3.00% | DD9: =+DC9 -> 3.00% | DE9: 3.00% | DF9: 3.00% | DG9: 3.00% | DH9: 3.00% | DI9: 3.00% | DJ9: 3.00% | DK9: 3.00% | DL9: 3.00% | DM9: 3.00% | DN9: 3.00% | DO9: 3.00% | DP9: 3.00% | DQ9: 3.00% | DR9: 3.00% | DS9: 3.00% | DT9: 3.00% | DU9: 3.00% | DV9: 3.00% | DW9: 3.00%
B10: ** | C10: ** | G10: ** | H10: ** | I10: **
D11: =LEFT(B11,1) ->  | E11: =IF(C11="",0,(IF(LEN(B11)=5,MID(B11,3,1),MID(B11,3,2)))) -> 0 | F11: =IF(Y11="H","House",IF(Y11="B","Bungalow",IF(Y11="F","Flat",IF(Y11="S","Shared",IF(Y11="T","Bedsit",IF(Y11="A","Wheelchair Flat",IF(Y11="W","Wheelchair",0))))))) -> 0 | J11: =IF(C11="",0,HLOOKUP($J$9,$CY$8:$DW$20,4,FALSE)) -> 0.00 | K11: =J11 -> 0.00 | L11: =K11*C11*52 -> 0 | W11: =SUM(((53.5*0.7)*(($AA$1/316.4)*X11)+SUM((53.5*0.3)*(H11/49750))))*1.021*1.043*1.022*1.022*1.033*1.036*1.032*1.041*1.044*1.055*0.991*1.051*1.061*1.031*1.037*1.022*0.99*0.99 ->  | X11: =IF(D11="0",0.8,(IF(D11="1",0.9,(IF(D11="2",1,(IF(D11="3",1.1,(IF(D11="4",1.2,(IF(D11+"5",1.3,1.4))))))))))) ->  | Y11: =RIGHT(B11,1) ->  | Z11: Adur | AA11: WEST SUSSEX | AC11: £332.50 | AD11: South East | AF11: Adur | CY11: =+W11 ->  | CZ11: =+CY11+(CY11*$CZ$9) ->  | DA11: =+CZ11+(CZ11*$DA$9) ->  | DB11: =+DA11+(DA11*$DB$9) ->  | DC11: =+DB11+(DB11*$DC$9) ->  | DD11: =+DC11+(DC11*$DD$9) ->  | DE11: =+DD11+(DD11*$DE$9) ->  | DF11: =+DE11+(DE11*$DF$9) ->  | DG11: =+DF11+(DF11*$DG$9) ->  | DH11: =+DG11+(DG11*$DH$9) ->  | DI11: =+DH11+(DH11*$DI$9) ->  | DJ11: =+DI11+(DI11*$DJ$9) ->  | DK11: =+DJ11+(DJ11*$DK$9) ->  | DL11: =+DK11+(DK11*$DL$9) ->  | DM11: =+DL11+(DL11*$DM$9) ->  | DN11: =+DM11+(DM11*$DN$9) ->  | DO11: =+DN11+(DN11*$DO$9) ->  | DP11: =+DO11+(DO11*$DP$9) ->  | DQ11: =+DP11+(DP11*$DQ$9) ->  | DR11: =+DQ11+(DQ11*$DR$9) ->  | DS11: =+DR11+(DR11*$DS$9) ->  | DT11: =+DS11+(DS11*$DT$9) ->  | DU11: =+DT11+(DT11*$DU$9) ->  | DV11: =+DU11+(DU11*$DV$9) ->  | DW11: =+DV11+(DV11*$DW$9) -> 
D12: =LEFT(B12,1) ->  | E12: =IF(C12="",0,(IF(LEN(B12)=5,MID(B12,3,1),MID(B12,3,2)))) -> 0 | F12: 0 | J12: =IF(C12="",0,HLOOKUP($J$9,$CY$8:$DW$20,5,FALSE)) -> 0.00 | K12: =+J12 -> 0.00 | L12: 0 | W12: =SUM(((53.5*0.7)*(($AA$1/316.4)*X12)+SUM((53.5*0.3)*(H12/49750))))*1.021*1.043*1.022*1.022*1.033*1.036*1.032*1.041*1.044*1.055*0.991*1.051*1.061*1.031*1.037*1.022*0.99*0.99 -> 84.88 | X12: =IF(D12="0",0.8,(IF(D12="1",0.9,(IF(D12="2",1,(IF(D12="3",1.1,(IF(D12="4",1.2,(IF(D12="5",1.3,1.4))))))))))) -> 1.4 | Y12: =RIGHT(B12,1) ->  | Z12: Allerdale | AA12: CUMBRIA | AC12: £323.70 | AD12: North West | AF12: Allerdale | AI12: 1B1PF | CY12: =+W12 -> 84.88 | CZ12: =+CY12+(CY12*$CZ$9) -> 84.03242624 | DA12: =+CZ12+(CZ12*$DA$9) -> 83.19210198 | DB12: =+DA12+(DA12*$DB$9) -> 85.68786504 | DC12: =+DB12+(DB12*$DC$9) -> 88.25850099 | DD12: =+DC12+(DC12*$DD$9) -> 90.90625602 | DE12: =+DD12+(DD12*$DE$9) -> 93.6334437 | DF12: =+DE12+(DE12*$DF$9) -> 96.44244701 | DG12: =+DF12+(DF12*$DG$9) -> 99.33572042 | DH12: =+DG12+(DG12*$DH$9) -> 102.315792 | DI12: =+DH12+(DH12*$DI$9) -> 105.3852658 | DJ12: =+DI12+(DI12*$DJ$9) -> 108.5468238 | DK12: =+DJ12+(DJ12*$DK$9) -> 111.8032285 | DL12: =+DK12+(DK12*$DL$9) -> 115.1573253 | DM12: =+DL12+(DL12*$DM$9) -> 118.6120451 | DN12: =+DM12+(DM12*$DN$9) -> 122.1704064 | DO12: =+DN12+(DN12*$DO$9) -> 125.8355186 | DP12: =+DO12+(DO12*$DP$9) -> 129.6105842 | DQ12: =+DP12+(DP12*$DQ$9) -> 133.4989017 | DR12: =+DQ12+(DQ12*$DR$9) -> 137.5038688 | DS12: =+DR12+(DR12*$DS$9) -> 141.6289848 | DT12: =+DS12+(DS12*$DT$9) -> 145.8778544 | DU12: =+DT12+(DT12*$DU$9) -> 150.25419 | DV12: =+DU12+(DU12*$DV$9) -> 154.7618157 | DW12: =+DV12+(DV12*$DW$9) -> 159.4046702
E13: =IF(C13="",0,(IF(LEN(B13)=5,MID(B13,3,1),MID(B13,3,2)))) -> 0 | F13: 0 | J13: =IF(C13="",0,HLOOKUP($J$9,$CY$8:$DW$20,5,FALSE)) -> 0.00 | K13: =+J13 -> 0.00 | L13: 0 | W13: 84.88 | X13: =IF(D13="0",0.8,(IF(D13="1",0.9,(IF(D13="2",1,(IF(D13="3",1.1,(IF(D13="4",1.2,(IF(D13="5",1.3,1.4))))))))))) -> 1.4 | Z13: Alnwick | AA13: NORTHUMBERLAND | AC13: £276.10 | AD13: North East | AF13: Alnwick | AI13: 1B1PT | CY13: 84.88 | CZ13: 84.03242624 | DA13: 83.19210198 | DB13: 85.68786504 | DC13: 88.25850099 | DD13: 90.90625602 | DE13: 93.6334437 | DF13: 96.44244701 | DG13: 99.33572042 | DH13: 102.315792 | DI13: 105.3852658 | DJ13: 108.5468238 | DK13: 111.8032285 | DL13: 115.1573253 | DM13: 118.6120451 | DN13: 122.1704064 | DO13: 125.8355186 | DP13: 129.6105842 | DQ13: 133.4989017 | DR13: 137.5038688 | DS13: 141.6289848 | DT13: 145.8778544 | DU13: 150.25419 | DV13: 154.7618157 | DW13: 159.4046702
E14: 0 | F14: 0 | J14: 0.00 | K14: 0.00 | L14: 0 | W14: 84.88 | X14: 1.4 | Z14: Amber Valley | AA14: DERBYSHIRE | AC14: £321.10 | AD14: East Midlands | AF14: Amber Valley | AI14: 1B2PA | CY14: 84.88 | CZ14: 84.03242624 | DA14: 83.19210198 | DB14: 85.68786504 | DC14: 88.25850099 | DD14: 90.90625602 | DE14: 93.6334437 | DF14: 96.44244701 | DG14: 99.33572042 | DH14: 102.315792 | DI14: 105.3852658 | DJ14: 108.5468238 | DK14: 111.8032285 | DL14: 115.1573253 | DM14: 118.6120451 | DN14: 122.1704064 | DO14: 125.8355186 | DP14: 129.6105842 | DQ14: 133.4989017 | DR14: 137.5038688 | DS14: 141.6289848 | DT14: 145.8778544 | DU14: 150.25419 | DV14: 154.7618157 | DW14: 159.4046702
E15: 0 | F15: 0 | J15: 0.00 | K15: 0.00 | L15: 0 | W15: 84.88 | X15: 1.4 | Z15: Arun | AA15: WEST SUSSEX | AC15: £332.50 | AD15: South East | AF15: Arun | AI15: 1B2PB | CY15: 84.88 | CZ15: 84.03242624 | DA15: 83.19210198 | DB15: 85.68786504 | DC15: 88.25850099 | DD15: 90.90625602 | DE15: 93.6334437 | DF15: 96.44244701 | DG15: 99.33572042 | DH15: 102.315792 | DI15: 105.3852658 | DJ15: 108.5468238 | DK15: 111.8032285 | DL15: 115.1573253 | DM15: 118.6120451 | DN15: 122.1704064 | DO15: 125.8355186 | DP15: 129.6105842 | DQ15: 133.4989017 | DR15: 137.5038688 | DS15: 141.6289848 | DT15: 145.8778544 | DU15: 150.25419 | DV15: 154.7618157 | DW15: 159.4046702
E16: 0 | F16: 0 | J16: 0.00 | K16: 0.00 | L16: 0 | W16: 84.88 | X16: 1.4 | Z16: Ashfield | AA16: NOTTINGHAMSHIRE | AC16: £298.00 | AD16: East Midlands | AF16: Ashfield | AI16: 1B2PF | AL16: MRP % per unit | AO16: =+'Project Information'!H34 -> 0.40% | CY16: 84.88 | CZ16: 84.03242624 | DA16: 83.19210198 | DB16: 85.68786504 | DC16: 88.25850099 | DD16: 90.90625602 | DE16: 93.6334437 | DF16: 96.44244701 | DG16: 99.33572042 | DH16: 102.315792 | DI16: 105.3852658 | DJ16: 108.5468238 | DK16: 111.8032285 | DL16: 115.1573253 | DM16: 118.6120451 | DN16: 122.1704064 | DO16: 125.8355186 | DP16: 129.6105842 | DQ16: 133.4989017 | DR16: 137.5038688 | DS16: 141.6289848 | DT16: 145.8778544 | DU16: 150.25419 | DV16: 154.7618157 | DW16: 159.4046702
E17: 0 | F17: 0 | J17: 0.00 | K17: 0.00 | L17: 0 | W17: 84.88 | X17: 1.4 | Z17: Ashford | AA17: KENT | AC17: £316.40 | AD17: South East | AF17: Ashford | AI17: 1B2PH | AL17: Number of units | AO17: =C21 -> 0 | CY17: 84.88 | CZ17: 84.03242624 | DA17: 83.19210198 | DB17: 85.68786504 | DC17: 88.25850099 | DD17: 90.90625602 | DE17: 93.6334437 | DF17: 96.44244701 | DG17: 99.33572042 | DH17: 102.315792 | DI17: 105.3852658 | DJ17: 108.5468238 | DK17: 111.8032285 | DL17: 115.1573253 | DM17: 118.6120451 | DN17: 122.1704064 | DO17: 125.8355186 | DP17: 129.6105842 | DQ17: 133.4989017 | DR17: 137.5038688 | DS17: 141.6289848 | DT17: 145.8778544 | DU17: 150.25419 | DV17: 154.7618157 | DW17: 159.4046702
E18: 0 | F18: 0 | J18: 0.00 | K18: 0.00 | L18: 0 | W18: 84.88 | X18: 1.4 | Z18: Aylesbury Vale | AA18: BUCKINGHAMSHIRE | AC18: £328.30 | AD18: South East | AF18: Aylesbury Vale | AI18: 2B2PF | AL18: Average rent per unit per week | AO18: =K21 ->  | CY18: 84.88 | CZ18: 84.03242624 | DA18: 83.19210198 | DB18: 85.68786504 | DC18: 88.25850099 | DD18: 90.90625602 | DE18: 93.6334437 | DF18: 96.44244701 | DG18: 99.33572042 | DH18: 102.315792 | DI18: 105.3852658 | DJ18: 108.5468238 | DK18: 111.8032285 | DL18: 115.1573253 | DM18: 118.6120451 | DN18: 122.1704064 | DO18: 125.8355186 | DP18: 129.6105842 | DQ18: 133.4989017 | DR18: 137.5038688 | DS18: 141.6289848 | DT18: 145.8778544 | DU18: 150.25419 | DV18: 154.7618157 | DW18: 159.4046702
E19: 0 | F19: 0 | J19: 0.00 | K19: 0.00 | L19: 0 | W19: 84.88 | X19: 1.4 | Z19: Babergh | AA19: SUFFOLK | AC19: £304.30 | AD19: Eastern | AF19: Babergh | AI19: 2B3PA | AL19: Voids % | AO19: =+'Project Information'!H35 -> 3% | CY19: 84.88 | CZ19: 84.03242624 | DA19: 83.19210198 | DB19: 85.68786504 | DC19: 88.25850099 | DD19: 90.90625602 | DE19: 93.6334437 | DF19: 96.44244701 | DG19: 99.33572042 | DH19: 102.315792 | DI19: 105.3852658 | DJ19: 108.5468238 | DK19: 111.8032285 | DL19: 115.1573253 | DM19: 118.6120451 | DN19: 122.1704064 | DO19: 125.8355186 | DP19: 129.6105842 | DQ19: 133.4989017 | DR19: 137.5038688 | DS19: 141.6289848 | DT19: 145.8778544 | DU19: 150.25419 | DV19: 154.7618157 | DW19: 159.4046702
E20: 0 | F20: 0 | J20: 0.00 | K20: =J20 -> 0.00 | L20: 0 | W20: 84.88 | X20: 1.4 | Z20: Barking and Dagenham | AA20: OUTER LONDON | AC20: £354.10 | AD20: Outer London | AF20: Barking and Dagenham | AI20: 2B3PB | AL20: Management cost per unit per annum | AO20: =+'Project Information'!H32 -> £424 | CY20: 84.88 | CZ20: 84.03242624 | DA20: 83.19210198 | DB20: 85.68786504 | DC20: 88.25850099 | DD20: 90.90625602 | DE20: 93.6334437 | DF20: 96.44244701 | DG20: 99.33572042 | DH20: 102.315792 | DI20: 105.3852658 | DJ20: 108.5468238 | DK20: 111.8032285 | DL20: 115.1573253 | DM20: 118.6120451 | DN20: 122.1704064 | DO20: 125.8355186 | DP20: 129.6105842 | DQ20: 133.4989017 | DR20: 137.5038688 | DS20: 141.6289848 | DT20: 145.8778544 | DU20: 150.25419 | DV20: 154.7618157 | DW20: 159.4046702
B21: Total Units | C21: =SUM(C11:C20) -> 0 | D21: Total Persons | E21: =($C$11*E11)+($C$12*E12)+($C$13*E13)+($C$14*E14)+($C$15*E15)+($C$16*E16)+($C$17*E17)+($C$18*E18)+($C$19*E19)+($C$20*E20) -> 0 | G21: =($C$11*G11)+($C$12*G12)+($C$13*G13)+($C$14*G14)+($C$15*G15)+($C$16*G16)+($C$17*G17)+($C$18*G18)+($C$19*G19)+($C$20*G20) -> 0 | I21: =($C$11*I11)+($C$12*I12)+($C$13*I13)+($C$14*I14)+($C$15*I15)+($C$16*I16)+($C$17*I17)+($C$18*I18)+($C$19*I19)+($C$20*I20) -> 0 | J21: Average Rent = | K21: =((L21/C21)/52) ->  | L21: =SUM(L11:L20) -> 0 | P21: =IF(C21>0,SUM(H11:H20)/SUM(I11:I20),"") ->  | S21: =ROUND(((($C$11*J11*52)+($C$12*J12*52)+($C$13*J13*52)+($C$14*J14*52)+($C$15*J15*52)+($C$16*J16*52)+($C$17*J17*52)+($C$18*J18*52)+($C$19*J19*52)+($C$20*J20*52)+($C$22*J22*52))/C21/52),2) ->  | Z21: Barnet | AA21: OUTER LONDON | AC21: £354.10 | AD21: Outer London | AF21: Barnet | AI21: 2B3PF | AL21: Maintenance cost per unit per annum | AO21: =+'Project Information'!H33 -> £768
Z22: Barnsley | AA22: SOUTH YORKSHIRE | AC22: £299.10 | AD22: Yorks & Humberside | AF22: Barnsley | AI22: 2B3PH | AL22: MRP cost per unit per annum | AO22: =IF(C21=0,0,+(AO16*(Summary!D23+Summary!D24)/Summary!E16)*-1) -> £0
Z23: Barrow-in-Furness | AA23: CUMBRIA | AC23: £323.70 | AD23: North West | AF23: Barrow-in-Furness | AI23: 2B3PW | AL23: Increases per annum - rents | AO23: =+'Project Information'!H43 -> 3.00%
Z24: Basildon | AA24: ESSEX | AC24: £325.90 | AD24: Eastern | AF24: Basildon | AI24: 2B4PB | AL24: - management | AO24: =+'Project Information'!H44 -> 3.00%
Z25: Basingstoke and Deane | AA25: HAMPSHIRE | AC25: £328.70 | AD25: South East | AF25: Basingstoke and Deane | AI25: 2B4PF | AL25: - maintenance | AO25: =+'Project Information'!H45 -> 3.00% | AR25: =AH15 -> 0 | AS25: =#REF! -> 
Z26: Bassetlaw | AA26: NOTTINGHAMSHIRE | AC26: £298.00 | AD26: East Midlands | AF26: Bassetlaw | AI26: 2B4PH | AL26: - MRP | AO26: =+'Project Information'!H45 -> 3.00%
Z27: Bath and North East Somerset | AA27: AVON | AC27: £321.20 | AD27: South West | AF27: Bath and North East Somerset | AI27: 2B4PW | AL27: Discount Period in Years | AO27: 60
Z28: Bedford | AA28: BEDFORDSHIRE | AC28: £343.70 | AD28: Eastern | AF28: Bedford | AI28: 3B3PH | AL28: Discount Rate | AO28: =+'Project Information'!H29 -> 6.00% | AV28: Gross rent | AW28: £ | AY28: =$AL37 -> 0 | AZ28: =$AL38 -> 0 | BA28: =$AL39 -> 0 | BB28: =$AL40 -> 0 | BC28: =$AL41 -> 0 | BD28: =$AL42 -> 0 | BE28: =$AL43 -> 0 | BF28: =$AL44 -> 0 | BG28: =$AL45 -> 0 | BH28: =$AL46 -> 0 | BI28: =$AL47 -> 0 | BJ28: =$AL48 -> 0 | BK28: =$AL49 -> 0 | BL28: =$AL50 -> 0 | BM28: =$AL51 -> 0 | BN28: =$AL52 -> 0 | BO28: =$AL53 -> 0 | BP28: =$AL54 -> 0 | BQ28: =$AL55 -> 0 | BR28: =$AL56 -> 0 | BS28: =$AL57 -> 0 | BT28: =$AL58 -> 0 | BU28: =$AL59 -> 0 | BV28: =$AL60 -> 0 | BW28: =$AL61 -> 0 | BX28: =$AL62 -> 0 | BY28: =$AL63 -> 0 | BZ28: =$AL64 -> 0 | CA28: =$AL65 -> 0 | CB28: =$AL66 -> 0 | CC28: =$AL67 -> 0 | CD28: =$AL68 -> 0 | CE28: =$AL69 -> 0 | CF28: =$AL70 -> 0 | CG28: =$AL71 -> 0 | CH28: =$AL72 -> 0 | CI28: =$AL73 -> 0 | CJ28: =$AL74 -> 0 | CK28: =$AL75 -> 0 | CL28: =$AL76 -> 0 | CM28: =$AL77 -> 0 | CN28: =$AL78 -> 0 | CO28: =$AL79 -> 0 | CP28: =$AL80 -> 0 | CQ28: =$AL81 -> 0 | CR28: =$AL82 -> 0 | CS28: =$AL83 -> 0 | CT28: =$AL84 -> 0 | CU28: =$AL85 -> 0 | CV28: =$AL86 -> 0
Z29: Berwick upon Tweed | AA29: NORTHUMBERLAND | AC29: £276.10 | AD29: North East | AF29: Berwick upon Tweed | AI29: 3B3PS | AV29: Voids | AY29: =AM37 -> 0 | AZ29: =$AM38 -> 0 | BA29: =$AM39 -> 0 | BB29: =$AM40 -> 0 | BC29: =$AM41 -> 0 | BD29: =$AM42 -> 0 | BE29: =$AM43 -> 0 | BF29: =$AM44 -> 0 | BG29: =$AM45 -> 0 | BH29: =$AM46 -> 0 | BI29: =$AM47 -> 0 | BJ29: =$AM48 -> 0 | BK29: =$AM49 -> 0 | BL29: =$AM50 -> 0 | BM29: =$AM51 -> 0 | BN29: =$AM52 -> 0 | BO29: =$AM53 -> 0 | BP29: =$AM54 -> 0 | BQ29: =$AM55 -> 0 | BR29: =$AM56 -> 0 | BS29: =$AM57 -> 0 | BT29: =$AM58 -> 0 | BU29: =$AM59 -> 0 | BV29: =$AM60 -> 0 | BW29: =$AM61 -> 0 | BX29: =$AM62 -> 0 | BY29: =$AM63 -> 0 | BZ29: =$AM64 -> 0 | CA29: =$AM65 -> 0 | CB29: =$AM66 -> 0 | CC29: =$AM67 -> 0 | CD29: =$AM68 -> 0 | CE29: =$AM69 -> 0 | CF29: =$AM70 -> 0 | CG29: =$AM71 -> 0 | CH29: =$AM72 -> 0 | CI29: =$AM73 -> 0 | CJ29: =$AM74 -> 0 | CK29: =$AM75 -> 0 | CL29: =$AM76 -> 0 | CM29: =$AM77 -> 0 | CN29: =$AM78 -> 0 | CO29: =$AM79 -> 0 | CP29: =$AM80 -> 0 | CQ29: =$AM81 -> 0 | CR29: =$AM82 -> 0 | CS29: =$AM83 -> 0 | CT29: =$AM84 -> 0 | CU29: =$AM85 -> 0 | CV29: =$AM86 -> 0
Z30: Bexley | AA30: OUTER LONDON | AC30: £354.10 | AD30: Outer London | AF30: Bexley | AI30: 3B4PA | AV30: Manag | AY30: =AN37 -> 0 | AZ30: =$AN38 -> 0 | BA30: =$AN39 -> 0 | BB30: =$AN40 -> 0 | BC30: =$AN41 -> 0 | BD30: =$AN42 -> 0 | BE30: =$AN43 -> 0 | BF30: =$AN44 -> 0 | BG30: =$AN45 -> 0 | BH30: =$AN46 -> 0 | BI30: =$AN47 -> 0 | BJ30: =$AN48 -> 0 | BK30: =$AN49 -> 0 | BL30: =$AN50 -> 0 | BM30: =$AN51 -> 0 | BN30: =$AN52 -> 0 | BO30: =$AN53 -> 0 | BP30: =$AN54 -> 0 | BQ30: =$AN55 -> 0 | BR30: =$AN56 -> 0 | BS30: =$AN57 -> 0 | BT30: =$AN58 -> 0 | BU30: =$AN59 -> 0 | BV30: =$AN60 -> 0 | BW30: =$AN61 -> 0 | BX30: =$AN62 -> 0 | BY30: =$AN63 -> 0 | BZ30: =$AN64 -> 0 | CA30: =$AN65 -> 0 | CB30: =$AN66 -> 0 | CC30: =$AN67 -> 0 | CD30: =$AN68 -> 0 | CE30: =$AN69 -> 0 | CF30: =$AN70 -> 0 | CG30: =$AN71 -> 0 | CH30: =$AN72 -> 0 | CI30: =$AN73 -> 0 | CJ30: =$AN74 -> 0 | CK30: =$AN75 -> 0 | CL30: =$AN76 -> 0 | CM30: =$AN77 -> 0 | CN30: =$AN78 -> 0 | CO30: =$AN79 -> 0 | CP30: =$AN80 -> 0 | CQ30: =$AN81 -> 0 | CR30: =$AN82 -> 0 | CS30: =$AN83 -> 0 | CT30: =$AN84 -> 0 | CU30: =$AN85 -> 0 | CV30: =$AN86 -> 0
Z31: Birmingham | AA31: WEST MIDLANDS | AC31: £320.60 | AD31: West Midlands | AF31: Birmingham | AI31: 3B4PF | AT31: NPV | AV31: Maint | AY31: =AO37 -> 0 | AZ31: =$AO38 -> 0 | BA31: =$AO39 -> 0 | BB31: =$AO40 -> 0 | BC31: =$AO41 -> 0 | BD31: =$AO42 -> 0 | BE31: =$AO43 -> 0 | BF31: =$AO44 -> 0 | BG31: =$AO45 -> 0 | BH31: =$AO46 -> 0 | BI31: =$AO47 -> 0 | BJ31: =$AO48 -> 0 | BK31: =$AO49 -> 0 | BL31: =$AO50 -> 0 | BM31: =$AO51 -> 0 | BN31: =$AO52 -> 0 | BO31: =$AO53 -> 0 | BP31: =$AO54 -> 0 | BQ31: =$AO55 -> 0 | BR31: =$AO56 -> 0 | BS31: =$AO57 -> 0 | BT31: =$AO58 -> 0 | BU31: =$AO59 -> 0 | BV31: =$AO60 -> 0 | BW31: =$AO61 -> 0 | BX31: =$AO62 -> 0 | BY31: =$AO63 -> 0 | BZ31: =$AO64 -> 0 | CA31: =$AO65 -> 0 | CB31: =$AO66 -> 0 | CC31: =$AO67 -> 0 | CD31: =$AO68 -> 0 | CE31: =$AO69 -> 0 | CF31: =$AO70 -> 0 | CG31: =$AO71 -> 0 | CH31: =$AO72 -> 0 | CI31: =$AO73 -> 0 | CJ31: =$AO74 -> 0 | CK31: =$AO75 -> 0 | CL31: =$AO76 -> 0 | CM31: =$AO77 -> 0 | CN31: =$AO78 -> 0 | CO31: =$AO79 -> 0 | CP31: =$AO80 -> 0 | CQ31: =$AO81 -> 0 | CR31: =$AO82 -> 0 | CS31: =$AO83 -> 0 | CT31: =$AO84 -> 0 | CU31: =$AO85 -> 0 | CV31: =$AO86 -> 0
Z32: Blaby | AA32: LEICESTERSHIRE | AC32: £303.10 | AD32: East Midlands | AF32: Blaby | AI32: 3B4PB | AT32: =IF(AO17=0,0,AT97) -> 0 | AV32: MRP | AY32: =AP37 -> 0 | AZ32: =$AP38 -> 0 | BA32: =$AP39 -> 0 | BB32: =$AP40 -> 0 | BC32: =$AP41 -> 0 | BD32: =$AP42 -> 0 | BE32: =$AP43 -> 0 | BF32: =$AP44 -> 0 | BG32: =$AP45 -> 0 | BH32: =$AP46 -> 0 | BI32: =$AP47 -> 0 | BJ32: =$AP48 -> 0 | BK32: =$AP49 -> 0 | BL32: =$AP50 -> 0 | BM32: =$AP51 -> 0 | BN32: =$AP52 -> 0 | BO32: =$AP53 -> 0 | BP32: =$AP54 -> 0 | BQ32: =$AP55 -> 0 | BR32: =$AP56 -> 0 | BS32: =$AP57 -> 0 | BT32: =$AP58 -> 0 | BU32: =$AP59 -> 0 | BV32: =$AP60 -> 0 | BW32: =$AP61 -> 0 | BX32: =$AP62 -> 0 | BY32: =$AP63 -> 0 | BZ32: =$AP64 -> 0 | CA32: =$AP65 -> 0 | CB32: =$AP66 -> 0 | CC32: =$AP67 -> 0 | CD32: =$AP68 -> 0 | CE32: =$AP69 -> 0 | CF32: =$AP70 -> 0 | CG32: =$AP71 -> 0 | CH32: =$AP72 -> 0 | CI32: =$AP73 -> 0 | CJ32: =$AP74 -> 0 | CK32: =$AP75 -> 0 | CL32: =$AP76 -> 0 | CM32: =$AP77 -> 0 | CN32: =$AP78 -> 0 | CO32: =$AP79 -> 0 | CP32: =$AP80 -> 0 | CQ32: =$AP81 -> 0 | CR32: =$AP82 -> 0 | CS32: =$AP83 -> 0 | CT32: =$AP84 -> 0 | CU32: =$AP85 -> 0 | CV32: =$AP86 -> 0
Z33: Blackburn | AA33: LANCASHIRE | AC33: £302.70 | AD33: North West | AF33: Blackburn | AI33: 3B4PH | AL33: =AO23 -> 3.00% | AM33: =AO19 -> 3.00% | AN33: =AO24 -> 3.00% | AO33: =AO25 -> 3.00% | AP33: =AO26 -> 3.00% | AR33: =AO29 -> 0.00% | AT33: Discounted
Z34: Blackpool | AA34: LANCASHIRE | AC34: £302.70 | AD34: North West | AF34: Blackpool | AI34: 3B4PW | AK34: Year | AL34: Gross rent | AM34: Voids | AN34: Manag | AO34: Maint | AP34: MRP | AQ34: Net rent | AR34: Residual Int | AS34: Surplus | AT34: Surplus
Z35: Blyth Valley | AA35: NORTHUMBERLAND | AC35: £276.10 | AD35: North East | AF35: Blyth Valley | AI35: 3B5PA | AL35: £ | AM35: £ | AN35: £ | AO35: £ | AP35: £ | AQ35: £ | AR35: £ | AS35: £ | AT35: £
Z36: Bolsover | AA36: DERBYSHIRE | AC36: £321.10 | AD36: East Midlands | AF36: Bolsover | AI36: 3B5PB | AU36: Residual Interest
Z37: Bolton | AA37: GREATER MANCHESTER | AC37: £307.30 | AD37: North West | AF37: Bolton | AI37: 3B5PF | AJ37: =LEFT(K9,4) -> 2023 | AK37: 1 | AL37: =L21 -> 0 | AM37: =ROUND(-AL37*$AO$19,0) -> 0 | AN37: =ROUND(-AO17*AO20,0) -> 0 | AO37: =ROUND(-AO17*AO21,0) -> 0 | AP37: =$AP$133*0 -> 0 | AQ37: =SUM(AL37:AP37) -> 0 | AS37: =SUM(AQ37:AR37) -> 0 | AT37: =AQ37*(1/((1+$AO$28)^(AK37-0.5))) -> 0 | AU37: =AT37 -> 0 | AY37: =AL37 -> 0 | AZ37: =AM37 -> 0 | BA37: =AN37 -> 0 | BB37: =AO37 -> 0 | BC37: =AP37 -> 0
Z38: Boston | AA38: LINCOLNSHIRE | AC38: £286.70 | AD38: East Midlands | AF38: Boston | AI38: 3B5PH | AJ38: =+AJ37+1 -> 2024 | AK38: =AK37+1 -> 2 | AL38: =IF(AJ38=2017,+AL37*0.99,IF(AJ38=2018,AL37*0.99,IF(AJ38=2019,AL37*0.99,AL37*(1+$AO$23)))) -> 0 | AM38: =ROUND(-AL38*$AO$19,0) -> 0 | AN38: =IF(AK38>$AO$27,0,ROUND(AN37*(1+$AO$24),0)) -> 0 | AO38: =IF(AK38>$AO$27,0,ROUND(AO37*(1+$AO$25),0)) -> 0 | AP38: =$AP$133*0 -> 0 | AQ38: 0 | AS38: 0 | AT38: =AQ38*(1/((1+$AO$28)^(AK38-0.5))) -> 0 | AU38: =AT38 -> 0 | AY38: =AL38 -> 0 | AZ38: =AM38 -> 0 | BA38: =AN38 -> 0 | BB38: =AO38 -> 0 | BC38: =AP38 -> 0
Z39: Bournemouth | AA39: DORSET | AC39: £293.90 | AD39: South West | AF39: Bournemouth | AI39: 3B5PW | AJ39: =+AJ38+1 -> 2025 | AK39: 3 | AL39: =IF(AJ39=2017,+AL38*0.99,IF(AJ39=2018,AL38*0.99,IF(AJ39=2019,AL38*0.99,AL38*(1+$AO$23)))) -> 0 | AM39: 0 | AN39: =IF(AK39>$AO$27,0,ROUND(AN38*(1+$AO$24),0)) -> 0 | AO39: =IF(AK39>$AO$27,0,ROUND(AO38*(1+$AO$25),0)) -> 0 | AP39: =$AP$133*0 -> 0 | AQ39: 0 | AS39: 0 | AT39: 0 | AU39: 0 | AY39: 0 | AZ39: 0 | BA39: 0 | BB39: 0 | BC39: 0
Z40: Bracknell Forest | AA40: BERKSHIRE | AC40: £345.40 | AD40: South East | AF40: Bracknell Forest | AI40: 3B6PB | AJ40: 2026 | AK40: 4 | AL40: =IF(AJ40=2017,+AL39*0.99,IF(AJ40=2018,AL39*0.99,IF(AJ40=2019,AL39*0.99,AL39*(1+$AO$23)))) -> 0 | AM40: 0 | AN40: 0 | AO40: 0 | AP40: =$AP$133*0.016 -> 0 | AQ40: 0 | AS40: 0 | AT40: 0 | AU40: 0 | AY40: 0 | AZ40: 0 | BA40: 0 | BB40: 0 | BC40: 0
Z41: Bradford | AA41: WEST YORKSHIRE | AC41: £302.70 | AD41: Yorks & Humberside | AF41: Bradford | AI41: 3B6PH | AJ41: 2027 | AK41: 5 | AL41: =IF(AJ41=2017,+AL40*0.99,IF(AJ41=2018,AL40*0.99,IF(AJ41=2019,AL40*0.99,AL40*(1+$AO$23)))) -> 0 | AM41: 0 | AN41: 0 | AO41: 0 | AP41: =$AP$133*0.016 -> 0 | AQ41: 0 | AS41: 0 | AT41: 0 | AU41: 0 | AY41: 0 | AZ41: 0 | BA41: 0 | BB41: 0 | BC41: 0
Z42: Braintree | AA42: ESSEX | AC42: £325.90 | AD42: Eastern | AF42: Braintree | AI42: 4B4PS | AJ42: 2028 | AK42: 6 | AL42: =IF(AJ42=2017,+AL41*0.99,IF(AJ42=2018,AL41*0.99,IF(AJ42=2019,AL41*0.99,AL41*(1+$AO$23)))) -> 0 | AM42: 0 | AN42: 0 | AO42: 0 | AP42: =$AP$133*0.016 -> 0 | AQ42: 0 | AS42: 0 | AT42: 0 | AU42: 0 | AY42: 0 | AZ42: 0 | BA42: 0 | BB42: 0 | BC42: 0
Z43: Breckland | AA43: NORFOLK | AC43: £302.50 | AD43: Eastern | AF43: Breckland | AI43: 4B6PA | AJ43: 2029 | AK43: 7 | AL43: 0 | AM43: 0 | AN43: 0 | AO43: 0 | AP43: =$AP$133*0.019 -> 0 | AQ43: 0 | AS43: 0 | AT43: 0 | AU43: 0 | AY43: 0 | AZ43: 0 | BA43: 0 | BB43: 0 | BC43: 0
Z44: Brent | AA44: OUTER LONDON | AC44: £354.10 | AD44: Outer London | AF44: Brent | AI44: 4B6PH | AJ44: 2030 | AK44: 8 | AL44: 0 | AM44: 0 | AN44: 0 | AO44: 0 | AP44: =$AP$133*0.019 -> 0 | AQ44: 0 | AS44: 0 | AT44: 0 | AU44: 0 | AY44: 0 | AZ44: 0 | BA44: 0 | BB44: 0 | BC44: 0
Z45: Brentwood | AA45: ESSEX | AC45: £325.90 | AD45: Eastern | AF45: Brentwood | AI45: 4B7PA | AJ45: 2031 | AK45: 9 | AL45: 0 | AM45: 0 | AN45: 0 | AO45: 0 | AP45: =$AP$133*0.019 -> 0 | AQ45: 0 | AS45: 0 | AT45: 0 | AU45: 0 | AY45: 0 | AZ45: 0 | BA45: 0 | BB45: 0 | BC45: 0
Z46: Bridgnorth | AA46: SHROPSHIRE | AC46: £295.40 | AD46: West Midlands | AF46: Bridgnorth | AI46: 4B7PB | AJ46: 2032 | AK46: 10 | AL46: 0 | AM46: 0 | AN46: 0 | AO46: 0 | AP46: =$AP$133*0.023 -> 0 | AQ46: 0 | AS46: 0 | AT46: 0 | AU46: 0 | AY46: 0 | AZ46: 0 | BA46: 0 | BB46: 0 | BC46: 0
Z47: Brighton and Hove | AA47: EAST SUSSEX | AC47: £281.50 | AD47: South East | AF47: Brighton and Hove | AI47: 4B7PH | AJ47: 2033 | AK47: 11 | AL47: 0 | AM47: 0 | AN47: 0 | AO47: 0 | AP47: =$AP$133*0.023 -> 0 | AQ47: 0 | AS47: 0 | AT47: 0 | AU47: 0 | AY47: 0 | AZ47: 0 | BA47: 0 | BB47: 0 | BC47: 0
Z48: Bristol | AA48: AVON | AC48: £321.20 | AD48: South West | AF48: Bristol | AI48: 4B7PW | AJ48: 2034 | AK48: 12 | AL48: 0 | AM48: 0 | AN48: 0 | AO48: 0 | AP48: =$AP$133*0.023 -> 0 | AQ48: 0 | AS48: 0 | AT48: 0 | AU48: 0 | AY48: 0 | AZ48: 0 | BA48: 0 | BB48: 0 | BC48: 0
Z49: Broadland | AA49: NORFOLK | AC49: £302.50 | AD49: Eastern | AF49: Broadland | AI49: 4B8PH | AJ49: 2035 | AK49: 13 | AL49: 0 | AM49: 0 | AN49: 0 | AO49: 0 | AP49: =$AP$133*0.028 -> 0 | AQ49: 0 | AS49: 0 | AT49: 0 | AU49: 0 | AY49: 0 | AZ49: 0 | BA49: 0 | BB49: 0 | BC49: 0
Z50: Bromley | AA50: OUTER LONDON | AC50: £354.10 | AD50: Outer London | AF50: Bromley | AI50: 4B8PW | AJ50: 2036 | AK50: 14 | AL50: 0 | AM50: 0 | AN50: 0 | AO50: 0 | AP50: =$AP$133*0.028 -> 0 | AQ50: 0 | AS50: 0 | AT50: 0 | AU50: 0 | AY50: 0 | AZ50: 0 | BA50: 0 | BB50: 0 | BC50: 0
Z51: Bromsgrove | AA51: HEREFORD & WORCESTER | AC51: £289.60 | AD51: West Midlands | AF51: Bromsgrove | AI51: 5B10PH | AJ51: 2037 | AK51: =AK50+1 -> 15 | AL51: 0 | AM51: 0 | AN51: =IF(AK51>$AO$27,0,ROUND(AN50*(1+$AO$24),0)) -> 0 | AO51: =IF(AK51>$AO$27,0,ROUND(AO50*(1+$AO$25),0)) -> 0 | AP51: =$AP$133*0.028 -> 0 | AQ51: 0 | AS51: 0 | AT51: 0 | AU51: 0 | AY51: 0 | AZ51: 0 | BA51: 0 | BB51: 0 | BC51: 0
Z52: Broxbourne | AA52: HERTFORDSHIRE | AC52: £343.70 | AD52: Eastern | AF52: Broxbourne | AJ52: 2038 | AK52: 16 | AL52: 0 | AM52: 0 | AN52: 0 | AO52: 0 | AP52: =$AP$133*0.033 -> 0 | AQ52: 0 | AS52: 0 | AT52: 0 | AU52: 0 | AY52: 0 | AZ52: 0 | BA52: 0 | BB52: 0 | BC52: 0
Z53: Broxtowe | AA53: NOTTINGHAMSHIRE | AC53: £298.00 | AD53: East Midlands | AF53: Broxtowe | AJ53: 2039 | AK53: 17 | AL53: 0 | AM53: 0 | AN53: 0 | AO53: 0 | AP53: =$AP$133*0.033 -> 0 | AQ53: 0 | AS53: 0 | AT53: 0 | AU53: 0 | AY53: 0 | AZ53: 0 | BA53: 0 | BB53: 0 | BC53: 0
Z54: Burnley | AA54: LANCASHIRE | AC54: £302.70 | AD54: North West | AF54: Burnley | AJ54: 2040 | AK54: 18 | AL54: 0 | AM54: 0 | AN54: 0 | AO54: 0 | AP54: =$AP$133*0.033 -> 0 | AQ54: 0 | AS54: 0 | AT54: 0 | AU54: 0 | AY54: 0 | AZ54: 0 | BA54: 0 | BB54: 0 | BC54: 0
Z55: Bury | AA55: GREATER MANCHESTER | AC55: £307.30 | AD55: North West | AF55: Bury | AJ55: 2041 | AK55: 19 | AL55: 0 | AM55: 0 | AN55: 0 | AO55: 0 | AP55: =$AP$133*0.04 -> 0 | AQ55: 0 | AS55: 0 | AT55: 0 | AU55: 0 | AY55: 0 | AZ55: 0 | BA55: 0 | BB55: 0 | BC55: 0
Z56: Calderdale | AA56: WEST YORKSHIRE | AC56: £302.70 | AD56: Yorks & Humberside | AF56: Calderdale | AJ56: 2042 | AK56: 20 | AL56: 0 | AM56: 0 | AN56: 0 | AO56: 0 | AP56: =$AP$133*0.04 -> 0 | AQ56: 0 | AS56: 0 | AT56: 0 | AU56: 0 | AY56: 0 | AZ56: 0 | BA56: 0 | BB56: 0 | BC56: 0
Z57: Cambridge | AA57: CAMBRIDGESHIRE | AC57: £330.10 | AD57: Eastern | AF57: Cambridge | AJ57: 2043 | AK57: 21 | AL57: 0 | AM57: 0 | AN57: 0 | AO57: 0 | AP57: =$AP$133*0.04 -> 0 | AQ57: 0 | AS57: 0 | AT57: 0 | AU57: 0 | AY57: 0 | AZ57: 0 | BA57: 0 | BB57: 0 | BC57: 0
Z58: Camden | AA58: INNER LONDON | AC58: £354.10 | AD58: Inner London | AF58: Camden | AJ58: 2044 | AK58: 22 | AL58: 0 | AM58: 0 | AN58: 0 | AO58: 0 | AP58: =$AP$133*0.048 -> 0 | AQ58: 0 | AS58: 0 | AT58: 0 | AU58: 0 | AY58: 0 | AZ58: 0 | BA58: 0 | BB58: 0 | BC58: 0
Z59: Cannock Chase | AA59: STAFFORDSHIRE | AC59: £296.20 | AD59: West Midlands | AF59: Cannock Chase | AJ59: 2045 | AK59: 23 | AL59: 0 | AM59: 0 | AN59: 0 | AO59: 0 | AP59: =$AP$133*0.048 -> 0 | AQ59: 0 | AS59: 0 | AT59: 0 | AU59: 0 | AY59: 0 | AZ59: 0 | BA59: 0 | BB59: 0 | BC59: 0
Z60: Canterbury | AA60: KENT | AC60: £316.40 | AD60: South East | AF60: Canterbury | AJ60: 2046 | AK60: 24 | AL60: 0 | AM60: 0 | AN60: 0 | AO60: 0 | AP60: =$AP$133*0.048 -> 0 | AQ60: 0 | AS60: 0 | AT60: 0 | AU60: 0 | AY60: 0 | AZ60: 0 | BA60: 0 | BB60: 0 | BC60: 0
Z61: Caradon | AA61: CORNWALL | AC61: £255.50 | AD61: South West | AF61: Caradon | AJ61: 2047 | AK61: 25 | AL61: 0 | AM61: 0 | AN61: 0 | AO61: 0 | AP61: =$AP$133*0.057 -> 0 | AQ61: 0 | AS61: 0 | AT61: 0 | AU61: 0 | AY61: 0 | AZ61: 0 | BA61: 0 | BB61: 0 | BC61: 0
Z62: Carlisle | AA62: CUMBRIA | AC62: £323.70 | AD62: North West | AF62: Carlisle | AJ62: 2048 | AK62: 26 | AL62: 0 | AM62: 0 | AN62: 0 | AO62: 0 | AP62: =$AP$133*0.057 -> 0 | AQ62: 0 | AS62: 0 | AT62: 0 | AU62: 0 | AY62: 0 | AZ62: 0 | BA62: 0 | BB62: 0 | BC62: 0
Z63: Carrick | AA63: CORNWALL | AC63: £255.50 | AD63: South West | AF63: Carrick | AJ63: 2049 | AK63: 27 | AL63: 0 | AM63: 0 | AN63: 0 | AO63: 0 | AP63: =$AP$133*0.057 -> 0 | AQ63: 0 | AS63: 0 | AT63: 0 | AU63: 0 | AY63: 0 | AZ63: 0 | BA63: 0 | BB63: 0 | BC63: 0
Z64: Castle Morpeth | AA64: NORTHUMBERLAND | AC64: £276.10 | AD64: North East | AF64: Castle Morpeth | AJ64: 2050 | AK64: 28 | AL64: 0 | AM64: 0 | AN64: 0 | AO64: 0 | AP64: =$AP$133*0.069 -> 0 | AQ64: 0 | AS64: 0 | AT64: 0 | AU64: 0 | AY64: 0 | AZ64: 0 | BA64: 0 | BB64: 0 | BC64: 0
Z65: Castle Point | AA65: ESSEX | AC65: £325.90 | AD65: Eastern | AF65: Castle Point | AJ65: 2051 | AK65: 29 | AL65: 0 | AM65: 0 | AN65: 0 | AO65: 0 | AP65: =$AP$133*0.069 -> 0 | AQ65: 0 | AS65: 0 | AT65: 0 | AU65: 0 | AY65: 0 | AZ65: 0 | BA65: 0 | BB65: 0 | BC65: 0
Z66: Charnwood | AA66: LEICESTERSHIRE | AC66: £303.10 | AD66: East Midlands | AF66: Charnwood | AJ66: 2052 | AK66: 30 | AL66: 0 | AM66: 0 | AN66: 0 | AO66: 0 | AP66: =$AP$133*0.07 -> 0 | AQ66: 0 | AR66: 0 | AS66: 0 | AT66: =AS66*(1/((1+$AO$28)^(AK66-0.5))) -> 0 | AU66: =AQ66*(1/((1+$AO$28)^(AK66-0.5))) -> 0 | AV66: =SUM(AU37:AU66) -> 0 | AW66: npv minus resid. Int. | AY66: 0 | AZ66: 0 | BA66: 0 | BB66: 0 | BC66: 0
Z67: Chelmsford | AA67: ESSEX | AC67: £325.90 | AD67: Eastern | AF67: Chelmsford | AJ67: 2053 | AK67: 31 | AL67: 0 | AM67: 0 | AN67: 0 | AO67: 0 | AP67: =-3896*AO17 -> 0 | AQ67: 0 | AS67: =SUM(AQ67:AR67)*0.5*0.9 -> 0 | AT67: 0 | AU67: =AT67+(AT66-AU66) -> 0 | AY67: 0 | AZ67: 0 | BA67: 0 | BB67: 0 | BC67: 0
Z68: Cheltenham | AA68: GLOUCESTERSHIRE | AC68: £308.00 | AD68: South West | AF68: Cheltenham | AJ68: 2054 | AK68: 32 | AL68: 0 | AM68: 0 | AN68: 0 | AO68: 0 | AP68: =AP67*1.03 -> 0 | AQ68: 0 | AS68: =SUM(AQ68:AR68)*0.5*0.9 -> 0 | AT68: 0 | AU68: =AT68 -> 0 | AY68: 0 | AZ68: 0 | BA68: 0 | BB68: 0 | BC68: 0
Z69: Cherwell | AA69: OXFORDSHIRE | AC69: £323.80 | AD69: South East | AF69: Cherwell | AJ69: 2055 | AK69: 33 | AL69: 0 | AM69: 0 | AN69: 0 | AO69: 0 | AP69: 0 | AQ69: 0 | AS69: 0 | AT69: 0 | AU69: =AT69 -> 0 | AY69: 0 | AZ69: 0 | BA69: 0 | BB69: 0 | BC69: 0
Z70: Chester | AA70: CHESHIRE | AC70: £322.00 | AD70: North West | AF70: Chester | AJ70: 2056 | AK70: 34 | AL70: 0 | AM70: 0 | AN70: 0 | AO70: 0 | AP70: 0 | AQ70: 0 | AS70: 0 | AT70: 0 | AU70: 0 | AY70: 0 | AZ70: 0 | BA70: 0 | BB70: 0 | BC70: 0
Z71: Chesterfield | AA71: DERBYSHIRE | AC71: £321.10 | AD71: East Midlands | AF71: Chesterfield | AJ71: 2057 | AK71: 35 | AL71: 0 | AM71: 0 | AN71: 0 | AO71: 0 | AP71: 0 | AQ71: 0 | AS71: 0 | AT71: 0 | AU71: 0 | AY71: 0 | AZ71: 0 | BA71: 0 | BB71: 0 | BC71: 0
Z72: Chester-le-Street | AA72: DURHAM | AC72: £289.70 | AD72: North East | AF72: Chester-le-Street | AJ72: 2058 | AK72: 36 | AL72: 0 | AM72: 0 | AN72: 0 | AO72: 0 | AP72: 0 | AQ72: 0 | AS72: 0 | AT72: 0 | AU72: 0 | AY72: 0 | AZ72: 0 | BA72: 0 | BB72: 0 | BC72: 0
Z73: Chichester | AA73: WEST SUSSEX | AC73: £332.50 | AD73: South East | AF73: Chichester | AJ73: 2059 | AK73: 37 | AL73: 0 | AM73: 0 | AN73: 0 | AO73: 0 | AP73: 0 | AQ73: 0 | AS73: 0 | AT73: 0 | AU73: 0 | AY73: 0 | AZ73: 0 | BA73: 0 | BB73: 0 | BC73: 0
Z74: Chiltern | AA74: BUCKINGHAMSHIRE | AC74: £328.30 | AD74: South East | AF74: Chiltern | AJ74: 2060 | AK74: 38 | AL74: 0 | AM74: 0 | AN74: 0 | AO74: 0 | AP74: 0 | AQ74: 0 | AS74: 0 | AT74: 0 | AU74: 0 | AY74: 0 | AZ74: 0 | BA74: 0 | BB74: 0 | BC74: 0
Z75: Chorley | AA75: LANCASHIRE | AC75: £302.70 | AD75: North West | AF75: Chorley | AJ75: 2061 | AK75: 39 | AL75: 0 | AM75: 0 | AN75: 0 | AO75: 0 | AP75: 0 | AQ75: 0 | AS75: 0 | AT75: 0 | AU75: 0 | AY75: 0 | AZ75: 0 | BA75: 0 | BB75: 0 | BC75: 0
Z76: Christchurch | AA76: DORSET | AC76: £293.90 | AD76: South West | AF76: Christchurch | AJ76: 2062 | AK76: 40 | AL76: 0 | AM76: 0 | AN76: 0 | AO76: 0 | AP76: 0 | AQ76: 0 | AS76: 0 | AT76: 0 | AU76: 0 | AV76: =SUM(AU37:AU76) -> 0 | AY76: 0 | AZ76: 0 | BA76: 0 | BB76: 0 | BC76: 0
Z77: City of London | AA77: INNER LONDON | AC77: £354.10 | AD77: Inner London | AF77: City of London | AJ77: 2063 | AK77: 41 | AL77: 0 | AM77: 0 | AN77: 0 | AO77: 0 | AP77: 0 | AQ77: 0 | AS77: 0 | AT77: 0 | AU77: 0 | AY77: 0 | AZ77: 0 | BA77: 0 | BB77: 0 | BC77: 0
Z78: Colchester | AA78: ESSEX | AC78: £325.90 | AD78: Eastern | AF78: Colchester | AJ78: 2064 | AK78: 42 | AL78: 0 | AM78: 0 | AN78: 0 | AO78: 0 | AP78: 0 | AQ78: 0 | AS78: 0 | AT78: 0 | AU78: 0 | AY78: 0 | AZ78: 0 | BA78: 0 | BB78: 0 | BC78: 0
Z79: Congleton | AA79: CHESHIRE | AC79: £322.00 | AD79: North West | AF79: Congleton | AJ79: 2065 | AK79: 43 | AL79: 0 | AM79: 0 | AN79: 0 | AO79: 0 | AP79: 0 | AQ79: 0 | AS79: 0 | AT79: 0 | AU79: 0 | AY79: 0 | AZ79: 0 | BA79: 0 | BB79: 0 | BC79: 0
Z80: Copeland | AA80: CUMBRIA | AC80: £323.70 | AD80: North West | AF80: Copeland | AJ80: 2066 | AK80: 44 | AL80: 0 | AM80: 0 | AN80: 0 | AO80: 0 | AP80: 0 | AQ80: 0 | AS80: 0 | AT80: 0 | AU80: 0 | AY80: 0 | AZ80: 0 | BA80: 0 | BB80: 0 | BC80: 0
Z81: Corby | AA81: NORTHAMPTONSHIRE | AC81: £328.50 | AD81: East Midlands | AF81: Corby | AJ81: 2067 | AK81: 45 | AL81: 0 | AM81: 0 | AN81: 0 | AO81: 0 | AP81: 0 | AQ81: 0 | AS81: 0 | AT81: 0 | AU81: 0 | AY81: 0 | AZ81: 0 | BA81: 0 | BB81: 0 | BC81: 0
Z82: Cotswold | AA82: GLOUCESTERSHIRE | AC82: £308.00 | AD82: South West | AF82: Cotswold | AJ82: 2068 | AK82: 46 | AL82: 0 | AM82: 0 | AN82: 0 | AO82: 0 | AP82: 0 | AQ82: 0 | AS82: 0 | AT82: 0 | AU82: 0 | AY82: 0 | AZ82: 0 | BA82: 0 | BB82: 0 | BC82: 0
Z83: Coventry | AA83: WEST MIDLANDS | AC83: £320.60 | AD83: West Midlands | AF83: Coventry | AJ83: 2069 | AK83: 47 | AL83: 0 | AM83: 0 | AN83: 0 | AO83: 0 | AP83: 0 | AQ83: 0 | AS83: 0 | AT83: 0 | AU83: 0 | AY83: 0 | AZ83: 0 | BA83: 0 | BB83: 0 | BC83: 0
Z84: Craven | AA84: NORTH YORKSHIRE | AC84: £299.60 | AD84: Yorks & Humberside | AF84: Craven | AJ84: 2070 | AK84: 48 | AL84: 0 | AM84: 0 | AN84: 0 | AO84: 0 | AP84: 0 | AQ84: 0 | AS84: 0 | AT84: 0 | AU84: 0 | AY84: 0 | AZ84: 0 | BA84: 0 | BB84: 0 | BC84: 0
Z85: Crawley | AA85: WEST SUSSEX | AC85: £332.50 | AD85: South East | AF85: Crawley | AJ85: 2071 | AK85: 49 | AL85: 0 | AM85: 0 | AN85: 0 | AO85: 0 | AP85: 0 | AQ85: 0 | AS85: 0 | AT85: 0 | AU85: 0 | AY85: 0 | AZ85: 0 | BA85: 0 | BB85: 0 | BC85: 0
Z86: Crewe and Nantwich | AA86: CHESHIRE | AC86: £322.00 | AD86: North West | AF86: Crewe and Nantwich | AJ86: 2072 | AK86: 50 | AL86: 0 | AM86: 0 | AN86: 0 | AO86: 0 | AP86: 0 | AQ86: 0 | AS86: 0 | AT86: 0 | AU86: 0 | AV86: =SUM(AU37:AU86) -> 0 | AY86: 0 | AZ86: 0 | BA86: 0 | BB86: 0 | BC86: 0
Z87: Croydon | AA87: OUTER LONDON | AC87: £354.10 | AD87: Outer London | AF87: Croydon | AJ87: 2073 | AK87: 51 | AL87: 0 | AM87: 0 | AN87: 0 | AO87: 0 | AP87: 0 | AQ87: 0 | AS87: 0 | AT87: 0 | AU87: 0 | AY87: 0 | AZ87: 0 | BA87: 0 | BB87: 0 | BC87: 0
Z88: Dacorum | AA88: HERTFORDSHIRE | AC88: £343.70 | AD88: Eastern | AF88: Dacorum | AJ88: 2074 | AK88: 52 | AL88: 0 | AM88: 0 | AN88: 0 | AO88: 0 | AP88: 0 | AQ88: 0 | AS88: 0 | AT88: 0 | AU88: 0 | AY88: 0 | AZ88: 0 | BA88: 0 | BB88: 0 | BC88: 0
Z89: Darlington | AA89: DURHAM | AC89: £289.70 | AD89: North East | AF89: Darlington | AJ89: 2075 | AK89: 53 | AL89: 0 | AM89: 0 | AN89: 0 | AO89: 0 | AP89: 0 | AQ89: 0 | AS89: 0 | AT89: 0 | AU89: 0 | AY89: 0 | AZ89: 0 | BA89: 0 | BB89: 0 | BC89: 0
Z90: Dartford | AA90: KENT | AC90: £316.40 | AD90: South East | AF90: Dartford | AJ90: 2076 | AK90: 54 | AL90: 0 | AM90: 0 | AN90: 0 | AO90: 0 | AP90: 0 | AQ90: 0 | AS90: 0 | AT90: 0 | AU90: 0 | AY90: 0 | AZ90: 0 | BA90: 0 | BB90: 0 | BC90: 0
Z91: Daventry | AA91: NORTHAMPTONSHIRE | AC91: £328.50 | AD91: East Midlands | AF91: Daventry | AJ91: 2077 | AK91: 55 | AL91: 0 | AM91: 0 | AN91: 0 | AO91: 0 | AP91: 0 | AQ91: 0 | AS91: 0 | AT91: 0 | AU91: 0 | AY91: 0 | AZ91: 0 | BA91: 0 | BB91: 0 | BC91: 0
Z92: Derby | AA92: DERBYSHIRE | AC92: £321.10 | AD92: East Midlands | AF92: Derby | AJ92: 2078 | AK92: 56 | AL92: 0 | AM92: 0 | AN92: 0 | AO92: 0 | AP92: 0 | AQ92: 0 | AS92: 0 | AT92: 0 | AU92: 0 | AY92: 0 | AZ92: 0 | BA92: 0 | BB92: 0 | BC92: 0
Z93: Derbyshire Dales | AA93: DERBYSHIRE | AC93: £321.10 | AD93: East Midlands | AF93: Derbyshire Dales | AJ93: 2079 | AK93: 57 | AL93: 0 | AM93: 0 | AN93: 0 | AO93: 0 | AP93: 0 | AQ93: 0 | AS93: 0 | AT93: 0 | AU93: 0 | AY93: 0 | AZ93: 0 | BA93: 0 | BB93: 0 | BC93: 0
Z94: Derwentside | AA94: DURHAM | AC94: £289.70 | AD94: North East | AF94: Derwentside | AJ94: 2080 | AK94: 58 | AL94: 0 | AM94: 0 | AN94: 0 | AO94: 0 | AP94: 0 | AQ94: 0 | AS94: 0 | AT94: 0 | AU94: 0 | AY94: 0 | AZ94: 0 | BA94: 0 | BB94: 0 | BC94: 0
Z95: Doncaster | AA95: SOUTH YORKSHIRE | AC95: £299.10 | AD95: Yorks & Humberside | AF95: Doncaster | AJ95: 2081 | AK95: 59 | AL95: 0 | AM95: 0 | AN95: 0 | AO95: 0 | AP95: 0 | AQ95: 0 | AS95: 0 | AT95: 0 | AU95: 0 | AY95: 0 | AZ95: 0 | BA95: 0 | BB95: 0 | BC95: 0
Z96: Dover | AA96: KENT | AC96: £316.40 | AD96: South East | AF96: Dover | AJ96: 2082 | AK96: 60 | AL96: 0 | AM96: 0 | AN96: 0 | AO96: 0 | AP96: 0 | AQ96: 0 | AS96: 0 | AT96: 0 | AU96: 0 | AV96: =SUM(AU67:AU96) -> 0 | AW96: residual interest | AY96: 0 | AZ96: 0 | BA96: 0 | BB96: 0 | BC96: 0
Z97: Dudley | AA97: WEST MIDLANDS | AC97: £320.60 | AD97: West Midlands | AF97: Dudley | AL97: =SUM(AL37:AL96) -> 0 | AM97: =SUM(AM37:AM96) -> 0 | AN97: 0 | AO97: 0 | AP97: 0 | AQ97: 0 | AR97: 0 | AS97: 0 | AT97: 0
Z98: Durham | AA98: DURHAM | AC98: £289.70 | AD98: North East | AF98: Durham
Z99: Ealing | AA99: OUTER LONDON | AC99: £354.10 | AD99: Outer London | AF99: Ealing
Z100: Easington | AA100: DURHAM | AC100: £289.70 | AD100: North East | AF100: Easington
Z101: East Cambridgeshire | AA101: CAMBRIDGESHIRE | AC101: £330.10 | AD101: Eastern | AF101: East Cambridgeshire
Z102: East Devon | AA102: DEVON | AC102: £278.00 | AD102: South West | AF102: East Devon | AP102: MRP | AR102: VP
Z103: East Dorset | AA103: DORSET | AC103: £293.90 | AD103: South West | AF103: East Dorset | AP103: =-AO17*AO22 -> 0 | AR103: =I21 -> 0
Z104: East Hampshire | AA104: HAMPSHIRE | AC104: £328.70 | AD104: South East | AF104: East Hampshire | AP104: =IF(AK38>$AO$27,0,ROUND(AP103*(1+$AO$26),0)) -> 0 | AR104: =AR103*1.03 -> 0
Z105: East Hertfordshire | AA105: HERTFORDSHIRE | AC105: £343.70 | AD105: Eastern | AF105: East Hertfordshire | AP105: 0 | AR105: =AR104*1.03 -> 0
Z106: East Lindsey | AA106: LINCOLNSHIRE | AC106: £286.70 | AD106: East Midlands | AF106: East Lindsey | AP106: 0 | AR106: 0
Z107: East Northamptonshire | AA107: NORTHAMPTONSHIRE | AC107: £328.50 | AD107: East Midlands | AF107: East Northamptonshire | AP107: 0 | AR107: 0
Z108: East Riding | AA108: HUMBERSIDE | AC108: £318.40 | AD108: Yorks & Humberside | AF108: East Riding | AP108: 0 | AR108: 0
Z109: East Staffordshire | AA109: STAFFORDSHIRE | AC109: £296.20 | AD109: West Midlands | AF109: East Staffordshire | AP109: 0 | AR109: 0
Z110: Eastbourne | AA110: EAST SUSSEX | AC110: £281.50 | AD110: South East | AF110: Eastbourne | AP110: 0 | AR110: 0
Z111: Eastleigh | AA111: HAMPSHIRE | AC111: £328.70 | AD111: South East | AF111: Eastleigh | AP111: 0 | AR111: 0
Z112: Eden | AA112: CUMBRIA | AC112: £323.70 | AD112: North West | AF112: Eden | AP112: 0 | AR112: 0
Z113: Ellesmere Port and Neston | AA113: CHESHIRE | AC113: £322.00 | AD113: North West | AF113: Ellesmere Port and Neston | AP113: 0 | AR113: 0
Z114: Elmbridge | AA114: SURREY | AC114: £333.20 | AD114: South East | AF114: Elmbridge | AP114: 0 | AR114: 0
Z115: Enfield | AA115: OUTER LONDON | AC115: £354.10 | AD115: Outer London | AF115: Enfield | AP115: 0 | AR115: 0
Z116: Epping Forest | AA116: ESSEX | AC116: £325.90 | AD116: Eastern | AF116: Epping Forest | AP116: 0 | AR116: 0
Z117: Epsom and Ewell | AA117: SURREY | AC117: £333.20 | AD117: South East | AF117: Epsom and Ewell | AP117: =IF(AK51>$AO$27,0,ROUND(AP116*(1+$AO$26),0)) -> 0 | AR117: 0
Z118: Erewash | AA118: DERBYSHIRE | AC118: £321.10 | AD118: East Midlands | AF118: Erewash | AP118: 0 | AR118: 0
Z119: Exeter | AA119: DEVON | AC119: £278.00 | AD119: South West | AF119: Exeter | AP119: 0 | AR119: 0
Z120: Fareham | AA120: HAMPSHIRE | AC120: £328.70 | AD120: South East | AF120: Fareham | AP120: 0 | AR120: 0
Z121: Fenland | AA121: CAMBRIDGESHIRE | AC121: £330.10 | AD121: Eastern | AF121: Fenland | AP121: 0 | AR121: 0
Z122: Forest Heath | AA122: SUFFOLK | AC122: £304.30 | AD122: Eastern | AF122: Forest Heath | AP122: 0 | AR122: 0
Z123: Forest of Dean | AA123: GLOUCESTERSHIRE | AC123: £308.00 | AD123: South West | AF123: Forest of Dean | AP123: 0 | AR123: 0
Z124: Fylde | AA124: LANCASHIRE | AC124: £302.70 | AD124: North West | AF124: Fylde | AP124: 0 | AR124: 0
Z125: Gateshead | AA125: TYNE & WEAR | AC125: £307.90 | AD125: North East | AF125: Gateshead | AP125: 0 | AR125: 0
Z126: Gedling | AA126: NOTTINGHAMSHIRE | AC126: £298.00 | AD126: East Midlands | AF126: Gedling | AP126: 0 | AR126: 0
Z127: Gloucester | AA127: GLOUCESTERSHIRE | AC127: £308.00 | AD127: South West | AF127: Gloucester | AP127: 0 | AR127: 0
Z128: Gosport | AA128: HAMPSHIRE | AC128: £328.70 | AD128: South East | AF128: Gosport | AP128: 0 | AR128: 0
Z129: Gravesham | AA129: KENT | AC129: £316.40 | AD129: South East | AF129: Gravesham | AP129: 0 | AR129: 0
Z130: Great Yarmouth | AA130: NORFOLK | AC130: £302.50 | AD130: Eastern | AF130: Great Yarmouth | AP130: 0 | AR130: 0
Z131: Greenwich | AA131: INNER LONDON | AC131: £354.10 | AD131: Inner London | AF131: Greenwich | AP131: 0 | AR131: 0
Z132: Guildford | AA132: SURREY | AC132: £333.20 | AD132: South East | AF132: Guildford | AP132: 0 | AR132: 0 | AS132: =AR132*(1/((1+0.064)^(30-0.5))) -> 0
Z133: Hackney | AA133: INNER LONDON | AC133: £354.10 | AD133: Inner London | AF133: Hackney | AP133: =SUM(AP103:AP132) -> 0
Z134: Halton | AA134: CHESHIRE | AC134: £322.00 | AD134: North West | AF134: Halton
Z135: Hambleton | AA135: NORTH YORKSHIRE | AC135: £299.60 | AD135: Yorks & Humberside | AF135: Hambleton
Z136: Hammersmith | AA136: INNER LONDON | AC136: £354.10 | AD136: Inner London | AF136: Hammersmith
Z137: Harborough | AA137: LEICESTERSHIRE | AC137: £303.10 | AD137: East Midlands | AF137: Harborough
Z138: Haringey | AA138: OUTER LONDON | AC138: £354.10 | AD138: Outer London | AF138: Haringey
Z139: Harlow | AA139: ESSEX | AC139: £325.90 | AD139: Eastern | AF139: Harlow
Z140: Harrogate | AA140: NORTH YORKSHIRE | AC140: £299.60 | AD140: Yorks & Humberside | AF140: Harrogate
Z141: Harrow | AA141: OUTER LONDON | AC141: £354.10 | AD141: Outer London | AF141: Harrow
Z142: Hart | AA142: HAMPSHIRE | AC142: £328.70 | AD142: South East | AF142: Hart
Z143: Hartlepool | AA143: CLEVELAND | AC143: £338.40 | AD143: North East | AF143: Hartlepool
Z144: Hastings | AA144: EAST SUSSEX | AC144: £281.50 | AD144: South East | AF144: Hastings
Z145: Havant | AA145: HAMPSHIRE | AC145: £328.70 | AD145: South East | AF145: Havant
Z146: Havering | AA146: OUTER LONDON | AC146: £354.10 | AD146: Outer London | AF146: Havering
Z147: Herefordshire | AA147: HEREFORD & WORCESTER | AC147: £289.60 | AD147: West Midlands | AF147: Herefordshire
Z148: Hertsmere | AA148: HERTFORDSHIRE | AC148: £343.70 | AD148: Eastern | AF148: Hertsmere
Z149: High Peak | AA149: DERBYSHIRE | AC149: £321.10 | AD149: East Midlands | AF149: High Peak
Z150: Hillingdon | AA150: OUTER LONDON | AC150: £354.10 | AD150: Outer London | AF150: Hillingdon
Z151: Hinckley and Bosworth | AA151: LEICESTERSHIRE | AC151: £303.10 | AD151: East Midlands | AF151: Hinckley and Bosworth
Z152: Horsham | AA152: WEST SUSSEX | AC152: £332.50 | AD152: South East | AF152: Horsham
Z153: Hounslow | AA153: OUTER LONDON | AC153: £354.10 | AD153: Outer London | AF153: Hounslow
Z154: Huntingdon | AA154: CAMBRIDGESHIRE | AC154: £330.10 | AD154: Eastern | AF154: Huntingdon
Z155: Hyndburn | AA155: LANCASHIRE | AC155: £302.70 | AD155: North West | AF155: Hyndburn
Z156: Ipswich | AA156: SUFFOLK | AC156: £304.30 | AD156: Eastern | AF156: Ipswich
Z157: Isle of Wight | AA157: ISLE OF WIGHT | AC157: £288.50 | AD157: South East | AF157: Isle of Wight
Z158: Isles of Scilly | AA158: CORNWALL | AC158: £255.50 | AD158: South West | AF158: Isles of Scilly
Z159: Islington | AA159: INNER LONDON | AC159: £354.10 | AD159: Inner London | AF159: Islington
Z160: Kennet | AA160: WILTSHIRE | AC160: £313.90 | AD160: South West | AF160: Kennet
Z161: Kensington and Chelsea | AA161: INNER LONDON | AC161: £354.10 | AD161: Inner London | AF161: Kensington and Chelsea
Z162: Kerrier | AA162: CORNWALL | AC162: £255.50 | AD162: South West | AF162: Kerrier
Z163: Kettering | AA163: NORTHAMPTONSHIRE | AC163: £328.50 | AD163: East Midlands | AF163: Kettering
Z164: Kings Lynn and West Norfolk | AA164: NORFOLK | AC164: £302.50 | AD164: Eastern | AF164: Kings Lynn and West Norfolk
Z165: Kingston upon Hull | AA165: HUMBERSIDE | AC165: £318.40 | AD165: Yorks & Humberside | AF165: Kingston upon Hull
Z166: Kingston upon Thames | AA166: OUTER LONDON | AC166: £354.10 | AD166: Outer London | AF166: Kingston upon Thames
Z167: Kirklees | AA167: WEST YORKSHIRE | AC167: £302.70 | AD167: Yorks & Humberside | AF167: Kirklees
Z168: Knowsley | AA168: MERSEYSIDE | AC168: £324.90 | AD168: North West | AF168: Knowsley
Z169: Lambeth | AA169: INNER LONDON | AC169: £354.10 | AD169: Inner London | AF169: Lambeth
Z170: Lancaster | AA170: LANCASHIRE | AC170: £302.70 | AD170: North West | AF170: Lancaster
Z171: Leeds | AA171: WEST YORKSHIRE | AC171: £302.70 | AD171: Yorks & Humberside | AF171: Leeds
Z172: Leicester | AA172: LEICESTERSHIRE | AC172: £303.10 | AD172: East Midlands | AF172: Leicester
Z173: Lewes | AA173: EAST SUSSEX | AC173: £281.50 | AD173: South East | AF173: Lewes
Z174: Lewisham | AA174: INNER LONDON | AC174: £354.10 | AD174: Inner London | AF174: Lewisham
Z175: Lichfield | AA175: STAFFORDSHIRE | AC175: £296.20 | AD175: West Midlands | AF175: Lichfield
Z176: Lincoln | AA176: LINCOLNSHIRE | AC176: £286.70 | AD176: East Midlands | AF176: Lincoln
Z177: Liverpool | AA177: MERSEYSIDE | AC177: £324.90 | AD177: North West | AF177: Liverpool
Z178: Luton | AA178: BEDFORDSHIRE | AC178: £343.70 | AD178: Eastern | AF178: Luton
Z179: Macclesfield | AA179: CHESHIRE | AC179: £322.00 | AD179: North West | AF179: Macclesfield
Z180: Maidstone | AA180: KENT | AC180: £316.40 | AD180: South East | AF180: Maidstone
Z181: Maldon | AA181: ESSEX | AC181: £325.90 | AD181: Eastern | AF181: Maldon
Z182: Malvern Hills District | AA182: HEREFORD & WORCESTER | AC182: £289.60 | AD182: West Midlands | AF182: Malvern Hills District
Z183: Manchester | AA183: GREATER MANCHESTER | AC183: £307.30 | AD183: North West | AF183: Manchester
Z184: Mansfield | AA184: NOTTINGHAMSHIRE | AC184: £298.00 | AD184: East Midlands | AF184: Mansfield
Z185: Melton | AA185: LEICESTERSHIRE | AC185: £303.10 | AD185: East Midlands | AF185: Melton
Z186: Mendip | AA186: SOMERSET | AC186: £299.70 | AD186: South West | AF186: Mendip
Z187: Merton | AA187: OUTER LONDON | AC187: £354.10 | AD187: Outer London | AF187: Merton
Z188: Mid Bedfordshire | AA188: BEDFORDSHIRE | AC188: £343.70 | AD188: Eastern | AF188: Mid Bedfordshire
Z189: Mid Devon | AA189: DEVON | AC189: £278.00 | AD189: South West | AF189: Mid Devon
Z190: Mid Suffolk | AA190: SUFFOLK | AC190: £304.30 | AD190: Eastern | AF190: Mid Suffolk
Z191: Mid Sussex | AA191: WEST SUSSEX | AC191: £332.50 | AD191: South East | AF191: Mid Sussex
Z192: Middlesbrough | AA192: CLEVELAND | AC192: £338.40 | AD192: North East | AF192: Middlesbrough
Z193: Milton Keynes | AA193: BUCKINGHAMSHIRE | AC193: £328.30 | AD193: South East | AF193: Milton Keynes
Z194: Mole Valley | AA194: SURREY | AC194: £333.20 | AD194: South East | AF194: Mole Valley
Z195: New Forest | AA195: HAMPSHIRE | AC195: £328.70 | AD195: South East | AF195: New Forest
Z196: Newark | AA196: NOTTINGHAMSHIRE | AC196: £298.00 | AD196: East Midlands | AF196: Newark
Z197: Newcastle upon Tyne | AA197: TYNE & WEAR | AC197: £296.20 | AD197: North East | AF197: Newcastle upon Tyne
Z198: Newcastle under Lyme | AA198: STAFFORDSHIRE | AC198: £307.90 | AD198: STAFFORDSHIRE | AF198: Newcastle under Lyme
Z199: Newham | AA199: OUTER LONDON | AC199: £354.10 | AD199: Outer London | AF199: Newham
Z200: North Cornwall | AA200: CORNWALL | AC200: £255.50 | AD200: South West | AF200: North Cornwall
Z201: North Devon | AA201: DEVON | AC201: £278.00 | AD201: South West | AF201: North Devon
... 171 more rows

Sheet Affordable Rent
B1: Affordable Rent
B3: KEY
B4: Manual Input (If applicable)
B5: Formula with Input Capability
B6: ** denotes compulsory field
B8: Unit Type | C8: No. of Units | D8: No. of Beds per Unit | E8: No. of Persons per Unit | F8: Property | G8: Individual Floor Area | H8: OMV on completion | I8: Weekly Market Rent for | J8: Percentage of Market Rent | K8: Weekly Unit Rent for | L8: Total p.a. | Y8: Property Code
G9: (sq. m.) | H9: (individual unit) | I9: ='Project Information'!H16 -> 2023/24 | K9: ='Project Information'!H16 -> 2023/24 | AE9: Property Type | AH9: LONGTERM BORROWING CALCULATION SUPPORTED BY RENTS
B10: ** | C10: ** | G10: ** | H10: ** | K10: **
B11: 1B2PF | C11: 4 | D11: =LEFT(B11,1) -> 1 | E11: =IF(C11="",0,(IF(LEN(B11)=5,MID(B11,3,1),MID(B11,3,2)))) -> 2 | F11: =IF(Y11="H","House",IF(Y11="B","Bungalow",IF(Y11="F","Flat",IF(Y11="S","Shared",IF(Y11="T","Bedsit",IF(Y11="A","Wheelchair Flat",IF(Y11="W","Wheelchair",0))))))) -> Flat | G11: 50 | H11: 82,500 | I11: 170 | J11: 80.00% | K11: =+I11*J11 -> 136.00 | L11: =K11*C11*52 -> 28,288.00 | Y11: =RIGHT(B11,1) -> F | AE11: 0B0PS
B12: 2B4PH | C12: 4 | D12: 2 | E12: 4 | F12: House | G12: 79 | H12: 137,000 | I12: 185 | J12: 80.00% | K12: =+I12*J12 -> 148.00 | L12: 30,784.00 | Y12: =RIGHT(B12,1) -> H | AE12: 1B1PF
B13: 4B6PH | C13: 6 | D13: 4 | E13: 6 | F13: House | G13: 97 | H13: 220,000 | I13: 270 | J13: 80.00% | K13: =+J13*I13 -> 216.00 | L13: 67,392.00 | Y13: H | AE13: 1B1PT
E14: 0 | F14: 0 | J14: 80.00% | K14: =+J14*I14 -> 0.00 | L14: 0.00 | AE14: 1B2PA
E15: 0 | F15: 0 | J15: 80.00% | K15: 0.00 | L15: 0.00 | AE15: 1B2PB
E16: 0 | F16: 0 | J16: 80.00% | K16: 0.00 | L16: 0.00 | AE16: 1B2PF | AH16: MRP % per unit | AK16: =+'Project Information'!H34 -> 0.40%
E17: 0 | F17: 0 | J17: 80.00% | K17: 0.00 | L17: 0.00 | AE17: 1B2PH | AH17: Number of units | AK17: =C21 -> 14
E18: 0 | F18: 0 | J18: 80.00% | K18: 0.00 | L18: 0.00 | AE18: 2B2PF | AH18: Average rent per unit per week | AK18: =K21 -> £173.71
E19: 0 | F19: 0 | J19: 80.00% | K19: 0.00 | L19: 0.00 | AE19: 2B3PA | AH19: Voids % | AK19: =+'Social Rent'!AO19 -> 3%
E20: 0 | F20: 0 | J20: 80.00% | K20: 0.00 | L20: 0.00 | AE20: 2B3PB | AH20: Management cost per unit per annum | AK20: =+'Project Information'!H32 -> £424
B21: Total Units | C21: =SUM(C11:C20) -> 14 | D21: Total Persons | E21: =($C$11*E11)+($C$12*E12)+($C$13*E13)+($C$14*E14)+($C$15*E15)+($C$16*E16)+($C$17*E17)+($C$18*E18)+($C$19*E19)+($C$20*E20) -> 60 | G21: =($C$11*G11)+($C$12*G12)+($C$13*G13)+($C$14*G14)+($C$15*G15)+($C$16*G16)+($C$17*G17)+($C$18*G18)+($C$19*G19)+($C$20*G20) -> 1,098 | H21: =($C$11*H11)+($C$12*H12)+($C$13*H13)+($C$14*H14)+($C$15*H15)+($C$16*H16)+($C$17*H17)+($C$18*H18)+($C$19*H19)+($C$20*H20) -> 2,198,000 | K21: =(L21/C21)/52 -> 173.71 | L21: =SUM(L11:L20) -> 126,464.00 | AE21: 2B3PF | AH21: Maintenance cost per unit per annum | AK21: =+'Project Information'!H33 -> £768
AE22: 2B3PH | AH22: MRP cost per unit per annum | AK22: =IF(C21=0,0,+(AK16*(Summary!D23+Summary!D24)/Summary!E16)*-1) -> £742
AE23: 2B3PW | AH23: Increases per annum - rents | AK23: =+'Social Rent'!AO23 -> 3.00%
AE24: 2B4PB | AH24: - management | AK24: 3.00%
AE25: 2B4PF | AH25: - maintenance | AK25: 3.00% | AN25: =AD15 -> 0 | AO25: =#REF! -> 
AE26: 2B4PH | AH26: - building fund | AK26: 3.00%
AE27: 2B4PW | AH27: Discount Period in Years | AK27: 60
AE28: 3B3PH | AH28: Discount Rate | AK28: 6.00% | AT28: Gross rent | AU28: £ | AW28: =$AH39 -> 126,464 | AX28: =$AH40 -> 130,258 | AY28: =$AH41 -> 134,166 | AZ28: =$AH42 -> 138,191 | BA28: =$AH43 -> 142,336 | BB28: =$AH44 -> 146,606 | BC28: =$AH45 -> 151,005 | BD28: =$AH46 -> 155,535 | BE28: =$AH47 -> 160,201 | BF28: =$AH48 -> 165,007 | BG28: =$AH49 -> 169,957 | BH28: =$AH50 -> 175,056 | BI28: =$AH51 -> 180,307 | BJ28: =$AH52 -> 185,717 | BK28: =$AH53 -> 191,288 | BL28: =$AH54 -> 197,027 | BM28: =$AH55 -> 202,938 | BN28: =$AH56 -> 209,026 | BO28: =$AH57 -> 215,296 | BP28: =$AH58 -> 221,755 | BQ28: =$AH59 -> 228,408 | BR28: =$AH60 -> 235,260 | BS28: =$AH61 -> 242,318 | BT28: =$AH62 -> 249,588 | BU28: =$AH63 -> 257,075 | BV28: =$AH64 -> 264,788 | BW28: =$AH65 -> 272,731 | BX28: =$AH66 -> 280,913 | BY28: =$AH67 -> 289,340 | BZ28: =$AH68 -> 298,021 | CA28: =$AH69 -> 306,961 | CB28: =$AH70 -> 316,170 | CC28: =$AH71 -> 325,655 | CD28: =$AH72 -> 335,425 | CE28: =$AH73 -> 345,488 | CF28: =$AH74 -> 355,852 | CG28: =$AH75 -> 366,528 | CH28: =$AH76 -> 377,524 | CI28: =$AH77 -> 388,849 | CJ28: =$AH78 -> 400,515 | CK28: =$AH79 -> 412,530 | CL28: =$AH80 -> 424,906 | CM28: =$AH81 -> 437,653 | CN28: =$AH82 -> 450,783 | CO28: =$AH83 -> 464,307 | CP28: =$AH84 -> 478,236 | CQ28: =$AH85 -> 492,583 | CR28: =$AH86 -> 507,360 | CS28: =$AH87 -> 522,581 | CT28: =$AH88 -> 538,259
AE29: 3B3PS | AT29: Voids | AW29: =AI39 -> (3,794) | AX29: =$AI40 -> (3,908) | AY29: =$AI41 -> (4,025) | AZ29: =$AI42 -> (4,146) | BA29: =$AI43 -> (4,270) | BB29: =$AI44 -> (4,398) | BC29: =$AI45 -> (4,530) | BD29: =$AI46 -> (4,666) | BE29: =$AI47 -> (4,806) | BF29: =$AI48 -> (4,950) | BG29: =$AI49 -> (5,099) | BH29: =$AI50 -> (5,252) | BI29: =$AI51 -> (5,409) | BJ29: =$AI52 -> (5,571) | BK29: =$AI53 -> (5,739) | BL29: =$AI54 -> (5,911) | BM29: =$AI55 -> (6,088) | BN29: =$AI56 -> (6,271) | BO29: =$AI57 -> (6,459) | BP29: =$AI58 -> (6,653) | BQ29: =$AI59 -> (6,852) | BR29: =$AI60 -> (7,058) | BS29: =$AI61 -> (7,270) | BT29: =$AI62 -> (7,488) | BU29: =$AI63 -> (7,712) | BV29: =$AI64 -> (7,944) | BW29: =$AI65 -> (8,182) | BX29: =$AI66 -> (8,427) | BY29: =$AI67 -> (8,680) | BZ29: =$AI68 -> (8,941) | CA29: =$AI69 -> (9,209) | CB29: =$AI70 -> (9,485) | CC29: =$AI71 -> (9,770) | CD29: =$AI72 -> (10,063) | CE29: =$AI73 -> (10,365) | CF29: =$AI74 -> (10,676) | CG29: =$AI75 -> (10,996) | CH29: =$AI76 -> (11,326) | CI29: =$AI77 -> (11,665) | CJ29: =$AI78 -> (12,015) | CK29: =$AI79 -> (12,376) | CL29: =$AI80 -> (12,747) | CM29: =$AI81 -> (13,130) | CN29: =$AI82 -> (13,523) | CO29: =$AI83 -> (13,929) | CP29: =$AI84 -> (14,347) | CQ29: =$AI85 -> (14,777) | CR29: =$AI86 -> (15,221) | CS29: =$AI87 -> (15,677) | CT29: =$AI88 -> (16,148)
AE30: 3B4PA | AO30: First year | AT30: Manag | AW30: =AJ39 -> (5,936) | AX30: =$AJ40 -> (6,114) | AY30: =$AJ41 -> (6,297) | AZ30: =$AJ42 -> (6,486) | BA30: =$AJ43 -> (6,681) | BB30: =$AJ44 -> (6,881) | BC30: =$AJ45 -> (7,087) | BD30: =$AJ46 -> (7,300) | BE30: =$AJ47 -> (7,519) | BF30: =$AJ48 -> (7,745) | BG30: =$AJ49 -> (7,977) | BH30: =$AJ50 -> (8,216) | BI30: =$AJ51 -> (8,462) | BJ30: =$AJ52 -> (8,716) | BK30: =$AJ53 -> (8,977) | BL30: =$AJ54 -> (9,246) | BM30: =$AJ55 -> (9,523) | BN30: =$AJ56 -> (9,809) | BO30: =$AJ57 -> (10,103) | BP30: =$AJ58 -> (10,406) | BQ30: =$AJ59 -> (10,718) | BR30: =$AJ60 -> (11,040) | BS30: =$AJ61 -> (11,371) | BT30: =$AJ62 -> (11,712) | BU30: =$AJ63 -> (12,063) | BV30: =$AJ64 -> (12,425) | BW30: =$AJ65 -> (12,798) | BX30: =$AJ66 -> (13,182) | BY30: =$AJ67 -> (13,577) | BZ30: =$AJ68 -> (13,984) | CA30: =$AJ69 -> (14,404) | CB30: =$AJ70 -> (14,836) | CC30: =$AJ71 -> (15,281) | CD30: =$AJ72 -> (15,739) | CE30: =$AJ73 -> (16,211) | CF30: =$AJ74 -> (16,697) | CG30: =$AJ75 -> (17,198) | CH30: =$AJ76 -> (17,714) | CI30: =$AJ77 -> (18,245) | CJ30: =$AJ78 -> (18,792) | CK30: =$AJ79 -> (19,356) | CL30: =$AJ80 -> (19,937) | CM30: =$AJ81 -> (20,535) | CN30: =$AJ82 -> (21,151) | CO30: =$AJ83 -> (21,786) | CP30: =$AJ84 -> (22,440) | CQ30: =$AJ85 -> (23,113) | CR30: =$AJ86 -> (23,806) | CS30: =$AJ87 -> (24,520) | CT30: =$AJ88 -> (25,256)
AE31: 3B4PF | AP31: NPV | AT31: Maint | AW31: =AK39 -> (10,752) | AX31: =$AK40 -> (11,075) | AY31: =$AK41 -> (11,407) | AZ31: =$AK42 -> (11,749) | BA31: =$AK43 -> (12,101) | BB31: =$AK44 -> (12,464) | BC31: =$AK45 -> (12,838) | BD31: =$AK46 -> (13,223) | BE31: =$AK47 -> (13,620) | BF31: =$AK48 -> (14,029) | BG31: =$AK49 -> (14,450) | BH31: =$AK50 -> (14,884) | BI31: =$AK51 -> (15,331) | BJ31: =$AK52 -> (15,791) | BK31: =$AK53 -> (16,265) | BL31: =$AK54 -> (16,753) | BM31: =$AK55 -> (17,256) | BN31: =$AK56 -> (17,774) | BO31: =$AK57 -> (18,307) | BP31: =$AK58 -> (18,856) | BQ31: =$AK59 -> (19,422) | BR31: =$AK60 -> (20,005) | BS31: =$AK61 -> (20,605) | BT31: =$AK62 -> (21,223) | BU31: =$AK63 -> (21,860) | BV31: =$AK64 -> (22,516) | BW31: =$AK65 -> (23,191) | BX31: =$AK66 -> (23,887) | BY31: =$AK67 -> (24,604) | BZ31: =$AK68 -> (25,342) | CA31: =$AK69 -> (26,102) | CB31: =$AK70 -> (26,885) | CC31: =$AK71 -> (27,692) | CD31: =$AK72 -> (28,523) | CE31: =$AK73 -> (29,379) | CF31: =$AK74 -> (30,260) | CG31: =$AK75 -> (31,168) | CH31: =$AK76 -> (32,103) | CI31: =$AK77 -> (33,066) | CJ31: =$AK78 -> (34,058) | CK31: =$AK79 -> (35,080) | CL31: =$AK80 -> (36,132) | CM31: =$AK81 -> (37,216) | CN31: =$AK82 -> (38,332) | CO31: =$AK83 -> (39,482) | CP31: =$AK84 -> (40,666) | CQ31: =$AK85 -> (41,886) | CR31: =$AK86 -> (43,143) | CS31: =$AK87 -> (44,437) | CT31: =$AK88 -> (45,770)
AE32: 3B4PB | AP32: =IF(AK17=0,0,AP99) -> 2,245,113 | AT32: MRP | AW32: =IF($AK$17=0,0,AL39) -> 0 | AX32: =IF($AK$17=0,0,$AL40) -> 0 | AY32: =IF($AK$17=0,0,$AL41) -> 0 | AZ32: =IF($AK$17=0,0,$AL42) -> (7,909) | BA32: =IF($AK$17=0,0,$AL43) -> (7,909) | BB32: =IF($AK$17=0,0,$AL44) -> (7,909) | BC32: =IF($AK$17=0,0,$AL45) -> (9,392) | BD32: =IF($AK$17=0,0,$AL46) -> (9,392) | BE32: =IF($AK$17=0,0,$AL47) -> (9,392) | BF32: =IF($AK$17=0,0,$AL48) -> (11,369) | BG32: =IF($AK$17=0,0,$AL49) -> (11,369) | BH32: =IF($AK$17=0,0,$AL50) -> (11,369) | BI32: =IF($AK$17=0,0,$AL51) -> (13,841) | BJ32: =IF($AK$17=0,0,$AL52) -> (13,841) | BK32: =IF($AK$17=0,0,$AL53) -> (13,841) | BL32: =IF($AK$17=0,0,$AL54) -> (16,313) | BM32: =IF($AK$17=0,0,$AL55) -> (16,313) | BN32: =IF($AK$17=0,0,$AL56) -> (16,313) | BO32: =IF($AK$17=0,0,$AL57) -> (19,773) | BP32: =IF($AK$17=0,0,$AL58) -> (19,773) | BQ32: =IF($AK$17=0,0,$AL59) -> (19,773) | BR32: =IF($AK$17=0,0,$AL60) -> (23,727) | BS32: =IF($AK$17=0,0,$AL61) -> (23,727) | BT32: =IF($AK$17=0,0,$AL62) -> (23,727) | BU32: =IF($AK$17=0,0,$AL63) -> (28,176) | BV32: =IF($AK$17=0,0,$AL64) -> (28,176) | BW32: =IF($AK$17=0,0,$AL65) -> (28,176) | BX32: =IF($AK$17=0,0,$AL66) -> (34,108) | BY32: =IF($AK$17=0,0,$AL67) -> (34,108) | BZ32: =IF($AK$17=0,0,$AL68) -> (34,602) | CA32: =IF($AK$17=0,0,$AL69) -> (54,544) | CB32: =IF($AK$17=0,0,$AL70) -> (56,180) | CC32: =IF($AK$17=0,0,$AL71) -> (57,866) | CD32: =IF($AK$17=0,0,$AL72) -> (59,602) | CE32: =IF($AK$17=0,0,$AL73) -> (61,390) | CF32: =IF($AK$17=0,0,$AL74) -> (63,231) | CG32: =IF($AK$17=0,0,$AL75) -> (65,128) | CH32: =IF($AK$17=0,0,$AL76) -> (67,082) | CI32: =IF($AK$17=0,0,$AL77) -> (69,095) | CJ32: =IF($AK$17=0,0,$AL78) -> (71,168) | CK32: =IF($AK$17=0,0,$AL79) -> (73,303) | CL32: =IF($AK$17=0,0,$AL80) -> (75,502) | CM32: =IF($AK$17=0,0,$AL81) -> (77,767) | CN32: =IF($AK$17=0,0,$AL82) -> (80,100) | CO32: =IF($AK$17=0,0,$AL83) -> (82,503) | CP32: =IF($AK$17=0,0,$AL84) -> (84,978) | CQ32: =IF($AK$17=0,0,$AL85) -> (87,527) | CR32: =IF($AK$17=0,0,$AL86) -> (90,153) | CS32: =IF($AK$17=0,0,$AL87) -> (92,858) | CT32: =IF($AK$17=0,0,$AL88) -> (95,643)
AE33: 3B4PH
AE34: 3B4PW
AE35: 3B5PA | AH35: =AK23 -> 3.00% | AI35: =AK19 -> 3.00% | AJ35: =AK24 -> 3.00% | AK35: =AK25 -> 3.00% | AL35: =AK26 -> 3.00% | AN35: =AK29 -> 0.00% | AP35: Discounted
AE36: 3B5PB | AG36: Year | AH36: Gross rent | AI36: Voids | AJ36: Manag | AK36: Maint | AL36: MRP | AM36: Net rent | AN36: Financing | AO36: Surplus | AP36: Surplus
AE37: 3B5PF | AH37: £ | AI37: £ | AJ37: £ | AK37: £ | AL37: £ | AM37: £ | AN37: £ | AO37: £ | AP37: £
AE38: 3B5PH | AQ38: Residual Interest
AE39: 3B5PW | AF39: =LEFT(K9,4) -> 2023 | AG39: 1 | AH39: =L21 -> 126,464 | AI39: =ROUND(-AH39*$AK$19,0) -> (3,794) | AJ39: =ROUND(-AK17*AK20,0) -> (5,936) | AK39: =ROUND(-AK17*AK21,0) -> (10,752) | AL39: =$AJ$135*0 -> 0 | AM39: =SUM(AH39:AL39) -> 105,982 | AN39: =ROUND(-AK15*AK17*AK30/1000,0) -> 0 | AO39: =SUM(AM39:AN39) -> 105,982 | AP39: =AM39*(1/((1+$AK$28)^(AG39-0.5))) -> 102,939 | AQ39: =AP39 -> 102,939
AE40: 3B6PB | AF40: =+AF39+1 -> 2024 | AG40: =AG39+1 -> 2 | AH40: =+AH39*(1+$AK$23) -> 130,258 | AI40: (3,908) | AJ40: =IF(AG40>$AK$27,0,ROUND(AJ39*(1+$AK$24),0)) -> (6,114) | AK40: =IF(AG40>$AK$27,0,ROUND(AK39*(1+$AK$25),0)) -> (11,075) | AL40: =$AL$135*0 -> 0 | AM40: 109,161 | AN40: =IF(AG40>$H$24,0,ROUND(AN39*(1+$P$32),0)) -> 0 | AO40: 109,161 | AP40: 100,025 | AQ40: =AP40 -> 100,025
AE41: 3B6PH | AF41: =+AF40+1 -> 2025 | AG41: 3 | AH41: =+AH40*(1+$AK$23) -> 134,166 | AI41: (4,025) | AJ41: (6,297) | AK41: (11,407) | AL41: =$AL$135*0 -> 0 | AM41: 112,437 | AN41: 0 | AO41: 112,437 | AP41: 97,195 | AQ41: 97,195
AE42: 4B4PS | AF42: 2026 | AG42: 4 | AH42: 138,191 | AI42: (4,146) | AJ42: (6,486) | AK42: (11,749) | AL42: =$AL$135*0.016 -> (7,909) | AM42: 107,900 | AN42: 0 | AO42: 107,900 | AP42: 87,994 | AQ42: 87,994
AE43: 4B6PA | AF43: 2027 | AG43: 5 | AH43: 142,336 | AI43: (4,270) | AJ43: (6,681) | AK43: (12,101) | AL43: =$AL$135*0.016 -> (7,909) | AM43: 111,375 | AN43: 0 | AO43: 111,375 | AP43: 85,686 | AQ43: 85,686
AE44: 4B6PH | AF44: 2028 | AG44: 6 | AH44: 146,606 | AI44: (4,398) | AJ44: (6,881) | AK44: (12,464) | AL44: =$AL$135*0.016 -> (7,909) | AM44: 114,954 | AN44: 0 | AO44: 114,954 | AP44: 83,434 | AQ44: 83,434
AE45: 4B7PA | AF45: 2029 | AG45: 7 | AH45: 151,005 | AI45: (4,530) | AJ45: (7,087) | AK45: (12,838) | AL45: =$AL$135*0.019 -> (9,392) | AM45: 117,158 | AN45: 0 | AO45: 117,158 | AP45: 80,220 | AQ45: 80,220
AE46: 4B7PB | AF46: 2030 | AG46: 8 | AH46: 155,535 | AI46: (4,666) | AJ46: (7,300) | AK46: (13,223) | AL46: =$AL$135*0.019 -> (9,392) | AM46: 120,954 | AN46: 0 | AO46: 120,954 | AP46: 78,131 | AQ46: 78,131
AE47: 4B7PH | AF47: 2031 | AG47: 9 | AH47: 160,201 | AI47: (4,806) | AJ47: (7,519) | AK47: (13,620) | AL47: =$AL$135*0.019 -> (9,392) | AM47: 124,864 | AN47: 0 | AO47: 124,864 | AP47: 76,092 | AQ47: 76,092
AE48: 4B7PW | AF48: 2032 | AG48: 10 | AH48: 165,007 | AI48: (4,950) | AJ48: (7,745) | AK48: (14,029) | AL48: =$AL$135*0.023 -> (11,369) | AM48: 126,913 | AN48: 0 | AO48: 126,913 | AP48: 72,963 | AQ48: 72,963
AE49: 4B8PH | AF49: 2033 | AG49: 11 | AH49: 169,957 | AI49: (5,099) | AJ49: (7,977) | AK49: (14,450) | AL49: =$AL$135*0.023 -> (11,369) | AM49: 131,062 | AN49: 0 | AO49: 131,062 | AP49: 71,083 | AQ49: 71,083
AE50: 4B8PW | AF50: 2034 | AG50: 12 | AH50: 175,056 | AI50: (5,252) | AJ50: (8,216) | AK50: (14,884) | AL50: =$AL$135*0.023 -> (11,369) | AM50: 135,334 | AN50: 0 | AO50: 135,334 | AP50: 69,245 | AQ50: 69,245
AE51: 5B10PH | AF51: 2035 | AG51: 13 | AH51: 180,307 | AI51: (5,409) | AJ51: (8,462) | AK51: (15,331) | AL51: =$AL$135*0.028 -> (13,841) | AM51: 137,264 | AN51: 0 | AO51: 137,264 | AP51: 66,257 | AQ51: 66,257
AF52: 2036 | AG52: 14 | AH52: 185,717 | AI52: (5,571) | AJ52: (8,716) | AK52: (15,791) | AL52: =$AL$135*0.028 -> (13,841) | AM52: 141,798 | AN52: 0 | AO52: 141,798 | AP52: 64,571 | AQ52: 64,571
AF53: 2037 | AG53: 15 | AH53: 191,288 | AI53: (5,739) | AJ53: (8,977) | AK53: (16,265) | AL53: =$AL$135*0.028 -> (13,841) | AM53: 146,466 | AN53: 0 | AO53: 146,466 | AP53: 62,922 | AQ53: 62,922
AF54: 2038 | AG54: 16 | AH54: 197,027 | AI54: (5,911) | AJ54: (9,246) | AK54: (16,753) | AL54: =$AL$135*0.033 -> (16,313) | AM54: 148,804 | AN54: 0 | AO54: 148,804 | AP54: 60,308 | AQ54: 60,308
AF55: 2039 | AG55: 17 | AH55: 202,938 | AI55: (6,088) | AJ55: (9,523) | AK55: (17,256) | AL55: =$AL$135*0.033 -> (16,313) | AM55: 153,758 | AN55: 0 | AO55: 153,758 | AP55: 58,788 | AQ55: 58,788
AF56: 2040 | AG56: 18 | AH56: 209,026 | AI56: (6,271) | AJ56: (9,809) | AK56: (17,774) | AL56: =$AL$135*0.033 -> (16,313) | AM56: 158,859 | AN56: 0 | AO56: 158,859 | AP56: 57,301 | AQ56: 57,301
AF57: 2041 | AG57: 19 | AH57: 215,296 | AI57: (6,459) | AJ57: (10,103) | AK57: (18,307) | AL57: =$AL$135*0.04 -> (19,773) | AM57: 160,655 | AN57: 0 | AO57: 160,655 | AP57: 54,668 | AQ57: 54,668
AF58: 2042 | AG58: 20 | AH58: 221,755 | AI58: (6,653) | AJ58: (10,406) | AK58: (18,856) | AL58: =$AL$135*0.04 -> (19,773) | AM58: 166,068 | AN58: 0 | AO58: 166,068 | AP58: 53,311 | AQ58: 53,311
AF59: 2043 | AG59: 21 | AH59: 228,408 | AI59: (6,852) | AJ59: (10,718) | AK59: (19,422) | AL59: =$AL$135*0.04 -> (19,773) | AM59: 171,643 | AN59: 0 | AO59: 171,643 | AP59: 51,982 | AQ59: 51,982
AF60: 2044 | AG60: 22 | AH60: 235,260 | AI60: (7,058) | AJ60: (11,040) | AK60: (20,005) | AL60: =$AL$135*0.048 -> (23,727) | AM60: 173,430 | AN60: 0 | AO60: 173,430 | AP60: 49,550 | AQ60: 49,550
AF61: 2045 | AG61: 23 | AH61: 242,318 | AI61: (7,270) | AJ61: (11,371) | AK61: (20,605) | AL61: =$AL$135*0.048 -> (23,727) | AM61: 179,345 | AN61: 0 | AO61: 179,345 | AP61: 48,340 | AQ61: 48,340
AF62: 2046 | AG62: 24 | AH62: 249,588 | AI62: (7,488) | AJ62: (11,712) | AK62: (21,223) | AL62: =$AL$135*0.048 -> (23,727) | AM62: 185,437 | AN62: 0 | AO62: 185,437 | AP62: 47,153 | AQ62: 47,153
AF63: 2047 | AG63: 25 | AH63: 257,075 | AI63: (7,712) | AJ63: (12,063) | AK63: (21,860) | AL63: =$AL$135*0.057 -> (28,176) | AM63: 187,264 | AN63: 0 | AO63: 187,264 | AP63: 44,922 | AQ63: 44,922
AF64: 2048 | AG64: 26 | AH64: 264,788 | AI64: (7,944) | AJ64: (12,425) | AK64: (22,516) | AL64: =$AL$135*0.057 -> (28,176) | AM64: 193,726 | AN64: 0 | AO64: 193,726 | AP64: 43,842 | AQ64: 43,842
AF65: 2049 | AG65: 27 | AH65: 272,731 | AI65: (8,182) | AJ65: (12,798) | AK65: (23,191) | AL65: =$AL$135*0.057 -> (28,176) | AM65: 200,384 | AN65: 0 | AO65: 200,384 | AP65: 42,782 | AQ65: 42,782
AF66: 2050 | AG66: 28 | AH66: 280,913 | AI66: (8,427) | AJ66: (13,182) | AK66: (23,887) | AL66: =$AL$135*0.069 -> (34,108) | AM66: 201,309 | AN66: 0 | AO66: 201,309 | AP66: 40,546 | AQ66: 40,546
AF67: 2051 | AG67: 29 | AH67: 289,340 | AI67: (8,680) | AJ67: (13,577) | AK67: (24,604) | AL67: =$AL$135*0.069 -> (34,108) | AM67: 208,371 | AN67: 0 | AO67: 208,371 | AP67: 39,593 | AQ67: 39,593
AF68: 2052 | AG68: 30 | AH68: 298,021 | AI68: (8,941) | AJ68: (13,984) | AK68: (25,342) | AL68: =$AL$135*0.07 -> (34,602) | AM68: 215,151 | AN68: 0 | AO68: 215,151 | AP68: =AO68*(1/((1+$AK$28)^(AG68-0.5))) -> 38,567 | AQ68: =AM68*(1/((1+$AK$28)^(AG68-0.5))) -> 38,567 | AR68: =SUM(AQ39:AQ68) -> 1,930,413
AF69: 2053 | AG69: 31 | AH69: 306,961 | AI69: (9,209) | AJ69: (14,404) | AK69: (26,102) | AL69: =-3896*AK17 -> (54,544) | AM69: 202,702 | AN69: 0 | AO69: =SUM(AM69:AN69)*0.5*0.9 -> 91,216 | AP69: 15,426 | AQ69: =AP69+(AP68-AQ68) -> 15,426
AF70: 2054 | AG70: 32 | AH70: 316,170 | AI70: (9,485) | AJ70: (14,836) | AK70: (26,885) | AL70: =AL69*1.03 -> (56,180) | AM70: 208,784 | AN70: 0 | AO70: 93,953 | AP70: 14,989 | AQ70: =AP70 -> 14,989
AF71: 2055 | AG71: 33 | AH71: 325,655 | AI71: (9,770) | AJ71: (15,281) | AK71: (27,692) | AL71: (57,866) | AM71: 215,047 | AN71: 0 | AO71: 96,771 | AP71: 14,565 | AQ71: =AP71 -> 14,565
AF72: 2056 | AG72: 34 | AH72: 335,425 | AI72: (10,063) | AJ72: (15,739) | AK72: (28,523) | AL72: (59,602) | AM72: 221,498 | AN72: 0 | AO72: 99,674 | AP72: 14,153 | AQ72: 14,153
AF73: 2057 | AG73: 35 | AH73: 345,488 | AI73: (10,365) | AJ73: (16,211) | AK73: (29,379) | AL73: (61,390) | AM73: 228,143 | AN73: 0 | AO73: 102,664 | AP73: 13,752 | AQ73: 13,752
AF74: 2058 | AG74: 36 | AH74: 355,852 | AI74: (10,676) | AJ74: (16,697) | AK74: (30,260) | AL74: (63,231) | AM74: 234,988 | AN74: 0 | AO74: 105,745 | AP74: 13,363 | AQ74: 13,363
AF75: 2059 | AG75: 37 | AH75: 366,528 | AI75: (10,996) | AJ75: (17,198) | AK75: (31,168) | AL75: (65,128) | AM75: 242,037 | AN75: 0 | AO75: 108,917 | AP75: 12,985 | AQ75: 12,985
AF76: 2060 | AG76: 38 | AH76: 377,524 | AI76: (11,326) | AJ76: (17,714) | AK76: (32,103) | AL76: (67,082) | AM76: 249,298 | AN76: 0 | AO76: 112,184 | AP76: 12,617 | AQ76: 12,617
AF77: 2061 | AG77: 39 | AH77: 388,849 | AI77: (11,665) | AJ77: (18,245) | AK77: (33,066) | AL77: (69,095) | AM77: 256,779 | AN77: 0 | AO77: 115,550 | AP77: 12,260 | AQ77: 12,260
AF78: 2062 | AG78: 40 | AH78: 400,515 | AI78: (12,015) | AJ78: (18,792) | AK78: (34,058) | AL78: (71,168) | AM78: 264,482 | AN78: 0 | AO78: 119,017 | AP78: 11,913 | AQ78: 11,913 | AR78: =SUM(AQ39:AQ78) -> 2,066,435
AF79: 2063 | AG79: 41 | AH79: 412,530 | AI79: (12,376) | AJ79: (19,356) | AK79: (35,080) | AL79: (73,303) | AM79: 272,416 | AN79: 0 | AO79: 122,587 | AP79: 11,576 | AQ79: 11,576
AF80: 2064 | AG80: 42 | AH80: 424,906 | AI80: (12,747) | AJ80: (19,937) | AK80: (36,132) | AL80: (75,502) | AM80: 280,589 | AN80: 0 | AO80: 126,265 | AP80: 11,248 | AQ80: 11,248
AF81: 2065 | AG81: 43 | AH81: 437,653 | AI81: (13,130) | AJ81: (20,535) | AK81: (37,216) | AL81: (77,767) | AM81: 289,006 | AN81: 0 | AO81: 130,053 | AP81: 10,930 | AQ81: 10,930
AF82: 2066 | AG82: 44 | AH82: 450,783 | AI82: (13,523) | AJ82: (21,151) | AK82: (38,332) | AL82: (80,100) | AM82: 297,677 | AN82: 0 | AO82: 133,955 | AP82: 10,621 | AQ82: 10,621
AF83: 2067 | AG83: 45 | AH83: 464,307 | AI83: (13,929) | AJ83: (21,786) | AK83: (39,482) | AL83: (82,503) | AM83: 306,607 | AN83: 0 | AO83: 137,973 | AP83: 10,320 | AQ83: 10,320
AF84: 2068 | AG84: 46 | AH84: 478,236 | AI84: (14,347) | AJ84: (22,440) | AK84: (40,666) | AL84: (84,978) | AM84: 315,805 | AN84: 0 | AO84: 142,112 | AP84: 10,028 | AQ84: 10,028
AF85: 2069 | AG85: 47 | AH85: 492,583 | AI85: (14,777) | AJ85: (23,113) | AK85: (41,886) | AL85: (87,527) | AM85: 325,280 | AN85: 0 | AO85: 146,376 | AP85: 9,744 | AQ85: 9,744
AF86: 2070 | AG86: 48 | AH86: 507,360 | AI86: (15,221) | AJ86: (23,806) | AK86: (43,143) | AL86: (90,153) | AM86: 335,037 | AN86: 0 | AO86: 150,767 | AP86: 9,468 | AQ86: 9,468
AF87: 2071 | AG87: 49 | AH87: 522,581 | AI87: (15,677) | AJ87: (24,520) | AK87: (44,437) | AL87: (92,858) | AM87: 345,090 | AN87: 0 | AO87: 155,290 | AP87: 9,200 | AQ87: 9,200
AF88: 2072 | AG88: 50 | AH88: 538,259 | AI88: (16,148) | AJ88: (25,256) | AK88: (45,770) | AL88: (95,643) | AM88: 355,441 | AN88: 0 | AO88: 159,949 | AP88: 8,940 | AQ88: 8,940 | AR88: =SUM(AQ39:AQ88) -> 2,168,511
AF89: 2073 | AG89: 51 | AH89: 554,406 | AI89: (16,632) | AJ89: (26,014) | AK89: (47,143) | AL89: (98,513) | AM89: 366,105 | AN89: 0 | AO89: 164,747 | AP89: 8,687 | AQ89: 8,687
AF90: 2074 | AG90: 52 | AH90: 571,038 | AI90: (17,131) | AJ90: (26,794) | AK90: (48,557) | AL90: (101,468) | AM90: 377,089 | AN90: 0 | AO90: 169,690 | AP90: 8,441 | AQ90: 8,441
AF91: 2075 | AG91: 53 | AH91: 588,170 | AI91: (17,645) | AJ91: (27,598) | AK91: (50,014) | AL91: (104,512) | AM91: 388,401 | AN91: 0 | AO91: 174,780 | AP91: 8,202 | AQ91: 8,202
AF92: 2076 | AG92: 54 | AH92: 605,815 | AI92: (18,174) | AJ92: (28,426) | AK92: (51,514) | AL92: (107,647) | AM92: 400,053 | AN92: 0 | AO92: 180,024 | AP92: 7,970 | AQ92: 7,970
AF93: 2077 | AG93: 55 | AH93: 623,989 | AI93: (18,720) | AJ93: (29,279) | AK93: (53,059) | AL93: (110,877) | AM93: 412,054 | AN93: 0 | AO93: 185,424 | AP93: 7,745 | AQ93: 7,745
AF94: 2078 | AG94: 56 | AH94: 642,709 | AI94: (19,281) | AJ94: (30,157) | AK94: (54,651) | AL94: (114,203) | AM94: 424,417 | AN94: 0 | AO94: 190,988 | AP94: 7,525 | AQ94: 7,525
AF95: 2079 | AG95: 57 | AH95: 661,990 | AI95: (19,860) | AJ95: (31,062) | AK95: (56,291) | AL95: (117,629) | AM95: 437,148 | AN95: 0 | AO95: 196,717 | AP95: 7,312 | AQ95: 7,312
AF96: 2080 | AG96: 58 | AH96: 681,850 | AI96: (20,455) | AJ96: (31,994) | AK96: (57,980) | AL96: (121,158) | AM96: 450,263 | AN96: 0 | AO96: 202,618 | AP96: 7,105 | AQ96: 7,105
AF97: 2081 | AG97: 59 | AH97: 702,305 | AI97: (21,069) | AJ97: (32,954) | AK97: (59,719) | AL97: (124,793) | AM97: 463,771 | AN97: 0 | AO97: 208,697 | AP97: 6,904 | AQ97: 6,904
AF98: 2082 | AG98: 60 | AH98: 723,374 | AI98: (21,701) | AJ98: (33,943) | AK98: (61,511) | AL98: (128,537) | AM98: 477,683 | AN98: 0 | AO98: 214,957 | AP98: 6,709 | AQ98: 6,709 | AR98: =SUM(AQ69:AQ98) -> 314,700
AH99: =SUM(AH39:AH98) -> 20,620,390 | AI99: (618,612) | AJ99: (967,589) | AK99: (1,753,399) | AL99: (3,089,274) | AM99: 14,191,516 | AN99: 0 | AO99: 8,887,487 | AP99: 2,245,113
AL104: MRP | AP104: VP
AL105: =-AK17*AK22 -> (10,390) | AP105: =H21 -> 2,198,000
AL106: =IF(AG40>$AK$27,0,ROUND(AL105*(1+$AK$26),0)) -> (10,702) | AP106: =AP105*1.03 -> 2,263,940
AL107: (11,023) | AP107: =AP106*1.03 -> 2,331,858
AL108: (11,354) | AP108: 2,401,814
AL109: (11,695) | AP109: 2,473,868
AL110: (12,046) | AP110: 2,548,084
AL111: (12,407) | AP111: 2,624,527
AL112: (12,779) | AP112: 2,703,263
AL113: (13,162) | AP113: 2,784,361
AL114: (13,557) | AP114: 2,867,891
AL115: (13,964) | AP115: 2,953,928
AL116: (14,383) | AP116: 3,042,546
AL117: (14,814) | AP117: 3,133,822
AL118: (15,258) | AP118: 3,227,837
AL119: (15,716) | AP119: 3,324,672
AL120: (16,187) | AP120: 3,424,412
AL121: (16,673) | AP121: 3,527,145
AL122: (17,173) | AP122: 3,632,959
AL123: (17,688) | AP123: 3,741,948
AL124: (18,219) | AP124: 3,854,206
AL125: (18,766) | AP125: 3,969,832
AL126: (19,329) | AP126: 4,088,927
AL127: (19,909) | AP127: 4,211,595
AL128: (20,506) | AP128: 4,337,943
AL129: (21,121) | AP129: 4,468,081
AL130: (21,755) | AP130: 4,602,124
AL131: (22,408) | AP131: 4,740,188
AL132: (23,080) | AP132: 4,882,393
AL133: (23,772) | AP133: 5,028,865
AL134: (24,485) | AP134: 5,179,731
AL135: =SUM(AL105:AL134) -> (494,321)
A400: 2021-06-29

Sheet Shared Ownership
B1: Shared Ownership | DA1: =$AG$11 -> 0 | DB1: =$AG$12 -> 0.00 | DC1: =$AG$13 -> 0.00 | DD1: =$AG$14 -> 0.00 | DE1: =$AG$15 -> 0.00 | DF1: =$AG$16 -> 0.00 | DG1: =$AG$17 -> 0.00 | DH1: =$AG$18 -> 0.00 | DI1: =$AG$19 -> 0.00 | DJ1: =$AG$20 -> 0.00 | DK1: =$AG$21 -> 0.00 | DL1: =$AG$22 -> 0.00 | DM1: =$AG$23 -> 0.00 | DN1: =$AG$24 -> 0.00 | DO1: =$AG$25 -> 0.00 | DP1: =$AG$26 -> 0.00 | DQ1: =$AG$27 -> 0.00 | DR1: =$AG$28 -> 0.00 | DS1: =$AG$29 -> 0.00 | DT1: =$AG$30 -> 0.00 | DU1: =$AG$31 -> 0.00 | DV1: =$AG$32 -> 0.00 | DW1: =$AG$33 -> 0.00 | DX1: =$AG$34 -> 0.00 | DY1: =$AG$35 -> 0.00 | DZ1: =$AG$36 -> 0.00 | EA1: =$AG$37 -> 0.00 | EB1: =$AG$38 -> 0.00 | EC1: =$AG$39 -> 0.00 | ED1: =$AG$40 -> 0.00 | EE1: =$AG$41 -> 0.00 | EF1: =$AG$42 -> 0.00 | EG1: =$AG$43 -> 0.00 | EH1: =$AG$44 -> 0.00 | EI1: =$AG$45 -> 0.00 | EJ1: =$AG$46 -> 0.00 | EK1: =$AG$47 -> 0.00 | EL1: =$AG$48 -> 0.00 | EM1: =$AG$49 -> 0.00 | EN1: =$AG$50 -> 0.00 | EO1: =$AG$51 -> 0.00 | EP1: =$AG$52 -> 0.00 | EQ1: =$AG$53 -> 0.00 | ER1: =$AG$54 -> 0.00 | ES1: =$AG$55 -> 0.00 | ET1: =$AG$56 -> 0.00 | EU1: =$AG$57 -> 0.00 | EV1: =$AG$58 -> 0.00 | EW1: =$AG$59 -> 0.00 | EX1: =$AG$60 -> 0.00
B3: KEY
B4: Manual Input (If applicable)
B5: Formula with Input Capability | AQ5: =YEAR(AQ9) -> 2022 | AR5: =YEAR(AR9) -> 2022 | AS5: 2022 | AT5: 2022 | AU5: 2022 | AV5: 2022 | AW5: 2022 | AX5: 2022 | AY5: 2022 | AZ5: 2023 | BA5: 2023 | BB5: 2023 | BC5: 2023 | BD5: 2023 | BE5: 2023 | BF5: 2023 | BG5: 2023 | BH5: 2023 | BI5: 2023 | BJ5: 2023 | BK5: 2023 | BL5: 2024 | BM5: 2024 | BN5: 2024 | BO5: 2024 | BP5: 2024 | BQ5: 2024 | BR5: 2024 | BS5: 2024 | BT5: 2024 | BU5: 2024 | BV5: 2024 | BW5: 2024 | BX5: 2025 | BY5: 2025 | BZ5: 2025
B6: ** denotes compulsory field
B8: Unit Type | C8: No. of Units | D8: No. of Beds per Unit | E8: No. of Persons per Unit | F8: Property | G8: Individual Floor Area | H8: Full Value | I8: Equity Sold | J8: Receipt | K8: Date of Sale | L8: Rent cap as % of unsold equity | M8: Maximum Rents receivable | N8: Weekly Unit Rent for | O8: Total Rent p.a. | P8: Total Sale Receipt | AB8: Cost of Development | AC8: First Tranch | AE8: Property Code | AF8: Rental Income | AG8: ='Social Rent'!AO28 -> 6.00% | AQ8: =MONTH(AQ9) -> 4 | AR8: =MONTH(AR9) -> 5 | AS8: 6 | AT8: 7 | AU8: 8 | AV8: 9 | AW8: 10 | AX8: 11 | AY8: 12 | AZ8: 1 | BA8: 2 | BB8: 3 | BC8: 4 | BD8: 5 | BE8: 6 | BF8: 7 | BG8: 8 | BH8: 9 | BI8: 10 | BJ8: 11 | BK8: 12 | BL8: 1 | BM8: 2 | BN8: 3 | BO8: 4 | BP8: 5 | BQ8: 6 | BR8: 7 | BS8: 8 | BT8: 9 | BU8: 10 | BV8: 11 | BW8: 12 | BX8: 1 | BY8: 2 | BZ8: 3
G9: (sq. m.) | H9: (individual unit) | I9: % | N9: ='Project Information'!H16 -> 2023/24 | AF9: Year | AG9: Gross Rent | AI9: NPV | AL9: Property Type | AM9: New Build/Rehab | AQ9: =+'Project Information'!C25 -> 2022-04-01 | AR9: =+AQ9+30 -> 2022-05-01 | AS9: =+AR9+31 -> 2022-06-01 | AT9: =+AS9+31 -> 2022-07-02 | AU9: =+AT9+31 -> 2022-08-02 | AV9: =+AU9+30 -> 2022-09-01 | AW9: =+AV9+31 -> 2022-10-02 | AX9: =+AW9+30 -> 2022-11-01 | AY9: =+AX9+31 -> 2022-12-02 | AZ9: =+AY9+31 -> 2023-01-02 | BA9: =+AZ9+31 -> 2023-02-02 | BB9: =+BA9+28 -> 2023-03-02 | BC9: =+BB9+31 -> 2023-04-02 | BD9: =+BC9+30 -> 2023-05-02 | BE9: =+BD9+31 -> 2023-06-02 | BF9: =+BE9+31 -> 2023-07-03 | BG9: =+BF9+31 -> 2023-08-03 | BH9: =+BG9+30 -> 2023-09-02 | BI9: =+BH9+31 -> 2023-10-03 | BJ9: =+BI9+30 -> 2023-11-02 | BK9: =+BJ9+31 -> 2023-12-03 | BL9: =+BK9+31 -> 2024-01-03 | BM9: =+BL9+31 -> 2024-02-03 | BN9: =+BM9+28 -> 2024-03-02 | BO9: =+BN9+31 -> 2024-04-02 | BP9: =+BO9+30 -> 2024-05-02 | BQ9: =+BP9+31 -> 2024-06-02 | BR9: =+BQ9+31 -> 2024-07-03 | BS9: =+BR9+31 -> 2024-08-03 | BT9: =+BS9+30 -> 2024-09-02 | BU9: =+BT9+31 -> 2024-10-03 | BV9: =+BU9+30 -> 2024-11-02 | BW9: =+BV9+31 -> 2024-12-03 | BX9: =+BW9+31 -> 2025-01-03 | BY9: =+BX9+31 -> 2025-02-03 | BZ9: =+BY9+28 -> 2025-03-03
B10: ** | C10: ** | G10: ** | H10: ** | K10: ** | M10: **
D11: =LEFT(B11,1) ->  | E11: =IF(C11="",0,(IF(LEN(B11)=5,MID(B11,3,1),MID(B11,3,2)))) -> 0 | F11: =IF(AE11="H","House",IF(AE11="B","Bungalow",IF(AE11="F","Flat",IF(AE11="S","Shared",IF(AE11="T","Bedsit",IF(AE11="A","Wheelchair Flat",IF(AE11="W","Wheelchair",0))))))) -> 0 | I11: =+'Project Information'!H38 -> 50.00% | J11: =+H11*I11 -> 0 | K11: 2019-06-01 | L11: =+'Project Information'!H39 -> 2.75% | M11: 100.00% | N11: =ROUND((H11*L11*(M11-I11))/52,2) -> 0 | O11: =N11*C11*52 -> 0.00 | P11: =J11*C11 -> 0 | AB11: =IF(C11=0,0,(+C11*G11)/$G$21*$AB$21) -> 0.00 | AC11: =+AB11*I11 -> 0.00 | AE11: =RIGHT(B11,1) ->  | AF11: 1 | AG11: =O21 -> 0 | AI11: =AG11*(1/((1+$AG$8)^(AF11-0.5))) -> 0 | AL11: 0B0PS | AM11: NB - GDT | AQ11: =IF(AND(MONTH($K11)=$AQ$8,YEAR($K11)=$AQ$5),($J11*$C11),0) -> 0 | AR11: =IF(AND(MONTH($K11)=$AR$8,YEAR($K11)=$AR$5),($J11*$C11),0) -> 0 | AS11: =IF(AND(MONTH($K11)=$AS$8,YEAR($K11)=$AS$5),($J11*$C11),0) -> 0 | AT11: =IF(AND(MONTH($K11)=$AT$8,YEAR($K11)=$AT$5),($J11*$C11),0) -> 0 | AU11: =IF(AND(MONTH($K11)=$AU$8,YEAR($K11)=$AU$5),($J11*$C11),0) -> 0 | AV11: =IF(AND(MONTH($K11)=$AV$8,YEAR($K11)=$AV$5),($J11*$C11),0) -> 0 | AW11: =IF(AND(MONTH($K11)=$AW$8,YEAR($K11)=$AW$5),($J11*$C11),0) -> 0 | AX11: =IF(AND(MONTH($K11)=$AX$8,YEAR($K11)=$AX$5),($J11*$C11),0) -> 0 | AY11: =IF(AND(MONTH($K11)=$AY$8,YEAR($K11)=$AY$5),($J11*$C11),0) -> 0 | AZ11: =IF(AND(MONTH($K11)=$AZ$8,YEAR($K11)=$AZ$5),($J11*$C11),0) -> 0 | BA11: =IF(AND(MONTH($K11)=$BA$8,YEAR($K11)=$BA$5),($J11*$C11),0) -> 0 | BB11: =IF(AND(MONTH($K11)=$BB$8,YEAR($K11)=$BB$5),($J11*$C11),0) -> 0 | BC11: =IF(AND(MONTH($K11)=$BC$8,YEAR($K11)=$BC$5),($J11*$C11),0) -> 0 | BD11: =IF(AND(MONTH($K11)=$BD$8,YEAR($K11)=$BD$5),($J11*$C11),0) -> 0 | BE11: =IF(AND(MONTH($K11)=$BE$8,YEAR($K11)=$BE$5),($J11*$C11),0) -> 0 | BF11: =IF(AND(MONTH($K11)=$BF$8,YEAR($K11)=$BF$5),($J11*$C11),0) -> 0 | BG11: =IF(AND(MONTH($K11)=$BG$8,YEAR($K11)=$BG$5),($J11*$C11),0) -> 0 | BH11: =IF(AND(MONTH($K11)=$BH$8,YEAR($K11)=$BH$5),($J11*$C11),0) -> 0 | BI11: =IF(AND(MONTH($K11)=$BI$8,YEAR($K11)=$BI$5),($J11*$C11),0) -> 0 | BJ11: =IF(AND(MONTH($K11)=$BJ$8,YEAR($K11)=$BJ$5),($J11*$C11),0) -> 0 | BK11: =IF(AND(MONTH($K11)=$BK$8,YEAR($K11)=$BK$5),($J11*$C11),0) -> 0 | BL11: =IF(AND(MONTH($K11)=$BL$8,YEAR($K11)=$BL$5),($J11*$C11),0) -> 0 | BM11: =IF(AND(MONTH($K11)=$BM$8,YEAR($K11)=$BM$5),($J11*$C11),0) -> 0 | BN11: =IF(AND(MONTH($K11)=$BN$8,YEAR($K11)=$BN$5),($J11*$C11),0) -> 0 | BO11: =IF(AND(MONTH($K11)=$BO$8,YEAR($K11)=$BO$5),($J11*$C11),0) -> 0 | BP11: =IF(AND(MONTH($K11)=$BP$8,YEAR($K11)=$BP$5),($J11*$C11),0) -> 0 | BQ11: =IF(AND(MONTH($K11)=$BQ$8,YEAR($K11)=$BQ$5),($J11*$C11),0) -> 0 | BR11: =IF(AND(MONTH($K11)=$BR$8,YEAR($K11)=$BR$5),($J11*$C11),0) -> 0 | BS11: =IF(AND(MONTH($K11)=$BS$8,YEAR($K11)=$BS$5),($J11*$C11),0) -> 0 | BT11: =IF(AND(MONTH($K11)=$BT$8,YEAR($K11)=$BT$5),($J11*$C11),0) -> 0 | BU11: =IF(AND(MONTH($K11)=$BU$8,YEAR($K11)=$BU$5),($J11*$C11),0) -> 0 | BV11: =IF(AND(MONTH($K11)=$BV$8,YEAR($K11)=$BV$5),($J11*$C11),0) -> 0 | BW11: =IF(AND(MONTH($K11)=$BW$8,YEAR($K11)=$BW$5),($J11*$C11),0) -> 0 | BX11: =IF(AND(MONTH($K11)=$BX$8,YEAR($K11)=$BX$5),($J11*$C11),0) -> 0 | BY11: =IF(AND(MONTH($K11)=$BY$8,YEAR($K11)=$BY$5),($J11*$C11),0) -> 0 | BZ11: =IF(AND(MONTH($K11)=$BZ$8,YEAR($K11)=$BZ$5),($J11*$C11),0) -> 0
E12: 0 | F12: 0 | I12: =+I11 -> 50.00% | J12: =+H12*I12 -> 0 | K12: 2019-07-01 | L12: =+L11 -> 2.75% | M12: 100.00% | N12: 0 | O12: 0.00 | P12: 0 | AB12: =IF(C12=0,0,(+C12*G12)/$G$21*$AB$21) -> 0.00 | AC12: =+AB12*I12 -> 0.00 | AF12: 2 | AG12: =AG11*(1+'Social Rent'!$AO$23) -> 0.00 | AI12: =AG12*(1/((1+$AG$8)^(AF12-0.5))) -> 0 | AL12: 1B1PF | AM12: NB - non GDT | AQ12: 0 | AR12: 0 | AS12: 0 | AT12: 0 | AU12: 0 | AV12: 0 | AW12: 0 | AX12: 0 | AY12: 0 | AZ12: 0 | BA12: 0 | BB12: 0 | BC12: 0 | BD12: 0 | BE12: 0 | BF12: 0 | BG12: 0 | BH12: 0 | BI12: 0 | BJ12: 0 | BK12: 0 | BL12: 0 | BM12: 0 | BN12: 0 | BO12: 0 | BP12: 0 | BQ12: 0 | BR12: 0 | BS12: 0 | BT12: 0 | BU12: 0 | BV12: 0 | BW12: 0 | BX12: 0 | BY12: 0 | BZ12: 0
E13: 0 | F13: 0 | I13: =+I12 -> 50.00% | J13: 0 | L13: =+L12 -> 2.75% | M13: 100.00% | N13: 0 | O13: 0.00 | P13: 0 | AB13: 0.00 | AC13: =+AB13*I13 -> 0.00 | AF13: 3 | AG13: =AG12*(1+'Social Rent'!$AO$23) -> 0.00 | AI13: =AG13*(1/((1+$AG$8)^(AF13-0.5))) -> 0 | AL13: 1B1PT | AM13: RH | AQ13: 0 | AR13: 0 | AS13: 0 | AT13: 0 | AU13: 0 | AV13: 0 | AW13: 0 | AX13: 0 | AY13: 0 | AZ13: 0 | BA13: 0 | BB13: 0 | BC13: 0 | BD13: 0 | BE13: 0 | BF13: 0 | BG13: 0 | BH13: 0 | BI13: 0 | BJ13: 0 | BK13: 0 | BL13: 0 | BM13: 0 | BN13: 0 | BO13: 0 | BP13: 0 | BQ13: 0 | BR13: 0 | BS13: 0 | BT13: 0 | BU13: 0 | BV13: 0 | BW13: 0 | BX13: 0 | BY13: 0 | BZ13: 0
E14: 0 | F14: 0 | I14: 50.00% | J14: 0 | L14: 2.75% | M14: 100.00% | N14: 0 | O14: 0.00 | P14: 0 | AB14: 0.00 | AC14: 0.00 | AF14: 4 | AG14: =AG13*(1+'Social Rent'!$AO$23) -> 0.00 | AI14: =AG14*(1/((1+$AG$8)^(AF14-0.5))) -> 0 | AL14: 1B2PA | AQ14: 0 | AR14: 0 | AS14: 0 | AT14: 0 | AU14: 0 | AV14: 0 | AW14: 0 | AX14: 0 | AY14: 0 | AZ14: 0 | BA14: 0 | BB14: 0 | BC14: 0 | BD14: 0 | BE14: 0 | BF14: 0 | BG14: 0 | BH14: 0 | BI14: 0 | BJ14: 0 | BK14: 0 | BL14: 0 | BM14: 0 | BN14: 0 | BO14: 0 | BP14: 0 | BQ14: 0 | BR14: 0 | BS14: 0 | BT14: 0 | BU14: 0 | BV14: 0 | BW14: 0 | BX14: 0 | BY14: 0 | BZ14: 0
E15: 0 | F15: 0 | I15: 50.00% | J15: 0 | L15: 2.75% | M15: 100.00% | N15: 0 | O15: 0.00 | P15: 0 | AB15: 0.00 | AC15: 0.00 | AF15: 5 | AG15: =AG14*(1+'Social Rent'!$AO$23) -> 0.00 | AI15: =AG15*(1/((1+$AG$8)^(AF15-0.5))) -> 0 | AL15: 1B2PB | AQ15: 0 | AR15: 0 | AS15: 0 | AT15: 0 | AU15: 0 | AV15: 0 | AW15: 0 | AX15: 0 | AY15: 0 | AZ15: 0 | BA15: 0 | BB15: 0 | BC15: 0 | BD15: 0 | BE15: 0 | BF15: 0 | BG15: 0 | BH15: 0 | BI15: 0 | BJ15: 0 | BK15: 0 | BL15: 0 | BM15: 0 | BN15: 0 | BO15: 0 | BP15: 0 | BQ15: 0 | BR15: 0 | BS15: 0 | BT15: 0 | BU15: 0 | BV15: 0 | BW15: 0 | BX15: 0 | BY15: 0 | BZ15: 0
E16: 0 | F16: 0 | I16: 50.00% | J16: 0 | L16: 2.75% | M16: 100.00% | N16: 0 | O16: 0.00 | P16: 0 | AB16: 0.00 | AC16: 0.00 | AF16: 6 | AG16: =AG15*(1+'Social Rent'!$AO$23) -> 0.00 | AI16: =(AG16+AH16)*(1/((1+$AG$8)^(AF16-0.5))) -> 0 | AL16: 1B2PF | AQ16: 0 | AR16: 0 | AS16: 0 | AT16: 0 | AU16: 0 | AV16: 0 | AW16: 0 | AX16: 0 | AY16: 0 | AZ16: 0 | BA16: 0 | BB16: 0 | BC16: 0 | BD16: 0 | BE16: 0 | BF16: 0 | BG16: 0 | BH16: 0 | BI16: 0 | BJ16: 0 | BK16: 0 | BL16: 0 | BM16: 0 | BN16: 0 | BO16: 0 | BP16: 0 | BQ16: 0 | BR16: 0 | BS16: 0 | BT16: 0 | BU16: 0 | BV16: 0 | BW16: 0 | BX16: 0 | BY16: 0 | BZ16: 0
E17: 0 | F17: 0 | I17: 50.00% | J17: 0 | L17: 2.75% | M17: 100.00% | N17: 0 | O17: 0.00 | P17: 0 | AB17: 0.00 | AC17: 0.00 | AF17: 7 | AG17: =AG16*(1+'Social Rent'!$AO$23) -> 0.00 | AI17: =(AG17+AH17)*(1/((1+$AG$8)^(AF17-0.5))) -> 0 | AL17: 1B2PH | AQ17: 0 | AR17: 0 | AS17: 0 | AT17: 0 | AU17: 0 | AV17: 0 | AW17: 0 | AX17: 0 | AY17: 0 | AZ17: 0 | BA17: 0 | BB17: 0 | BC17: 0 | BD17: 0 | BE17: 0 | BF17: 0 | BG17: 0 | BH17: 0 | BI17: 0 | BJ17: 0 | BK17: 0 | BL17: 0 | BM17: 0 | BN17: 0 | BO17: 0 | BP17: 0 | BQ17: 0 | BR17: 0 | BS17: 0 | BT17: 0 | BU17: 0 | BV17: 0 | BW17: 0 | BX17: 0 | BY17: 0 | BZ17: 0
E18: 0 | F18: 0 | I18: 50.00% | J18: 0 | L18: 2.75% | M18: 100.00% | N18: 0 | O18: 0.00 | P18: 0 | AB18: 0.00 | AC18: 0.00 | AF18: 8 | AG18: =AG17*(1+'Social Rent'!$AO$23) -> 0.00 | AI18: 0 | AL18: 2B2PF | AQ18: 0 | AR18: 0 | AS18: 0 | AT18: 0 | AU18: 0 | AV18: 0 | AW18: 0 | AX18: 0 | AY18: 0 | AZ18: 0 | BA18: 0 | BB18: 0 | BC18: 0 | BD18: 0 | BE18: 0 | BF18: 0 | BG18: 0 | BH18: 0 | BI18: 0 | BJ18: 0 | BK18: 0 | BL18: 0 | BM18: 0 | BN18: 0 | BO18: 0 | BP18: 0 | BQ18: 0 | BR18: 0 | BS18: 0 | BT18: 0 | BU18: 0 | BV18: 0 | BW18: 0 | BX18: 0 | BY18: 0 | BZ18: 0
E19: 0 | F19: =IF(AE19="H","House",IF(AE19="B","Bungalow",IF(AE19="F","Flat",IF(AE19="S","Shared",IF(AE19="T","Bedsit",IF(AE19="A","Wheelchair Flat",IF(AE19="W","Wheelchair",0))))))) -> 0 | I19: 50.00% | J19: 0 | L19: 2.75% | M19: 100.00% | N19: 0 | O19: 0.00 | P19: 0 | AB19: 0.00 | AC19: 0.00 | AF19: 9 | AG19: =AG18*(1+'Social Rent'!$AO$23) -> 0.00 | AI19: 0 | AL19: 2B3PA | AQ19: 0 | AR19: 0 | AS19: 0 | AT19: 0 | AU19: 0 | AV19: 0 | AW19: 0 | AX19: 0 | AY19: 0 | AZ19: 0 | BA19: 0 | BB19: 0 | BC19: 0 | BD19: 0 | BE19: 0 | BF19: 0 | BG19: 0 | BH19: 0 | BI19: 0 | BJ19: 0 | BK19: 0 | BL19: 0 | BM19: 0 | BN19: 0 | BO19: 0 | BP19: 0 | BQ19: 0 | BR19: 0 | BS19: 0 | BT19: 0 | BU19: 0 | BV19: 0 | BW19: 0 | BX19: 0 | BY19: 0 | BZ19: 0
E20: 0 | F20: =IF(AE20="H","House",IF(AE20="B","Bungalow",IF(AE20="F","Flat",IF(AE20="S","Shared",IF(AE20="T","Bedsit",IF(AE20="A","Wheelchair Flat",IF(AE20="W","Wheelchair",0))))))) -> 0 | I20: 50.00% | J20: 0 | L20: 2.75% | M20: 100.00% | N20: 0 | O20: 0.00 | P20: 0 | AB20: 0.00 | AC20: 0.00 | AF20: 10 | AG20: =AG19*(1+'Social Rent'!$AO$23) -> 0.00 | AI20: 0 | AL20: 2B3PB | AQ20: 0 | AR20: 0 | AS20: 0 | AT20: 0 | AU20: 0 | AV20: 0 | AW20: 0 | AX20: 0 | AY20: 0 | AZ20: 0 | BA20: 0 | BB20: 0 | BC20: 0 | BD20: 0 | BE20: 0 | BF20: 0 | BG20: 0 | BH20: 0 | BI20: 0 | BJ20: 0 | BK20: 0 | BL20: 0 | BM20: 0 | BN20: 0 | BO20: 0 | BP20: 0 | BQ20: 0 | BR20: 0 | BS20: 0 | BT20: 0 | BU20: 0 | BV20: 0 | BW20: 0 | BX20: 0 | BY20: 0 | BZ20: 0
B21: Total Units | C21: =SUM(C11:C20) -> 0 | D21: Total Persons | E21: =($C$11*E11)+($C$12*E12)+($C$13*E13)+($C$14*E14)+($C$15*E15)+($C$16*E16)+($C$17*E17)+($C$18*E18)+($C$19*E19)+($C$20*E20) -> 0 | G21: =($C$11*G11)+($C$12*G12)+($C$13*G13)+($C$14*G14)+($C$15*G15)+($C$16*G16)+($C$17*G17)+($C$18*G18)+($C$19*G19)+($C$20*G20) -> 0 | H21: =($C$11*H11)+($C$12*H12)+($C$13*H13)+($C$14*H14)+($C$15*H15)+($C$16*H16)+($C$17*H17)+($C$18*H18)+($C$19*H19)+($C$20*H20) -> 0 | I21: =IF(C21=0,0,(($C$11*I11)+($C$12*I12)+($C$13*I13)+($C$14*I14)+($C$15*I15)+($C$16*I16)+($C$17*I17)+($C$18*I18)+($C$19*I19)+($C$20*I20))/C21) -> 0.00% | J21: =($C$11*J11)+($C$12*J12)+($C$13*J13)+($C$14*J14)+($C$15*J15)+($C$16*J16)+($C$17*J17)+($C$18*J18)+($C$19*J19)+($C$20*J20) -> 0 | O21: =SUM(O11:O20) -> 0.00 | AB21: =IF(C21=0,0,(+Summary!D11/Summary!D16*Summary!D34)) -> 0.00 | AC21: =+AB21*I21 -> 0.00 | AE21: =RIGHT(#REF!,1) ->  | AF21: 11 | AG21: =AG20*(1+'Social Rent'!$AO$23) -> 0.00 | AI21: 0 | AL21: 2B3PF
AE22: =RIGHT(#REF!,1) ->  | AF22: 12 | AG22: =AG21*(1+'Social Rent'!$AO$23) -> 0.00 | AI22: 0 | AL22: 2B3PH | AQ22: =SUM(AQ11:AQ20) -> 0 | AR22: =SUM(AR11:AR20) -> 0 | AS22: 0 | AT22: 0 | AU22: 0 | AV22: 0 | AW22: 0 | AX22: 0 | AY22: 0 | AZ22: 0 | BA22: 0 | BB22: 0 | BC22: 0 | BD22: 0 | BE22: =SUM(BE11:BE20) -> 0 | BF22: =SUM(BF11:BF20) -> 0 | BG22: =SUM(BG11:BG20) -> 0 | BH22: 0 | BI22: 0 | BJ22: 0 | BK22: 0 | BL22: 0 | BM22: 0 | BN22: 0 | BO22: 0 | BP22: 0 | BQ22: 0 | BR22: 0 | BS22: 0 | BT22: 0 | BU22: 0 | BV22: 0 | BW22: 0 | BX22: 0 | BY22: 0 | BZ22: 0
AE23: =RIGHT(#REF!,1) ->  | AF23: 13 | AG23: =AG22*(1+'Social Rent'!$AO$23) -> 0.00 | AI23: 0 | AL23: 2B3PW
AE24: =RIGHT(#REF!,1) ->  | AF24: 14 | AG24: =AG23*(1+'Social Rent'!$AO$23) -> 0.00 | AI24: 0 | AL24: 2B4PB
AE25: =RIGHT(#REF!,1) ->  | AF25: 15 | AG25: =AG24*(1+'Social Rent'!$AO$23) -> 0.00 | AI25: 0 | AL25: 2B4PF
AE26: =RIGHT(#REF!,1) ->  | AF26: 16 | AG26: =AG25*(1+'Social Rent'!$AO$23) -> 0.00 | AI26: 0 | AL26: 2B4PH
AE27: =RIGHT(#REF!,1) ->  | AF27: 17 | AG27: =AG26*(1+'Social Rent'!$AO$23) -> 0.00 | AI27: 0 | AL27: 2B4PW
AE28: =RIGHT(#REF!,1) ->  | AF28: 18 | AG28: =AG27*(1+'Social Rent'!$AO$23) -> 0.00 | AI28: 0 | AL28: 3B3PH
AE29: =RIGHT(#REF!,1) ->  | AF29: 19 | AG29: =AG28*(1+'Social Rent'!$AO$23) -> 0.00 | AI29: 0 | AL29: 3B3PS
AE30: =RIGHT(#REF!,1) ->  | AF30: 20 | AG30: =AG29*(1+'Social Rent'!$AO$23) -> 0.00 | AI30: 0 | AL30: 3B4PA
AF31: 21 | AG31: =AG30*(1+'Social Rent'!$AO$23) -> 0.00 | AI31: 0 | AL31: 3B4PF
AF32: 22 | AG32: =AG31*(1+'Social Rent'!$AO$23) -> 0.00 | AI32: 0 | AL32: 3B4PB
AF33: 23 | AG33: =AG32*(1+'Social Rent'!$AO$23) -> 0.00 | AI33: 0 | AL33: 3B4PH
AF34: 24 | AG34: =AG33*(1+'Social Rent'!$AO$23) -> 0.00 | AI34: 0 | AL34: 3B4PW
AF35: 25 | AG35: =AG34*(1+'Social Rent'!$AO$23) -> 0.00 | AI35: 0 | AL35: 3B5PA
AF36: 26 | AG36: =AG35*(1+'Social Rent'!$AO$23) -> 0.00 | AI36: 0 | AL36: 3B5PB
AF37: 27 | AG37: =AG36*(1+'Social Rent'!$AO$23) -> 0.00 | AI37: 0 | AL37: 3B5PF
AF38: 28 | AG38: =AG37*(1+'Social Rent'!$AO$23) -> 0.00 | AI38: 0 | AL38: 3B5PH
AF39: 29 | AG39: =AG38*(1+'Social Rent'!$AO$23) -> 0.00 | AI39: 0 | AL39: 3B5PW
AF40: 30 | AG40: =AG39*(1+'Social Rent'!$AO$23) -> 0.00 | AI40: 0 | AL40: 3B6PB
AF41: 31 | AG41: =AG40*(1+'Social Rent'!$AO$23) -> 0.00 | AH41: =SUM(AH16:AH40) -> 0.00 | AI41: 0 | AL41: 3B6PH
AF42: 32 | AG42: =AG41*(1+'Social Rent'!$AO$23) -> 0.00 | AI42: 0 | AL42: 4B4PS
AF43: 33 | AG43: =AG42*(1+'Social Rent'!$AO$23) -> 0.00 | AI43: 0 | AL43: 4B6PA
AF44: 34 | AG44: =AG43*(1+'Social Rent'!$AO$23) -> 0.00 | AI44: 0 | AL44: 4B6PH
AF45: 35 | AG45: =AG44*(1+'Social Rent'!$AO$23) -> 0.00 | AI45: 0 | AL45: 4B7PA
AF46: 36 | AG46: =AG45*(1+'Social Rent'!$AO$23) -> 0.00 | AI46: 0 | AL46: 4B7PB
AF47: 37 | AG47: =AG46*(1+'Social Rent'!$AO$23) -> 0.00 | AI47: 0 | AL47: 4B7PH
AF48: 38 | AG48: =AG47*(1+'Social Rent'!$AO$23) -> 0.00 | AI48: 0 | AL48: 4B7PW
AF49: 39 | AG49: =AG48*(1+'Social Rent'!$AO$23) -> 0.00 | AI49: 0 | AL49: 4B8PH
AF50: 40 | AG50: =AG49*(1+'Social Rent'!$AO$23) -> 0.00 | AI50: 0 | AL50: 4B8PW
AF51: 41 | AG51: =AG50*(1+'Social Rent'!$AO$23) -> 0.00 | AI51: =(AG51+AH51)*(1/((1+$AG$8)^(AF51-0.5))) -> 0 | AL51: 5B10PH
AF52: 42 | AG52: =AG51*(1+'Social Rent'!$AO$23) -> 0.00 | AI52: 0
AF53: 43 | AG53: =AG52*(1+'Social Rent'!$AO$23) -> 0.00 | AI53: 0
AF54: 44 | AG54: =AG53*(1+'Social Rent'!$AO$23) -> 0.00 | AI54: 0
AF55: 45 | AG55: =AG54*(1+'Social Rent'!$AO$23) -> 0.00 | AI55: 0
AF56: 46 | AG56: =AG55*(1+'Social Rent'!$AO$23) -> 0.00 | AI56: 0
AF57: 47 | AG57: =AG56*(1+'Social Rent'!$AO$23) -> 0.00 | AI57: 0
AF58: 48 | AG58: =AG57*(1+'Social Rent'!$AO$23) -> 0.00 | AI58: 0
AF59: 49 | AG59: =AG58*(1+'Social Rent'!$AO$23) -> 0.00 | AI59: 0
AF60: 50 | AG60: =AG59*(1+'Social Rent'!$AO$23) -> 0.00 | AI60: 0
AG62: =SUM(AG16:AG60) -> 0.00 | AI62: =IF(C21=0,0,SUM(AI11:AI60)) -> 0
AG64: TOTAL
A400: 2017-08-28

Sheet Market Rent
B1: Market Rent
B3: KEY
B4: Manual Input (If applicable)
B5: Formula with Input Capability
B6: ** denotes compulsory field
B8: Unit Type | C8: No. of Units | D8: No. of Beds per Unit | E8: No. of Persons per Unit | F8: Property | G8: Individual Floor Area | H8: OMV on completion | I8: Weekly Unit Rent for | J8: Total p.a. | W8: Property Code
G9: (sq. m.) | H9: (individual unit) | I9: ='Project Information'!H16 -> 2023/24 | AC9: Property Type | AF9: LONGTERM BORROWING CALCULATION SUPPORTED BY RENTS
B10: ** | C10: ** | G10: ** | H10: ** | I10: **
D11: =LEFT(B11,1) ->  | E11: =IF(C11="",0,(IF(LEN(B11)=5,MID(B11,3,1),MID(B11,3,2)))) -> 0 | F11: =IF(W11="H","House",IF(W11="B","Bungalow",IF(W11="F","Flat",IF(W11="S","Shared",IF(W11="T","Bedsit",IF(W11="A","Wheelchair Flat",IF(W11="W","Wheelchair",0))))))) -> 0 | J11: =I11*C11*52 -> 0.00 | W11: =RIGHT(B11,1) ->  | AC11: 0B0PS
E12: 0 | F12: 0 | J12: 0.00 | W12: =RIGHT(B12,1) ->  | AC12: 1B1PF
E13: 0 | F13: 0 | J13: 0.00 | AC13: 1B1PT
E14: 0 | F14: 0 | J14: 0.00 | AC14: 1B2PA
E15: 0 | F15: 0 | J15: 0.00 | AC15: 1B2PB
E16: 0 | F16: 0 | J16: 0.00 | AC16: 1B2PF | AF16: MRP % per unit | AI16: =+'Project Information'!H34 -> 0.40%
E17: 0 | F17: 0 | J17: 0.00 | AC17: 1B2PH | AF17: Number of units | AI17: =C21 -> 0
E18: 0 | F18: 0 | J18: 0.00 | AC18: 2B2PF | AF18: Average rent per unit per week | AI18: =I21 -> 
E19: 0 | F19: 0 | J19: 0.00 | AC19: 2B3PA | AF19: Voids % | AI19: =+'Social Rent'!AO19 -> 3%
E20: 0 | F20: 0 | J20: 0.00 | AC20: 2B3PB | AF20: Management cost per unit per annum | AI20: =+'Project Information'!H32 -> £424
B21: Total Units | C21: =SUM(C11:C20) -> 0 | D21: Total Persons | E21: =($C$11*E11)+($C$12*E12)+($C$13*E13)+($C$14*E14)+($C$15*E15)+($C$16*E16)+($C$17*E17)+($C$18*E18)+($C$19*E19)+($C$20*E20) -> 0 | G21: =($C$11*G11)+($C$12*G12)+($C$13*G13)+($C$14*G14)+($C$15*G15)+($C$16*G16)+($C$17*G17)+($C$18*G18)+($C$19*G19)+($C$20*G20) -> 0 | H21: =($C$11*H11)+($C$12*H12)+($C$13*H13)+($C$14*H14)+($C$15*H15)+($C$16*H16)+($C$17*H17)+($C$18*H18)+($C$19*H19)+($C$20*H20) -> 0 | I21: =(J21/C21)/52 ->  | J21: =SUM(J11:J20) -> 0.00 | AC21: 2B3PF | AF21: Maintenance cost per unit per annum | AI21: =+'Project Information'!H33 -> £768
AC22: 2B3PH | AF22: MRP cost per unit per annum | AI22: =IF(C21=0,0,+(AI16*(Summary!D23+Summary!D24)/Summary!E16)*-1) -> £0
AC23: 2B3PW | AF23: Increases per annum - rents | AI23: =+'Social Rent'!AO23 -> 3.00%
AC24: 2B4PB | AF24: - management | AI24: 3.00%
AC25: 2B4PF | AF25: - maintenance | AI25: 3.00% | AL25: =AB15 -> 0 | AM25: =#REF! -> 
AC26: 2B4PH | AF26: - building fund | AI26: 3.00%
AC27: 2B4PW | AF27: Discount Period in Years | AI27: 60
AC28: 3B3PH | AF28: Discount Rate | AI28: =+'Project Information'!H29 -> 6.00% | AR28: Gross rent | AS28: £ | AU28: =$AF39 -> 0 | AV28: =$AF40 -> 0 | AW28: =$AF41 -> 0 | AX28: =$AF42 -> 0 | AY28: =$AF43 -> 0 | AZ28: =$AF44 -> 0 | BA28: =$AF45 -> 0 | BB28: =$AF46 -> 0 | BC28: =$AF47 -> 0 | BD28: =$AF48 -> 0 | BE28: =$AF49 -> 0 | BF28: =$AF50 -> 0 | BG28: =$AF51 -> 0 | BH28: =$AF52 -> 0 | BI28: =$AF53 -> 0 | BJ28: =$AF54 -> 0 | BK28: =$AF55 -> 0 | BL28: =$AF56 -> 0 | BM28: =$AF57 -> 0 | BN28: =$AF58 -> 0 | BO28: =$AF59 -> 0 | BP28: =$AF60 -> 0 | BQ28: =$AF61 -> 0 | BR28: =$AF62 -> 0 | BS28: =$AF63 -> 0 | BT28: =$AF64 -> 0 | BU28: =$AF65 -> 0 | BV28: =$AF66 -> 0 | BW28: =$AF67 -> 0 | BX28: =$AF68 -> 0 | BY28: =$AF69 -> 0 | BZ28: =$AF70 -> 0 | CA28: =$AF71 -> 0 | CB28: =$AF72 -> 0 | CC28: =$AF73 -> 0 | CD28: =$AF74 -> 0 | CE28: =$AF75 -> 0 | CF28: =$AF76 -> 0 | CG28: =$AF77 -> 0 | CH28: =$AF78 -> 0 | CI28: =$AF79 -> 0 | CJ28: =$AF80 -> 0 | CK28: =$AF81 -> 0 | CL28: =$AF82 -> 0 | CM28: =$AF83 -> 0 | CN28: =$AF84 -> 0 | CO28: =$AF85 -> 0 | CP28: =$AF86 -> 0 | CQ28: =$AF87 -> 0 | CR28: =$AF88 -> 0
AC29: 3B3PS | AR29: Voids | AU29: =AG39 -> 0 | AV29: =$AG40 -> 0 | AW29: =$AG41 -> 0 | AX29: =$AG42 -> 0 | AY29: =$AG43 -> 0 | AZ29: =$AG44 -> 0 | BA29: =$AG45 -> 0 | BB29: =$AG46 -> 0 | BC29: =$AG47 -> 0 | BD29: =$AG48 -> 0 | BE29: =$AG49 -> 0 | BF29: =$AG50 -> 0 | BG29: =$AG51 -> 0 | BH29: =$AG52 -> 0 | BI29: =$AG53 -> 0 | BJ29: =$AG54 -> 0 | BK29: =$AG55 -> 0 | BL29: =$AG56 -> 0 | BM29: =$AG57 -> 0 | BN29: =$AG58 -> 0 | BO29: =$AG59 -> 0 | BP29: =$AG60 -> 0 | BQ29: =$AG61 -> 0 | BR29: =$AG62 -> 0 | BS29: =$AG63 -> 0 | BT29: =$AG64 -> 0 | BU29: =$AG65 -> 0 | BV29: =$AG66 -> 0 | BW29: =$AG67 -> 0 | BX29: =$AG68 -> 0 | BY29: =$AG69 -> 0 | BZ29: =$AG70 -> 0 | CA29: =$AG71 -> 0 | CB29: =$AG72 -> 0 | CC29: =$AG73 -> 0 | CD29: =$AG74 -> 0 | CE29: =$AG75 -> 0 | CF29: =$AG76 -> 0 | CG29: =$AG77 -> 0 | CH29: =$AG78 -> 0 | CI29: =$AG79 -> 0 | CJ29: =$AG80 -> 0 | CK29: =$AG81 -> 0 | CL29: =$AG82 -> 0 | CM29: =$AG83 -> 0 | CN29: =$AG84 -> 0 | CO29: =$AG85 -> 0 | CP29: =$AG86 -> 0 | CQ29: =$AG87 -> 0 | CR29: =$AG88 -> 0
AC30: 3B4PA | AM30: First year | AR30: Manag | AU30: =AH39 -> 0 | AV30: =$AH40 -> 0 | AW30: =$AH41 -> 0 | AX30: =$AH42 -> 0 | AY30: =$AH43 -> 0 | AZ30: =$AH44 -> 0 | BA30: =$AH45 -> 0 | BB30: =$AH46 -> 0 | BC30: =$AH47 -> 0 | BD30: =$AH48 -> 0 | BE30: =$AH49 -> 0 | BF30: =$AH50 -> 0 | BG30: =$AH51 -> 0 | BH30: =$AH52 -> 0 | BI30: =$AH53 -> 0 | BJ30: =$AH54 -> 0 | BK30: =$AH55 -> 0 | BL30: =$AH56 -> 0 | BM30: =$AH57 -> 0 | BN30: =$AH58 -> 0 | BO30: =$AH59 -> 0 | BP30: =$AH60 -> 0 | BQ30: =$AH61 -> 0 | BR30: =$AH62 -> 0 | BS30: =$AH63 -> 0 | BT30: =$AH64 -> 0 | BU30: =$AH65 -> 0 | BV30: =$AH66 -> 0 | BW30: =$AH67 -> 0 | BX30: =$AH68 -> 0 | BY30: =$AH69 -> 0 | BZ30: =$AH70 -> 0 | CA30: =$AH71 -> 0 | CB30: =$AH72 -> 0 | CC30: =$AH73 -> 0 | CD30: =$AH74 -> 0 | CE30: =$AH75 -> 0 | CF30: =$AH76 -> 0 | CG30: =$AH77 -> 0 | CH30: =$AH78 -> 0 | CI30: =$AH79 -> 0 | CJ30: =$AH80 -> 0 | CK30: =$AH81 -> 0 | CL30: =$AH82 -> 0 | CM30: =$AH83 -> 0 | CN30: =$AH84 -> 0 | CO30: =$AH85 -> 0 | CP30: =$AH86 -> 0 | CQ30: =$AH87 -> 0 | CR30: =$AH88 -> 0
AC31: 3B4PF | AN31: NPV | AR31: Maint | AU31: =AI39 -> 0 | AV31: =$AI40 -> 0 | AW31: =$AI41 -> 0 | AX31: =$AI42 -> 0 | AY31: =$AI43 -> 0 | AZ31: =$AI44 -> 0 | BA31: =$AI45 -> 0 | BB31: =$AI46 -> 0 | BC31: =$AI47 -> 0 | BD31: =$AI48 -> 0 | BE31: =$AI49 -> 0 | BF31: =$AI50 -> 0 | BG31: =$AI51 -> 0 | BH31: =$AI52 -> 0 | BI31: =$AI53 -> 0 | BJ31: =$AI54 -> 0 | BK31: =$AI55 -> 0 | BL31: =$AI56 -> 0 | BM31: =$AI57 -> 0 | BN31: =$AI58 -> 0 | BO31: =$AI59 -> 0 | BP31: =$AI60 -> 0 | BQ31: =$AI61 -> 0 | BR31: =$AI62 -> 0 | BS31: =$AI63 -> 0 | BT31: =$AI64 -> 0 | BU31: =$AI65 -> 0 | BV31: =$AI66 -> 0 | BW31: =$AI67 -> 0 | BX31: =$AI68 -> 0 | BY31: =$AI69 -> 0 | BZ31: =$AI70 -> 0 | CA31: =$AI71 -> 0 | CB31: =$AI72 -> 0 | CC31: =$AI73 -> 0 | CD31: =$AI74 -> 0 | CE31: =$AI75 -> 0 | CF31: =$AI76 -> 0 | CG31: =$AI77 -> 0 | CH31: =$AI78 -> 0 | CI31: =$AI79 -> 0 | CJ31: =$AI80 -> 0 | CK31: =$AI81 -> 0 | CL31: =$AI82 -> 0 | CM31: =$AI83 -> 0 | CN31: =$AI84 -> 0 | CO31: =$AI85 -> 0 | CP31: =$AI86 -> 0 | CQ31: =$AI87 -> 0 | CR31: =$AI88 -> 0
AC32: 3B4PB | AN32: =IF(AI17=0,0,AN99) -> 0 | AR32: MRP | AU32: =IF($AI$17=0,0,AJ39) -> 0 | AV32: =IF($AI$17=0,0,$AJ40) -> 0 | AW32: =IF($AI$17=0,0,$AJ41) -> 0 | AX32: =IF($AI$17=0,0,$AJ42) -> 0 | AY32: =IF($AI$17=0,0,$AJ43) -> 0 | AZ32: =IF($AI$17=0,0,$AJ44) -> 0 | BA32: =IF($AI$17=0,0,$AJ45) -> 0 | BB32: =IF($AI$17=0,0,$AJ46) -> 0 | BC32: =IF($AI$17=0,0,$AJ47) -> 0 | BD32: =IF($AI$17=0,0,$AJ48) -> 0 | BE32: =IF($AI$17=0,0,$AJ49) -> 0 | BF32: =IF($AI$17=0,0,$AJ50) -> 0 | BG32: =IF($AI$17=0,0,$AJ51) -> 0 | BH32: =IF($AI$17=0,0,$AJ52) -> 0 | BI32: =IF($AI$17=0,0,$AJ53) -> 0 | BJ32: =IF($AI$17=0,0,$AJ54) -> 0 | BK32: =IF($AI$17=0,0,$AJ55) -> 0 | BL32: =IF($AI$17=0,0,$AJ56) -> 0 | BM32: =IF($AI$17=0,0,$AJ57) -> 0 | BN32: =IF($AI$17=0,0,$AJ58) -> 0 | BO32: =IF($AI$17=0,0,$AJ59) -> 0 | BP32: =IF($AI$17=0,0,$AJ60) -> 0 | BQ32: =IF($AI$17=0,0,$AJ61) -> 0 | BR32: =IF($AI$17=0,0,$AJ62) -> 0 | BS32: =IF($AI$17=0,0,$AJ63) -> 0 | BT32: =IF($AI$17=0,0,$AJ64) -> 0 | BU32: =IF($AI$17=0,0,$AJ65) -> 0 | BV32: =IF($AI$17=0,0,$AJ66) -> 0 | BW32: =IF($AI$17=0,0,$AJ67) -> 0 | BX32: =IF($AI$17=0,0,$AJ68) -> 0 | BY32: =IF($AI$17=0,0,$AJ69) -> 0 | BZ32: =IF($AI$17=0,0,$AJ70) -> 0 | CA32: =IF($AI$17=0,0,$AJ71) -> 0 | CB32: =IF($AI$17=0,0,$AJ72) -> 0 | CC32: =IF($AI$17=0,0,$AJ73) -> 0 | CD32: =IF($AI$17=0,0,$AJ74) -> 0 | CE32: =IF($AI$17=0,0,$AJ75) -> 0 | CF32: =IF($AI$17=0,0,$AJ76) -> 0 | CG32: =IF($AI$17=0,0,$AJ77) -> 0 | CH32: =IF($AI$17=0,0,$AJ78) -> 0 | CI32: =IF($AI$17=0,0,$AJ79) -> 0 | CJ32: =IF($AI$17=0,0,$AJ80) -> 0 | CK32: =IF($AI$17=0,0,$AJ81) -> 0 | CL32: =IF($AI$17=0,0,$AJ82) -> 0 | CM32: =IF($AI$17=0,0,$AJ83) -> 0 | CN32: =IF($AI$17=0,0,$AJ84) -> 0 | CO32: =IF($AI$17=0,0,$AJ85) -> 0 | CP32: =IF($AI$17=0,0,$AJ86) -> 0 | CQ32: =IF($AI$17=0,0,$AJ87) -> 0 | CR32: =IF($AI$17=0,0,$AJ88) -> 0
AC33: 3B4PH
AC34: 3B4PW
AC35: 3B5PA | AF35: =AI23 -> 3.00% | AG35: =AI19 -> 3.00% | AH35: =AI24 -> 3.00% | AI35: =AI25 -> 3.00% | AJ35: =AI26 -> 3.00% | AL35: =AI29 -> 0.00% | AN35: Discounted
AC36: 3B5PB | AE36: Year | AF36: Gross rent | AG36: Voids | AH36: Manag | AI36: Maint | AJ36: MRP | AK36: Net rent | AL36: Financing | AM36: Surplus | AN36: Surplus
AC37: 3B5PF | AF37: £ | AG37: £ | AH37: £ | AI37: £ | AJ37: £ | AK37: £ | AL37: £ | AM37: £ | AN37: £
AC38: 3B5PH
AC39: 3B5PW | AE39: 1 | AF39: =J21 -> 0 | AG39: =ROUND(-AF39*$AI$19,0) -> 0 | AH39: =ROUND(-AI17*AI20,0) -> 0 | AI39: =ROUND(-AI17*AI21,0) -> 0 | AJ39: =$AH$135*0 -> 0 | AK39: =SUM(AF39:AJ39) -> 0 | AL39: =ROUND(-AI15*AI17*AI30/1000,0) -> 0 | AM39: =SUM(AK39:AL39) -> 0 | AN39: =AK39*(1/((1+$AI$28)^(AE39-0.5))) -> 0
AC40: 3B6PB | AE40: =AE39+1 -> 2 | AF40: =AF39*(1+$AI$23) -> 0 | AG40: 0 | AH40: =IF(AE40>$AI$27,0,ROUND(AH39*(1+$AI$24),0)) -> 0 | AI40: =IF(AE40>$AI$27,0,ROUND(AI39*(1+$AI$25),0)) -> 0 | AJ40: =$AJ$135*0 -> 0 | AK40: 0 | AL40: =IF(AE40>$H$24,0,ROUND(AL39*(1+$N$32),0)) -> 0 | AM40: 0 | AN40: 0
AC41: 3B6PH | AE41: 3 | AF41: 0 | AG41: 0 | AH41: 0 | AI41: 0 | AJ41: =$AJ$135*0 -> 0 | AK41: 0 | AL41: 0 | AM41: 0 | AN41: 0
AC42: 4B4PS | AE42: 4 | AF42: 0 | AG42: 0 | AH42: 0 | AI42: 0 | AJ42: =$AJ$135*0.016 -> 0 | AK42: 0 | AL42: 0 | AM42: 0 | AN42: 0
AC43: 4B6PA | AE43: 5 | AF43: 0 | AG43: 0 | AH43: 0 | AI43: 0 | AJ43: =$AJ$135*0.016 -> 0 | AK43: 0 | AL43: 0 | AM43: 0 | AN43: 0
AC44: 4B6PH | AE44: 6 | AF44: 0 | AG44: 0 | AH44: 0 | AI44: 0 | AJ44: =$AJ$135*0.016 -> 0 | AK44: 0 | AL44: 0 | AM44: 0 | AN44: 0
AC45: 4B7PA | AE45: 7 | AF45: 0 | AG45: 0 | AH45: 0 | AI45: 0 | AJ45: =$AJ$135*0.019 -> 0 | AK45: 0 | AL45: 0 | AM45: 0 | AN45: 0
AC46: 4B7PB | AE46: 8 | AF46: 0 | AG46: 0 | AH46: 0 | AI46: 0 | AJ46: =$AJ$135*0.019 -> 0 | AK46: 0 | AL46: 0 | AM46: 0 | AN46: 0
AC47: 4B7PH | AE47: 9 | AF47: 0 | AG47: 0 | AH47: 0 | AI47: 0 | AJ47: =$AJ$135*0.019 -> 0 | AK47: 0 | AL47: 0 | AM47: 0 | AN47: 0
AC48: 4B7PW | AE48: 10 | AF48: 0 | AG48: 0 | AH48: 0 | AI48: 0 | AJ48: =$AJ$135*0.023 -> 0 | AK48: 0 | AL48: 0 | AM48: 0 | AN48: 0
AC49: 4B8PH | AE49: 11 | AF49: 0 | AG49: 0 | AH49: 0 | AI49: 0 | AJ49: =$AJ$135*0.023 -> 0 | AK49: 0 | AL49: 0 | AM49: 0 | AN49: 0
AC50: 4B8PW | AE50: 12 | AF50: 0 | AG50: 0 | AH50: 0 | AI50: 0 | AJ50: =$AJ$135*0.023 -> 0 | AK50: 0 | AL50: 0 | AM50: 0 | AN50: 0
AC51: 5B10PH | AE51: 13 | AF51: 0 | AG51: 0 | AH51: 0 | AI51: 0 | AJ51: =$AJ$135*0.028 -> 0 | AK51: 0 | AL51: 0 | AM51: 0 | AN51: 0
AE52: 14 | AF52: 0 | AG52: 0 | AH52: 0 | AI52: 0 | AJ52: =$AJ$135*0.028 -> 0 | AK52: 0 | AL52: 0 | AM52: 0 | AN52: 0
AE53: 15 | AF53: 0 | AG53: 0 | AH53: 0 | AI53: 0 | AJ53: =$AJ$135*0.028 -> 0 | AK53: 0 | AL53: 0 | AM53: 0 | AN53: 0
AE54: 16 | AF54: 0 | AG54: 0 | AH54: 0 | AI54: 0 | AJ54: =$AJ$135*0.033 -> 0 | AK54: 0 | AL54: 0 | AM54: 0 | AN54: 0
AE55: 17 | AF55: 0 | AG55: 0 | AH55: 0 | AI55: 0 | AJ55: =$AJ$135*0.033 -> 0 | AK55: 0 | AL55: 0 | AM55: 0 | AN55: 0
AE56: 18 | AF56: 0 | AG56: 0 | AH56: 0 | AI56: 0 | AJ56: =$AJ$135*0.033 -> 0 | AK56: 0 | AL56: 0 | AM56: 0 | AN56: 0
AE57: 19 | AF57: 0 | AG57: 0 | AH57: 0 | AI57: 0 | AJ57: =$AJ$135*0.04 -> 0 | AK57: 0 | AL57: 0 | AM57: 0 | AN57: 0
AE58: 20 | AF58: 0 | AG58: 0 | AH58: 0 | AI58: 0 | AJ58: =$AJ$135*0.04 -> 0 | AK58: 0 | AL58: 0 | AM58: 0 | AN58: 0
AE59: 21 | AF59: 0 | AG59: 0 | AH59: 0 | AI59: 0 | AJ59: =$AJ$135*0.04 -> 0 | AK59: 0 | AL59: 0 | AM59: 0 | AN59: 0
AE60: 22 | AF60: 0 | AG60: 0 | AH60: 0 | AI60: 0 | AJ60: =$AJ$135*0.048 -> 0 | AK60: 0 | AL60: 0 | AM60: 0 | AN60: 0
AE61: 23 | AF61: 0 | AG61: 0 | AH61: 0 | AI61: 0 | AJ61: =$AJ$135*0.048 -> 0 | AK61: 0 | AL61: 0 | AM61: 0 | AN61: 0
AE62: 24 | AF62: 0 | AG62: 0 | AH62: 0 | AI62: 0 | AJ62: =$AJ$135*0.048 -> 0 | AK62: 0 | AL62: 0 | AM62: 0 | AN62: 0
AE63: 25 | AF63: 0 | AG63: 0 | AH63: 0 | AI63: 0 | AJ63: =$AJ$135*0.057 -> 0 | AK63: 0 | AL63: 0 | AM63: 0 | AN63: 0
AE64: 26 | AF64: 0 | AG64: 0 | AH64: 0 | AI64: 0 | AJ64: =$AJ$135*0.057 -> 0 | AK64: 0 | AL64: 0 | AM64: 0 | AN64: 0
AE65: 27 | AF65: 0 | AG65: 0 | AH65: 0 | AI65: 0 | AJ65: =$AJ$135*0.057 -> 0 | AK65: 0 | AL65: 0 | AM65: 0 | AN65: 0
AE66: 28 | AF66: 0 | AG66: 0 | AH66: 0 | AI66: 0 | AJ66: =$AJ$135*0.069 -> 0 | AK66: 0 | AL66: 0 | AM66: 0 | AN66: 0
AE67: 29 | AF67: 0 | AG67: 0 | AH67: 0 | AI67: 0 | AJ67: =$AJ$135*0.069 -> 0 | AK67: 0 | AL67: 0 | AM67: 0 | AN67: 0
AE68: 30 | AF68: 0 | AG68: 0 | AH68: 0 | AI68: 0 | AJ68: =$AJ$135*0.07 -> 0 | AK68: 0 | AL68: =AN134*0.1 -> 0 | AM68: 0 | AN68: =AM68*(1/((1+$AI$28)^(AE68-0.5))) -> 0
AE69: 31 | AF69: 0 | AG69: 0 | AH69: 0 | AI69: 0 | AJ69: =-3896*AI17 -> 0 | AK69: 0 | AL69: 0 | AM69: =SUM(AK69:AL69)*0.5*0.9 -> 0 | AN69: 0
AE70: 32 | AF70: 0 | AG70: 0 | AH70: 0 | AI70: 0 | AJ70: =AJ69*1.03 -> 0 | AK70: 0 | AL70: 0 | AM70: 0 | AN70: 0
AE71: 33 | AF71: 0 | AG71: 0 | AH71: 0 | AI71: 0 | AJ71: 0 | AK71: 0 | AL71: 0 | AM71: 0 | AN71: 0
AE72: 34 | AF72: 0 | AG72: 0 | AH72: 0 | AI72: 0 | AJ72: 0 | AK72: 0 | AL72: 0 | AM72: 0 | AN72: 0
AE73: 35 | AF73: 0 | AG73: 0 | AH73: 0 | AI73: 0 | AJ73: 0 | AK73: 0 | AL73: 0 | AM73: 0 | AN73: 0
AE74: 36 | AF74: 0 | AG74: 0 | AH74: 0 | AI74: 0 | AJ74: 0 | AK74: 0 | AL74: 0 | AM74: 0 | AN74: 0
AE75: 37 | AF75: 0 | AG75: 0 | AH75: 0 | AI75: 0 | AJ75: 0 | AK75: 0 | AL75: 0 | AM75: 0 | AN75: 0
AE76: 38 | AF76: 0 | AG76: 0 | AH76: 0 | AI76: 0 | AJ76: 0 | AK76: 0 | AL76: 0 | AM76: 0 | AN76: 0
AE77: 39 | AF77: 0 | AG77: 0 | AH77: 0 | AI77: 0 | AJ77: 0 | AK77: 0 | AL77: 0 | AM77: 0 | AN77: 0
AE78: 40 | AF78: 0 | AG78: 0 | AH78: 0 | AI78: 0 | AJ78: 0 | AK78: 0 | AL78: 0 | AM78: 0 | AN78: 0
AE79: 41 | AF79: 0 | AG79: 0 | AH79: 0 | AI79: 0 | AJ79: 0 | AK79: 0 | AL79: 0 | AM79: 0 | AN79: 0
AE80: 42 | AF80: 0 | AG80: 0 | AH80: 0 | AI80: 0 | AJ80: 0 | AK80: 0 | AL80: 0 | AM80: 0 | AN80: 0
AE81: 43 | AF81: 0 | AG81: 0 | AH81: 0 | AI81: 0 | AJ81: 0 | AK81: 0 | AL81: 0 | AM81: 0 | AN81: 0
AE82: 44 | AF82: 0 | AG82: 0 | AH82: 0 | AI82: 0 | AJ82: 0 | AK82: 0 | AL82: 0 | AM82: 0 | AN82: 0
AE83: 45 | AF83: 0 | AG83: 0 | AH83: 0 | AI83: 0 | AJ83: 0 | AK83: 0 | AL83: 0 | AM83: 0 | AN83: 0
AE84: 46 | AF84: 0 | AG84: 0 | AH84: 0 | AI84: 0 | AJ84: 0 | AK84: 0 | AL84: 0 | AM84: 0 | AN84: 0
AE85: 47 | AF85: 0 | AG85: 0 | AH85: 0 | AI85: 0 | AJ85: 0 | AK85: 0 | AL85: 0 | AM85: 0 | AN85: 0
AE86: 48 | AF86: 0 | AG86: 0 | AH86: 0 | AI86: 0 | AJ86: 0 | AK86: 0 | AL86: 0 | AM86: 0 | AN86: 0
AE87: 49 | AF87: 0 | AG87: 0 | AH87: 0 | AI87: 0 | AJ87: 0 | AK87: 0 | AL87: 0 | AM87: 0 | AN87: 0
AE88: 50 | AF88: 0 | AG88: 0 | AH88: 0 | AI88: 0 | AJ88: 0 | AK88: 0 | AL88: 0 | AM88: 0 | AN88: 0
AE89: 51 | AF89: 0 | AG89: 0 | AH89: 0 | AI89: 0 | AJ89: 0 | AK89: 0 | AL89: 0 | AM89: 0 | AN89: 0
AE90: 52 | AF90: 0 | AG90: 0 | AH90: 0 | AI90: 0 | AJ90: 0 | AK90: 0 | AL90: 0 | AM90: 0 | AN90: 0
AE91: 53 | AF91: 0 | AG91: 0 | AH91: 0 | AI91: 0 | AJ91: 0 | AK91: 0 | AL91: 0 | AM91: 0 | AN91: 0
AE92: 54 | AF92: 0 | AG92: 0 | AH92: 0 | AI92: 0 | AJ92: 0 | AK92: 0 | AL92: 0 | AM92: 0 | AN92: 0
AE93: 55 | AF93: 0 | AG93: 0 | AH93: 0 | AI93: 0 | AJ93: 0 | AK93: 0 | AL93: 0 | AM93: 0 | AN93: 0
AE94: 56 | AF94: 0 | AG94: 0 | AH94: 0 | AI94: 0 | AJ94: 0 | AK94: 0 | AL94: 0 | AM94: 0 | AN94: 0
AE95: 57 | AF95: 0 | AG95: 0 | AH95: 0 | AI95: 0 | AJ95: 0 | AK95: 0 | AL95: 0 | AM95: 0 | AN95: 0
AE96: 58 | AF96: 0 | AG96: 0 | AH96: 0 | AI96: 0 | AJ96: 0 | AK96: 0 | AL96: 0 | AM96: 0 | AN96: 0
AE97: 59 | AF97: 0 | AG97: 0 | AH97: 0 | AI97: 0 | AJ97: 0 | AK97: 0 | AL97: 0 | AM97: 0 | AN97: 0
AE98: 60 | AF98: 0 | AG98: 0 | AH98: 0 | AI98: 0 | AJ98: 0 | AK98: 0 | AL98: 0 | AM98: 0 | AN98: 0
AF99: =SUM(AF39:AF98) -> 0 | AG99: 0 | AH99: 0 | AI99: 0 | AJ99: 0 | AK99: 0 | AL99: 0 | AM99: 0 | AN99: 0
AJ104: MRP | AN104: VP
AJ105: =-AI17*AI22 -> 0 | AN105: =H21 -> 0
AJ106: =IF(AE40>$AI$27,0,ROUND(AJ105*(1+$AI$26),0)) -> 0 | AN106: =AN105*1.03 -> 0
AJ107: 0 | AN107: =AN106*1.03 -> 0
AJ108: 0 | AN108: 0
AJ109: 0 | AN109: 0
AJ110: 0 | AN110: 0
AJ111: 0 | AN111: 0
AJ112: 0 | AN112: 0
AJ113: 0 | AN113: 0
AJ114: 0 | AN114: 0
AJ115: 0 | AN115: 0
AJ116: 0 | AN116: 0
AJ117: 0 | AN117: 0
AJ118: 0 | AN118: 0
AJ119: 0 | AN119: 0
AJ120: 0 | AN120: 0
AJ121: 0 | AN121: 0
AJ122: 0 | AN122: 0
AJ123: 0 | AN123: 0
AJ124: 0 | AN124: 0
AJ125: 0 | AN125: 0
AJ126: 0 | AN126: 0
AJ127: 0 | AN127: 0
AJ128: 0 | AN128: 0
AJ129: 0 | AN129: 0
AJ130: 0 | AN130: 0
AJ131: 0 | AN131: 0
AJ132: 0 | AN132: 0
AJ133: 0 | AN133: 0
AJ134: 0 | AN134: 0
AJ135: =SUM(AJ105:AJ134) -> 0
AM137: Residual Interest
AM138: =+AN39 -> 0
AM139: =+AN40 -> 0
AM140: 0
AM141: 0
AM142: 0
AM143: 0
AM144: 0
AM145: 0
AM146: 0
AM147: 0
AM148: 0
AM149: 0
AM150: 0
AM151: 0
AM152: 0
AM153: 0
AM154: 0
AM155: 0
AM156: 0
AM157: 0
AM158: 0
AM159: 0
AM160: 0
AM161: 0
AM162: 0
AM163: 0
AM164: 0
AM165: 0
AM166: 0
AM167: =AK68*(1/((1+$AI$28)^(AE68-0.5))) -> 0 | AN167: =SUM(AM138:AM167) -> 0
AM168: =+AN69+(AN68-AM167) -> 0
AM169: 0
AM170: 0
AM171: 0
AM172: =+AN73 -> 0
AM173: 0
AM174: 0
AM175: 0
AM176: 0
AM177: 0 | AN177: =SUM(AM138:AM177) -> 0
AM178: 0
AM179: 0
AM180: 0
AM181: 0
AM182: 0
AM183: 0
AM184: 0
AM185: 0
AM186: 0
AM187: 0 | AN187: =SUM(AM138:AM187) -> 0
AM188: 0
AM189: 0
AM190: 0
AM191: 0
AM192: 0
AM193: 0
AM194: 0
AM195: 0
AM196: 0
AM197: 0 | AN197: =SUM(AM168:AM197) -> 0
A400: 2017-02-23

Sheet Limited Equity
B1: Limited Equity | CQ1: =#REF! ->  | CR1: =#REF! ->  | CS1: =#REF! ->  | CT1: =#REF! ->  | CU1: =#REF! ->  | CV1: =#REF! ->  | CW1: =#REF! ->  | CX1: =#REF! ->  | CY1: =#REF! ->  | CZ1: =#REF! ->  | DA1: =#REF! ->  | DB1: =#REF! ->  | DC1: =#REF! ->  | DD1: =#REF! ->  | DE1: =#REF! ->  | DF1: =#REF! ->  | DG1: =#REF! ->  | DH1: =#REF! ->  | DI1: =#REF! ->  | DJ1: =#REF! ->  | DK1: =#REF! ->  | DL1: =#REF! ->  | DM1: =#REF! ->  | DN1: =#REF! ->  | DO1: =#REF! ->  | DP1: =#REF! ->  | DQ1: =#REF! ->  | DR1: =#REF! ->  | DS1: =#REF! ->  | DT1: =#REF! -> 
B3: KEY
B4: Manual Input (If applicable)
B5: Formula with Input Capability | AG5: =YEAR(AG9) -> 2022 | AH5: =YEAR(AH9) -> 2022 | AI5: 2022 | AJ5: 2022 | AK5: 2022 | AL5: 2022 | AM5: 2022 | AN5: 2022 | AO5: 2022 | AP5: 2023 | AQ5: 2023 | AR5: 2023 | AS5: 2023 | AT5: 2023 | AU5: 2023 | AV5: 2023 | AW5: 2023 | AX5: 2023 | AY5: 2023 | AZ5: 2023 | BA5: 2023 | BB5: 2024 | BC5: 2024 | BD5: 2024 | BE5: 2024 | BF5: 2024 | BG5: 2024 | BH5: 2024 | BI5: 2024 | BJ5: 2024 | BK5: 2024 | BL5: 2024 | BM5: 2024 | BN5: 2025 | BO5: 2025 | BP5: 2025
B6: ** denotes compulsory field
B8: Unit Type | C8: No. of Units | D8: No. of Beds per Unit | E8: No. of Persons per Unit | F8: Property | G8: Individual Floor Area | H8: Full Value | I8: Equity Sold | J8: Receipt | K8: Date of Sale | R8: Cost of Development | S8: First Tranch | Z8: Property Code | AG8: =MONTH(AG9) -> 4 | AH8: =MONTH(AH9) -> 5 | AI8: 6 | AJ8: 7 | AK8: 8 | AL8: 9 | AM8: 10 | AN8: 11 | AO8: 12 | AP8: 1 | AQ8: 2 | AR8: 3 | AS8: 4 | AT8: 5 | AU8: 6 | AV8: 7 | AW8: 8 | AX8: 9 | AY8: 10 | AZ8: 11 | BA8: 12 | BB8: 1 | BC8: 2 | BD8: 3 | BE8: 4 | BF8: 5 | BG8: 6 | BH8: 7 | BI8: 8 | BJ8: 9 | BK8: 10 | BL8: 11 | BM8: 12 | BN8: 1 | BO8: 2 | BP8: 3
G9: (sq. m.) | H9: (individual unit) | I9: % | AC9: Property Type | AG9: =+'Project Information'!C25 -> 2022-04-01 | AH9: =+AG9+30 -> 2022-05-01 | AI9: =+AH9+31 -> 2022-06-01 | AJ9: =+AI9+31 -> 2022-07-02 | AK9: =+AJ9+31 -> 2022-08-02 | AL9: =+AK9+30 -> 2022-09-01 | AM9: =+AL9+31 -> 2022-10-02 | AN9: =+AM9+30 -> 2022-11-01 | AO9: =+AN9+31 -> 2022-12-02 | AP9: =+AO9+31 -> 2023-01-02 | AQ9: =+AP9+31 -> 2023-02-02 | AR9: =+AQ9+28 -> 2023-03-02 | AS9: =+AR9+31 -> 2023-04-02 | AT9: =+AS9+30 -> 2023-05-02 | AU9: =+AT9+31 -> 2023-06-02 | AV9: =+AU9+31 -> 2023-07-03 | AW9: =+AV9+31 -> 2023-08-03 | AX9: =+AW9+30 -> 2023-09-02 | AY9: =+AX9+31 -> 2023-10-03 | AZ9: =+AY9+30 -> 2023-11-02 | BA9: =+AZ9+31 -> 2023-12-03 | BB9: =+BA9+31 -> 2024-01-03 | BC9: =+BB9+31 -> 2024-02-03 | BD9: =+BC9+28 -> 2024-03-02 | BE9: =+BD9+31 -> 2024-04-02 | BF9: =+BE9+30 -> 2024-05-02 | BG9: =+BF9+31 -> 2024-06-02 | BH9: =+BG9+31 -> 2024-07-03 | BI9: =+BH9+31 -> 2024-08-03 | BJ9: =+BI9+30 -> 2024-09-02 | BK9: =+BJ9+31 -> 2024-10-03 | BL9: =+BK9+30 -> 2024-11-02 | BM9: =+BL9+31 -> 2024-12-03 | BN9: =+BM9+31 -> 2025-01-03 | BO9: =+BN9+31 -> 2025-02-03 | BP9: =+BO9+28 -> 2025-03-03 | BQ9: 2020-04-01
B10: ** | C10: ** | G10: ** | H10: ** | K10: **
D11: =LEFT(B11,1) ->  | E11: =IF(C11="",0,(IF(LEN(B11)=5,MID(B11,3,1),MID(B11,3,2)))) -> 0 | F11: =IF(Z11="H","House",IF(Z11="B","Bungalow",IF(Z11="F","Flat",IF(Z11="S","Shared",IF(Z11="T","Bedsit",IF(Z11="A","Wheelchair Flat",IF(Z11="W","Wheelchair",0))))))) -> 0 | I11: =+'Project Information'!H38 -> 50.00% | J11: =+H11*I11 -> 0 | R11: =IF(C11=0,0,(+C11*G11)/$G$21*$R$21) -> 0.00 | S11: =+R11*I11 -> 0.00 | Z11: =RIGHT(B11,1) ->  | AC11: 0B0PS | AG11: =IF(AND(MONTH($K11)=$AG$8,YEAR($K11)=$AG$5),($J11*$C11),0) -> 0 | AH11: =IF(AND(MONTH($K11)=$AH$8,YEAR($K11)=$AH$5),($J11*$C11),0) -> 0 | AI11: =IF(AND(MONTH($K11)=$AI$8,YEAR($K11)=$AI$5),($J11*$C11),0) -> 0 | AJ11: =IF(AND(MONTH($K11)=$AJ$8,YEAR($K11)=$AJ$5),($J11*$C11),0) -> 0 | AK11: =IF(AND(MONTH($K11)=$AK$8,YEAR($K11)=$AK$5),($J11*$C11),0) -> 0 | AL11: =IF(AND(MONTH($K11)=$AL$8,YEAR($K11)=$AL$5),($J11*$C11),0) -> 0 | AM11: =IF(AND(MONTH($K11)=$AM$8,YEAR($K11)=$AM$5),($J11*$C11),0) -> 0 | AN11: =IF(AND(MONTH($K11)=$AN$8,YEAR($K11)=$AN$5),($J11*$C11),0) -> 0 | AO11: =IF(AND(MONTH($K11)=$AO$8,YEAR($K11)=$AO$5),($J11*$C11),0) -> 0 | AP11: =IF(AND(MONTH($K11)=$AP$8,YEAR($K11)=$AP$5),($J11*$C11),0) -> 0 | AQ11: =IF(AND(MONTH($K11)=$AQ$8,YEAR($K11)=$AQ$5),($J11*$C11),0) -> 0 | AR11: =IF(AND(MONTH($K11)=$AR$8,YEAR($K11)=$AR$5),($J11*$C11),0) -> 0 | AS11: =IF(AND(MONTH($K11)=$AS$8,YEAR($K11)=$AS$5),($J11*$C11),0) -> 0 | AT11: =IF(AND(MONTH($K11)=$AT$8,YEAR($K11)=$AT$5),($J11*$C11),0) -> 0 | AU11: =IF(AND(MONTH($K11)=$AU$8,YEAR($K11)=$AU$5),($J11*$C11),0) -> 0 | AV11: =IF(AND(MONTH($K11)=$AV$8,YEAR($K11)=$AV$5),($J11*$C11),0) -> 0 | AW11: =IF(AND(MONTH($K11)=$AW$8,YEAR($K11)=$AW$5),($J11*$C11),0) -> 0 | AX11: =IF(AND(MONTH($K11)=$AX$8,YEAR($K11)=$AX$5),($J11*$C11),0) -> 0 | AY11: =IF(AND(MONTH($K11)=$AY$8,YEAR($K11)=$AY$5),($J11*$C11),0) -> 0 | AZ11: =IF(AND(MONTH($K11)=$AZ$8,YEAR($K11)=$AZ$5),($J11*$C11),0) -> 0 | BA11: =IF(AND(MONTH($K11)=$BA$8,YEAR($K11)=$BA$5),($J11*$C11),0) -> 0 | BB11: =IF(AND(MONTH($K11)=$BB$8,YEAR($K11)=$BB$5),($J11*$C11),0) -> 0 | BC11: =IF(AND(MONTH($K11)=$BC$8,YEAR($K11)=$BC$5),($J11*$C11),0) -> 0 | BD11: =IF(AND(MONTH($K11)=$BD$8,YEAR($K11)=$BD$5),($J11*$C11),0) -> 0 | BE11: =IF(AND(MONTH($K11)=$BE$8,YEAR($K11)=$BE$5),($J11*$C11),0) -> 0 | BF11: =IF(AND(MONTH($K11)=$BF$8,YEAR($K11)=$BF$5),($J11*$C11),0) -> 0 | BG11: =IF(AND(MONTH($K11)=$BG$8,YEAR($K11)=$BG$5),($J11*$C11),0) -> 0 | BH11: =IF(AND(MONTH($K11)=$BH$8,YEAR($K11)=$BH$5),($J11*$C11),0) -> 0 | BI11: =IF(AND(MONTH($K11)=$BI$8,YEAR($K11)=$BI$5),($J11*$C11),0) -> 0 | BJ11: =IF(AND(MONTH($K11)=$BJ$8,YEAR($K11)=$BJ$5),($J11*$C11),0) -> 0 | BK11: =IF(AND(MONTH($K11)=$BK$8,YEAR($K11)=$BK$5),($J11*$C11),0) -> 0 | BL11: =IF(AND(MONTH($K11)=$BL$8,YEAR($K11)=$BL$5),($J11*$C11),0) -> 0 | BM11: =IF(AND(MONTH($K11)=$BM$8,YEAR($K11)=$BM$5),($J11*$C11),0) -> 0 | BN11: =IF(AND(MONTH($K11)=$BN$8,YEAR($K11)=$BN$5),($J11*$C11),0) -> 0 | BO11: =IF(AND(MONTH($K11)=$BO$8,YEAR($K11)=$BO$5),($J11*$C11),0) -> 0 | BP11: =IF(AND(MONTH($K11)=$BP$8,YEAR($K11)=$BP$5),($J11*$C11),0) -> 0
E12: 0 | F12: 0 | I12: =+I11 -> 50.00% | J12: =+H12*I12 -> 0 | R12: =IF(C12=0,0,(+C12*G12)/$G$21*$R$21) -> 0.00 | S12: =+R12*I12 -> 0.00 | AC12: 1B1PF | AG12: 0 | AH12: 0 | AI12: 0 | AJ12: 0 | AK12: 0 | AL12: 0 | AM12: 0 | AN12: 0 | AO12: 0 | AP12: 0 | AQ12: 0 | AR12: 0 | AS12: 0 | AT12: 0 | AU12: 0 | AV12: 0 | AW12: 0 | AX12: 0 | AY12: 0 | AZ12: 0 | BA12: 0 | BB12: 0 | BC12: 0 | BD12: 0 | BE12: 0 | BF12: 0 | BG12: 0 | BH12: 0 | BI12: 0 | BJ12: 0 | BK12: 0 | BL12: 0 | BM12: 0 | BN12: 0 | BO12: 0 | BP12: 0
E13: 0 | F13: 0 | I13: =+I12 -> 50.00% | J13: 0 | R13: 0.00 | S13: 0.00 | AC13: 1B1PT | AG13: 0 | AH13: 0 | AI13: 0 | AJ13: 0 | AK13: 0 | AL13: 0 | AM13: 0 | AN13: 0 | AO13: 0 | AP13: 0 | AQ13: 0 | AR13: 0 | AS13: 0 | AT13: 0 | AU13: 0 | AV13: 0 | AW13: 0 | AX13: 0 | AY13: 0 | AZ13: 0 | BA13: 0 | BB13: 0 | BC13: 0 | BD13: 0 | BE13: 0 | BF13: 0 | BG13: 0 | BH13: 0 | BI13: 0 | BJ13: 0 | BK13: 0 | BL13: 0 | BM13: 0 | BN13: 0 | BO13: 0 | BP13: 0
E14: 0 | F14: 0 | I14: 50.00% | J14: 0 | R14: 0.00 | S14: 0.00 | AC14: 1B2PA | AG14: 0 | AH14: 0 | AI14: 0 | AJ14: 0 | AK14: 0 | AL14: 0 | AM14: 0 | AN14: 0 | AO14: 0 | AP14: 0 | AQ14: 0 | AR14: 0 | AS14: 0 | AT14: 0 | AU14: 0 | AV14: 0 | AW14: 0 | AX14: 0 | AY14: 0 | AZ14: 0 | BA14: 0 | BB14: 0 | BC14: 0 | BD14: 0 | BE14: 0 | BF14: 0 | BG14: 0 | BH14: 0 | BI14: 0 | BJ14: 0 | BK14: 0 | BL14: 0 | BM14: 0 | BN14: 0 | BO14: 0 | BP14: 0
E15: 0 | F15: 0 | I15: 50.00% | J15: 0 | R15: 0.00 | S15: 0.00 | AC15: 1B2PB | AG15: 0 | AH15: 0 | AI15: 0 | AJ15: 0 | AK15: 0 | AL15: 0 | AM15: 0 | AN15: 0 | AO15: 0 | AP15: 0 | AQ15: 0 | AR15: 0 | AS15: 0 | AT15: 0 | AU15: 0 | AV15: 0 | AW15: 0 | AX15: 0 | AY15: 0 | AZ15: 0 | BA15: 0 | BB15: 0 | BC15: 0 | BD15: 0 | BE15: 0 | BF15: 0 | BG15: 0 | BH15: 0 | BI15: 0 | BJ15: 0 | BK15: 0 | BL15: 0 | BM15: 0 | BN15: 0 | BO15: 0 | BP15: 0
E16: 0 | F16: 0 | I16: 50.00% | J16: 0 | R16: 0.00 | S16: 0.00 | AC16: 1B2PF | AG16: 0 | AH16: 0 | AI16: 0 | AJ16: 0 | AK16: 0 | AL16: 0 | AM16: 0 | AN16: 0 | AO16: 0 | AP16: 0 | AQ16: 0 | AR16: 0 | AS16: 0 | AT16: 0 | AU16: 0 | AV16: 0 | AW16: 0 | AX16: 0 | AY16: 0 | AZ16: 0 | BA16: 0 | BB16: 0 | BC16: 0 | BD16: 0 | BE16: 0 | BF16: 0 | BG16: 0 | BH16: 0 | BI16: 0 | BJ16: 0 | BK16: 0 | BL16: 0 | BM16: 0 | BN16: 0 | BO16: 0 | BP16: 0
E17: 0 | F17: 0 | I17: 50.00% | J17: 0 | R17: 0.00 | S17: 0.00 | AC17: 1B2PH | AG17: 0 | AH17: 0 | AI17: 0 | AJ17: 0 | AK17: 0 | AL17: 0 | AM17: 0 | AN17: 0 | AO17: 0 | AP17: 0 | AQ17: 0 | AR17: 0 | AS17: 0 | AT17: 0 | AU17: 0 | AV17: 0 | AW17: 0 | AX17: 0 | AY17: 0 | AZ17: 0 | BA17: 0 | BB17: 0 | BC17: 0 | BD17: 0 | BE17: 0 | BF17: 0 | BG17: 0 | BH17: 0 | BI17: 0 | BJ17: 0 | BK17: 0 | BL17: 0 | BM17: 0 | BN17: 0 | BO17: 0 | BP17: 0
E18: 0 | F18: 0 | I18: 50.00% | J18: 0 | R18: 0.00 | S18: 0.00 | AC18: 2B2PF | AG18: 0 | AH18: 0 | AI18: 0 | AJ18: 0 | AK18: 0 | AL18: 0 | AM18: 0 | AN18: 0 | AO18: 0 | AP18: 0 | AQ18: 0 | AR18: 0 | AS18: 0 | AT18: 0 | AU18: 0 | AV18: 0 | AW18: 0 | AX18: 0 | AY18: 0 | AZ18: 0 | BA18: 0 | BB18: 0 | BC18: 0 | BD18: 0 | BE18: 0 | BF18: 0 | BG18: 0 | BH18: 0 | BI18: 0 | BJ18: 0 | BK18: 0 | BL18: 0 | BM18: 0 | BN18: 0 | BO18: 0 | BP18: 0
E19: 0 | F19: =IF(Z19="H","House",IF(Z19="B","Bungalow",IF(Z19="F","Flat",IF(Z19="S","Shared",IF(Z19="T","Bedsit",IF(Z19="A","Wheelchair Flat",IF(Z19="W","Wheelchair",0))))))) -> 0 | I19: 50.00% | J19: 0 | R19: 0.00 | S19: 0.00 | AC19: 2B3PA | AG19: 0 | AH19: 0 | AI19: 0 | AJ19: 0 | AK19: 0 | AL19: 0 | AM19: 0 | AN19: 0 | AO19: 0 | AP19: 0 | AQ19: 0 | AR19: 0 | AS19: 0 | AT19: 0 | AU19: 0 | AV19: 0 | AW19: 0 | AX19: 0 | AY19: 0 | AZ19: 0 | BA19: 0 | BB19: 0 | BC19: 0 | BD19: 0 | BE19: 0 | BF19: 0 | BG19: 0 | BH19: 0 | BI19: 0 | BJ19: 0 | BK19: 0 | BL19: 0 | BM19: 0 | BN19: 0 | BO19: 0 | BP19: 0
E20: 0 | F20: =IF(Z20="H","House",IF(Z20="B","Bungalow",IF(Z20="F","Flat",IF(Z20="S","Shared",IF(Z20="T","Bedsit",IF(Z20="A","Wheelchair Flat",IF(Z20="W","Wheelchair",0))))))) -> 0 | I20: 50.00% | J20: 0 | R20: 0.00 | S20: 0.00 | AC20: 2B3PB | AG20: 0 | AH20: 0 | AI20: 0 | AJ20: 0 | AK20: 0 | AL20: 0 | AM20: 0 | AN20: 0 | AO20: 0 | AP20: 0 | AQ20: 0 | AR20: 0 | AS20: 0 | AT20: 0 | AU20: 0 | AV20: 0 | AW20: 0 | AX20: 0 | AY20: 0 | AZ20: 0 | BA20: 0 | BB20: 0 | BC20: 0 | BD20: 0 | BE20: 0 | BF20: 0 | BG20: 0 | BH20: 0 | BI20: 0 | BJ20: 0 | BK20: 0 | BL20: 0 | BM20: 0 | BN20: 0 | BO20: 0 | BP20: 0
B21: Total Units | C21: =SUM(C11:C20) -> 0 | D21: Total Persons | E21: =($C$11*E11)+($C$12*E12)+($C$13*E13)+($C$14*E14)+($C$15*E15)+($C$16*E16)+($C$17*E17)+($C$18*E18)+($C$19*E19)+($C$20*E20) -> 0 | G21: =($C$11*G11)+($C$12*G12)+($C$13*G13)+($C$14*G14)+($C$15*G15)+($C$16*G16)+($C$17*G17)+($C$18*G18)+($C$19*G19)+($C$20*G20) -> 0 | H21: =($C$11*H11)+($C$12*H12)+($C$13*H13)+($C$14*H14)+($C$15*H15)+($C$16*H16)+($C$17*H17)+($C$18*H18)+($C$19*H19)+($C$20*H20) -> 0 | I21: =IF(C21=0,0,(($C$11*I11)+($C$12*I12)+($C$13*I13)+($C$14*I14)+($C$15*I15)+($C$16*I16)+($C$17*I17)+($C$18*I18)+($C$19*I19)+($C$20*I20))/C21) -> 0.00% | J21: =($C$11*J11)+($C$12*J12)+($C$13*J13)+($C$14*J14)+($C$15*J15)+($C$16*J16)+($C$17*J17)+($C$18*J18)+($C$19*J19)+($C$20*J20) -> 0 | R21: =IF(C21=0,0,(+Summary!D13/Summary!D16*Summary!D34)) -> 0.00 | S21: =+R21*I21 -> 0.00 | AC21: 2B3PF
AC22: 2B3PH | AG22: =SUM(AG11:AG20) -> 0 | AH22: =SUM(AH11:AH20) -> 0 | AI22: 0 | AJ22: 0 | AK22: 0 | AL22: 0 | AM22: 0 | AN22: 0 | AO22: 0 | AP22: 0 | AQ22: 0 | AR22: 0 | AS22: 0 | AT22: 0 | AU22: =SUM(AU11:AU20) -> 0 | AV22: =SUM(AV11:AV20) -> 0 | AW22: =SUM(AW11:AW20) -> 0 | AX22: 0 | AY22: 0 | AZ22: 0 | BA22: 0 | BB22: 0 | BC22: 0 | BD22: 0 | BE22: 0 | BF22: 0 | BG22: 0 | BH22: 0 | BI22: 0 | BJ22: 0 | BK22: 0 | BL22: 0 | BM22: 0 | BN22: 0 | BO22: 0 | BP22: 0
AC23: 2B3PW
AC24: 2B4PB
AC25: 2B4PF
AC26: 2B4PH
AC27: 2B4PW
AC28: 3B3PH
AC29: 3B3PS
AC30: 3B4PA
AC31: 3B4PF
AC32: 3B4PB
AC33: 3B4PH
AC34: 3B4PW
AC35: 3B5PA
AC36: 3B5PB
AC37: 3B5PF
AC38: 3B5PH
AC39: 3B5PW
AC40: 3B6PB
AC41: 3B6PH
AC42: 4B4PS
AC43: 4B6PA
AC44: 4B6PH
AC45: 4B7PA
AC46: 4B7PB
AC47: 4B7PH
AC48: 4B7PW
AC49: 4B8PH
AC50: 4B8PW
AC51: 5B10PH
A400: 2017-06-06

Sheet OutrightSale
B1: Outright Sale
B3: KEY
B4: Manual Input (If applicable)
B5: Formula with Input Capability
B6: ** denotes compulsory field
AQ7: =YEAR(AQ9) -> 2022 | AR7: =YEAR(AR9) -> 2022 | AS7: 2022 | AT7: 2022 | AU7: 2022 | AV7: 2022 | AW7: 2022 | AX7: 2022 | AY7: 2022 | AZ7: 2023 | BA7: 2023 | BB7: 2023 | BC7: 2023 | BD7: 2023 | BE7: 2023 | BF7: 2023 | BG7: 2023 | BH7: 2023 | BI7: 2023 | BJ7: 2023 | BK7: 2023 | BL7: 2024 | BM7: 2024 | BN7: 2024 | BO7: 2024 | BP7: 2024 | BQ7: 2024 | BR7: 2024 | BS7: 2024 | BT7: 2024 | BU7: 2024 | BV7: 2024 | BW7: 2024 | BX7: 2025 | BY7: 2025 | BZ7: 2025
B8: Unit Type | C8: No. of Units | D8: No. of Beds per Unit | E8: No. of Persons per Unit | F8: Property | G8: Individual Floor Area | H8: Sales Value | I8: Date of Sale | M8: Cost of Development | U8: Property Code | AQ8: =MONTH(AQ9) -> 4 | AR8: =MONTH(AR9) -> 5 | AS8: 6 | AT8: 7 | AU8: 8 | AV8: 9 | AW8: 10 | AX8: 11 | AY8: 12 | AZ8: 1 | BA8: 2 | BB8: 3 | BC8: 4 | BD8: 5 | BE8: 6 | BF8: 7 | BG8: 8 | BH8: 9 | BI8: 10 | BJ8: 11 | BK8: 12 | BL8: 1 | BM8: 2 | BN8: 3 | BO8: 4 | BP8: 5 | BQ8: 6 | BR8: 7 | BS8: 8 | BT8: 9 | BU8: 10 | BV8: 11 | BW8: 12 | BX8: 1 | BY8: 2 | BZ8: 3
G9: (sq. m.) | H9: (individual unit) | AH9: Property Type | AI9: New Build/Rehab | AQ9: =+'Project Information'!C25 -> 2022-04-01 | AR9: =+AQ9+30 -> 2022-05-01 | AS9: =+AR9+31 -> 2022-06-01 | AT9: =+AS9+31 -> 2022-07-02 | AU9: =+AT9+31 -> 2022-08-02 | AV9: =+AU9+30 -> 2022-09-01 | AW9: =+AV9+31 -> 2022-10-02 | AX9: =+AW9+30 -> 2022-11-01 | AY9: =+AX9+31 -> 2022-12-02 | AZ9: =+AY9+31 -> 2023-01-02 | BA9: =+AZ9+31 -> 2023-02-02 | BB9: =+BA9+28 -> 2023-03-02 | BC9: =+BB9+31 -> 2023-04-02 | BD9: =+BC9+30 -> 2023-05-02 | BE9: =+BD9+31 -> 2023-06-02 | BF9: =+BE9+31 -> 2023-07-03 | BG9: =+BF9+31 -> 2023-08-03 | BH9: =+BG9+30 -> 2023-09-02 | BI9: =+BH9+31 -> 2023-10-03 | BJ9: =+BI9+30 -> 2023-11-02 | BK9: =+BJ9+31 -> 2023-12-03 | BL9: =+BK9+31 -> 2024-01-03 | BM9: =+BL9+31 -> 2024-02-03 | BN9: =+BM9+28 -> 2024-03-02 | BO9: =+BN9+31 -> 2024-04-02 | BP9: =+BO9+30 -> 2024-05-02 | BQ9: =+BP9+31 -> 2024-06-02 | BR9: =+BQ9+31 -> 2024-07-03 | BS9: =+BR9+31 -> 2024-08-03 | BT9: =+BS9+30 -> 2024-09-02 | BU9: =+BT9+31 -> 2024-10-03 | BV9: =+BU9+30 -> 2024-11-02 | BW9: =+BV9+31 -> 2024-12-03 | BX9: =+BW9+31 -> 2025-01-03 | BY9: =+BX9+31 -> 2025-02-03 | BZ9: =+BY9+28 -> 2025-03-03 | CA9: 2020-04-01
B10: ** | C10: ** | G10: ** | H10: ** | I10: **
D11: =LEFT(B11,1) ->  | E11: =IF(C11="",0,(IF(LEN(B11)=5,MID(B11,3,1),MID(B11,3,2)))) -> 0 | F11: =IF(U11="H","House",IF(U11="B","Bungalow",IF(U11="F","Flat",IF(U11="S","Shared",IF(U11="T","Bedsit",IF(U11="A","Wheelchair Flat",IF(U11="W","Wheelchair",0))))))) -> 0 | M11: =IF(C11=0,0,(+C11*G11)/$G$21*$M$21) -> 0.00 | U11: =RIGHT(B11,1) ->  | AH11: 0B0PS | AI11: NB - GDT | AQ11: =IF(AND(MONTH($I11)=$AQ$8,YEAR($I11)=$AQ$7),($H11*$C11),0) -> 0 | AR11: =IF(AND(MONTH($I11)=$AR$8,YEAR($I11)=$AR$7),($H11*$C11),0) -> 0 | AS11: =IF(AND(MONTH($I11)=$AS$8,YEAR($I11)=$AS$7),($H11*$C11),0) -> 0 | AT11: =IF(AND(MONTH($I11)=$AT$8,YEAR($I11)=$AT$7),($H11*$C11),0) -> 0 | AU11: =IF(AND(MONTH($I11)=$AU$8,YEAR($I11)=$AU$7),($H11*$C11),0) -> 0 | AV11: =IF(AND(MONTH($I11)=$AV$8,YEAR($I11)=$AV$7),($H11*$C11),0) -> 0 | AW11: =IF(AND(MONTH($I11)=$AW$8,YEAR($I11)=$AW$7),($H11*$C11),0) -> 0 | AX11: =IF(AND(MONTH($I11)=$AX$8,YEAR($I11)=$AX$7),($H11*$C11),0) -> 0 | AY11: =IF(AND(MONTH($I11)=$AY$8,YEAR($I11)=$AY$7),($H11*$C11),0) -> 0 | AZ11: =IF(AND(MONTH($I11)=$AZ$8,YEAR($I11)=$AZ$7),($H11*$C11),0) -> 0 | BA11: =IF(AND(MONTH($I11)=$BA$8,YEAR($I11)=$BA$7),($H11*$C11),0) -> 0 | BB11: =IF(AND(MONTH($I11)=$BB$8,YEAR($I11)=$BB$7),($H11*$C11),0) -> 0 | BC11: =IF(AND(MONTH($I11)=$BC$8,YEAR($I11)=$BC$7),($H11*$C11),0) -> 0 | BD11: =IF(AND(MONTH($I11)=$BD$8,YEAR($I11)=$BD$7),($H11*$C11),0) -> 0 | BE11: =IF(AND(MONTH($I11)=$BE$8,YEAR($I11)=$BE$7),($H11*$C11),0) -> 0 | BF11: =IF(AND(MONTH($I11)=$BF$8,YEAR($I11)=$BF$7),($H11*$C11),0) -> 0 | BG11: =IF(AND(MONTH($I11)=$BG$8,YEAR($I11)=$BG$7),($H11*$C11),0) -> 0 | BH11: =IF(AND(MONTH($I11)=$BH$8,YEAR($I11)=$BH$7),($H11*$C11),0) -> 0 | BI11: =IF(AND(MONTH($I11)=$BI$8,YEAR($I11)=$BI$7),($H11*$C11),0) -> 0 | BJ11: =IF(AND(MONTH($I11)=$BJ$8,YEAR($I11)=$BJ$7),($H11*$C11),0) -> 0 | BK11: =IF(AND(MONTH($I11)=$BK$8,YEAR($I11)=$BK$7),($H11*$C11),0) -> 0 | BL11: =IF(AND(MONTH($I11)=$BL$8,YEAR($I11)=$BL$7),($H11*$C11),0) -> 0 | BM11: =IF(AND(MONTH($I11)=$BM$8,YEAR($I11)=$BM$7),($H11*$C11),0) -> 0 | BN11: =IF(AND(MONTH($I11)=$BN$8,YEAR($I11)=$BN$7),($H11*$C11),0) -> 0 | BO11: =IF(AND(MONTH($I11)=$BO$8,YEAR($I11)=$BO$7),($H11*$C11),0) -> 0 | BP11: =IF(AND(MONTH($I11)=$BP$8,YEAR($I11)=$BP$7),($H11*$C11),0) -> 0 | BQ11: =IF(AND(MONTH($I11)=$BQ$8,YEAR($I11)=$BQ$7),($H11*$C11),0) -> 0 | BR11: =IF(AND(MONTH($I11)=$BR$8,YEAR($I11)=$BR$7),($H11*$C11),0) -> 0 | BS11: =IF(AND(MONTH($I11)=$BS$8,YEAR($I11)=$BS$7),($H11*$C11),0) -> 0 | BT11: =IF(AND(MONTH($I11)=$BT$8,YEAR($I11)=$BT$7),($H11*$C11),0) -> 0 | BU11: =IF(AND(MONTH($I11)=$BU$8,YEAR($I11)=$BU$7),($H11*$C11),0) -> 0 | BV11: =IF(AND(MONTH($I11)=$BV$8,YEAR($I11)=$BV$7),($H11*$C11),0) -> 0 | BW11: =IF(AND(MONTH($I11)=$BW$8,YEAR($I11)=$BW$7),($H11*$C11),0) -> 0 | BX11: =IF(AND(MONTH($I11)=$BX$8,YEAR($I11)=$BX$7),($H11*$C11),0) -> 0 | BY11: =IF(AND(MONTH($I11)=$BY$8,YEAR($I11)=$BY$7),($H11*$C11),0) -> 0 | BZ11: =IF(AND(MONTH($I11)=$BZ$8,YEAR($I11)=$BZ$7),($H11*$C11),0) -> 0
E12: 0 | F12: 0 | M12: =IF(C12=0,0,(+C12*G12)/$G$21*$M$21) -> 0.00 | AH12: 1B1PF | AI12: NB - non GDT | AQ12: 0 | AR12: 0 | AS12: 0 | AT12: 0 | AU12: 0 | AV12: 0 | AW12: 0 | AX12: 0 | AY12: 0 | AZ12: 0 | BA12: 0 | BB12: 0 | BC12: 0 | BD12: 0 | BE12: 0 | BF12: 0 | BG12: 0 | BH12: 0 | BI12: 0 | BJ12: 0 | BK12: 0 | BL12: 0 | BM12: 0 | BN12: 0 | BO12: 0 | BP12: 0 | BQ12: 0 | BR12: 0 | BS12: 0 | BT12: 0 | BU12: 0 | BV12: 0 | BW12: 0 | BX12: 0 | BY12: 0 | BZ12: 0
E13: 0 | F13: 0 | M13: 0.00 | AH13: 1B1PT | AI13: RH | AQ13: 0 | AR13: 0 | AS13: 0 | AT13: 0 | AU13: 0 | AV13: 0 | AW13: 0 | AX13: 0 | AY13: 0 | AZ13: 0 | BA13: 0 | BB13: 0 | BC13: 0 | BD13: 0 | BE13: 0 | BF13: 0 | BG13: 0 | BH13: 0 | BI13: 0 | BJ13: 0 | BK13: 0 | BL13: 0 | BM13: 0 | BN13: 0 | BO13: 0 | BP13: 0 | BQ13: 0 | BR13: 0 | BS13: 0 | BT13: 0 | BU13: 0 | BV13: 0 | BW13: 0 | BX13: 0 | BY13: 0 | BZ13: 0
E14: 0 | F14: 0 | M14: 0.00 | AH14: 1B2PA | AQ14: 0 | AR14: 0 | AS14: 0 | AT14: 0 | AU14: 0 | AV14: 0 | AW14: 0 | AX14: 0 | AY14: 0 | AZ14: 0 | BA14: 0 | BB14: 0 | BC14: 0 | BD14: 0 | BE14: 0 | BF14: 0 | BG14: 0 | BH14: 0 | BI14: 0 | BJ14: 0 | BK14: 0 | BL14: 0 | BM14: 0 | BN14: 0 | BO14: 0 | BP14: 0 | BQ14: 0 | BR14: 0 | BS14: 0 | BT14: 0 | BU14: 0 | BV14: 0 | BW14: 0 | BX14: 0 | BY14: 0 | BZ14: 0
E15: 0 | F15: 0 | M15: 0.00 | AH15: 1B2PB | AQ15: 0 | AR15: 0 | AS15: 0 | AT15: 0 | AU15: 0 | AV15: 0 | AW15: 0 | AX15: 0 | AY15: 0 | AZ15: 0 | BA15: 0 | BB15: 0 | BC15: 0 | BD15: 0 | BE15: 0 | BF15: 0 | BG15: 0 | BH15: 0 | BI15: 0 | BJ15: 0 | BK15: 0 | BL15: 0 | BM15: 0 | BN15: 0 | BO15: 0 | BP15: 0 | BQ15: 0 | BR15: 0 | BS15: 0 | BT15: 0 | BU15: 0 | BV15: 0 | BW15: 0 | BX15: 0 | BY15: 0 | BZ15: 0
E16: 0 | F16: 0 | M16: 0.00 | AH16: 1B2PF | AQ16: 0 | AR16: 0 | AS16: 0 | AT16: 0 | AU16: 0 | AV16: 0 | AW16: 0 | AX16: 0 | AY16: 0 | AZ16: 0 | BA16: 0 | BB16: 0 | BC16: 0 | BD16: 0 | BE16: 0 | BF16: 0 | BG16: 0 | BH16: 0 | BI16: 0 | BJ16: 0 | BK16: 0 | BL16: 0 | BM16: 0 | BN16: 0 | BO16: 0 | BP16: 0 | BQ16: 0 | BR16: 0 | BS16: 0 | BT16: 0 | BU16: 0 | BV16: 0 | BW16: 0 | BX16: 0 | BY16: 0 | BZ16: 0
E17: 0 | F17: 0 | M17: 0.00 | AH17: 1B2PH | AQ17: 0 | AR17: 0 | AS17: 0 | AT17: 0 | AU17: 0 | AV17: 0 | AW17: 0 | AX17: 0 | AY17: 0 | AZ17: 0 | BA17: 0 | BB17: 0 | BC17: 0 | BD17: 0 | BE17: 0 | BF17: 0 | BG17: 0 | BH17: 0 | BI17: 0 | BJ17: 0 | BK17: 0 | BL17: 0 | BM17: 0 | BN17: 0 | BO17: 0 | BP17: 0 | BQ17: 0 | BR17: 0 | BS17: 0 | BT17: 0 | BU17: 0 | BV17: 0 | BW17: 0 | BX17: 0 | BY17: 0 | BZ17: 0
E18: 0 | F18: 0 | M18: 0.00 | AH18: 2B2PF | AQ18: 0 | AR18: 0 | AS18: 0 | AT18: 0 | AU18: 0 | AV18: 0 | AW18: 0 | AX18: 0 | AY18: 0 | AZ18: 0 | BA18: 0 | BB18: 0 | BC18: 0 | BD18: 0 | BE18: 0 | BF18: 0 | BG18: 0 | BH18: 0 | BI18: 0 | BJ18: 0 | BK18: 0 | BL18: 0 | BM18: 0 | BN18: 0 | BO18: 0 | BP18: 0 | BQ18: 0 | BR18: 0 | BS18: 0 | BT18: 0 | BU18: 0 | BV18: 0 | BW18: 0 | BX18: 0 | BY18: 0 | BZ18: 0
E19: 0 | F19: 0 | M19: 0.00 | AH19: 2B3PA | AQ19: 0 | AR19: 0 | AS19: 0 | AT19: 0 | AU19: 0 | AV19: 0 | AW19: 0 | AX19: 0 | AY19: 0 | AZ19: 0 | BA19: 0 | BB19: 0 | BC19: 0 | BD19: 0 | BE19: 0 | BF19: 0 | BG19: 0 | BH19: 0 | BI19: 0 | BJ19: 0 | BK19: 0 | BL19: 0 | BM19: 0 | BN19: 0 | BO19: 0 | BP19: 0 | BQ19: 0 | BR19: 0 | BS19: 0 | BT19: 0 | BU19: 0 | BV19: 0 | BW19: 0 | BX19: 0 | BY19: 0 | BZ19: 0
E20: 0 | F20: 0 | M20: 0.00 | AH20: 2B3PB | AQ20: 0 | AR20: 0 | AS20: 0 | AT20: 0 | AU20: 0 | AV20: 0 | AW20: 0 | AX20: 0 | AY20: 0 | AZ20: 0 | BA20: 0 | BB20: 0 | BC20: 0 | BD20: 0 | BE20: 0 | BF20: 0 | BG20: 0 | BH20: 0 | BI20: 0 | BJ20: 0 | BK20: 0 | BL20: 0 | BM20: 0 | BN20: 0 | BO20: 0 | BP20: 0 | BQ20: 0 | BR20: 0 | BS20: 0 | BT20: 0 | BU20: 0 | BV20: 0 | BW20: 0 | BX20: 0 | BY20: 0 | BZ20: 0
B21: Total Units | C21: =SUM(C11:C20) -> 0 | D21: Total Persons | E21: =($C$11*E11)+($C$12*E12)+($C$13*E13)+($C$14*E14)+($C$15*E15)+($C$16*E16)+($C$17*E17)+($C$18*E18)+($C$19*E19)+($C$20*E20) -> 0 | G21: =($C$11*G11)+($C$12*G12)+($C$13*G13)+($C$14*G14)+($C$15*G15)+($C$16*G16)+($C$17*G17)+($C$18*G18)+($C$19*G19)+($C$20*G20) -> 0 | H21: =($C$11*H11)+($C$12*H12)+($C$13*H13)+($C$14*H14)+($C$15*H15)+($C$16*H16)+($C$17*H17)+($C$18*H18)+($C$19*H19)+($C$20*H20) -> 0 | I21: = Total Receipt | M21: =IF(C21=0,0,(+Summary!D14/Summary!D16*Summary!D34)) -> 0.00 | AH21: 2B3PF
AH22: 2B3PH
AH23: 2B3PW
AH24: 2B4PB
AH25: 2B4PF
AH26: 2B4PH
AH27: 2B4PW
AH28: 3B3PH
AH29: 3B3PS
AH30: 3B4PA
AH31: 3B4PF | AQ31: =SUM(AQ11:AQ30) -> 0 | AR31: =SUM(AR11:AR30) -> 0 | AS31: 0 | AT31: 0 | AU31: 0 | AV31: 0 | AW31: 0 | AX31: 0 | AY31: 0 | AZ31: 0 | BA31: 0 | BB31: 0 | BC31: 0 | BD31: 0 | BE31: 0 | BF31: 0 | BG31: 0 | BH31: 0 | BI31: 0 | BJ31: 0 | BK31: 0 | BL31: 0 | BM31: 0 | BN31: 0 | BO31: 0 | BP31: 0 | BQ31: 0 | BR31: 0 | BS31: 0 | BT31: 0 | BU31: 0 | BV31: 0 | BW31: 0 | BX31: 0 | BY31: 0 | BZ31: 0
AH32: 3B4PB
AH33: 3B4PH
AH34: 3B4PW
AH35: 3B5PA
AH36: 3B5PB
AH37: 3B5PF
AH38: 3B5PH
AH39: 3B5PW
AH40: 3B6PB
AH41: 3B6PH
AH42: 4B4PS
AH43: 4B6PA
AH44: 4B6PH
AH45: 4B7PA
AH46: 4B7PB
AH47: 4B7PH
AH48: 4B7PW
AH49: 4B8PH
AH50: 4B8PW
AH51: 5B10PH
A400: 2017-07-23

Sheet Commercial
B1: Commercial Property
B3: KEY
B4: Manual Input (If applicable)
B5: Formula with Input Capability
B6: ** denotes compulsory field
B8: Unit Type | C8: No. of Units | D8: Individual Floor Area | E8: Weekly Unit Rent for | F8: Total p.a.
D9: (sq. m.) | E9: ='Project Information'!H16 -> 2023/24 | P9: Property Type | S9: LONGTERM BORROWING CALCULATION SUPPORTED BY RENTS
B10: ** | C10: ** | D10: ** | E10: **
F11: =E11*C11*52 -> 0.00 | P11: Office
F12: 0.00 | P12: Workshop
F13: 0.00 | P13: Retail
F14: 0.00 | P14: Training Room
F15: 0.00 | P15: Conference Room
F16: 0.00 | P16: Cafe | S16: MRP % per unit | V16: 0.00%
F17: 0.00 | P17: Factory | S17: Number of units | V17: =C21 -> 0
F18: 0.00 | P18: Other | S18: Average rent per unit per week | V18: =E21 -> 
F19: 0.00 | S19: Voids % | V19: =+'Project Information'!D50 -> 5%
F20: 0.00 | S20: Management cost per unit per annum | V20: =+'Project Information'!D48 -> £260
B21: Total Units | C21: =SUM(C11:C20) -> 0 | D21: =($C$11*D11)+($C$12*D12)+($C$13*D13)+($C$14*D14)+($C$15*D15)+($C$16*D16)+($C$17*D17)+($C$18*D18)+($C$19*D19)+($C$20*D20) -> 0 | E21: =(F21/C21)/52 ->  | F21: =SUM(F11:F20) -> 0.00 | S21: Maintenance cost per unit per annum | V21: =+'Project Information'!D49 -> £260
S22: MRP cost per unit per annum | V22: £0
S23: Increases per annum - rents | V23: =+'Project Information'!D51 -> 3.00%
S24: - management | V24: =+'Project Information'!D52 -> 3.00%
S25: - maintenance | V25: =+'Project Information'!D53 -> 3.00% | Y25: =O15 -> 0
S26: - building fund | V26: 0.00%
S27: Discount Period in Years | V27: 60
S28: Discount Rate | V28: =+'Project Information'!H29 -> 6.00% | AC28: Gross rent | AD28: £ | AF28: =$S39 -> 0 | AG28: =$S40 -> 0 | AH28: =$S41 -> 0 | AI28: =$S42 -> 0 | AJ28: =$S43 -> 0 | AK28: =$S44 -> 0 | AL28: =$S45 -> 0 | AM28: =$S46 -> 0 | AN28: =$S47 -> 0 | AO28: =$S48 -> 0 | AP28: =$S49 -> 0 | AQ28: =$S50 -> 0 | AR28: =$S51 -> 0 | AS28: =$S52 -> 0 | AT28: =$S53 -> 0 | AU28: =$S54 -> 0 | AV28: =$S55 -> 0 | AW28: =$S56 -> 0 | AX28: =$S57 -> 0 | AY28: =$S58 -> 0 | AZ28: =$S59 -> 0 | BA28: =$S60 -> 0 | BB28: =$S61 -> 0 | BC28: =$S62 -> 0 | BD28: =$S63 -> 0 | BE28: =$S64 -> 0 | BF28: =$S65 -> 0 | BG28: =$S66 -> 0 | BH28: =$S67 -> 0 | BI28: =$S68 -> 0 | BJ28: =$S69 -> 0 | BK28: =$S70 -> 0 | BL28: =$S71 -> 0 | BM28: =$S72 -> 0 | BN28: =$S73 -> 0 | BO28: =$S74 -> 0 | BP28: =$S75 -> 0 | BQ28: =$S76 -> 0 | BR28: =$S77 -> 0 | BS28: =$S78 -> 0 | BT28: =$S79 -> 0 | BU28: =$S80 -> 0 | BV28: =$S81 -> 0 | BW28: =$S82 -> 0 | BX28: =$S83 -> 0 | BY28: =$S84 -> 0 | BZ28: =$S85 -> 0 | CA28: =$S86 -> 0 | CB28: =$S87 -> 0 | CC28: =$S88 -> 0
AC29: Voids | AF29: =T39 -> 0 | AG29: =$T40 -> 0 | AH29: =$T41 -> 0 | AI29: =$T42 -> 0 | AJ29: =$T43 -> 0 | AK29: =$T44 -> 0 | AL29: =$T45 -> 0 | AM29: =$T46 -> 0 | AN29: =$T47 -> 0 | AO29: =$T48 -> 0 | AP29: =$T49 -> 0 | AQ29: =$T50 -> 0 | AR29: =$T51 -> 0 | AS29: =$T52 -> 0 | AT29: =$T53 -> 0 | AU29: =$T54 -> 0 | AV29: =$T55 -> 0 | AW29: =$T56 -> 0 | AX29: =$T57 -> 0 | AY29: =$T58 -> 0 | AZ29: =$T59 -> 0 | BA29: =$T60 -> 0 | BB29: =$T61 -> 0 | BC29: =$T62 -> 0 | BD29: =$T63 -> 0 | BE29: =$T64 -> 0 | BF29: =$T65 -> 0 | BG29: =$T66 -> 0 | BH29: =$T67 -> 0 | BI29: =$T68 -> 0 | BJ29: =$T69 -> 0 | BK29: =$T70 -> 0 | BL29: =$T71 -> 0 | BM29: =$T72 -> 0 | BN29: =$T73 -> 0 | BO29: =$T74 -> 0 | BP29: =$T75 -> 0 | BQ29: =$T76 -> 0 | BR29: =$T77 -> 0 | BS29: =$T78 -> 0 | BT29: =$T79 -> 0 | BU29: =$T80 -> 0 | BV29: =$T81 -> 0 | BW29: =$T82 -> 0 | BX29: =$T83 -> 0 | BY29: =$T84 -> 0 | BZ29: =$T85 -> 0 | CA29: =$T86 -> 0 | CB29: =$T87 -> 0 | CC29: =$T88 -> 0
Z30: First year | AC30: Manag | AF30: =U39 -> 0 | AG30: =$U40 -> 0 | AH30: =$U41 -> 0 | AI30: =$U42 -> 0 | AJ30: =$U43 -> 0 | AK30: =$U44 -> 0 | AL30: =$U45 -> 0 | AM30: =$U46 -> 0 | AN30: =$U47 -> 0 | AO30: =$U48 -> 0 | AP30: =$U49 -> 0 | AQ30: =$U50 -> 0 | AR30: =$U51 -> 0 | AS30: =$U52 -> 0 | AT30: =$U53 -> 0 | AU30: =$U54 -> 0 | AV30: =$U55 -> 0 | AW30: =$U56 -> 0 | AX30: =$U57 -> 0 | AY30: =$U58 -> 0 | AZ30: =$U59 -> 0 | BA30: =$U60 -> 0 | BB30: =$U61 -> 0 | BC30: =$U62 -> 0 | BD30: =$U63 -> 0 | BE30: =$U64 -> 0 | BF30: =$U65 -> 0 | BG30: =$U66 -> 0 | BH30: =$U67 -> 0 | BI30: =$U68 -> 0 | BJ30: =$U69 -> 0 | BK30: =$U70 -> 0 | BL30: =$U71 -> 0 | BM30: =$U72 -> 0 | BN30: =$U73 -> 0 | BO30: =$U74 -> 0 | BP30: =$U75 -> 0 | BQ30: =$U76 -> 0 | BR30: =$U77 -> 0 | BS30: =$U78 -> 0 | BT30: =$U79 -> 0 | BU30: =$U80 -> 0 | BV30: =$U81 -> 0 | BW30: =$U82 -> 0 | BX30: =$U83 -> 0 | BY30: =$U84 -> 0 | BZ30: =$U85 -> 0 | CA30: =$U86 -> 0 | CB30: =$U87 -> 0 | CC30: =$U88 -> 0
AA31: NPV | AC31: Maint | AF31: =V39 -> 0 | AG31: =$V40 -> 0 | AH31: =$V41 -> 0 | AI31: =$V42 -> 0 | AJ31: =$V43 -> 0 | AK31: =$V44 -> 0 | AL31: =$V45 -> 0 | AM31: =$V46 -> 0 | AN31: =$V47 -> 0 | AO31: =$V48 -> 0 | AP31: =$V49 -> 0 | AQ31: =$V50 -> 0 | AR31: =$V51 -> 0 | AS31: =$V52 -> 0 | AT31: =$V53 -> 0 | AU31: =$V54 -> 0 | AV31: =$V55 -> 0 | AW31: =$V56 -> 0 | AX31: =$V57 -> 0 | AY31: =$V58 -> 0 | AZ31: =$V59 -> 0 | BA31: =$V60 -> 0 | BB31: =$V61 -> 0 | BC31: =$V62 -> 0 | BD31: =$V63 -> 0 | BE31: =$V64 -> 0 | BF31: =$V65 -> 0 | BG31: =$V66 -> 0 | BH31: =$V67 -> 0 | BI31: =$V68 -> 0 | BJ31: =$V69 -> 0 | BK31: =$V70 -> 0 | BL31: =$V71 -> 0 | BM31: =$V72 -> 0 | BN31: =$V73 -> 0 | BO31: =$V74 -> 0 | BP31: =$V75 -> 0 | BQ31: =$V76 -> 0 | BR31: =$V77 -> 0 | BS31: =$V78 -> 0 | BT31: =$V79 -> 0 | BU31: =$V80 -> 0 | BV31: =$V81 -> 0 | BW31: =$V82 -> 0 | BX31: =$V83 -> 0 | BY31: =$V84 -> 0 | BZ31: =$V85 -> 0 | CA31: =$V86 -> 0 | CB31: =$V87 -> 0 | CC31: =$V88 -> 0
AA32: =IF(V17=0,0,AA99) -> 0 | AC32: MRP | AF32: =IF($V$17=0,0,W39) -> 0 | AG32: =IF($V$17=0,0,$W40) -> 0 | AH32: =IF($V$17=0,0,$W41) -> 0 | AI32: =IF($V$17=0,0,$W42) -> 0 | AJ32: =IF($V$17=0,0,$W43) -> 0 | AK32: =IF($V$17=0,0,$W44) -> 0 | AL32: =IF($V$17=0,0,$W45) -> 0 | AM32: =IF($V$17=0,0,$W46) -> 0 | AN32: =IF($V$17=0,0,$W47) -> 0 | AO32: =IF($V$17=0,0,$W48) -> 0 | AP32: =IF($V$17=0,0,$W49) -> 0 | AQ32: =IF($V$17=0,0,$W50) -> 0 | AR32: =IF($V$17=0,0,$W51) -> 0 | AS32: =IF($V$17=0,0,$W52) -> 0 | AT32: =IF($V$17=0,0,$W53) -> 0 | AU32: =IF($V$17=0,0,$W54) -> 0 | AV32: =IF($V$17=0,0,$W55) -> 0 | AW32: =IF($V$17=0,0,$W56) -> 0 | AX32: =IF($V$17=0,0,$W57) -> 0 | AY32: =IF($V$17=0,0,$W58) -> 0 | AZ32: =IF($V$17=0,0,$W59) -> 0 | BA32: =IF($V$17=0,0,$W60) -> 0 | BB32: =IF($V$17=0,0,$W61) -> 0 | BC32: =IF($V$17=0,0,$W62) -> 0 | BD32: =IF($V$17=0,0,$W63) -> 0 | BE32: =IF($V$17=0,0,$W64) -> 0 | BF32: =IF($V$17=0,0,$W65) -> 0 | BG32: =IF($V$17=0,0,$W66) -> 0 | BH32: =IF($V$17=0,0,$W67) -> 0 | BI32: =IF($V$17=0,0,$W68) -> 0 | BJ32: =IF($V$17=0,0,$W69) -> 0 | BK32: =IF($V$17=0,0,$W70) -> 0 | BL32: =IF($V$17=0,0,$W71) -> 0 | BM32: =IF($V$17=0,0,$W72) -> 0 | BN32: =IF($V$17=0,0,$W73) -> 0 | BO32: =IF($V$17=0,0,$W74) -> 0 | BP32: =IF($V$17=0,0,$W75) -> 0 | BQ32: =IF($V$17=0,0,$W76) -> 0 | BR32: =IF($V$17=0,0,$W77) -> 0 | BS32: =IF($V$17=0,0,$W78) -> 0 | BT32: =IF($V$17=0,0,$W79) -> 0 | BU32: =IF($V$17=0,0,$W80) -> 0 | BV32: =IF($V$17=0,0,$W81) -> 0 | BW32: =IF($V$17=0,0,$W82) -> 0 | BX32: =IF($V$17=0,0,$W83) -> 0 | BY32: =IF($V$17=0,0,$W84) -> 0 | BZ32: =IF($V$17=0,0,$W85) -> 0 | CA32: =IF($V$17=0,0,$W86) -> 0 | CB32: =IF($V$17=0,0,$W87) -> 0 | CC32: =IF($V$17=0,0,$W88) -> 0
S35: =V23 -> 3.00% | T35: =V19 -> 5.00% | U35: =V24 -> 3.00% | V35: =V25 -> 3.00% | W35: =V26 -> 0.00% | Y35: =V29 -> 0.00% | AA35: Discounted
R36: Year | S36: Gross rent | T36: Voids | U36: Manag | V36: Maint | W36: MRP | X36: Net rent | Y36: Financing | Z36: Surplus | AA36: Surplus
S37: £ | T37: £ | U37: £ | V37: £ | W37: £ | X37: £ | Y37: £ | Z37: £ | AA37: £
R39: 1 | S39: =F21 -> 0 | T39: =ROUND(-S39*$V$19,0) -> 0 | U39: =ROUND(-V17*V20,0) -> 0 | V39: =ROUND(-V17*V21,0) -> 0 | W39: =$U$135*0 -> 0 | X39: =SUM(S39:W39) -> 0 | Z39: =SUM(X39:Y39) -> 0 | AA39: =X39*(1/((1+$V$28)^(R39-0.5))) -> 0
R40: =R39+1 -> 2 | S40: =S39*(1+$V$23) -> 0 | T40: 0 | U40: =IF(R40>$V$27,0,ROUND(U39*(1+$V$24),0)) -> 0 | V40: =IF(R40>$V$27,0,ROUND(V39*(1+$V$25),0)) -> 0 | W40: =$W$135*0 -> 0 | X40: 0 | Z40: 0 | AA40: 0
R41: 3 | S41: 0 | T41: 0 | U41: 0 | V41: 0 | W41: =$W$135*0 -> 0 | X41: 0 | Z41: 0 | AA41: 0
R42: 4 | S42: 0 | T42: 0 | U42: 0 | V42: 0 | W42: =$W$135*0.016 -> 0 | X42: 0 | Z42: 0 | AA42: 0
R43: 5 | S43: 0 | T43: 0 | U43: 0 | V43: 0 | W43: =$W$135*0.016 -> 0 | X43: 0 | Z43: 0 | AA43: 0
R44: 6 | S44: 0 | T44: 0 | U44: 0 | V44: 0 | W44: =$W$135*0.016 -> 0 | X44: 0 | Z44: 0 | AA44: 0
R45: 7 | S45: 0 | T45: 0 | U45: 0 | V45: 0 | W45: =$W$135*0.019 -> 0 | X45: 0 | Z45: 0 | AA45: 0
R46: 8 | S46: 0 | T46: 0 | U46: 0 | V46: 0 | W46: =$W$135*0.019 -> 0 | X46: 0 | Z46: 0 | AA46: 0
R47: 9 | S47: 0 | T47: 0 | U47: 0 | V47: 0 | W47: =$W$135*0.019 -> 0 | X47: 0 | Z47: 0 | AA47: 0
R48: 10 | S48: 0 | T48: 0 | U48: 0 | V48: 0 | W48: =$W$135*0.023 -> 0 | X48: 0 | Z48: 0 | AA48: 0
R49: 11 | S49: 0 | T49: 0 | U49: 0 | V49: 0 | W49: =$W$135*0.023 -> 0 | X49: 0 | Z49: 0 | AA49: 0
R50: 12 | S50: 0 | T50: 0 | U50: 0 | V50: 0 | W50: =$W$135*0.023 -> 0 | X50: 0 | Z50: 0 | AA50: 0
R51: 13 | S51: 0 | T51: 0 | U51: 0 | V51: 0 | W51: =$W$135*0.028 -> 0 | X51: 0 | Z51: 0 | AA51: 0
R52: 14 | S52: 0 | T52: 0 | U52: 0 | V52: 0 | W52: =$W$135*0.028 -> 0 | X52: 0 | Z52: 0 | AA52: 0
R53: 15 | S53: 0 | T53: 0 | U53: 0 | V53: 0 | W53: =$W$135*0.028 -> 0 | X53: 0 | Z53: 0 | AA53: 0
R54: 16 | S54: 0 | T54: 0 | U54: 0 | V54: 0 | W54: =$W$135*0.033 -> 0 | X54: 0 | Z54: 0 | AA54: 0
R55: 17 | S55: 0 | T55: 0 | U55: 0 | V55: 0 | W55: =$W$135*0.033 -> 0 | X55: 0 | Z55: 0 | AA55: 0
R56: 18 | S56: 0 | T56: 0 | U56: 0 | V56: 0 | W56: =$W$135*0.033 -> 0 | X56: 0 | Z56: 0 | AA56: 0
R57: 19 | S57: 0 | T57: 0 | U57: 0 | V57: 0 | W57: =$W$135*0.04 -> 0 | X57: 0 | Z57: 0 | AA57: 0
R58: 20 | S58: 0 | T58: 0 | U58: 0 | V58: 0 | W58: =$W$135*0.04 -> 0 | X58: 0 | Z58: 0 | AA58: 0
R59: 21 | S59: 0 | T59: 0 | U59: 0 | V59: 0 | W59: =$W$135*0.04 -> 0 | X59: 0 | Z59: 0 | AA59: 0
R60: 22 | S60: 0 | T60: 0 | U60: 0 | V60: 0 | W60: =$W$135*0.048 -> 0 | X60: 0 | Z60: 0 | AA60: 0
R61: 23 | S61: 0 | T61: 0 | U61: 0 | V61: 0 | W61: =$W$135*0.048 -> 0 | X61: 0 | Z61: 0 | AA61: 0
R62: 24 | S62: 0 | T62: 0 | U62: 0 | V62: 0 | W62: =$W$135*0.048 -> 0 | X62: 0 | Z62: 0 | AA62: 0
R63: 25 | S63: 0 | T63: 0 | U63: 0 | V63: 0 | W63: =$W$135*0.057 -> 0 | X63: 0 | Z63: 0 | AA63: 0
R64: 26 | S64: 0 | T64: 0 | U64: 0 | V64: 0 | W64: =$W$135*0.057 -> 0 | X64: 0 | Z64: 0 | AA64: 0
R65: 27 | S65: 0 | T65: 0 | U65: 0 | V65: 0 | W65: =$W$135*0.057 -> 0 | X65: 0 | Z65: 0 | AA65: 0
R66: 28 | S66: 0 | T66: 0 | U66: 0 | V66: 0 | W66: =$W$135*0.069 -> 0 | X66: 0 | Z66: 0 | AA66: 0
R67: 29 | S67: 0 | T67: 0 | U67: 0 | V67: 0 | W67: =$W$135*0.069 -> 0 | X67: 0 | Z67: 0 | AA67: 0
R68: 30 | S68: 0 | T68: 0 | U68: 0 | V68: 0 | W68: =$W$135*0.07 -> 0 | X68: 0 | Z68: 0 | AA68: =Z68*(1/((1+$V$28)^(R68-0.5))) -> 0
R69: 31 | S69: 0 | T69: 0 | U69: 0 | V69: 0 | W69: =-3896*V17 -> 0 | X69: 0 | Z69: =SUM(X69:Y69)*0.5*0.9 -> 0 | AA69: 0
R70: 32 | S70: 0 | T70: 0 | U70: 0 | V70: 0 | W70: =W69*1.03 -> 0 | X70: 0 | Z70: 0 | AA70: 0
R71: 33 | S71: 0 | T71: 0 | U71: 0 | V71: 0 | W71: 0 | X71: 0 | Z71: 0 | AA71: 0
R72: 34 | S72: 0 | T72: 0 | U72: 0 | V72: 0 | W72: 0 | X72: 0 | Z72: 0 | AA72: 0
R73: 35 | S73: 0 | T73: 0 | U73: 0 | V73: 0 | W73: 0 | X73: 0 | Z73: 0 | AA73: 0
R74: 36 | S74: 0 | T74: 0 | U74: 0 | V74: 0 | W74: 0 | X74: 0 | Z74: 0 | AA74: 0
R75: 37 | S75: 0 | T75: 0 | U75: 0 | V75: 0 | W75: 0 | X75: 0 | Z75: 0 | AA75: 0
R76: 38 | S76: 0 | T76: 0 | U76: 0 | V76: 0 | W76: 0 | X76: 0 | Z76: 0 | AA76: 0
R77: 39 | S77: 0 | T77: 0 | U77: 0 | V77: 0 | W77: 0 | X77: 0 | Z77: 0 | AA77: 0
R78: 40 | S78: 0 | T78: 0 | U78: 0 | V78: 0 | W78: 0 | X78: 0 | Z78: 0 | AA78: 0
R79: 41 | S79: 0 | T79: 0 | U79: 0 | V79: 0 | W79: 0 | X79: 0 | Z79: 0 | AA79: 0
R80: 42 | S80: 0 | T80: 0 | U80: 0 | V80: 0 | W80: 0 | X80: 0 | Z80: 0 | AA80: 0
R81: 43 | S81: 0 | T81: 0 | U81: 0 | V81: 0 | W81: 0 | X81: 0 | Z81: 0 | AA81: 0
R82: 44 | S82: 0 | T82: 0 | U82: 0 | V82: 0 | W82: 0 | X82: 0 | Z82: 0 | AA82: 0
R83: 45 | S83: 0 | T83: 0 | U83: 0 | V83: 0 | W83: 0 | X83: 0 | Z83: 0 | AA83: 0
R84: 46 | S84: 0 | T84: 0 | U84: 0 | V84: 0 | W84: 0 | X84: 0 | Z84: 0 | AA84: 0
R85: 47 | S85: 0 | T85: 0 | U85: 0 | V85: 0 | W85: 0 | X85: 0 | Z85: 0 | AA85: 0
R86: 48 | S86: 0 | T86: 0 | U86: 0 | V86: 0 | W86: 0 | X86: 0 | Z86: 0 | AA86: 0
R87: 49 | S87: 0 | T87: 0 | U87: 0 | V87: 0 | W87: 0 | X87: 0 | Z87: 0 | AA87: 0
R88: 50 | S88: 0 | T88: 0 | U88: 0 | V88: 0 | W88: 0 | X88: 0 | Z88: 0 | AA88: 0
R89: 51 | S89: 0 | T89: 0 | U89: 0 | V89: 0 | W89: 0 | X89: 0 | Z89: 0 | AA89: 0
R90: 52 | S90: 0 | T90: 0 | U90: 0 | V90: 0 | W90: 0 | X90: 0 | Z90: 0 | AA90: 0
R91: 53 | S91: 0 | T91: 0 | U91: 0 | V91: 0 | W91: 0 | X91: 0 | Z91: 0 | AA91: 0
R92: 54 | S92: 0 | T92: 0 | U92: 0 | V92: 0 | W92: 0 | X92: 0 | Z92: 0 | AA92: 0
R93: 55 | S93: 0 | T93: 0 | U93: 0 | V93: 0 | W93: 0 | X93: 0 | Z93: 0 | AA93: 0
R94: 56 | S94: 0 | T94: 0 | U94: 0 | V94: 0 | W94: 0 | X94: 0 | Z94: 0 | AA94: 0
R95: 57 | S95: 0 | T95: 0 | U95: 0 | V95: 0 | W95: 0 | X95: 0 | Z95: 0 | AA95: 0
R96: 58 | S96: 0 | T96: 0 | U96: 0 | V96: 0 | W96: 0 | X96: 0 | Z96: 0 | AA96: 0
R97: 59 | S97: 0 | T97: 0 | U97: 0 | V97: 0 | W97: 0 | X97: 0 | Z97: 0 | AA97: 0
R98: 60 | S98: 0 | T98: 0 | U98: 0 | V98: 0 | W98: 0 | X98: 0 | Z98: 0 | AA98: 0
S99: =SUM(S39:S98) -> 0 | T99: 0 | U99: 0 | V99: 0 | W99: 0 | X99: 0 | Y99: 0 | Z99: 0 | AA99: 0
W104: MRP | AA104: VP
W105: =-V17*V22 -> 0 | AA105: =#REF! -> 
W106: =IF(R40>$V$27,0,ROUND(W105*(1+$V$26),0)) -> 0 | AA106: =AA105*1.03 -> 
W107: 0 | AA107: =AA106*1.03 -> 
W108: 0
W109: 0
W110: 0
W111: 0
W112: 0
W113: 0
W114: 0
W115: 0
W116: 0
W117: 0
W118: 0
W119: 0
W120: 0
W121: 0
W122: 0
W123: 0
W124: 0
W125: 0
W126: 0
W127: 0
W128: 0
W129: 0
W130: 0
W131: 0
W132: 0
W133: 0
W134: 0
W135: =SUM(W105:W134) -> 0
Z137: Residual Interest
Z138: =+AA39 -> 0
Z139: =+AA40 -> 0
Z140: 0
Z141: 0
Z142: 0
Z143: 0
Z144: 0
Z145: 0
Z146: 0
Z147: 0
Z148: 0
Z149: 0
Z150: 0
Z151: 0
Z152: 0
Z153: 0
Z154: 0
Z155: 0
Z156: 0
Z157: 0
Z158: 0
Z159: 0
Z160: 0
Z161: 0
Z162: 0
Z163: 0
Z164: 0
Z165: 0
Z166: 0
Z167: =X68*(1/((1+$V$28)^(R68-0.5))) -> 0 | AA167: =SUM(Z138:Z167) -> 0
Z168: =+AA69+(AA68-Z167) -> 0
Z169: 0
Z170: 0
Z171: 0
Z172: 0
Z173: 0
Z174: 0
Z175: 0
Z176: 0
Z177: =+AA78 -> 0 | AA177: =SUM(Z138:Z177) -> 0
Z178: 0
Z179: 0
Z180: 0
Z181: 0
Z182: 0
Z183: 0
Z184: 0
Z185: 0
Z186: 0
Z187: 0 | AA187: =SUM(Z138:Z187) -> 0
Z188: 0
Z189: 0
Z190: 0
Z191: 0
Z192: 0
Z193: 0
Z194: 0
Z195: 0
Z196: 0
Z197: 0 | AA197: =SUM(Z168:Z197) -> 0
A400: 2017-02-23
A402: 2010-05-25

Sheet KEY KPI's
A1: KEY KPI's
A2: Project Name | D2: =+'Project Information'!C10 -> Langley CLT 14 units LHA rent
J7: Surplus/(Deficit) on the scheme
A9: Cash Surplus/(Deficit) Years 1-5 | F9: =+'Cash Flow'!I57 -> (7,574) | K9: Overall Development Costs | L9: =Summary!D34 -> (3,022,696)
A10: Cumulative Cashflow Year 50 | F10: =+'Cash Flow'!BB57 -> 4,807,466 | K10: Less
A11: Interest Cover (15 Years) | F11: =+'I&E'!E52 -> 1.32 | K11: Grant income | L11: =+Summary!D44 -> 840,000
A12: Debt Fully Repaid | F12: =HLOOKUP(1,'Balance Sheet'!C47:BC50,4,FALSE) -> 32 | K12: Sales income | L12: =+Summary!D53 -> 0
A14: Allowances as % of Gross rents by year | K14: Subtotal | L14: =+L9+L11+L12 -> (2,182,696)
C15: 1 | D15: 2 | E15: 3 | F15: 4 | G15: 5
A16: Management | C16: =-'Cash Flow'!E32/'Cash Flow'!E14 -> 5% | D16: =-'Cash Flow'!F32/'Cash Flow'!F14 -> 5% | E16: =-'Cash Flow'!G32/'Cash Flow'!G14 -> 5% | F16: =-'Cash Flow'!H32/'Cash Flow'!H14 -> 5% | G16: =-'Cash Flow'!I32/'Cash Flow'!I14 -> 5% | K16: NPV of rental streams (50 Yrs) | L16: ='Social Rent'!AV86+'Shared Ownership'!AI62+'Affordable Rent'!AR88+'Market Rent'!AN187+Commercial!AA187 -> 2,168,511
A17: Maintenance | C17: =-'Cash Flow'!E33/'Cash Flow'!E14 -> 9% | D17: =-'Cash Flow'!F33/'Cash Flow'!F14 -> 9% | E17: =-'Cash Flow'!G33/'Cash Flow'!G14 -> 9% | F17: =-'Cash Flow'!H33/'Cash Flow'!H14 -> 9% | G17: =-'Cash Flow'!I33/'Cash Flow'!I14 -> 9%
A18: Major repairs | C18: =-'Cash Flow'!E34/'Cash Flow'!E14 -> 0% | D18: =-'Cash Flow'!F34/'Cash Flow'!F14 -> 0% | E18: =-'Cash Flow'!G34/'Cash Flow'!G14 -> 0% | F18: =-'Cash Flow'!H34/'Cash Flow'!H14 -> 6% | G18: =-'Cash Flow'!I34/'Cash Flow'!I14 -> 6% | K18: Surplus/(Deficit) on Scheme | L18: =+L14+L16 -> (14,185)
A19: Total | C19: =(SUM('Cash Flow'!E32:E34)/'Cash Flow'!E14)*-1 -> 13% | D19: =(SUM('Cash Flow'!F32:F34)/'Cash Flow'!F14)*-1 -> 13% | E19: =(SUM('Cash Flow'!G32:G34)/'Cash Flow'!G14)*-1 -> 13% | F19: =(SUM('Cash Flow'!H32:H34)/'Cash Flow'!H14)*-1 -> 19% | G19: =(SUM('Cash Flow'!I32:I34)/'Cash Flow'!I14)*-1 -> 19%
A400: 2021-06-29

Sheet Summary
A1: Summary Of Project Appraisal
A3: Project Name | B3: ='Project Information'!C10 -> Langley CLT 14 units LHA rent
A5: SUMMARY DEVELOPMENT INFORMATION
C7: Total No. of | D7: Total Square | E7: Total No. of
C8: Persons | D8: Metres | E8: Units
A9: Social Rent | C9: ='Social Rent'!E21 -> 0 | D9: ='Social Rent'!G21 -> 0 | E9: ='Social Rent'!C21 -> 0
A10: Affordable Rent | C10: =+'Affordable Rent'!E21 -> 60 | D10: =+'Affordable Rent'!G21 -> 1,098 | E10: =+'Affordable Rent'!C21 -> 14
A11: Homebuy | C11: ='Shared Ownership'!E21 -> 0 | D11: ='Shared Ownership'!G21 -> 0 | E11: ='Shared Ownership'!C21 -> 0
A12: Market Rent | C12: =+'Market Rent'!E21 -> 0 | D12: =+'Market Rent'!G21 -> 0 | E12: =+'Market Rent'!C21 -> 0
A13: Shared Equity | C13: =+'Limited Equity'!E21 -> 0 | D13: =+'Limited Equity'!G21 -> 0 | E13: =+'Limited Equity'!C21 -> 0
A14: Outright Sale | C14: =OutrightSale!E21 -> 0 | D14: =OutrightSale!G21 -> 0 | E14: =OutrightSale!C21 -> 0
A15: Commercial | D15: =+Commercial!D21 -> 0 | E15: =+Commercial!C21 -> 0
A16: TOTAL | C16: =SUM(C9:C14) -> 60 | D16: =SUM(D9:D15) -> 1,098 | E16: =SUM(E9:E15) -> 14
D19: £ | E19: Costs per
A20: Development Costs | E20: square metre
A22: Acquisition - Land - inc Stamp Duty Land Tax | D22: =('Dev Cash Flow'!$F$19+'Dev Cash Flow'!F20)*-1 -> £0 | E22: =(D22/$D$16)*-1 -> 0.00
A23: Acquisition - Off the Shelf completed properties - will include land | D23: =('Dev Cash Flow'!F18)*-1 -> £0 | E23: =(D23/$D$16)*-1 -> 0.00
A24: Construction Costs | D24: =+('Dev Cash Flow'!F22+'Dev Cash Flow'!F23)*-1 -> (£2,597,456) | E24: =(D24/$D$16)*-1 -> 2,365.63
D26: =SUM(D22:D24) -> (£2,597,456) | E26: =(D26/$D$16)*-1 -> 2,365.63
A28: Construction on costs | B28: =SUM(D28/D26) -> 12.50% | C28: of development costs | D28: =-SUM('Dev Cash Flow'!F24:F29)-'Dev Cash Flow'!F21 -> (£324,682) | E28: =(D28/$D$16)*-1 -> 295.70
A30: Project costs sub total | D30: =SUM(D28+D26) -> (£2,922,138) | E30: =(D30/$D$16)*-12 -> 31,935.94
A32: Development interest | D32: =-'Dev Cash Flow'!H44*-1 -> (£100,557) | E32: =(D32/$D$16)*-1 -> 91.58
A34: Total Development Costs | D34: =D30+D32 -> (£3,022,696) | E34: =(D34/$D$16)*-1 -> 2,752.91
A37: Funding
D38: £ | E38: Per Unit
A39: Grant Income
A40: HCA Grant | D40: =+'Project Information'!C37+'Project Information'!C38 -> £840,000 | E40: =+D40/(E9+E11) -> 
A41: Local Authority Grants | D41: =+'Project Information'!C39 -> £0 | E41: =+D41/(E9+E11) -> 
A42: Other | D42: =+'Project Information'!C40 -> £0 | E42: =+D42/E16 -> 0.00
A44: Total Grant Funding | D44: =SUM(D40:D42) -> £840,000
D47: £ | E47: Per Unit
A48: Sales Income
A49: Shared Ownership | D49: =+'Shared Ownership'!J21 -> £0 | E49: =+D49/E11 -> 
A50: Shared Equity | D50: =+'Limited Equity'!J21 -> £0 | E50: =+D50/E13 -> 
A51: Outright Sales | D51: =+OutrightSale!H21 -> £0 | E51: =IF(D51=0,0,+D51/E14) -> 0.00
A53: Total Sales Income | D53: =SUM(D49:D51) -> £0
A56: Long Term Funding Requirement | D56: =+D34+D44+D53 -> (£2,182,696)
A374: 2010-04-11
A400: 44,376
A401: 40,323
A403: 40,289
A404: 40,302
A413: 40,288

Sheet Cash Flow
A1: Project Name : | C1: =+Summary!B3 -> Langley CLT 14 units LHA rent
A3: Purchase Completion | C3: ='Project Information'!C26 -> 2022-07-14 | E3: =13-IF(MONTH(C3)>3,MONTH(C3)-3,MONTH(C3)+9) -> 9 | F3: =IF(E3<=3,YEAR(C3),YEAR(C3)+1) -> 2023
A4: Start on Site | C4: ='Project Information'!C27 -> 2022-04-14 | E4: =13-IF(MONTH(C4)>3,MONTH(C4)-3,MONTH(C4)+9) -> 12 | F4: =IF(E4<=3,YEAR(C4),YEAR(C4)+1) -> 2023
A5: Practical Completion | C5: ='Project Information'!C28 -> 2023-04-14 | E5: =13-IF(MONTH(C5)>3,MONTH(C5)-3,MONTH(C5)+9) -> 12 | F5: =IF(E5<=3,YEAR(C5),YEAR(C5)+1) -> 2024
A6: Development Period | E6: =(+C5-C4)/30.41667 -> 12 | F6: Months
A8: PROJECTED CASH FLOW
C9: =C10-1 -> 2021 | D9: 2022 | E9: 2023 | F9: 2024 | G9: 2025 | H9: 2026 | I9: 2027 | J9: 2028 | K9: 2029 | L9: 2030 | M9: 2031 | N9: 2032 | O9: 2033 | P9: 2034 | Q9: 2035 | R9: 2036 | S9: 2037 | T9: 2038 | U9: 2039 | V9: 2040 | W9: 2041 | X9: 2042 | Y9: 2043 | Z9: 2044 | AA9: 2045 | AB9: 2046 | AC9: 2047 | AD9: 2048 | AE9: 2049 | AF9: 2050 | AG9: 2051 | AH9: 2052 | AI9: 2053 | AJ9: 2054 | AK9: 2055 | AL9: 2056 | AM9: 2057 | AN9: 2058 | AO9: 2059 | AP9: 2060 | AQ9: 2061 | AR9: 2062 | AS9: 2063 | AT9: 2064 | AU9: 2065 | AV9: 2066 | AW9: 2067 | AX9: 2068 | AY9: 2069 | AZ9: 2070 | BA9: 2071 | BB9: 2072
C10: =D10-1 -> 2022 | D10: =E10-1 -> 2023 | E10: =F5 -> 2024 | F10: =E10+1 -> 2025 | G10: 2026 | H10: 2027 | I10: 2028 | J10: 2029 | K10: 2030 | L10: 2031 | M10: 2032 | N10: 2033 | O10: 2034 | P10: 2035 | Q10: 2036 | R10: 2037 | S10: 2038 | T10: 2039 | U10: 2040 | V10: 2041 | W10: 2042 | X10: 2043 | Y10: 2044 | Z10: 2045 | AA10: 2046 | AB10: 2047 | AC10: 2048 | AD10: 2049 | AE10: 2050 | AF10: 2051 | AG10: 2052 | AH10: 2053 | AI10: =AH10+1 -> 2054 | AJ10: =AI10+1 -> 2055 | AK10: =AJ10+1 -> 2056 | AL10: =AK10+1 -> 2057 | AM10: =AL10+1 -> 2058 | AN10: =AM10+1 -> 2059 | AO10: =AN10+1 -> 2060 | AP10: =AO10+1 -> 2061 | AQ10: =AP10+1 -> 2062 | AR10: 2063 | AS10: =AR10+1 -> 2064 | AT10: =AS10+1 -> 2065 | AU10: =AT10+1 -> 2066 | AV10: =AU10+1 -> 2067 | AW10: =AV10+1 -> 2068 | AX10: =AW10+1 -> 2069 | AY10: =AX10+1 -> 2070 | AZ10: =AY10+1 -> 2071 | BA10: =AZ10+1 -> 2072 | BB10: =BA10+1 -> 2073
C11: Year | D11: Year | E11: Year | F11: Year | G11: Year | H11: Year | I11: Year | J11: Year | K11: Year | L11: Year | M11: Year | N11: Year | O11: Year | P11: Year | Q11: Year | R11: Year | S11: Year | T11: Year | U11: Year | V11: Year | W11: Year | X11: Year | Y11: Year | Z11: Year | AA11: Year | AB11: Year | AC11: Year | AD11: Year | AE11: Year | AF11: Year | AG11: Year | AH11: Year | AI11: Year | AJ11: Year | AK11: Year | AL11: Year | AM11: Year | AN11: Year | AO11: Year | AP11: Year | AQ11: Year | AR11: Year | AS11: Year | AT11: Year | AU11: Year | AV11: Year | AW11: Year | AX11: Year | AY11: Year | AZ11: Year | BA11: Year | BB11: Year
C12: 0 | D12: 0 | E12: =+C12+1 -> 1 | F12: =+E12+1 -> 2 | G12: 3 | H12: 4 | I12: 5 | J12: 6 | K12: 7 | L12: 8 | M12: 9 | N12: 10 | O12: 11 | P12: 12 | Q12: 13 | R12: 14 | S12: 15 | T12: 16 | U12: 17 | V12: 18 | W12: 19 | X12: 20 | Y12: 21 | Z12: 22 | AA12: 23 | AB12: 24 | AC12: 25 | AD12: 26 | AE12: 27 | AF12: 28 | AG12: 29 | AH12: 30 | AI12: =+AH12+1 -> 31 | AJ12: =+AI12+1 -> 32 | AK12: =+AJ12+1 -> 33 | AL12: =+AK12+1 -> 34 | AM12: =+AL12+1 -> 35 | AN12: =+AM12+1 -> 36 | AO12: =+AN12+1 -> 37 | AP12: =+AO12+1 -> 38 | AQ12: =+AP12+1 -> 39 | AR12: 40 | AS12: =+AR12+1 -> 41 | AT12: =+AS12+1 -> 42 | AU12: =+AT12+1 -> 43 | AV12: =+AU12+1 -> 44 | AW12: =+AV12+1 -> 45 | AX12: =+AW12+1 -> 46 | AY12: =+AX12+1 -> 47 | AZ12: =+AY12+1 -> 48 | BA12: =+AZ12+1 -> 49 | BB12: =+BA12+1 -> 50
A13: INCOME
A14: Gross rents | E14: =+('Social Rent'!AL37+'Shared Ownership'!AG11+'Market Rent'!AF39+'Affordable Rent'!AH39)/12*E5 -> 126,464 | F14: ='Social Rent'!AZ28+'Shared Ownership'!DB1+'Market Rent'!AV28+'Affordable Rent'!AX28 -> 130,258 | G14: ='Social Rent'!BA28+'Shared Ownership'!DC1+'Market Rent'!AW28+'Affordable Rent'!AY28 -> 134,166 | H14: ='Social Rent'!BB28+'Shared Ownership'!DD1+'Market Rent'!AX28+'Affordable Rent'!AZ28 -> 138,191 | I14: ='Social Rent'!BC28+'Shared Ownership'!DE1+'Market Rent'!AY28+'Affordable Rent'!BA28 -> 142,336 | J14: ='Social Rent'!BD28+'Shared Ownership'!DF1+'Market Rent'!AZ28+'Affordable Rent'!BB28 -> 146,606 | K14: ='Social Rent'!BE28+'Shared Ownership'!DG1+'Market Rent'!BA28+'Affordable Rent'!BC28 -> 151,005 | L14: ='Social Rent'!BF28+'Shared Ownership'!DH1+'Market Rent'!BB28+'Affordable Rent'!BD28 -> 155,535 | M14: ='Social Rent'!BG28+'Shared Ownership'!DI1+'Market Rent'!BC28+'Affordable Rent'!BE28 -> 160,201 | N14: ='Social Rent'!BH28+'Shared Ownership'!DJ1+'Market Rent'!BD28+'Affordable Rent'!BF28 -> 165,007 | O14: ='Social Rent'!BI28+'Shared Ownership'!DK1+'Market Rent'!BE28+'Affordable Rent'!BG28 -> 169,957 | P14: ='Social Rent'!BJ28+'Shared Ownership'!DL1+'Market Rent'!BF28+'Affordable Rent'!BH28 -> 175,056 | Q14: ='Social Rent'!BK28+'Shared Ownership'!DM1+'Market Rent'!BG28+'Affordable Rent'!BI28 -> 180,307 | R14: ='Social Rent'!BL28+'Shared Ownership'!DN1+'Market Rent'!BH28+'Affordable Rent'!BJ28 -> 185,717 | S14: ='Social Rent'!BM28+'Shared Ownership'!DO1+'Market Rent'!BI28+'Affordable Rent'!BK28 -> 191,288 | T14: ='Social Rent'!BN28+'Shared Ownership'!DP1+'Market Rent'!BJ28+'Affordable Rent'!BL28 -> 197,027 | U14: ='Social Rent'!BO28+'Shared Ownership'!DQ1+'Market Rent'!BK28+'Affordable Rent'!BM28 -> 202,938 | V14: ='Social Rent'!BP28+'Shared Ownership'!DR1+'Market Rent'!BL28+'Affordable Rent'!BN28 -> 209,026 | W14: ='Social Rent'!BQ28+'Shared Ownership'!DS1+'Market Rent'!BM28+'Affordable Rent'!BO28 -> 215,296 | X14: ='Social Rent'!BR28+'Shared Ownership'!DT1+'Market Rent'!BN28+'Affordable Rent'!BP28 -> 221,755 | Y14: ='Social Rent'!BS28+'Shared Ownership'!DU1+'Market Rent'!BO28+'Affordable Rent'!BQ28 -> 228,408 | Z14: ='Social Rent'!BT28+'Shared Ownership'!DV1+'Market Rent'!BP28+'Affordable Rent'!BR28 -> 235,260 | AA14: ='Social Rent'!BU28+'Shared Ownership'!DW1+'Market Rent'!BQ28+'Affordable Rent'!BS28 -> 242,318 | AB14: ='Social Rent'!BV28+'Shared Ownership'!DX1+'Market Rent'!BR28+'Affordable Rent'!BT28 -> 249,588 | AC14: ='Social Rent'!BW28+'Shared Ownership'!DY1+'Market Rent'!BS28+'Affordable Rent'!BU28 -> 257,075 | AD14: ='Social Rent'!BX28+'Shared Ownership'!DZ1+'Market Rent'!BT28+'Affordable Rent'!BV28 -> 264,788 | AE14: ='Social Rent'!BY28+'Shared Ownership'!EA1+'Market Rent'!BU28+'Affordable Rent'!BW28 -> 272,731 | AF14: ='Social Rent'!BZ28+'Shared Ownership'!EB1+'Market Rent'!BV28+'Affordable Rent'!BX28 -> 280,913 | AG14: ='Social Rent'!CA28+'Shared Ownership'!EC1+'Market Rent'!BW28+'Affordable Rent'!BY28 -> 289,340 | AH14: ='Social Rent'!CB28+'Shared Ownership'!ED1+'Market Rent'!BX28+'Affordable Rent'!BZ28 -> 298,021 | AI14: ='Social Rent'!CC28+'Shared Ownership'!EE1+'Market Rent'!BY28+'Affordable Rent'!CA28 -> 306,961 | AJ14: ='Social Rent'!CD28+'Shared Ownership'!EF1+'Market Rent'!BZ28+'Affordable Rent'!CB28 -> 316,170 | AK14: ='Social Rent'!CE28+'Shared Ownership'!EG1+'Market Rent'!CA28+'Affordable Rent'!CC28 -> 325,655 | AL14: ='Social Rent'!CF28+'Shared Ownership'!EH1+'Market Rent'!CB28+'Affordable Rent'!CD28 -> 335,425 | AM14: ='Social Rent'!CG28+'Shared Ownership'!EI1+'Market Rent'!CC28+'Affordable Rent'!CE28 -> 345,488 | AN14: ='Social Rent'!CH28+'Shared Ownership'!EJ1+'Market Rent'!CD28+'Affordable Rent'!CF28 -> 355,852 | AO14: ='Social Rent'!CI28+'Shared Ownership'!EK1+'Market Rent'!CE28+'Affordable Rent'!CG28 -> 366,528 | AP14: ='Social Rent'!CJ28+'Shared Ownership'!EL1+'Market Rent'!CF28+'Affordable Rent'!CH28 -> 377,524 | AQ14: ='Social Rent'!CK28+'Shared Ownership'!EM1+'Market Rent'!CG28+'Affordable Rent'!CI28 -> 388,849 | AR14: ='Social Rent'!CL28+'Shared Ownership'!EN1+'Market Rent'!CH28+'Affordable Rent'!CJ28 -> 400,515 | AS14: ='Social Rent'!CM28+'Shared Ownership'!EO1+'Market Rent'!CI28+'Affordable Rent'!CK28 -> 412,530 | AT14: ='Social Rent'!CN28+'Shared Ownership'!EP1+'Market Rent'!CJ28+'Affordable Rent'!CL28 -> 424,906 | AU14: ='Social Rent'!CO28+'Shared Ownership'!EQ1+'Market Rent'!CK28+'Affordable Rent'!CM28 -> 437,653 | AV14: ='Social Rent'!CP28+'Shared Ownership'!ER1+'Market Rent'!CL28+'Affordable Rent'!CN28 -> 450,783 | AW14: ='Social Rent'!CQ28+'Shared Ownership'!ES1+'Market Rent'!CM28+'Affordable Rent'!CO28 -> 464,307 | AX14: ='Social Rent'!CR28+'Shared Ownership'!ET1+'Market Rent'!CN28+'Affordable Rent'!CP28 -> 478,236 | AY14: ='Social Rent'!CS28+'Shared Ownership'!EU1+'Market Rent'!CO28+'Affordable Rent'!CQ28 -> 492,583 | AZ14: ='Social Rent'!CT28+'Shared Ownership'!EV1+'Market Rent'!CP28+'Affordable Rent'!CR28 -> 507,360 | BA14: ='Social Rent'!CU28+'Shared Ownership'!EW1+'Market Rent'!CQ28+'Affordable Rent'!CS28 -> 522,581 | BB14: ='Social Rent'!CV28+'Shared Ownership'!EX1+'Market Rent'!CR28+'Affordable Rent'!CT28 -> 538,259
A15: Voids | E15: =+('Social Rent'!AM37+'Market Rent'!AG39+'Affordable Rent'!AI39)/12*E5 -> (3,794) | F15: ='Social Rent'!AZ29+'Shared Ownership'!DB5+'Market Rent'!AV29+'Affordable Rent'!AX29 -> (3,908) | G15: ='Social Rent'!BA29+'Shared Ownership'!DC5+'Market Rent'!AW29+'Affordable Rent'!AY29 -> (4,025) | H15: ='Social Rent'!BB29+'Shared Ownership'!DD5+'Market Rent'!AX29+'Affordable Rent'!AZ29 -> (4,146) | I15: ='Social Rent'!BC29+'Shared Ownership'!DE5+'Market Rent'!AY29+'Affordable Rent'!BA29 -> (4,270) | J15: ='Social Rent'!BD29+'Shared Ownership'!DF5+'Market Rent'!AZ29+'Affordable Rent'!BB29 -> (4,398) | K15: ='Social Rent'!BE29+'Shared Ownership'!DG5+'Market Rent'!BA29+'Affordable Rent'!BC29 -> (4,530) | L15: ='Social Rent'!BF29+'Shared Ownership'!DH5+'Market Rent'!BB29+'Affordable Rent'!BD29 -> (4,666) | M15: ='Social Rent'!BG29+'Shared Ownership'!DI5+'Market Rent'!BC29+'Affordable Rent'!BE29 -> (4,806) | N15: ='Social Rent'!BH29+'Shared Ownership'!DJ5+'Market Rent'!BD29+'Affordable Rent'!BF29 -> (4,950) | O15: ='Social Rent'!BI29+'Shared Ownership'!DK5+'Market Rent'!BE29+'Affordable Rent'!BG29 -> (5,099) | P15: ='Social Rent'!BJ29+'Shared Ownership'!DL5+'Market Rent'!BF29+'Affordable Rent'!BH29 -> (5,252) | Q15: ='Social Rent'!BK29+'Shared Ownership'!DM5+'Market Rent'!BG29+'Affordable Rent'!BI29 -> (5,409) | R15: ='Social Rent'!BL29+'Shared Ownership'!DN5+'Market Rent'!BH29+'Affordable Rent'!BJ29 -> (5,571) | S15: ='Social Rent'!BM29+'Shared Ownership'!DO5+'Market Rent'!BI29+'Affordable Rent'!BK29 -> (5,739) | T15: ='Social Rent'!BN29+'Shared Ownership'!DP5+'Market Rent'!BJ29+'Affordable Rent'!BL29 -> (5,911) | U15: ='Social Rent'!BO29+'Shared Ownership'!DQ5+'Market Rent'!BK29+'Affordable Rent'!BM29 -> (6,088) | V15: ='Social Rent'!BP29+'Shared Ownership'!DR5+'Market Rent'!BL29+'Affordable Rent'!BN29 -> (6,271) | W15: ='Social Rent'!BQ29+'Shared Ownership'!DS5+'Market Rent'!BM29+'Affordable Rent'!BO29 -> (6,459) | X15: ='Social Rent'!BR29+'Shared Ownership'!DT5+'Market Rent'!BN29+'Affordable Rent'!BP29 -> (6,653) | Y15: ='Social Rent'!BS29+'Shared Ownership'!DU5+'Market Rent'!BO29+'Affordable Rent'!BQ29 -> (6,852) | Z15: ='Social Rent'!BT29+'Shared Ownership'!DV5+'Market Rent'!BP29+'Affordable Rent'!BR29 -> (7,058) | AA15: ='Social Rent'!BU29+'Shared Ownership'!DW5+'Market Rent'!BQ29+'Affordable Rent'!BS29 -> (7,270) | AB15: ='Social Rent'!BV29+'Shared Ownership'!DX5+'Market Rent'!BR29+'Affordable Rent'!BT29 -> (7,488) | AC15: ='Social Rent'!BW29+'Shared Ownership'!DY5+'Market Rent'!BS29+'Affordable Rent'!BU29 -> (7,712) | AD15: ='Social Rent'!BX29+'Shared Ownership'!DZ5+'Market Rent'!BT29+'Affordable Rent'!BV29 -> (7,944) | AE15: ='Social Rent'!BY29+'Shared Ownership'!EA5+'Market Rent'!BU29+'Affordable Rent'!BW29 -> (8,182) | AF15: ='Social Rent'!BZ29+'Shared Ownership'!EB5+'Market Rent'!BV29+'Affordable Rent'!BX29 -> (8,427) | AG15: ='Social Rent'!CA29+'Shared Ownership'!EC5+'Market Rent'!BW29+'Affordable Rent'!BY29 -> (8,680) | AH15: ='Social Rent'!CB29+'Shared Ownership'!ED5+'Market Rent'!BX29+'Affordable Rent'!BZ29 -> (8,941) | AI15: ='Social Rent'!CC29+'Shared Ownership'!EE5+'Market Rent'!BY29+'Affordable Rent'!CA29 -> (9,209) | AJ15: ='Social Rent'!CD29+'Shared Ownership'!EF5+'Market Rent'!BZ29+'Affordable Rent'!CB29 -> (9,485) | AK15: ='Social Rent'!CE29+'Shared Ownership'!EG5+'Market Rent'!CA29+'Affordable Rent'!CC29 -> (9,770) | AL15: ='Social Rent'!CF29+'Shared Ownership'!EH5+'Market Rent'!CB29+'Affordable Rent'!CD29 -> (10,063) | AM15: ='Social Rent'!CG29+'Shared Ownership'!EI5+'Market Rent'!CC29+'Affordable Rent'!CE29 -> (10,365) | AN15: ='Social Rent'!CH29+'Shared Ownership'!EJ5+'Market Rent'!CD29+'Affordable Rent'!CF29 -> (10,676) | AO15: ='Social Rent'!CI29+'Shared Ownership'!EK5+'Market Rent'!CE29+'Affordable Rent'!CG29 -> (10,996) | AP15: ='Social Rent'!CJ29+'Shared Ownership'!EL5+'Market Rent'!CF29+'Affordable Rent'!CH29 -> (11,326) | AQ15: ='Social Rent'!CK29+'Shared Ownership'!EM5+'Market Rent'!CG29+'Affordable Rent'!CI29 -> (11,665) | AR15: ='Social Rent'!CL29+'Shared Ownership'!EN5+'Market Rent'!CH29+'Affordable Rent'!CJ29 -> (12,015) | AS15: ='Social Rent'!CM29+'Shared Ownership'!EO5+'Market Rent'!CI29+'Affordable Rent'!CK29 -> (12,376) | AT15: ='Social Rent'!CN29+'Shared Ownership'!EP5+'Market Rent'!CJ29+'Affordable Rent'!CL29 -> (12,747) | AU15: ='Social Rent'!CO29+'Shared Ownership'!EQ5+'Market Rent'!CK29+'Affordable Rent'!CM29 -> (13,130) | AV15: ='Social Rent'!CP29+'Shared Ownership'!ER5+'Market Rent'!CL29+'Affordable Rent'!CN29 -> (13,523) | AW15: ='Social Rent'!CQ29+'Shared Ownership'!ES5+'Market Rent'!CM29+'Affordable Rent'!CO29 -> (13,929) | AX15: ='Social Rent'!CR29+'Shared Ownership'!ET5+'Market Rent'!CN29+'Affordable Rent'!CP29 -> (14,347) | AY15: ='Social Rent'!CS29+'Shared Ownership'!EU5+'Market Rent'!CO29+'Affordable Rent'!CQ29 -> (14,777) | AZ15: ='Social Rent'!CT29+'Shared Ownership'!EV5+'Market Rent'!CP29+'Affordable Rent'!CR29 -> (15,221) | BA15: ='Social Rent'!CU29+'Shared Ownership'!EW5+'Market Rent'!CQ29+'Affordable Rent'!CS29 -> (15,677) | BB15: ='Social Rent'!CV29+'Shared Ownership'!EX5+'Market Rent'!CR29+'Affordable Rent'!CT29 -> (16,148)
A16: SHG Grant | C16: =(IF(C10=$F$4,50%*('Project Information'!$C$37+'Project Information'!$C$38),0))+(IF(C10=$F$5,50%*('Project Information'!$C$37+'Project Information'!$C$38),0)) -> 0 | D16: =(IF(D10=$F$4,50%*('Project Information'!$C$37+'Project Information'!$C$38),0))+(IF(D10=$F$5,50%*('Project Information'!$C$37+'Project Information'!$C$38),0)) -> 420,000 | E16: =(IF(E10=$F$4,50%*('Project Information'!$C$37+'Project Information'!$C$38),0))+(IF(E10=$F$5,50%*('Project Information'!$C$37+'Project Information'!$C$38),0)) -> 420,000
A17: Other Grants | C17: =IF('Cash Flow'!C10<'Dev Cash Flow'!U17,0,(HLOOKUP(C10,'Dev Cash Flow'!$U$17:$AU$44,18,0))+(HLOOKUP(C10,'Dev Cash Flow'!$U$17:$AU$44,19,0))) -> 0 | D17: =IF(D10<'Dev Cash Flow'!U17,0,(HLOOKUP(D10,'Dev Cash Flow'!$U$17:$AU$44,18,0))+(HLOOKUP(D10,'Dev Cash Flow'!$U$17:$AU$44,19,0))) -> 0 | E17: =(HLOOKUP(E10,'Dev Cash Flow'!$U$17:$AU$44,18,0))+(HLOOKUP(E10,'Dev Cash Flow'!$U$17:$AU$44,19,0)) -> 0
A18: Community Bond | C18: =IF(C10<'Dev Cash Flow'!U17,0,+(HLOOKUP(C10,'Dev Cash Flow'!$U$17:$AU$44,20,0))) -> 0 | D18: =IF(D10<'Dev Cash Flow'!U17,0,+(HLOOKUP(D10,'Dev Cash Flow'!$U$17:$AU$44,20,0))) -> 0 | E18: =+(HLOOKUP(E10,'Dev Cash Flow'!$U$17:$AU$44,20,0)) -> 0
A19: Loan Finance | E19: ='Secured Funding'!E5 -> 2,182,696
A20: Sales Receipt - Shared Ownership - First Tranche | C20: =IF(C10<'Dev Cash Flow'!U17,0,(HLOOKUP(C10,'Dev Cash Flow'!$U$17:$AU$43,21,0))) -> 0 | D20: =IF(D10<'Dev Cash Flow'!U17,0,(HLOOKUP(D10,'Dev Cash Flow'!$U$17:$AU$43,21,0))) -> 0 | E20: =(HLOOKUP(E10,'Dev Cash Flow'!$U$17:$AU$43,21,0)) -> 0 | F20: =IF(F10<=2020,(HLOOKUP(F10,'Dev Cash Flow'!$U$17:$AU$43,21,0)),0) -> 0
A21: Sales Receipt - Shared Equity | C21: =IF(C10<'Dev Cash Flow'!U17,0,(HLOOKUP(C10,'Dev Cash Flow'!$U$17:$AU$43,22,0))) -> 0 | D21: =IF(D10<'Dev Cash Flow'!U17,0,(HLOOKUP(D10,'Dev Cash Flow'!$U$17:$AU$43,22,0))) -> 0 | E21: =(HLOOKUP(E10,'Dev Cash Flow'!$U$17:$AU$43,22,0)) -> 0 | F21: =IF(F10<=2020,(HLOOKUP(F10,'Dev Cash Flow'!$U$17:$AU$43,22,0)),0) -> 0
A22: Sales Receipt - Outright sale | C22: =IF(C10<'Dev Cash Flow'!U17,0,(HLOOKUP(C10,'Dev Cash Flow'!$U$17:$AU$43,23,0))) -> 0 | D22: =IF(D10<'Dev Cash Flow'!U17,0,(HLOOKUP(D10,'Dev Cash Flow'!$U$17:$AU$43,23,0))) -> 0 | E22: =(HLOOKUP(E10,'Dev Cash Flow'!$U$17:$AU$43,23,0)) -> 0 | F22: =IF(F10<=2020,(HLOOKUP(F10,'Dev Cash Flow'!$U$17:$AU$43,23,0)),0) -> 0
A24: Commercial Rents | E24: =+Commercial!AF28/12*E5 -> 0 | F24: =+Commercial!AG28 -> 0 | G24: =+Commercial!AH28 -> 0 | H24: =+Commercial!AI28 -> 0 | I24: =+Commercial!AJ28 -> 0 | J24: =+Commercial!AK28 -> 0 | K24: =+Commercial!AL28 -> 0 | L24: =+Commercial!AM28 -> 0 | M24: =+Commercial!AN28 -> 0 | N24: =+Commercial!AO28 -> 0 | O24: =+Commercial!AP28 -> 0 | P24: =+Commercial!AQ28 -> 0 | Q24: =+Commercial!AR28 -> 0 | R24: =+Commercial!AS28 -> 0 | S24: =+Commercial!AT28 -> 0 | T24: =+Commercial!AU28 -> 0 | U24: =+Commercial!AV28 -> 0 | V24: =+Commercial!AW28 -> 0 | W24: =+Commercial!AX28 -> 0 | X24: =+Commercial!AY28 -> 0 | Y24: =+Commercial!AZ28 -> 0 | Z24: =+Commercial!BA28 -> 0 | AA24: =+Commercial!BB28 -> 0 | AB24: =+Commercial!BC28 -> 0 | AC24: =+Commercial!BD28 -> 0 | AD24: =+Commercial!BE28 -> 0 | AE24: =+Commercial!BF28 -> 0 | AF24: =+Commercial!BG28 -> 0 | AG24: =+Commercial!BH28 -> 0 | AH24: =+Commercial!BI28 -> 0 | AI24: =+Commercial!BJ28 -> 0 | AJ24: =+Commercial!BK28 -> 0 | AK24: =+Commercial!BL28 -> 0 | AL24: =+Commercial!BM28 -> 0 | AM24: =+Commercial!BN28 -> 0 | AN24: =+Commercial!BO28 -> 0 | AO24: =+Commercial!BP28 -> 0 | AP24: =+Commercial!BQ28 -> 0 | AQ24: =+Commercial!BR28 -> 0 | AR24: =+Commercial!BS28 -> 0 | AS24: =+Commercial!BT28 -> 0 | AT24: =+Commercial!BU28 -> 0 | AU24: =+Commercial!BV28 -> 0 | AV24: =+Commercial!BW28 -> 0 | AW24: =+Commercial!BX28 -> 0 | AX24: =+Commercial!BY28 -> 0 | AY24: =+Commercial!BZ28 -> 0 | AZ24: =+Commercial!CA28 -> 0 | BA24: =+Commercial!CB28 -> 0 | BB24: =+Commercial!CC28 -> 0
A25: Commercial Voids | E25: =+Commercial!AF29/12*E5 -> 0 | F25: =+Commercial!AG29 -> 0 | G25: =+Commercial!AH29 -> 0 | H25: =+Commercial!AI29 -> 0 | I25: =+Commercial!AJ29 -> 0 | J25: =+Commercial!AK29 -> 0 | K25: =+Commercial!AL29 -> 0 | L25: =+Commercial!AM29 -> 0 | M25: =+Commercial!AN29 -> 0 | N25: =+Commercial!AO29 -> 0 | O25: =+Commercial!AP29 -> 0 | P25: =+Commercial!AQ29 -> 0 | Q25: =+Commercial!AR29 -> 0 | R25: =+Commercial!AS29 -> 0 | S25: =+Commercial!AT29 -> 0 | T25: =+Commercial!AU29 -> 0 | U25: =+Commercial!AV29 -> 0 | V25: =+Commercial!AW29 -> 0 | W25: =+Commercial!AX29 -> 0 | X25: =+Commercial!AY29 -> 0 | Y25: =+Commercial!AZ29 -> 0 | Z25: =+Commercial!BA29 -> 0 | AA25: =+Commercial!BB29 -> 0 | AB25: =+Commercial!BC29 -> 0 | AC25: =+Commercial!BD29 -> 0 | AD25: =+Commercial!BE29 -> 0 | AE25: =+Commercial!BF29 -> 0 | AF25: =+Commercial!BG29 -> 0 | AG25: =+Commercial!BH29 -> 0 | AH25: =+Commercial!BI29 -> 0 | AI25: =+Commercial!BJ29 -> 0 | AJ25: =+Commercial!BK29 -> 0 | AK25: =+Commercial!BL29 -> 0 | AL25: =+Commercial!BM29 -> 0 | AM25: =+Commercial!BN29 -> 0 | AN25: =+Commercial!BO29 -> 0 | AO25: =+Commercial!BP29 -> 0 | AP25: =+Commercial!BQ29 -> 0 | AQ25: =+Commercial!BR29 -> 0 | AR25: =+Commercial!BS29 -> 0 | AS25: =+Commercial!BT29 -> 0 | AT25: =+Commercial!BU29 -> 0 | AU25: =+Commercial!BV29 -> 0 | AV25: =+Commercial!BW29 -> 0 | AW25: =+Commercial!BX29 -> 0 | AX25: =+Commercial!BY29 -> 0 | AY25: =+Commercial!BZ29 -> 0 | AZ25: =+Commercial!CA29 -> 0 | BA25: =+Commercial!CB29 -> 0 | BB25: =+Commercial!CC29 -> 0
A27: Total Income | C27: =SUM(C14:C22) -> 0 | D27: =SUM(D14:D22) -> 420,000 | E27: =SUM(E14:E25) -> 2,725,366 | F27: =SUM(F14:F25) -> 126,350 | G27: =SUM(G14:G25) -> 130,141 | H27: 134,045 | I27: 138,066 | J27: 142,208 | K27: 146,475 | L27: 150,869 | M27: 155,395 | N27: 160,057 | O27: 164,858 | P27: 169,804 | Q27: 174,898 | R27: 180,146 | S27: 185,549 | T27: 191,116 | U27: 196,850 | V27: 202,755 | W27: 208,837 | X27: 215,102 | Y27: 221,556 | Z27: 228,202 | AA27: 235,048 | AB27: 242,100 | AC27: 249,363 | AD27: 256,844 | AE27: 264,549 | AF27: 272,486 | AG27: 280,660 | AH27: 289,080 | AI27: =SUM(AI14:AI25) -> 297,752 | AJ27: 306,685 | AK27: 315,885 | AL27: 325,362 | AM27: 335,123 | AN27: 345,176 | AO27: 355,532 | AP27: 366,198 | AQ27: 377,184 | AR27: =SUM(AR14:AR25) -> 388,500 | AS27: 400,154 | AT27: 412,159 | AU27: 424,523 | AV27: 437,260 | AW27: 450,378 | AX27: 463,889 | AY27: 477,806 | AZ27: 492,139 | BA27: 506,904 | BB27: 522,111
A28: EXPENDITURE
A30: Development Expenditure | C30: =IF(C10<'Dev Cash Flow'!U17,0,-HLOOKUP(C10,'Dev Cash Flow'!$U$17:$AU$44,15,0)+HLOOKUP(C10,'Dev Cash Flow'!$U$17:$AU$44,28,0)) -> 0 | D30: =IF(D10<'Dev Cash Flow'!U17,0,-HLOOKUP(D10,'Dev Cash Flow'!$U$17:$AU$44,15,0)+HLOOKUP(D10,'Dev Cash Flow'!$U$17:$AU$44,28,0)) -> (2,928,513) | E30: =-HLOOKUP(E10,'Dev Cash Flow'!$U$17:$AU$44,15,0)+HLOOKUP(E10,'Dev Cash Flow'!$U$17:$AU$44,28,0) -> (94,184)
A32: Management | E32: =('Social Rent'!AY30+'Market Rent'!AU30+'Affordable Rent'!AW30)/12*$E$5 -> (5,936) | F32: =('Social Rent'!AZ30+'Market Rent'!AV30+'Affordable Rent'!AX30) -> (6,114) | G32: =('Social Rent'!BA30+'Market Rent'!AW30+'Affordable Rent'!AY30) -> (6,297) | H32: =('Social Rent'!BB30+'Market Rent'!AX30+'Affordable Rent'!AZ30) -> (6,486) | I32: =('Social Rent'!BC30+'Market Rent'!AY30+'Affordable Rent'!BA30) -> (6,681) | J32: =('Social Rent'!BD30+'Market Rent'!AZ30+'Affordable Rent'!BB30) -> (6,881) | K32: =('Social Rent'!BE30+'Market Rent'!BA30+'Affordable Rent'!BC30) -> (7,087) | L32: =('Social Rent'!BF30+'Market Rent'!BB30+'Affordable Rent'!BD30) -> (7,300) | M32: =('Social Rent'!BG30+'Market Rent'!BC30+'Affordable Rent'!BE30) -> (7,519) | N32: =('Social Rent'!BH30+'Market Rent'!BD30+'Affordable Rent'!BF30) -> (7,745) | O32: =('Social Rent'!BI30+'Market Rent'!BE30+'Affordable Rent'!BG30) -> (7,977) | P32: =('Social Rent'!BJ30+'Market Rent'!BF30+'Affordable Rent'!BH30) -> (8,216) | Q32: =('Social Rent'!BK30+'Market Rent'!BG30+'Affordable Rent'!BI30) -> (8,462) | R32: =('Social Rent'!BL30+'Market Rent'!BH30+'Affordable Rent'!BJ30) -> (8,716) | S32: =('Social Rent'!BM30+'Market Rent'!BI30+'Affordable Rent'!BK30) -> (8,977) | T32: =('Social Rent'!BN30+'Market Rent'!BJ30+'Affordable Rent'!BL30) -> (9,246) | U32: =('Social Rent'!BO30+'Market Rent'!BK30+'Affordable Rent'!BM30) -> (9,523) | V32: =('Social Rent'!BP30+'Market Rent'!BL30+'Affordable Rent'!BN30) -> (9,809) | W32: =('Social Rent'!BQ30+'Market Rent'!BM30+'Affordable Rent'!BO30) -> (10,103) | X32: =('Social Rent'!BR30+'Market Rent'!BN30+'Affordable Rent'!BP30) -> (10,406) | Y32: =('Social Rent'!BS30+'Market Rent'!BO30+'Affordable Rent'!BQ30) -> (10,718) | Z32: =('Social Rent'!BT30+'Market Rent'!BP30+'Affordable Rent'!BR30) -> (11,040) | AA32: =('Social Rent'!BU30+'Market Rent'!BQ30+'Affordable Rent'!BS30) -> (11,371) | AB32: =('Social Rent'!BV30+'Market Rent'!BR30+'Affordable Rent'!BT30) -> (11,712) | AC32: =('Social Rent'!BW30+'Market Rent'!BS30+'Affordable Rent'!BU30) -> (12,063) | AD32: =('Social Rent'!BX30+'Market Rent'!BT30+'Affordable Rent'!BV30) -> (12,425) | AE32: =('Social Rent'!BY30+'Market Rent'!BU30+'Affordable Rent'!BW30) -> (12,798) | AF32: =('Social Rent'!BZ30+'Market Rent'!BV30+'Affordable Rent'!BX30) -> (13,182) | AG32: =('Social Rent'!CA30+'Market Rent'!BW30+'Affordable Rent'!BY30) -> (13,577) | AH32: =('Social Rent'!CB30+'Market Rent'!BX30+'Affordable Rent'!BZ30) -> (13,984) | AI32: =('Social Rent'!CC30+'Market Rent'!BY30+'Affordable Rent'!CA30) -> (14,404) | AJ32: =('Social Rent'!CD30+'Market Rent'!BZ30+'Affordable Rent'!CB30) -> (14,836) | AK32: =('Social Rent'!CE30+'Market Rent'!CA30+'Affordable Rent'!CC30) -> (15,281) | AL32: =('Social Rent'!CF30+'Market Rent'!CB30+'Affordable Rent'!CD30) -> (15,739) | AM32: =('Social Rent'!CG30+'Market Rent'!CC30+'Affordable Rent'!CE30) -> (16,211) | AN32: =('Social Rent'!CH30+'Market Rent'!CD30+'Affordable Rent'!CF30) -> (16,697) | AO32: =('Social Rent'!CI30+'Market Rent'!CE30+'Affordable Rent'!CG30) -> (17,198) | AP32: =('Social Rent'!CJ30+'Market Rent'!CF30+'Affordable Rent'!CH30) -> (17,714) | AQ32: =('Social Rent'!CK30+'Market Rent'!CG30+'Affordable Rent'!CI30) -> (18,245) | AR32: =('Social Rent'!CL30+'Market Rent'!CH30+'Affordable Rent'!CJ30) -> (18,792) | AS32: =('Social Rent'!CM30+'Market Rent'!CI30+'Affordable Rent'!CK30) -> (19,356) | AT32: =('Social Rent'!CN30+'Market Rent'!CJ30+'Affordable Rent'!CL30) -> (19,937) | AU32: =('Social Rent'!CO30+'Market Rent'!CK30+'Affordable Rent'!CM30) -> (20,535) | AV32: =('Social Rent'!CP30+'Market Rent'!CL30+'Affordable Rent'!CN30) -> (21,151) | AW32: =('Social Rent'!CQ30+'Market Rent'!CM30+'Affordable Rent'!CO30) -> (21,786) | AX32: =('Social Rent'!CR30+'Market Rent'!CN30+'Affordable Rent'!CP30) -> (22,440) | AY32: =('Social Rent'!CS30+'Market Rent'!CO30+'Affordable Rent'!CQ30) -> (23,113) | AZ32: =('Social Rent'!CT30+'Market Rent'!CP30+'Affordable Rent'!CR30) -> (23,806) | BA32: =('Social Rent'!CU30+'Market Rent'!CQ30+'Affordable Rent'!CS30) -> (24,520) | BB32: =('Social Rent'!CV30+'Market Rent'!CR30+'Affordable Rent'!CT30) -> (25,256)
A33: Maintenance | E33: =('Social Rent'!AY31+'Market Rent'!AU31+'Affordable Rent'!AW31)/12*$E$5 -> (10,752) | F33: =('Social Rent'!AZ31+'Market Rent'!AV31+'Affordable Rent'!AX31) -> (11,075) | G33: =('Social Rent'!BA31+'Market Rent'!AW31+'Affordable Rent'!AY31) -> (11,407) | H33: =('Social Rent'!BB31+'Market Rent'!AX31+'Affordable Rent'!AZ31) -> (11,749) | I33: =('Social Rent'!BC31+'Market Rent'!AY31+'Affordable Rent'!BA31) -> (12,101) | J33: =('Social Rent'!BD31+'Market Rent'!AZ31+'Affordable Rent'!BB31) -> (12,464) | K33: =('Social Rent'!BE31+'Market Rent'!BA31+'Affordable Rent'!BC31) -> (12,838) | L33: =('Social Rent'!BF31+'Market Rent'!BB31+'Affordable Rent'!BD31) -> (13,223) | M33: =('Social Rent'!BG31+'Market Rent'!BC31+'Affordable Rent'!BE31) -> (13,620) | N33: =('Social Rent'!BH31+'Market Rent'!BD31+'Affordable Rent'!BF31) -> (14,029) | O33: =('Social Rent'!BI31+'Market Rent'!BE31+'Affordable Rent'!BG31) -> (14,450) | P33: =('Social Rent'!BJ31+'Market Rent'!BF31+'Affordable Rent'!BH31) -> (14,884) | Q33: =('Social Rent'!BK31+'Market Rent'!BG31+'Affordable Rent'!BI31) -> (15,331) | R33: =('Social Rent'!BL31+'Market Rent'!BH31+'Affordable Rent'!BJ31) -> (15,791) | S33: =('Social Rent'!BM31+'Market Rent'!BI31+'Affordable Rent'!BK31) -> (16,265) | T33: =('Social Rent'!BN31+'Market Rent'!BJ31+'Affordable Rent'!BL31) -> (16,753) | U33: =('Social Rent'!BO31+'Market Rent'!BK31+'Affordable Rent'!BM31) -> (17,256) | V33: =('Social Rent'!BP31+'Market Rent'!BL31+'Affordable Rent'!BN31) -> (17,774) | W33: =('Social Rent'!BQ31+'Market Rent'!BM31+'Affordable Rent'!BO31) -> (18,307) | X33: =('Social Rent'!BR31+'Market Rent'!BN31+'Affordable Rent'!BP31) -> (18,856) | Y33: =('Social Rent'!BS31+'Market Rent'!BO31+'Affordable Rent'!BQ31) -> (19,422) | Z33: =('Social Rent'!BT31+'Market Rent'!BP31+'Affordable Rent'!BR31) -> (20,005) | AA33: =('Social Rent'!BU31+'Market Rent'!BQ31+'Affordable Rent'!BS31) -> (20,605) | AB33: =('Social Rent'!BV31+'Market Rent'!BR31+'Affordable Rent'!BT31) -> (21,223) | AC33: =('Social Rent'!BW31+'Market Rent'!BS31+'Affordable Rent'!BU31) -> (21,860) | AD33: =('Social Rent'!BX31+'Market Rent'!BT31+'Affordable Rent'!BV31) -> (22,516) | AE33: =('Social Rent'!BY31+'Market Rent'!BU31+'Affordable Rent'!BW31) -> (23,191) | AF33: =('Social Rent'!BZ31+'Market Rent'!BV31+'Affordable Rent'!BX31) -> (23,887) | AG33: =('Social Rent'!CA31+'Market Rent'!BW31+'Affordable Rent'!BY31) -> (24,604) | AH33: =('Social Rent'!CB31+'Market Rent'!BX31+'Affordable Rent'!BZ31) -> (25,342) | AI33: =('Social Rent'!CC31+'Market Rent'!BY31+'Affordable Rent'!CA31) -> (26,102) | AJ33: =('Social Rent'!CD31+'Market Rent'!BZ31+'Affordable Rent'!CB31) -> (26,885) | AK33: =('Social Rent'!CE31+'Market Rent'!CA31+'Affordable Rent'!CC31) -> (27,692) | AL33: =('Social Rent'!CF31+'Market Rent'!CB31+'Affordable Rent'!CD31) -> (28,523) | AM33: =('Social Rent'!CG31+'Market Rent'!CC31+'Affordable Rent'!CE31) -> (29,379) | AN33: =('Social Rent'!CH31+'Market Rent'!CD31+'Affordable Rent'!CF31) -> (30,260) | AO33: =('Social Rent'!CI31+'Market Rent'!CE31+'Affordable Rent'!CG31) -> (31,168) | AP33: =('Social Rent'!CJ31+'Market Rent'!CF31+'Affordable Rent'!CH31) -> (32,103) | AQ33: =('Social Rent'!CK31+'Market Rent'!CG31+'Affordable Rent'!CI31) -> (33,066) | AR33: =('Social Rent'!CL31+'Market Rent'!CH31+'Affordable Rent'!CJ31) -> (34,058) | AS33: =('Social Rent'!CM31+'Market Rent'!CI31+'Affordable Rent'!CK31) -> (35,080) | AT33: =('Social Rent'!CN31+'Market Rent'!CJ31+'Affordable Rent'!CL31) -> (36,132) | AU33: =('Social Rent'!CO31+'Market Rent'!CK31+'Affordable Rent'!CM31) -> (37,216) | AV33: =('Social Rent'!CP31+'Market Rent'!CL31+'Affordable Rent'!CN31) -> (38,332) | AW33: =('Social Rent'!CQ31+'Market Rent'!CM31+'Affordable Rent'!CO31) -> (39,482) | AX33: =('Social Rent'!CR31+'Market Rent'!CN31+'Affordable Rent'!CP31) -> (40,666) | AY33: =('Social Rent'!CS31+'Market Rent'!CO31+'Affordable Rent'!CQ31) -> (41,886) | AZ33: =('Social Rent'!CT31+'Market Rent'!CP31+'Affordable Rent'!CR31) -> (43,143) | BA33: =('Social Rent'!CU31+'Market Rent'!CQ31+'Affordable Rent'!CS31) -> (44,437) | BB33: =('Social Rent'!CV31+'Market Rent'!CR31+'Affordable Rent'!CT31) -> (45,770)
A34: Major Repairs | E34: =('Social Rent'!AY32+'Market Rent'!AU32+'Affordable Rent'!AW32)/12*$E$5 -> 0 | F34: =('Social Rent'!AZ32+'Market Rent'!AV32+'Affordable Rent'!AX32) -> 0 | G34: =('Social Rent'!BA32+'Market Rent'!AW32+'Affordable Rent'!AY32) -> 0 | H34: =('Social Rent'!BB32+'Market Rent'!AX32+'Affordable Rent'!AZ32) -> (7,909) | I34: =('Social Rent'!BC32+'Market Rent'!AY32+'Affordable Rent'!BA32) -> (7,909) | J34: =('Social Rent'!BD32+'Market Rent'!AZ32+'Affordable Rent'!BB32) -> (7,909) | K34: =('Social Rent'!BE32+'Market Rent'!BA32+'Affordable Rent'!BC32) -> (9,392) | L34: =('Social Rent'!BF32+'Market Rent'!BB32+'Affordable Rent'!BD32) -> (9,392) | M34: =('Social Rent'!BG32+'Market Rent'!BC32+'Affordable Rent'!BE32) -> (9,392) | N34: =('Social Rent'!BH32+'Market Rent'!BD32+'Affordable Rent'!BF32) -> (11,369) | O34: =('Social Rent'!BI32+'Market Rent'!BE32+'Affordable Rent'!BG32) -> (11,369) | P34: =('Social Rent'!BJ32+'Market Rent'!BF32+'Affordable Rent'!BH32) -> (11,369) | Q34: =('Social Rent'!BK32+'Market Rent'!BG32+'Affordable Rent'!BI32) -> (13,841) | R34: =('Social Rent'!BL32+'Market Rent'!BH32+'Affordable Rent'!BJ32) -> (13,841) | S34: =('Social Rent'!BM32+'Market Rent'!BI32+'Affordable Rent'!BK32) -> (13,841) | T34: =('Social Rent'!BN32+'Market Rent'!BJ32+'Affordable Rent'!BL32) -> (16,313) | U34: =('Social Rent'!BO32+'Market Rent'!BK32+'Affordable Rent'!BM32) -> (16,313) | V34: =('Social Rent'!BP32+'Market Rent'!BL32+'Affordable Rent'!BN32) -> (16,313) | W34: =('Social Rent'!BQ32+'Market Rent'!BM32+'Affordable Rent'!BO32) -> (19,773) | X34: =('Social Rent'!BR32+'Market Rent'!BN32+'Affordable Rent'!BP32) -> (19,773) | Y34: =('Social Rent'!BS32+'Market Rent'!BO32+'Affordable Rent'!BQ32) -> (19,773) | Z34: =('Social Rent'!BT32+'Market Rent'!BP32+'Affordable Rent'!BR32) -> (23,727) | AA34: =('Social Rent'!BU32+'Market Rent'!BQ32+'Affordable Rent'!BS32) -> (23,727) | AB34: =('Social Rent'!BV32+'Market Rent'!BR32+'Affordable Rent'!BT32) -> (23,727) | AC34: =('Social Rent'!BW32+'Market Rent'!BS32+'Affordable Rent'!BU32) -> (28,176) | AD34: =('Social Rent'!BX32+'Market Rent'!BT32+'Affordable Rent'!BV32) -> (28,176) | AE34: =('Social Rent'!BY32+'Market Rent'!BU32+'Affordable Rent'!BW32) -> (28,176) | AF34: =('Social Rent'!BZ32+'Market Rent'!BV32+'Affordable Rent'!BX32) -> (34,108) | AG34: =('Social Rent'!CA32+'Market Rent'!BW32+'Affordable Rent'!BY32) -> (34,108) | AH34: =('Social Rent'!CB32+'Market Rent'!BX32+'Affordable Rent'!BZ32) -> (34,602) | AI34: =('Social Rent'!CC32+'Market Rent'!BY32+'Affordable Rent'!CA32) -> (54,544) | AJ34: =('Social Rent'!CD32+'Market Rent'!BZ32+'Affordable Rent'!CB32) -> (56,180) | AK34: =('Social Rent'!CE32+'Market Rent'!CA32+'Affordable Rent'!CC32) -> (57,866) | AL34: =('Social Rent'!CF32+'Market Rent'!CB32+'Affordable Rent'!CD32) -> (59,602) | AM34: =('Social Rent'!CG32+'Market Rent'!CC32+'Affordable Rent'!CE32) -> (61,390) | AN34: =('Social Rent'!CH32+'Market Rent'!CD32+'Affordable Rent'!CF32) -> (63,231) | AO34: =('Social Rent'!CI32+'Market Rent'!CE32+'Affordable Rent'!CG32) -> (65,128) | AP34: =('Social Rent'!CJ32+'Market Rent'!CF32+'Affordable Rent'!CH32) -> (67,082) | AQ34: =('Social Rent'!CK32+'Market Rent'!CG32+'Affordable Rent'!CI32) -> (69,095) | AR34: =('Social Rent'!CL32+'Market Rent'!CH32+'Affordable Rent'!CJ32) -> (71,168) | AS34: =('Social Rent'!CM32+'Market Rent'!CI32+'Affordable Rent'!CK32) -> (73,303) | AT34: =('Social Rent'!CN32+'Market Rent'!CJ32+'Affordable Rent'!CL32) -> (75,502) | AU34: =('Social Rent'!CO32+'Market Rent'!CK32+'Affordable Rent'!CM32) -> (77,767) | AV34: =('Social Rent'!CP32+'Market Rent'!CL32+'Affordable Rent'!CN32) -> (80,100) | AW34: =('Social Rent'!CQ32+'Market Rent'!CM32+'Affordable Rent'!CO32) -> (82,503) | AX34: =('Social Rent'!CR32+'Market Rent'!CN32+'Affordable Rent'!CP32) -> (84,978) | AY34: =('Social Rent'!CS32+'Market Rent'!CO32+'Affordable Rent'!CQ32) -> (87,527) | AZ34: =('Social Rent'!CT32+'Market Rent'!CP32+'Affordable Rent'!CR32) -> (90,153) | BA34: =('Social Rent'!CU32+'Market Rent'!CQ32+'Affordable Rent'!CS32) -> (92,858) | BB34: =('Social Rent'!CV32+'Market Rent'!CR32+'Affordable Rent'!CT32) -> (95,643)
A36: Commercial
A37: Management | E37: =+Commercial!AF30/12*E5 -> 0 | F37: =+Commercial!AG30 -> 0 | G37: =+Commercial!AH30 -> 0 | H37: =+Commercial!AI30 -> 0 | I37: =+Commercial!AJ30 -> 0 | J37: =+Commercial!AK30 -> 0 | K37: =+Commercial!AL30 -> 0 | L37: =+Commercial!AM30 -> 0 | M37: =+Commercial!AN30 -> 0 | N37: =+Commercial!AO30 -> 0 | O37: =+Commercial!AP30 -> 0 | P37: =+Commercial!AQ30 -> 0 | Q37: =+Commercial!AR30 -> 0 | R37: =+Commercial!AS30 -> 0 | S37: =+Commercial!AT30 -> 0 | T37: =+Commercial!AU30 -> 0 | U37: =+Commercial!AV30 -> 0 | V37: =+Commercial!AW30 -> 0 | W37: =+Commercial!AX30 -> 0 | X37: =+Commercial!AY30 -> 0 | Y37: =+Commercial!AZ30 -> 0 | Z37: =+Commercial!BA30 -> 0 | AA37: =+Commercial!BB30 -> 0 | AB37: =+Commercial!BC30 -> 0 | AC37: =+Commercial!BD30 -> 0 | AD37: =+Commercial!BE30 -> 0 | AE37: =+Commercial!BF30 -> 0 | AF37: =+Commercial!BG30 -> 0 | AG37: =+Commercial!BH30 -> 0 | AH37: =+Commercial!BI30 -> 0 | AI37: =+Commercial!BJ30 -> 0 | AJ37: =+Commercial!BK30 -> 0 | AK37: =+Commercial!BL30 -> 0 | AL37: =+Commercial!BM30 -> 0 | AM37: =+Commercial!BN30 -> 0 | AN37: =+Commercial!BO30 -> 0 | AO37: =+Commercial!BP30 -> 0 | AP37: =+Commercial!BQ30 -> 0 | AQ37: =+Commercial!BR30 -> 0 | AR37: =+Commercial!BS30 -> 0 | AS37: =+Commercial!BT30 -> 0 | AT37: =+Commercial!BU30 -> 0 | AU37: =+Commercial!BV30 -> 0 | AV37: =+Commercial!BW30 -> 0 | AW37: =+Commercial!BX30 -> 0 | AX37: =+Commercial!BY30 -> 0 | AY37: =+Commercial!BZ30 -> 0 | AZ37: =+Commercial!CA30 -> 0 | BA37: =+Commercial!CB30 -> 0 | BB37: =+Commercial!CC30 -> 0
A38: Maintenance | E38: =+Commercial!AF31/12*E5 -> 0 | F38: =+Commercial!AG31 -> 0 | G38: =+Commercial!AH31 -> 0 | H38: =+Commercial!AI31 -> 0 | I38: =+Commercial!AJ31 -> 0 | J38: =+Commercial!AK31 -> 0 | K38: =+Commercial!AL31 -> 0 | L38: =+Commercial!AM31 -> 0 | M38: =+Commercial!AN31 -> 0 | N38: =+Commercial!AO31 -> 0 | O38: =+Commercial!AP31 -> 0 | P38: =+Commercial!AQ31 -> 0 | Q38: =+Commercial!AR31 -> 0 | R38: =+Commercial!AS31 -> 0 | S38: =+Commercial!AT31 -> 0 | T38: =+Commercial!AU31 -> 0 | U38: =+Commercial!AV31 -> 0 | V38: =+Commercial!AW31 -> 0 | W38: =+Commercial!AX31 -> 0 | X38: =+Commercial!AY31 -> 0 | Y38: =+Commercial!AZ31 -> 0 | Z38: =+Commercial!BA31 -> 0 | AA38: =+Commercial!BB31 -> 0 | AB38: =+Commercial!BC31 -> 0 | AC38: =+Commercial!BD31 -> 0 | AD38: =+Commercial!BE31 -> 0 | AE38: =+Commercial!BF31 -> 0 | AF38: =+Commercial!BG31 -> 0 | AG38: =+Commercial!BH31 -> 0 | AH38: =+Commercial!BI31 -> 0 | AI38: =+Commercial!BJ31 -> 0 | AJ38: =+Commercial!BK31 -> 0 | AK38: =+Commercial!BL31 -> 0 | AL38: =+Commercial!BM31 -> 0 | AM38: =+Commercial!BN31 -> 0 | AN38: =+Commercial!BO31 -> 0 | AO38: =+Commercial!BP31 -> 0 | AP38: =+Commercial!BQ31 -> 0 | AQ38: =+Commercial!BR31 -> 0 | AR38: =+Commercial!BS31 -> 0 | AS38: =+Commercial!BT31 -> 0 | AT38: =+Commercial!BU31 -> 0 | AU38: =+Commercial!BV31 -> 0 | AV38: =+Commercial!BW31 -> 0 | AW38: =+Commercial!BX31 -> 0 | AX38: =+Commercial!BY31 -> 0 | AY38: =+Commercial!BZ31 -> 0 | AZ38: =+Commercial!CA31 -> 0 | BA38: =+Commercial!CB31 -> 0 | BB38: =+Commercial!CC31 -> 0
A40: Total Expenditure | C40: =SUM(C30:C39) -> 0 | D40: (2,928,513) | E40: (110,872) | F40: (17,189) | G40: (17,704) | H40: (26,144) | I40: (26,691) | J40: (27,254) | K40: (29,317) | L40: (29,915) | M40: (30,531) | N40: (33,143) | O40: (33,796) | P40: (34,469) | Q40: (37,634) | R40: (38,348) | S40: (39,083) | T40: (42,312) | U40: (43,092) | V40: (43,896) | W40: (48,183) | X40: (49,035) | Y40: (49,913) | Z40: (54,772) | AA40: (55,703) | AB40: (56,662) | AC40: (62,099) | AD40: (63,117) | AE40: (64,165) | AF40: (71,177) | AG40: (72,289) | AH40: (73,928) | AI40: =SUM(AI30:AI39) -> (95,050) | AJ40: (97,901) | AK40: (100,839) | AL40: (103,864) | AM40: (106,980) | AN40: (110,188) | AO40: (113,494) | AP40: (116,899) | AQ40: (120,406) | AR40: =SUM(AR30:AR39) -> (124,018) | AS40: (127,739) | AT40: (131,571) | AU40: (135,518) | AV40: (139,583) | AW40: (143,771) | AX40: (148,084) | AY40: (152,526) | AZ40: (157,102) | BA40: (161,815) | BB40: (166,669)
A42: Long Term Borrowing
A43: Capital | E43: =-'Secured Funding'!G15 -> (12,228) | F43: =-'Secured Funding'!G16 -> (12,778) | G43: =-'Secured Funding'!G17 -> (13,353) | H43: =-'Secured Funding'!G18 -> (13,954) | I43: =-'Secured Funding'!G19 -> (14,582) | J43: =-'Secured Funding'!G20 -> (15,238) | K43: =-'Secured Funding'!G21 -> (15,924) | L43: =-'Secured Funding'!G22 -> (16,640) | M43: =-'Secured Funding'!G23 -> (17,389) | N43: =-'Secured Funding'!G24 -> (18,172) | O43: =-'Secured Funding'!G25 -> (18,989) | P43: =-'Secured Funding'!G26 -> (19,844) | Q43: =-'Secured Funding'!G27 -> (20,737) | R43: =-'Secured Funding'!G28 -> (21,670) | S43: =-'Secured Funding'!G29 -> (22,645) | T43: =-'Secured Funding'!G30 -> (23,664) | U43: =-'Secured Funding'!G31 -> (24,729) | V43: =-'Secured Funding'!G32 -> (25,842) | W43: =-'Secured Funding'!G33 -> (27,005) | X43: =-'Secured Funding'!G34 -> (28,220) | Y43: =-'Secured Funding'!G35 -> (29,490) | Z43: =-'Secured Funding'!G36 -> (30,817) | AA43: =-'Secured Funding'!G37 -> (32,204) | AB43: =-'Secured Funding'!G38 -> (33,653) | AC43: =-'Secured Funding'!G39 -> (35,167) | AD43: =-'Secured Funding'!G40 -> (36,750) | AE43: =-'Secured Funding'!G41 -> (38,404) | AF43: =-'Secured Funding'!G42 -> (40,132) | AG43: =-'Secured Funding'!G43 -> (41,938) | AH43: =-'Secured Funding'!G44 -> (43,825) | AI43: =-'Secured Funding'!G45 -> (45,797) | AJ43: =-'Secured Funding'!G46 -> (47,858) | AK43: =-'Secured Funding'!G47 -> (50,011) | AL43: =-'Secured Funding'!G48 -> (52,262) | AM43: =-'Secured Funding'!G49 -> (54,614) | AN43: =-'Secured Funding'!G50 -> (57,071) | AO43: =-'Secured Funding'!G51 -> (59,640) | AP43: =-'Secured Funding'!G52 -> (62,323) | AQ43: =-'Secured Funding'!G53 -> (65,128) | AR43: =-'Secured Funding'!G54 -> (68,059) | AS43: =-'Secured Funding'!G55 -> (71,121) | AT43: =-'Secured Funding'!G56 -> (74,322) | AU43: =-'Secured Funding'!G57 -> (77,666) | AV43: =-'Secured Funding'!G58 -> (81,161) | AW43: =-'Secured Funding'!G59 -> (84,813) | AX43: =-'Secured Funding'!G60 -> (88,630) | AY43: =-'Secured Funding'!G61 -> (92,618) | AZ43: =-'Secured Funding'!G62 -> (96,786) | BA43: =-'Secured Funding'!G63 -> (101,142) | BB43: =-'Secured Funding'!G64 -> (105,693)
A44: Interest | B44: =+'Project Information'!H27 -> 4.50% | E44: =-'Secured Funding'!C15 -> (98,221) | F44: =-'Secured Funding'!C16 -> (97,671) | G44: =-'Secured Funding'!C17 -> (97,096) | H44: =-'Secured Funding'!C18 -> (96,495) | I44: =-'Secured Funding'!C19 -> (95,867) | J44: =-'Secured Funding'!C20 -> (95,211) | K44: =-'Secured Funding'!C21 -> (94,525) | L44: =-'Secured Funding'!C22 -> (93,809) | M44: =-'Secured Funding'!C23 -> (93,060) | N44: =-'Secured Funding'!C24 -> (92,277) | O44: =-'Secured Funding'!C25 -> (91,460) | P44: =-'Secured Funding'!C26 -> (90,605) | Q44: =-'Secured Funding'!C27 -> (89,712) | R44: =-'Secured Funding'!C28 -> (88,779) | S44: =-'Secured Funding'!C29 -> (87,804) | T44: =-'Secured Funding'!C30 -> (86,785) | U44: =-'Secured Funding'!C31 -> (85,720) | V44: =-'Secured Funding'!C32 -> (84,607) | W44: =-'Secured Funding'!C33 -> (83,444) | X44: =-'Secured Funding'!C34 -> (82,229) | Y44: =-'Secured Funding'!C35 -> (80,959) | Z44: =-'Secured Funding'!C36 -> (79,632) | AA44: =-'Secured Funding'!C37 -> (78,245) | AB44: =-'Secured Funding'!C38 -> (76,796) | AC44: =-'Secured Funding'!C39 -> (75,282) | AD44: =-'Secured Funding'!C40 -> (73,699) | AE44: =-'Secured Funding'!C41 -> (72,046) | AF44: =-'Secured Funding'!C42 -> (70,317) | AG44: =-'Secured Funding'!C43 -> (68,511) | AH44: =-'Secured Funding'!C44 -> (66,624) | AI44: =-'Secured Funding'!C45 -> (64,652) | AJ44: =-'Secured Funding'!C46 -> (62,591) | AK44: =-'Secured Funding'!C47 -> (60,438) | AL44: =-'Secured Funding'!C48 -> (58,187) | AM44: =-'Secured Funding'!C49 -> (55,835) | AN44: =-'Secured Funding'!C50 -> (53,378) | AO44: =-'Secured Funding'!C51 -> (50,810) | AP44: =-'Secured Funding'!C52 -> (48,126) | AQ44: =-'Secured Funding'!C53 -> (45,321) | AR44: =-'Secured Funding'!C54 -> (42,390) | AS44: =-'Secured Funding'!C55 -> (39,328) | AT44: =-'Secured Funding'!C56 -> (36,127) | AU44: =-'Secured Funding'!C57 -> (32,783) | AV44: =-'Secured Funding'!C58 -> (29,288) | AW44: =-'Secured Funding'!C59 -> (25,636) | AX44: =-'Secured Funding'!C60 -> (21,819) | AY44: =-'Secured Funding'!C61 -> (17,831) | AZ44: =-'Secured Funding'!C62 -> (13,663) | BA44: =-'Secured Funding'!C63 -> (9,308) | BB44: =-'Secured Funding'!C64 -> (4,756)
A46: Community Bond
A47: Capital | E47: ='Community Bond'!C24+'Community Bond'!C14 -> 0 | F47: ='Community Bond'!D24+'Community Bond'!D14 -> 0 | G47: ='Community Bond'!E24+'Community Bond'!E14 -> 0 | H47: ='Community Bond'!F24+'Community Bond'!F14 -> 0 | I47: ='Community Bond'!G24+'Community Bond'!G14 -> 0 | J47: ='Community Bond'!H24+'Community Bond'!H14 -> 0 | K47: ='Community Bond'!I24+'Community Bond'!I14 -> 0 | L47: ='Community Bond'!J24+'Community Bond'!J14 -> 0 | M47: ='Community Bond'!K24+'Community Bond'!K14 -> 0 | N47: ='Community Bond'!L24+'Community Bond'!L14 -> 0 | O47: ='Community Bond'!M24+'Community Bond'!M14 -> 0 | P47: ='Community Bond'!N24+'Community Bond'!N14 -> 0 | Q47: ='Community Bond'!O24+'Community Bond'!O14 -> 0 | R47: ='Community Bond'!P24+'Community Bond'!P14 -> 0 | S47: ='Community Bond'!Q24+'Community Bond'!Q14 -> 0 | T47: ='Community Bond'!R24+'Community Bond'!R14 -> 0 | U47: ='Community Bond'!S24+'Community Bond'!S14 -> 0 | V47: ='Community Bond'!T24+'Community Bond'!T14 -> 0 | W47: ='Community Bond'!U24+'Community Bond'!U14 -> 0 | X47: ='Community Bond'!V24+'Community Bond'!V14 -> 0 | Y47: ='Community Bond'!W24+'Community Bond'!W14 -> 0 | Z47: ='Community Bond'!X24+'Community Bond'!X14 -> 0 | AA47: ='Community Bond'!Y24+'Community Bond'!Y14 -> 0 | AB47: ='Community Bond'!Z24+'Community Bond'!Z14 -> 0 | AC47: ='Community Bond'!AA24+'Community Bond'!AA14 -> 0 | AD47: ='Community Bond'!AB24+'Community Bond'!AB14 -> 0 | AE47: ='Community Bond'!AC24+'Community Bond'!AC14 -> 0 | AF47: ='Community Bond'!AD24+'Community Bond'!AD14 -> 0 | AG47: ='Community Bond'!AE24+'Community Bond'!AE14 -> 0 | AH47: ='Community Bond'!AF24+'Community Bond'!AF14 -> 0 | AI47: ='Community Bond'!AG24+'Community Bond'!AG14 -> 0 | AJ47: ='Community Bond'!AH24+'Community Bond'!AH14 -> 0 | AK47: ='Community Bond'!AI24+'Community Bond'!AI14 -> 0 | AL47: ='Community Bond'!AJ24+'Community Bond'!AJ14 -> 0 | AM47: ='Community Bond'!AK24+'Community Bond'!AK14 -> 0 | AN47: ='Community Bond'!AL24+'Community Bond'!AL14 -> 0 | AO47: ='Community Bond'!AM24+'Community Bond'!AM14 -> 0 | AP47: ='Community Bond'!AN24+'Community Bond'!AN14 -> 0 | AQ47: ='Community Bond'!AO24+'Community Bond'!AO14 -> 0 | AR47: ='Community Bond'!AP24+'Community Bond'!AP14 -> 0 | AS47: ='Community Bond'!AQ24+'Community Bond'!AQ14 -> 0 | AT47: ='Community Bond'!AR24+'Community Bond'!AR14 -> 0 | AU47: ='Community Bond'!AS24+'Community Bond'!AS14 -> 0 | AV47: ='Community Bond'!AT24+'Community Bond'!AT14 -> 0 | AW47: ='Community Bond'!AU24+'Community Bond'!AU14 -> 0 | AX47: ='Community Bond'!AV24+'Community Bond'!AV14 -> 0 | AY47: ='Community Bond'!AW24+'Community Bond'!AW14 -> 0 | AZ47: ='Community Bond'!AX24+'Community Bond'!AX14 -> 0 | BA47: ='Community Bond'!AY24+'Community Bond'!AY14 -> 0 | BB47: ='Community Bond'!AZ24+'Community Bond'!AZ14 -> 0
A48: Interest | E48: =+'Community Bond'!C27 -> 0 | F48: =+'Community Bond'!D27 -> 0 | G48: =+'Community Bond'!E27 -> 0 | H48: =+'Community Bond'!F27 -> 0 | I48: =+'Community Bond'!G27 -> 0 | J48: =+'Community Bond'!H27 -> 0 | K48: =+'Community Bond'!I27 -> 0 | L48: =+'Community Bond'!J27 -> 0 | M48: =+'Community Bond'!K27 -> 0 | N48: =+'Community Bond'!L27 -> 0 | O48: =+'Community Bond'!M27 -> 0 | P48: =+'Community Bond'!N27 -> 0 | Q48: =+'Community Bond'!O27 -> 0 | R48: =+'Community Bond'!P27 -> 0 | S48: =+'Community Bond'!Q27 -> 0 | T48: =+'Community Bond'!R27 -> 0 | U48: =+'Community Bond'!S27 -> 0 | V48: =+'Community Bond'!T27 -> 0 | W48: =+'Community Bond'!U27 -> 0 | X48: =+'Community Bond'!V27 -> 0 | Y48: =+'Community Bond'!W27 -> 0 | Z48: =+'Community Bond'!X27 -> 0 | AA48: =+'Community Bond'!Y27 -> 0 | AB48: =+'Community Bond'!Z27 -> 0 | AC48: =+'Community Bond'!AA27 -> 0 | AD48: =+'Community Bond'!AB27 -> 0 | AE48: =+'Community Bond'!AC27 -> 0 | AF48: =+'Community Bond'!AD27 -> 0 | AG48: =+'Community Bond'!AE27 -> 0 | AH48: =+'Community Bond'!AF27 -> 0 | AI48: =+'Community Bond'!AG27 -> 0 | AJ48: =+'Community Bond'!AH27 -> 0 | AK48: =+'Community Bond'!AI27 -> 0 | AL48: =+'Community Bond'!AJ27 -> 0 | AM48: =+'Community Bond'!AK27 -> 0 | AN48: =+'Community Bond'!AL27 -> 0 | AO48: =+'Community Bond'!AM27 -> 0 | AP48: =+'Community Bond'!AN27 -> 0 | AQ48: =+'Community Bond'!AO27 -> 0 | AR48: =+'Community Bond'!AP27 -> 0 | AS48: =+'Community Bond'!AQ27 -> 0 | AT48: =+'Community Bond'!AR27 -> 0 | AU48: =+'Community Bond'!AS27 -> 0 | AV48: =+'Community Bond'!AT27 -> 0 | AW48: =+'Community Bond'!AU27 -> 0 | AX48: =+'Community Bond'!AV27 -> 0 | AY48: =+'Community Bond'!AW27 -> 0 | AZ48: =+'Community Bond'!AX27 -> 0 | BA48: =+'Community Bond'!AY27 -> 0 | BB48: =+'Community Bond'!AZ27 -> 0
A50: Unsecured Short Term Lending
A51: Interest Payable | B51: =+'Project Information'!H26 -> 7.50% | C51: 0 | D51: 0 | E51: =IF(($E$14+$E$15+$E$32+$E$33+$E$43+$E$44)<0,((($E$14+$E$15+$E$32+$E$33+$E$43+$E$44)*(B51)/12)*$E$5),0) -> (335) | F51: =IF((E57+((F27+F40+F43+F44+F47+F48)/2))<0,(E57+((F27+F40+F43+F44+F47+F48)/2))*$B$51,0) -> (409) | G51: (413) | H51: (465) | I51: (561) | J51: (399) | K51: (9) | L51: 0 | M51: 0 | N51: 0 | O51: 0 | P51: 0 | Q51: 0 | R51: 0 | S51: 0 | T51: 0 | U51: 0 | V51: 0 | W51: 0 | X51: 0 | Y51: 0 | Z51: 0 | AA51: 0 | AB51: 0 | AC51: 0 | AD51: 0 | AE51: 0 | AF51: 0 | AG51: 0 | AH51: 0 | AI51: =IF((AH57+((AI27+AI40+AI43+AI44+AI47+AI48)/2))<0,(AH57+((AI27+AI40+AI43+AI44+AI47+AI48)/2))*$B$51,0) -> 0 | AJ51: =IF((AI57+((AJ27+AJ40+AJ43+AJ44+AJ47+AJ48)/2))<0,(AI57+((AJ27+AJ40+AJ43+AJ44+AJ47+AJ48)/2))*$B$51,0) -> 0 | AK51: =IF((AJ57+((AK27+AK40+AK43+AK44+AK47+AK48)/2))<0,(AJ57+((AK27+AK40+AK43+AK44+AK47+AK48)/2))*$B$51,0) -> 0 | AL51: =IF((AK57+((AL27+AL40+AL43+AL44+AL47+AL48)/2))<0,(AK57+((AL27+AL40+AL43+AL44+AL47+AL48)/2))*$B$51,0) -> 0 | AM51: =IF((AL57+((AM27+AM40+AM43+AM44+AM47+AM48)/2))<0,(AL57+((AM27+AM40+AM43+AM44+AM47+AM48)/2))*$B$51,0) -> 0 | AN51: =IF((AM57+((AN27+AN40+AN43+AN44+AN47+AN48)/2))<0,(AM57+((AN27+AN40+AN43+AN44+AN47+AN48)/2))*$B$51,0) -> 0 | AO51: =IF((AN57+((AO27+AO40+AO43+AO44+AO47+AO48)/2))<0,(AN57+((AO27+AO40+AO43+AO44+AO47+AO48)/2))*$B$51,0) -> 0 | AP51: =IF((AO57+((AP27+AP40+AP43+AP44+AP47+AP48)/2))<0,(AO57+((AP27+AP40+AP43+AP44+AP47+AP48)/2))*$B$51,0) -> 0 | AQ51: =IF((AP57+((AQ27+AQ40+AQ43+AQ44+AQ47+AQ48)/2))<0,(AP57+((AQ27+AQ40+AQ43+AQ44+AQ47+AQ48)/2))*$B$51,0) -> 0 | AR51: 0 | AS51: =IF((AR57+((AS27+AS40+AS43+AS44+AS47+AS48)/2))<0,(AR57+((AS27+AS40+AS43+AS44+AS47+AS48)/2))*$B$51,0) -> 0 | AT51: =IF((AS57+((AT27+AT40+AT43+AT44+AT47+AT48)/2))<0,(AS57+((AT27+AT40+AT43+AT44+AT47+AT48)/2))*$B$51,0) -> 0 | AU51: =IF((AT57+((AU27+AU40+AU43+AU44+AU47+AU48)/2))<0,(AT57+((AU27+AU40+AU43+AU44+AU47+AU48)/2))*$B$51,0) -> 0 | AV51: =IF((AU57+((AV27+AV40+AV43+AV44+AV47+AV48)/2))<0,(AU57+((AV27+AV40+AV43+AV44+AV47+AV48)/2))*$B$51,0) -> 0 | AW51: =IF((AV57+((AW27+AW40+AW43+AW44+AW47+AW48)/2))<0,(AV57+((AW27+AW40+AW43+AW44+AW47+AW48)/2))*$B$51,0) -> 0 | AX51: =IF((AW57+((AX27+AX40+AX43+AX44+AX47+AX48)/2))<0,(AW57+((AX27+AX40+AX43+AX44+AX47+AX48)/2))*$B$51,0) -> 0 | AY51: =IF((AX57+((AY27+AY40+AY43+AY44+AY47+AY48)/2))<0,(AX57+((AY27+AY40+AY43+AY44+AY47+AY48)/2))*$B$51,0) -> 0 | AZ51: =IF((AY57+((AZ27+AZ40+AZ43+AZ44+AZ47+AZ48)/2))<0,(AY57+((AZ27+AZ40+AZ43+AZ44+AZ47+AZ48)/2))*$B$51,0) -> 0 | BA51: =IF((AZ57+((BA27+BA40+BA43+BA44+BA47+BA48)/2))<0,(AZ57+((BA27+BA40+BA43+BA44+BA47+BA48)/2))*$B$51,0) -> 0 | BB51: =IF((BA57+((BB27+BB40+BB43+BB44+BB47+BB48)/2))<0,(BA57+((BB27+BB40+BB43+BB44+BB47+BB48)/2))*$B$51,0) -> 0
A52: Interest Receivable | B52: 0.50% | C52: =IF((((C27+C40)/2))>0,(((C27+C40)/2))*$B$52,0) -> 0 | D52: =IF((C57+((D27+D40)/2))>0,(C57+((D27+D40)/2))*$B$52,0) -> 0 | E52: =IF(($E$14+$E$15+$E$32+$E$33+$E$43+$E$44+E47+E48)>0,((($E$14+$E$15+$E$32+$E$33+$E$43+$E$44+E47+E48)*(B52)/12)*$E$5),0) -> 0 | F52: =IF((E57+((F27+F40+F43+F44+F47+F48)/2))>0,(E57+((F27+F40)/2))*$B$52,0) -> 0 | G52: 0 | H52: 0 | I52: 0 | J52: 0 | K52: 0 | L52: 319 | M52: 382 | N52: 462 | O52: 557 | P52: 673 | Q52: 806 | R52: 955 | S52: 1,128 | T52: 1,320 | U52: 1,531 | V52: 1,768 | W52: 2,023 | X52: 2,298 | Y52: 2,601 | Z52: 2,925 | AA52: 3,269 | AB52: 3,645 | AC52: 4,043 | AD52: 4,463 | AE52: 4,919 | AF52: 5,395 | AG52: 5,894 | AH52: 6,430 | AI52: =IF((AH57+((AI27+AI40+AI43+AI44+AI47+AI48)/2))>0,(AH57+((AI27+AI40)/2))*$B$52,0) -> 6,955 | AJ52: =IF((AI57+((AJ27+AJ40+AJ43+AJ44+AJ47+AJ48)/2))>0,(AI57+((AJ27+AJ40)/2))*$B$52,0) -> 7,466 | AK52: =IF((AJ57+((AK27+AK40+AK43+AK44+AK47+AK48)/2))>0,(AJ57+((AK27+AK40)/2))*$B$52,0) -> 8,010 | AL52: =IF((AK57+((AL27+AL40+AL43+AL44+AL47+AL48)/2))>0,(AK57+((AL27+AL40)/2))*$B$52,0) -> 8,590 | AM52: =IF((AL57+((AM27+AM40+AM43+AM44+AM47+AM48)/2))>0,(AL57+((AM27+AM40)/2))*$B$52,0) -> 9,204 | AN52: =IF((AM57+((AN27+AN40+AN43+AN44+AN47+AN48)/2))>0,(AM57+((AN27+AN40)/2))*$B$52,0) -> 9,856 | AO52: =IF((AN57+((AO27+AO40+AO43+AO44+AO47+AO48)/2))>0,(AN57+((AO27+AO40)/2))*$B$52,0) -> 10,546 | AP52: =IF((AO57+((AP27+AP40+AP43+AP44+AP47+AP48)/2))>0,(AO57+((AP27+AP40)/2))*$B$52,0) -> 11,274 | AQ52: =IF((AP57+((AQ27+AQ40+AQ43+AQ44+AQ47+AQ48)/2))>0,(AP57+((AQ27+AQ40)/2))*$B$52,0) -> 12,044 | AR52: 12,855 | AS52: =IF((AR57+((AS27+AS40+AS43+AS44+AS47+AS48)/2))>0,(AR57+((AS27+AS40)/2))*$B$52,0) -> 13,709 | AT52: =IF((AS57+((AT27+AT40+AT43+AT44+AT47+AT48)/2))>0,(AS57+((AT27+AT40)/2))*$B$52,0) -> 14,608 | AU52: =IF((AT57+((AU27+AU40+AU43+AU44+AU47+AU48)/2))>0,(AT57+((AU27+AU40)/2))*$B$52,0) -> 15,553 | AV52: =IF((AU57+((AV27+AV40+AV43+AV44+AV47+AV48)/2))>0,(AU57+((AV27+AV40)/2))*$B$52,0) -> 16,545 | AW52: =IF((AV57+((AW27+AW40+AW43+AW44+AW47+AW48)/2))>0,(AV57+((AW27+AW40)/2))*$B$52,0) -> 17,586 | AX52: =IF((AW57+((AX27+AX40+AX43+AX44+AX47+AX48)/2))>0,(AW57+((AX27+AX40)/2))*$B$52,0) -> 18,678 | AY52: =IF((AX57+((AY27+AY40+AY43+AY44+AY47+AY48)/2))>0,(AX57+((AY27+AY40)/2))*$B$52,0) -> 19,822 | AZ52: =IF((AY57+((AZ27+AZ40+AZ43+AZ44+AZ47+AZ48)/2))>0,(AY57+((AZ27+AZ40)/2))*$B$52,0) -> 21,019 | BA52: =IF((AZ57+((BA27+BA40+BA43+BA44+BA47+BA48)/2))>0,(AZ57+((BA27+BA40)/2))*$B$52,0) -> 22,273 | BB52: =IF((BA57+((BB27+BB40+BB43+BB44+BB47+BB48)/2))>0,(BA57+((BB27+BB40)/2))*$B$52,0) -> 23,583
A55: Annual Surplus/(Deficit) | C55: =+C27+C40+C51+C52+C43+C44+C47+C48 -> 0 | D55: (2,508,513) | E55: 2,503,710 | F55: (1,697) | G55: 1,575 | H55: (3,014) | I55: 365 | J55: 4,106 | K55: 6,700 | L55: 10,823 | M55: 14,797 | N55: 16,926 | O55: 21,169 | P55: 25,558 | Q55: 27,621 | R55: 32,304 | S55: 37,145 | T55: 39,675 | U55: 44,840 | V55: 50,178 | W55: 52,229 | X55: 57,916 | Y55: 63,795 | Z55: 65,905 | AA55: 72,165 | AB55: 78,633 | AC55: 80,858 | AD55: 87,740 | AE55: 94,853 | AF55: 96,255 | AG55: 103,816 | AH55: 111,132 | AI55: =+AI27+AI40+AI51+AI52+AI43+AI44+AI47+AI48 -> 99,208 | AJ55: 105,801 | AK55: 112,608 | AL55: 119,639 | AM55: 126,898 | AN55: 134,395 | AO55: 142,134 | AP55: 150,124 | AQ55: 158,373 | AR55: =+AR27+AR40+AR51+AR52+AR43+AR44+AR47+AR48 -> 166,888 | AS55: 175,676 | AT55: 184,748 | AU55: 194,109 | AV55: 203,773 | AW55: 213,744 | AX55: 224,034 | AY55: 234,652 | AZ55: 245,608 | BA55: 256,913 | BB55: 268,575
A57: Cumulative Surplus/(Deficit) | C57: =C55 -> 0 | D57: =+C57+D55 -> (2,508,513) | E57: =+D57+E55 -> (4,804) | F57: =F55+E57 -> (6,500) | G57: (4,926) | H57: (7,940) | I57: (7,574) | J57: (3,468) | K57: 3,232 | L57: 14,055 | M57: 28,852 | N57: 45,778 | O57: 66,947 | P57: 92,505 | Q57: 120,126 | R57: 152,430 | S57: 189,576 | T57: 229,251 | U57: 274,090 | V57: 324,268 | W57: 376,496 | X57: 434,412 | Y57: 498,208 | Z57: 564,113 | AA57: 636,278 | AB57: 714,911 | AC57: 795,768 | AD57: 883,509 | AE57: 978,362 | AF57: 1,074,617 | AG57: 1,178,433 | AH57: 1,289,565 | AI57: =AI55+AH57 -> 1,388,773 | AJ57: =AJ55+AI57 -> 1,494,574 | AK57: =AK55+AJ57 -> 1,607,182 | AL57: =AL55+AK57 -> 1,726,821 | AM57: =AM55+AL57 -> 1,853,719 | AN57: =AN55+AM57 -> 1,988,114 | AO57: =AO55+AN57 -> 2,130,248 | AP57: =AP55+AO57 -> 2,280,372 | AQ57: =AQ55+AP57 -> 2,438,745 | AR57: 2,605,633 | AS57: =AS55+AR57 -> 2,781,309 | AT57: =AT55+AS57 -> 2,966,057 | AU57: =AU55+AT57 -> 3,160,166 | AV57: =AV55+AU57 -> 3,363,939 | AW57: =AW55+AV57 -> 3,577,683 | AX57: =AX55+AW57 -> 3,801,717 | AY57: =AY55+AX57 -> 4,036,370 | AZ57: =AZ55+AY57 -> 4,281,977 | BA57: =BA55+AZ57 -> 4,538,890 | BB57: =BB55+BA57 -> 4,807,466
A395: 42,939
A400: 44,376

Sheet Balance Sheet
A1: Project Name | B1: =+'Cash Flow'!C1 -> Langley CLT 14 units LHA rent
A3: Projected Balance Sheet
C5: =+'Cash Flow'!C9 -> 2021 | D5: =+'Cash Flow'!D9 -> 2022 | E5: =+'Cash Flow'!E9 -> 2023 | F5: =+'Cash Flow'!F9 -> 2024 | G5: =+'Cash Flow'!G9 -> 2025 | H5: =+'Cash Flow'!H9 -> 2026 | I5: =+'Cash Flow'!I9 -> 2027 | J5: =+'Cash Flow'!J9 -> 2028 | K5: =+'Cash Flow'!K9 -> 2029 | L5: =+'Cash Flow'!L9 -> 2030 | M5: =+'Cash Flow'!M9 -> 2031 | N5: =+'Cash Flow'!N9 -> 2032 | O5: =+'Cash Flow'!O9 -> 2033 | P5: =+'Cash Flow'!P9 -> 2034 | Q5: =+'Cash Flow'!Q9 -> 2035 | R5: =+'Cash Flow'!R9 -> 2036 | S5: =+'Cash Flow'!S9 -> 2037 | T5: =+'Cash Flow'!T9 -> 2038 | U5: =+'Cash Flow'!U9 -> 2039 | V5: =+'Cash Flow'!V9 -> 2040 | W5: =+'Cash Flow'!W9 -> 2041 | X5: =+'Cash Flow'!X9 -> 2042 | Y5: =+'Cash Flow'!Y9 -> 2043 | Z5: =+'Cash Flow'!Z9 -> 2044 | AA5: =+'Cash Flow'!AA9 -> 2045 | AB5: =+'Cash Flow'!AB9 -> 2046 | AC5: =+'Cash Flow'!AC9 -> 2047 | AD5: =+'Cash Flow'!AD9 -> 2048 | AE5: =+'Cash Flow'!AE9 -> 2049 | AF5: =+'Cash Flow'!AF9 -> 2050 | AG5: =+'Cash Flow'!AG9 -> 2051 | AH5: =+'Cash Flow'!AH9 -> 2052 | AI5: =+'Cash Flow'!AI9 -> 2053 | AJ5: =+'Cash Flow'!AJ9 -> 2054 | AK5: =+'Cash Flow'!AK9 -> 2055 | AL5: =+'Cash Flow'!AL9 -> 2056 | AM5: =+'Cash Flow'!AM9 -> 2057 | AN5: =+'Cash Flow'!AN9 -> 2058 | AO5: =+'Cash Flow'!AO9 -> 2059 | AP5: =+'Cash Flow'!AP9 -> 2060 | AQ5: =+'Cash Flow'!AQ9 -> 2061 | AR5: =+'Cash Flow'!AR9 -> 2062 | AS5: =+'Cash Flow'!AS9 -> 2063 | AT5: =+'Cash Flow'!AT9 -> 2064 | AU5: =+'Cash Flow'!AU9 -> 2065 | AV5: =+'Cash Flow'!AV9 -> 2066 | AW5: =+'Cash Flow'!AW9 -> 2067 | AX5: =+'Cash Flow'!AX9 -> 2068 | AY5: =+'Cash Flow'!AY9 -> 2069 | AZ5: =+'Cash Flow'!AZ9 -> 2070 | BA5: =+'Cash Flow'!BA9 -> 2071 | BB5: =+'Cash Flow'!BB9 -> 2072
